Workbook

Sheet DUMMY_DATABASE (hidden)
L1: VS | M1: Manure available | O1: Energy consumption | P1: =title36 -> Price | Q1: =title38 -> Consumption
L2: Kg VS/hh/day | M2: Kg manure/hh/day | O2: per rural household | P2: USD per Unit | Q2: Quantity per day | R2: Units
A3: From natural resources | I3: =title5 -> Size 1 | J3: =title9 -> Dairy cattle | K3: =+I3&J3 -> Size 1Dairy cattle | L3: =+F$5*E9 -> 0 | M3: =+L3*$F$6 -> 0 | O3: =title12 -> Fuelwood | P3: 0.1 | Q3: 7 | R3: =title118 -> Kg/day
A4: From Energy Data Entry or Intro Page | F4: =title9 -> Dairy cattle | G4: =title10 -> Swine | H4: =title11 -> Buffalo | I4: =title6 -> Size 2 | J4: =title9 -> Dairy cattle | K4: =+I4&J4 -> Size 2Dairy cattle | L4: =+F$5*E10 -> 0 | M4: =+L4*$F$6 -> 0 | O4: =title13 -> Charcoal | P4: 0.27 | Q4: 2.17 | R4: =title118 -> Kg/day
B5: Country Selection | E5: Total VS (kg VS/head/day) | F5: =IFERROR(('Data entry needs'!$D$13/'Data entry needs'!$F$13)*VLOOKUP(DUMMY_DATABASE!F4,DUMMY_DATABASE!$E$19:$G$23,3,FALSE)*(1000 /365),0) -> 0 | G5: =IFERROR(('Data entry needs'!$D$13/'Data entry needs'!$F$13)*VLOOKUP(DUMMY_DATABASE!G4,DUMMY_DATABASE!$E$19:$G$23,3,FALSE)*(1000 /365),0) -> 0 | H5: =IFERROR(('Data entry needs'!$D$13/'Data entry needs'!$F$13)*VLOOKUP(DUMMY_DATABASE!H4,DUMMY_DATABASE!$E$19:$G$23,3,FALSE)*(1000 /365),0) -> 0 | I5: =title7 -> Size 3 | J5: =title9 -> Dairy cattle | K5: Size 3Dairy cattle | L5: =+F$5*E11 -> 0 | M5: =+L5*$F$6 -> 0 | O5: =title14 -> Briquettes/Pellets | P5: 0.2 | Q5: 0.01 | R5: =title118 -> Kg/day
B6: Region | E6: Conversion (kg manure/kg VS) | F6: =1/G20 -> 7.547169811 | G6: =1/G23 -> 4.237288136 | H6: =1/G19 -> 7.331378299 | I6: =title8 -> Size 4 | J6: =title9 -> Dairy cattle | K6: Size 4Dairy cattle | L6: =+F$5*E12 -> 0 | M6: =+L6*$F$6 -> 0 | O6: =title15 -> Kerosene | P6: 1.2 | Q6: 0.19 | R6: L/day
B7: Number of heads | C7: 10000 | G7: Conversion (kg manure/kg VS) | I7: =title5 -> Size 1 | J7: =title10 -> Swine | K7: Size 1Swine | L7: =+G$5*E9 -> 0 | M7: =+L7*$G$6 -> 0 | O7: =title16 -> LPG | P7: 1.2 | Q7: 0.01 | R7: L/day
C8: Percentage of households owning: | E8: Heads/household | F8: =title9 -> Dairy cattle | G8: 7.547169811 | I8: =title6 -> Size 2 | J8: =title10 -> Swine | K8: Size 2Swine | L8: =+G$5*E10 -> 0 | M8: =+L8*$G$6 -> 0 | O8: =title17 -> Electricity | P8: 0.1 | Q8: 0.01 | R8: kwh/day
B9: =title5 -> Size 1 | C9: 3-4 animals | D9: =+'Data entry needs'!$D$18 -> 0 | E9: =+AVERAGE('Data entry needs'!AC22:AD22) -> 0 | F9: =title10 -> Swine | G9: 4.237288136 | I9: =title7 -> Size 3 | J9: =title10 -> Swine | K9: Size 3Swine | L9: =+G$5*E11 -> 0 | M9: =+L9*$G$6 -> 0
B10: =title6 -> Size 2 | C10: 5-6 animals | D10: =+'Data entry needs'!$E$18 -> 0 | E10: =+AVERAGE('Data entry needs'!AC23:AD23) -> 0 | F10: =title11 -> Buffalo | G10: 7.331378299 | I10: =title8 -> Size 4 | J10: =title10 -> Swine | K10: Size 4Swine | L10: =+G$5*E12 -> 0 | M10: =+L10*$G$6 -> 0
B11: =title7 -> Size 3 | C11: 7-8 animals | D11: =+'Data entry needs'!$F$18 -> 0 | E11: =+AVERAGE('Data entry needs'!AC24:AD24) -> 0 | I11: =title5 -> Size 1 | J11: =title11 -> Buffalo | K11: Size 1Buffalo | L11: =+H$5*E9 -> 0 | M11: =+L11*$H$6 -> 0
B12: =title8 -> Size 4 | C12: 9-10 animals | D12: =+'Data entry needs'!$G$18 -> 0 | E12: =+AVERAGE('Data entry needs'!AC25:AD25) -> 0 | I12: =title6 -> Size 2 | J12: =title11 -> Buffalo | K12: Size 2Buffalo | L12: =+H$5*E10 -> 0 | M12: =+L12*$H$6 -> 0
I13: =title7 -> Size 3 | J13: =title11 -> Buffalo | K13: Size 3Buffalo | L13: =+H$5*E11 -> 0 | M13: =+L13*$H$6 -> 0
I14: =title8 -> Size 4 | J14: =title11 -> Buffalo | K14: Size 4Buffalo | L14: =+H$5*E12 -> 0 | M14: =+L14*$H$6 -> 0
B15: Select from the list | C15: Region
B17: Select the country | C17: IPCC | E17: Basic properties
B18: =country_translation2 -> Select a country | F18: Density (Kg/m3) | G18: Volatile solids (kg/kg) | I18: Moisture (kg/kg)
B19: =country_translation3 -> Afghanistan | C19: =region233 -> Indian Subcontinent | E19: =title11 -> Buffalo | F19: 960 | G19: 0.1364 | I19: 0.73
B20: =country_translation4 -> Albania | C20: =region232 -> Eastern Europe | E20: Cattle | F20: 960 | G20: 0.1325 | I20: 0.366
B21: =country_translation5 -> Algeria | C21: =region230 -> Africa | E21: =title9 -> Dairy cattle | F21: 994 | G21: 0.2047 | I21: 0.6738
B22: =country_translation6 -> American Samoa | C22: =region237 -> Oceania | E22: Poultry | F22: 961.11 | G22: 0.4934 | I22: 0.253
B23: =country_translation7 -> Andorra | C23: =region238 -> Western Europe | E23: =title10 -> Swine | F23: 1140.9 | G23: 0.236 | I23: 0.0722
B24: =country_translation8 -> Angola | C24: =region230 -> Africa
B25: =country_translation9 -> Anguilla | C25: =region234 -> Latin America
B26: =country_translation10 -> Antigua and Barbuda | C26: =region234 -> Latin America
B27: =country_translation11 -> Argentina | C27: =region234 -> Latin America
B28: =country_translation12 -> Armenia | C28: =region231 -> Asia
B29: =country_translation13 -> Aruba | C29: =region234 -> Latin America
B30: =country_translation14 -> Australia | C30: =region237 -> Oceania
B31: =country_translation15 -> Austria | C31: =region238 -> Western Europe
B32: =country_translation16 -> Azerbaijan | C32: =region231 -> Asia
B33: =country_translation17 -> Bahamas | C33: =region234 -> Latin America
B34: =country_translation18 -> Bahrain | C34: =region231 -> Asia
B35: =country_translation19 -> Bangladesh | C35: =region233 -> Indian Subcontinent
B36: =country_translation20 -> Barbados | C36: =region234 -> Latin America
B37: =country_translation21 -> Belarus | C37: =region232 -> Eastern Europe
B38: =country_translation22 -> Belgium | C38: =region238 -> Western Europe
B39: =country_translation23 -> Belize | C39: =region234 -> Latin America
B40: =country_translation24 -> Benin | C40: =region230 -> Africa
B41: =country_translation25 -> Bermuda | C41: =region236 -> North America
B42: =country_translation26 -> Bhutan | C42: =region233 -> Indian Subcontinent
B43: =country_translation27 -> Bolivia (Plurinational State of) | C43: =region234 -> Latin America
B44: =country_translation28 -> Bosnia and Herzegovina | C44: =region232 -> Eastern Europe
B45: =country_translation29 -> Botswana | C45: =region230 -> Africa
B46: =country_translation30 -> Brazil | C46: =region234 -> Latin America
B47: =country_translation31 -> British Virgin Islands | C47: =region234 -> Latin America
B48: =country_translation32 -> Brunei Darussalam | C48: =region231 -> Asia
B49: =country_translation33 -> Bulgaria | C49: =region232 -> Eastern Europe
B50: =country_translation34 -> Burkina Faso | C50: =region230 -> Africa
B51: =country_translation35 -> Burundi | C51: =region230 -> Africa
B52: =country_translation36 -> Cambodia | C52: =region231 -> Asia
B53: =country_translation37 -> Cameroon | C53: =region230 -> Africa
B54: =country_translation38 -> Canada | C54: =region236 -> North America
B55: =country_translation39 -> Cape Verde | C55: =region230 -> Africa
B56: =country_translation40 -> Cayman Islands | C56: =region234 -> Latin America
B57: =country_translation41 -> Central African Republic | C57: =region230 -> Africa
B58: =country_translation42 -> Chad | C58: =region230 -> Africa
B59: =country_translation43 -> Chile | C59: =region234 -> Latin America
B60: =country_translation44 -> China | C60: =region231 -> Asia
B61: =country_translation45 -> Colombia | C61: =region234 -> Latin America
B62: =country_translation46 -> Comoros | C62: =region230 -> Africa
B63: =country_translation47 -> Congo | C63: =region230 -> Africa
B64: =country_translation48 -> Cook Islands | C64: =region237 -> Oceania
B65: =country_translation49 -> Costa Rica | C65: =region234 -> Latin America
B66: =country_translation50 -> Côte d'Ivoire | C66: =region230 -> Africa
B67: =country_translation51 -> Croatia | C67: =region232 -> Eastern Europe
B68: =country_translation52 -> Cuba | C68: =region234 -> Latin America
B69: =country_translation53 -> Cyprus | C69: =region231 -> Asia
B70: =country_translation54 -> Czech Republic | C70: =region232 -> Eastern Europe
B71: =country_translation55 -> Democratic People's Republic of Korea | C71: =region231 -> Asia
B72: =country_translation56 -> Democratic Republic of the Congo | C72: =region230 -> Africa
B73: =country_translation57 -> Denmark | C73: =region238 -> Western Europe
B74: =country_translation58 -> Djibouti | C74: =region230 -> Africa
B75: =country_translation59 -> Dominica | C75: =region234 -> Latin America
B76: =country_translation60 -> Dominican Republic | C76: =region234 -> Latin America
B77: =country_translation61 -> Ecuador | C77: =region234 -> Latin America
B78: =country_translation62 -> Egypt | C78: =region235 -> Middle East
B79: =country_translation63 -> El Salvador | C79: =region234 -> Latin America
B80: =country_translation64 -> Equatorial Guinea | C80: =region230 -> Africa
B81: =country_translation65 -> Eritrea | C81: =region230 -> Africa
B82: =country_translation66 -> Estonia | C82: =region238 -> Western Europe
B83: =country_translation67 -> Ethiopia | C83: =region230 -> Africa
B84: =country_translation68 -> Faeroe Islands | C84: =region238 -> Western Europe
B85: =country_translation69 -> Falkland Islands (Malvinas) | C85: =region234 -> Latin America
B86: =country_translation70 -> Fiji | C86: =region237 -> Oceania
B87: =country_translation71 -> Finland | C87: =region238 -> Western Europe
B88: =country_translation72 -> France | C88: =region238 -> Western Europe
B89: =country_translation73 -> French Guiana | C89: =region234 -> Latin America
B90: =country_translation74 -> French Polynesia | C90: =region237 -> Oceania
B91: =country_translation75 -> Gabon | C91: =region230 -> Africa
B92: =country_translation76 -> Gambia | C92: =region230 -> Africa
B93: =country_translation77 -> Georgia | C93: =region231 -> Asia
B94: =country_translation78 -> Germany | C94: =region238 -> Western Europe
B95: =country_translation79 -> Ghana | C95: =region230 -> Africa
B96: =country_translation80 -> Gibraltar | C96: =region238 -> Western Europe
B97: =country_translation81 -> Greece | C97: =region238 -> Western Europe
B98: =country_translation82 -> Grenada | C98: =region234 -> Latin America
B99: =country_translation83 -> Greenland | C99: =region236 -> North America
B100: =country_translation84 -> Guadeloupe | C100: =region234 -> Latin America
B101: =country_translation85 -> Guam | C101: =region237 -> Oceania
B102: =country_translation86 -> Guatemala | C102: =region234 -> Latin America
B103: =country_translation87 -> Guinea | C103: =region230 -> Africa
B104: =country_translation88 -> Guinea-Bissau | C104: =region230 -> Africa
B105: =country_translation89 -> Guyana | C105: =region234 -> Latin America
B106: =country_translation90 -> Haiti | C106: =region234 -> Latin America
B107: =country_translation91 -> Holy See | C107: =region238 -> Western Europe
B108: =country_translation92 -> Honduras | C108: =region234 -> Latin America
B109: =country_translation93 -> Hungary | C109: =region232 -> Eastern Europe
B110: =country_translation94 -> Iceland | C110: =region238 -> Western Europe
B111: =country_translation95 -> India | C111: =region233 -> Indian Subcontinent
B112: =country_translation96 -> Indonesia | C112: =region231 -> Asia
B113: =country_translation97 -> Iran (Islamic Republic of) | C113: =region235 -> Middle East
B114: =country_translation98 -> Iraq | C114: =region235 -> Middle East
B115: =country_translation99 -> Ireland | C115: =region238 -> Western Europe
B116: =country_translation100 -> Israel | C116: =region235 -> Middle East
B117: =country_translation101 -> Italy | C117: =region238 -> Western Europe
B118: =country_translation102 -> Jamaica | C118: =region234 -> Latin America
B119: =country_translation103 -> Japan | C119: =region231 -> Asia
B120: =country_translation104 -> Jordan | C120: =region235 -> Middle East
B121: =country_translation105 -> Kazakhstan | C121: =region231 -> Asia
B122: =country_translation106 -> Kenya | C122: =region230 -> Africa
B123: =country_translation107 -> Kiribati | C123: =region237 -> Oceania
B124: =country_translation108 -> Kuwait | C124: =region235 -> Middle East
B125: =country_translation109 -> Kyrgyzstan | C125: =region231 -> Asia
B126: =country_translation110 -> Lao People's Democratic Republic | C126: =region231 -> Asia
B127: =country_translation111 -> Latvia | C127: =region238 -> Western Europe
B128: =country_translation112 -> Lebanon | C128: =region235 -> Middle East
B129: =country_translation113 -> Lesotho | C129: =region230 -> Africa
B130: =country_translation114 -> Liberia | C130: =region230 -> Africa
B131: =country_translation115 -> Libya | C131: =region230 -> Africa
B132: =country_translation116 -> Liechtenstein | C132: =region238 -> Western Europe
B133: =country_translation117 -> Lithuania | C133: =region238 -> Western Europe
B134: =country_translation118 -> Luxembourg | C134: =region238 -> Western Europe
B135: =country_translation119 -> Madagascar | C135: =region230 -> Africa
B136: =country_translation120 -> Malawi | C136: =region230 -> Africa
B137: =country_translation121 -> Malaysia | C137: =region231 -> Asia
B138: =country_translation122 -> Maldives | C138: =region233 -> Indian Subcontinent
B139: =country_translation123 -> Mali | C139: =region230 -> Africa
B140: =country_translation124 -> Malta | C140: =region238 -> Western Europe
B141: =country_translation125 -> Marshall Islands | C141: =region237 -> Oceania
B142: =country_translation126 -> Martinique | C142: =region234 -> Latin America
B143: =country_translation127 -> Mauritania | C143: =region230 -> Africa
B144: =country_translation128 -> Mauritius | C144: =region230 -> Africa
B145: =country_translation129 -> Mayotte | C145: =region230 -> Africa
B146: =country_translation130 -> Mexico | C146: =region234 -> Latin America
B147: =country_translation131 -> Micronesia (Federated States of) | C147: =region237 -> Oceania
B148: =country_translation132 -> Monaco | C148: =region238 -> Western Europe
B149: =country_translation133 -> Mongolia | C149: =region231 -> Asia
B150: =country_translation134 -> Montenegro | C150: =region232 -> Eastern Europe
B151: =country_translation135 -> Montserrat | C151: =region234 -> Latin America
B152: =country_translation136 -> Morocco | C152: =region230 -> Africa
B153: =country_translation137 -> Mozambique | C153: =region230 -> Africa
B154: =country_translation138 -> Myanmar | C154: =region231 -> Asia
B155: =country_translation139 -> Namibia | C155: =region230 -> Africa
B156: =country_translation140 -> Nauru | C156: =region237 -> Oceania
B157: =country_translation141 -> Nepal | C157: =region233 -> Indian Subcontinent
B158: =country_translation142 -> Netherlands | C158: =region238 -> Western Europe
B159: =country_translation143 -> New Caledonia | C159: =region237 -> Oceania
B160: =country_translation144 -> New Zealand | C160: =region237 -> Oceania
B161: =country_translation145 -> Nicaragua | C161: =region234 -> Latin America
B162: =country_translation146 -> Niger | C162: =region230 -> Africa
B163: =country_translation147 -> Nigeria | C163: =region230 -> Africa
B164: =country_translation148 -> Niue | C164: =region237 -> Oceania
B165: =country_translation149 -> Norfolk Island | C165: =region237 -> Oceania
B166: =country_translation150 -> Northern Mariana Islands | C166: =region237 -> Oceania
B167: =country_translation151 -> Norway | C167: =region238 -> Western Europe
B168: =country_translation152 -> Occupied Palestinian Territory | C168: =region235 -> Middle East
B169: =country_translation153 -> Oman | C169: =region235 -> Middle East
B170: =country_translation154 -> Pakistan | C170: =region233 -> Indian Subcontinent
B171: =country_translation155 -> Palau | C171: =region237 -> Oceania
B172: =country_translation156 -> Panama | C172: =region234 -> Latin America
B173: =country_translation157 -> Papua New Guinea | C173: =region237 -> Oceania
B174: =country_translation158 -> Paraguay | C174: =region234 -> Latin America
B175: =country_translation159 -> Peru | C175: =region234 -> Latin America
B176: =country_translation160 -> Philippines | C176: =region231 -> Asia
B177: =country_translation161 -> Poland | C177: =region232 -> Eastern Europe
B178: =country_translation162 -> Portugal | C178: =region238 -> Western Europe
B179: =country_translation163 -> Puerto Rico | C179: =region234 -> Latin America
B180: =country_translation164 -> Qatar | C180: =region235 -> Middle East
B181: =country_translation165 -> Réunion | C181: =region231 -> Asia
B182: =country_translation166 -> Republic of Moldova | C182: =region232 -> Eastern Europe
B183: =country_translation167 -> Republic of Korea | C183: =region230 -> Africa
B184: =country_translation168 -> Romania | C184: =region232 -> Eastern Europe
B185: =country_translation169 -> Russian Federation | C185: =region232 -> Eastern Europe
B186: =country_translation170 -> Rwanda | C186: =region230 -> Africa
B187: =country_translation171 -> Saint Helena, Ascension and Tristan da Cunha | C187: =region230 -> Africa
B188: =country_translation172 -> Saint Kitts and Nevis | C188: =region234 -> Latin America
B189: =country_translation173 -> Saint Lucia | C189: =region234 -> Latin America
B190: =country_translation174 -> Saint Pierre and Miquelon | C190: =region236 -> North America
B191: =country_translation175 -> Saint Vincent and the Grenadines | C191: =region234 -> Latin America
B192: =country_translation176 -> Samoa | C192: =region237 -> Oceania
B193: =country_translation177 -> San Marino | C193: =region238 -> Western Europe
B194: =country_translation178 -> Sao Tome and Principe | C194: =region230 -> Africa
B195: =country_translation179 -> Saudi Arabia | C195: =region235 -> Middle East
B196: =country_translation180 -> Senegal | C196: =region230 -> Africa
B197: =country_translation181 -> Serbia | C197: =region232 -> Eastern Europe
B198: =country_translation182 -> Seychelles | C198: =region230 -> Africa
B199: =country_translation183 -> Sierra Leone | C199: =region230 -> Africa
B200: =country_translation184 -> Singapore | C200: =region231 -> Asia
B201: =country_translation185 -> Slovakia | C201: =region232 -> Eastern Europe
... 44 more rows

Sheet Country (hidden)
B2: Selection | C2: =VLOOKUP(Start!B2,$A$3:$C$5,3,FALSE) -> 1
A3: EN | B3: English | C3: 1
A4: FR | B4: French | C4: 2
A5: ES | B5: Spanish | C5: 3
B6: List For Selection | I6: List For Translation
A7: ID | B7: English | C7: French | D7: Spanish | E7: Typeof | F7: Ref | G7: Name | I7: English | J7: French | K7: Spanish | L7: Typeof | M7: Ref | N7: Name
A8: 1 | B8: 1 | C8: 2 | D8: 3 | I8: 1 | J8: 2 | K8: 3
A9: 2 | B9: Select a country | C9: Sélectionner un pays | D9: Seleccione un país | E9: country_selection | F9: =HLOOKUP($C$2,$B$8:$D9,$A9,FALSE) -> Select a country | G9: =$E9&$A9 -> country_selection2 | I9: Select a country | J9: Sélectionner un pays | K9: Seleccione un país | L9: country_translation | M9: =HLOOKUP($C$2,$I$8:$K9,$A9,FALSE) -> Select a country | N9: =$L9&$A9 -> country_translation2
A10: 3 | B10: Afghanistan | C10: Afghanistan | D10: Afganistán | E10: country_selection | F10: =HLOOKUP($C$2,$B$8:$D10,$A10,FALSE) -> Afghanistan | G10: country_selection3 | I10: Afghanistan | J10: Afghanistan | K10: Afganistán | L10: country_translation | M10: =HLOOKUP($C$2,$I$8:$K10,$A10,FALSE) -> Afghanistan | N10: =$L10&$A10 -> country_translation3
A11: 4 | B11: Albania | C11: Afrique du Sud | D11: Albania | E11: country_selection | F11: =HLOOKUP($C$2,$B$8:$D11,$A11,FALSE) -> Albania | G11: country_selection4 | I11: Albania | J11: Albanie | K11: Albania | L11: country_translation | M11: =HLOOKUP($C$2,$I$8:$K11,$A11,FALSE) -> Albania | N11: country_translation4
A12: 5 | B12: Algeria | C12: Albanie | D12: Alemania | E12: country_selection | F12: =HLOOKUP($C$2,$B$8:$D12,$A12,FALSE) -> Algeria | G12: country_selection5 | I12: Algeria | J12: Algérie | K12: Argelia | L12: country_translation | M12: =HLOOKUP($C$2,$I$8:$K12,$A12,FALSE) -> Algeria | N12: country_translation5
A13: 6 | B13: American Samoa | C13: Algérie | D13: Andorra | E13: country_selection | F13: =HLOOKUP($C$2,$B$8:$D13,$A13,FALSE) -> American Samoa | G13: country_selection6 | I13: American Samoa | J13: Samoa américaines | K13: Samoa Americana | L13: country_translation | M13: =HLOOKUP($C$2,$I$8:$K13,$A13,FALSE) -> American Samoa | N13: country_translation6
A14: 7 | B14: Andorra | C14: Allemagne | D14: Angola | E14: country_selection | F14: =HLOOKUP($C$2,$B$8:$D14,$A14,FALSE) -> Andorra | G14: country_selection7 | I14: Andorra | J14: Andorre | K14: Andorra | L14: country_translation | M14: =HLOOKUP($C$2,$I$8:$K14,$A14,FALSE) -> Andorra | N14: country_translation7
A15: 8 | B15: Angola | C15: Andorre | D15: Anguila | E15: country_selection | F15: =HLOOKUP($C$2,$B$8:$D15,$A15,FALSE) -> Angola | G15: country_selection8 | I15: Angola | J15: Angola | K15: Angola | L15: country_translation | M15: =HLOOKUP($C$2,$I$8:$K15,$A15,FALSE) -> Angola | N15: country_translation8
A16: 9 | B16: Anguilla | C16: Angola | D16: Antigua y Barbuda | E16: country_selection | F16: =HLOOKUP($C$2,$B$8:$D16,$A16,FALSE) -> Anguilla | G16: country_selection9 | I16: Anguilla | J16: Anguilla | K16: Anguila | L16: country_translation | M16: =HLOOKUP($C$2,$I$8:$K16,$A16,FALSE) -> Anguilla | N16: country_translation9
A17: 10 | B17: Antigua and Barbuda | C17: Anguilla | D17: Arabia Saudita | E17: country_selection | F17: =HLOOKUP($C$2,$B$8:$D17,$A17,FALSE) -> Antigua and Barbuda | G17: country_selection10 | I17: Antigua and Barbuda | J17: Antigua-et-Barbuda | K17: Antigua y Barbuda | L17: country_translation | M17: =HLOOKUP($C$2,$I$8:$K17,$A17,FALSE) -> Antigua and Barbuda | N17: country_translation10
A18: 11 | B18: Argentina | C18: Antigua-et-Barbuda | D18: Argelia | E18: country_selection | F18: =HLOOKUP($C$2,$B$8:$D18,$A18,FALSE) -> Argentina | G18: country_selection11 | I18: Argentina | J18: Argentine | K18: Argentina | L18: country_translation | M18: =HLOOKUP($C$2,$I$8:$K18,$A18,FALSE) -> Argentina | N18: country_translation11
A19: 12 | B19: Armenia | C19: Arabie saoudite | D19: Argentina | E19: country_selection | F19: =HLOOKUP($C$2,$B$8:$D19,$A19,FALSE) -> Armenia | G19: country_selection12 | I19: Armenia | J19: Arménie | K19: Armenia | L19: country_translation | M19: =HLOOKUP($C$2,$I$8:$K19,$A19,FALSE) -> Armenia | N19: country_translation12
A20: 13 | B20: Aruba | C20: Argentine | D20: Armenia | E20: country_selection | F20: =HLOOKUP($C$2,$B$8:$D20,$A20,FALSE) -> Aruba | G20: country_selection13 | I20: Aruba | J20: Aruba | K20: Aruba | L20: country_translation | M20: =HLOOKUP($C$2,$I$8:$K20,$A20,FALSE) -> Aruba | N20: country_translation13
A21: 14 | B21: Australia | C21: Arménie | D21: Aruba | E21: country_selection | F21: =HLOOKUP($C$2,$B$8:$D21,$A21,FALSE) -> Australia | G21: country_selection14 | I21: Australia | J21: Australie | K21: Australia | L21: country_translation | M21: =HLOOKUP($C$2,$I$8:$K21,$A21,FALSE) -> Australia | N21: country_translation14
A22: 15 | B22: Austria | C22: Aruba | D22: Australia | E22: country_selection | F22: =HLOOKUP($C$2,$B$8:$D22,$A22,FALSE) -> Austria | G22: country_selection15 | I22: Austria | J22: Autriche | K22: Austria | L22: country_translation | M22: =HLOOKUP($C$2,$I$8:$K22,$A22,FALSE) -> Austria | N22: country_translation15
A23: 16 | B23: Azerbaijan | C23: Australie | D23: Austria | E23: country_selection | F23: =HLOOKUP($C$2,$B$8:$D23,$A23,FALSE) -> Azerbaijan | G23: country_selection16 | I23: Azerbaijan | J23: Azerbaïdjan | K23: Azerbaiyán | L23: country_translation | M23: =HLOOKUP($C$2,$I$8:$K23,$A23,FALSE) -> Azerbaijan | N23: country_translation16
A24: 17 | B24: Bahamas | C24: Autriche | D24: Azerbaiyán | E24: country_selection | F24: =HLOOKUP($C$2,$B$8:$D24,$A24,FALSE) -> Bahamas | G24: country_selection17 | I24: Bahamas | J24: Bahamas | K24: Bahamas | L24: country_translation | M24: =HLOOKUP($C$2,$I$8:$K24,$A24,FALSE) -> Bahamas | N24: country_translation17
A25: 18 | B25: Bahrain | C25: Azerbaïdjan | D25: Bahamas | E25: country_selection | F25: =HLOOKUP($C$2,$B$8:$D25,$A25,FALSE) -> Bahrain | G25: country_selection18 | I25: Bahrain | J25: Bahreïn | K25: Bahrein | L25: country_translation | M25: =HLOOKUP($C$2,$I$8:$K25,$A25,FALSE) -> Bahrain | N25: country_translation18
A26: 19 | B26: Bangladesh | C26: Bahamas | D26: Bahrein | E26: country_selection | F26: =HLOOKUP($C$2,$B$8:$D26,$A26,FALSE) -> Bangladesh | G26: country_selection19 | I26: Bangladesh | J26: Bangladesh | K26: Bangladesh | L26: country_translation | M26: =HLOOKUP($C$2,$I$8:$K26,$A26,FALSE) -> Bangladesh | N26: country_translation19
A27: 20 | B27: Barbados | C27: Bahreïn | D27: Bangladesh | E27: country_selection | F27: =HLOOKUP($C$2,$B$8:$D27,$A27,FALSE) -> Barbados | G27: country_selection20 | I27: Barbados | J27: Barbade | K27: Barbados | L27: country_translation | M27: =HLOOKUP($C$2,$I$8:$K27,$A27,FALSE) -> Barbados | N27: country_translation20
A28: 21 | B28: Belarus | C28: Bangladesh | D28: Barbados | E28: country_selection | F28: =HLOOKUP($C$2,$B$8:$D28,$A28,FALSE) -> Belarus | G28: country_selection21 | I28: Belarus | J28: Bélarus | K28: Belarús | L28: country_translation | M28: =HLOOKUP($C$2,$I$8:$K28,$A28,FALSE) -> Belarus | N28: country_translation21
A29: 22 | B29: Belgium | C29: Barbade | D29: Belarús | E29: country_selection | F29: =HLOOKUP($C$2,$B$8:$D29,$A29,FALSE) -> Belgium | G29: country_selection22 | I29: Belgium | J29: Belgique | K29: Bélgica | L29: country_translation | M29: =HLOOKUP($C$2,$I$8:$K29,$A29,FALSE) -> Belgium | N29: country_translation22
A30: 23 | B30: Belize | C30: Bélarus | D30: Bélgica | E30: country_selection | F30: =HLOOKUP($C$2,$B$8:$D30,$A30,FALSE) -> Belize | G30: country_selection23 | I30: Belize | J30: Belize | K30: Belice | L30: country_translation | M30: =HLOOKUP($C$2,$I$8:$K30,$A30,FALSE) -> Belize | N30: country_translation23
A31: 24 | B31: Benin | C31: Belgique | D31: Belice | E31: country_selection | F31: =HLOOKUP($C$2,$B$8:$D31,$A31,FALSE) -> Benin | G31: country_selection24 | I31: Benin | J31: Bénin | K31: Benin | L31: country_translation | M31: =HLOOKUP($C$2,$I$8:$K31,$A31,FALSE) -> Benin | N31: country_translation24
A32: 25 | B32: Bermuda | C32: Belize | D32: Benin | E32: country_selection | F32: =HLOOKUP($C$2,$B$8:$D32,$A32,FALSE) -> Bermuda | G32: country_selection25 | I32: Bermuda | J32: Bermudes | K32: Bermudas | L32: country_translation | M32: =HLOOKUP($C$2,$I$8:$K32,$A32,FALSE) -> Bermuda | N32: country_translation25
A33: 26 | B33: Bhutan | C33: Bénin | D33: Bermudas | E33: country_selection | F33: =HLOOKUP($C$2,$B$8:$D33,$A33,FALSE) -> Bhutan | G33: country_selection26 | I33: Bhutan | J33: Bhoutan | K33: Bután | L33: country_translation | M33: =HLOOKUP($C$2,$I$8:$K33,$A33,FALSE) -> Bhutan | N33: country_translation26
A34: 27 | B34: Bolivia (Plurinational State of) | C34: Bermudes | D34: Bolivia (Estado Plurinacional de) | E34: country_selection | F34: =HLOOKUP($C$2,$B$8:$D34,$A34,FALSE) -> Bolivia (Plurinational State of) | G34: country_selection27 | I34: Bolivia (Plurinational State of) | J34: Bolivie (État plurinational de) | K34: Bolivia (Estado Plurinacional de) | L34: country_translation | M34: =HLOOKUP($C$2,$I$8:$K34,$A34,FALSE) -> Bolivia (Plurinational State of) | N34: country_translation27
A35: 28 | B35: Bosnia and Herzegovina | C35: Bhoutan | D35: Bosnia y Herzegovina | E35: country_selection | F35: =HLOOKUP($C$2,$B$8:$D35,$A35,FALSE) -> Bosnia and Herzegovina | G35: country_selection28 | I35: Bosnia and Herzegovina | J35: Bosnie-Herzégovine | K35: Bosnia y Herzegovina | L35: country_translation | M35: =HLOOKUP($C$2,$I$8:$K35,$A35,FALSE) -> Bosnia and Herzegovina | N35: country_translation28
A36: 29 | B36: Botswana | C36: Bolivie (État plurinational de) | D36: Botswana | E36: country_selection | F36: =HLOOKUP($C$2,$B$8:$D36,$A36,FALSE) -> Botswana | G36: country_selection29 | I36: Botswana | J36: Botswana | K36: Botswana | L36: country_translation | M36: =HLOOKUP($C$2,$I$8:$K36,$A36,FALSE) -> Botswana | N36: country_translation29
A37: 30 | B37: Brazil | C37: Bosnie-Herzégovine | D37: Brasil | E37: country_selection | F37: =HLOOKUP($C$2,$B$8:$D37,$A37,FALSE) -> Brazil | G37: country_selection30 | I37: Brazil | J37: Brésil | K37: Brasil | L37: country_translation | M37: =HLOOKUP($C$2,$I$8:$K37,$A37,FALSE) -> Brazil | N37: country_translation30
A38: 31 | B38: British Virgin Islands | C38: Botswana | D38: Brunei Darussalam | E38: country_selection | F38: =HLOOKUP($C$2,$B$8:$D38,$A38,FALSE) -> British Virgin Islands | G38: country_selection31 | I38: British Virgin Islands | J38: Îles Vierges britanniques | K38: Islas Vírgenes Británicas | L38: country_translation | M38: =HLOOKUP($C$2,$I$8:$K38,$A38,FALSE) -> British Virgin Islands | N38: country_translation31
A39: 32 | B39: Brunei Darussalam | C39: Brésil | D39: Bulgaria | E39: country_selection | F39: =HLOOKUP($C$2,$B$8:$D39,$A39,FALSE) -> Brunei Darussalam | G39: country_selection32 | I39: Brunei Darussalam | J39: Brunéi Darussalam | K39: Brunei Darussalam | L39: country_translation | M39: =HLOOKUP($C$2,$I$8:$K39,$A39,FALSE) -> Brunei Darussalam | N39: country_translation32
A40: 33 | B40: Bulgaria | C40: Brunéi Darussalam | D40: Burkina Faso | E40: country_selection | F40: =HLOOKUP($C$2,$B$8:$D40,$A40,FALSE) -> Bulgaria | G40: country_selection33 | I40: Bulgaria | J40: Bulgarie | K40: Bulgaria | L40: country_translation | M40: =HLOOKUP($C$2,$I$8:$K40,$A40,FALSE) -> Bulgaria | N40: country_translation33
A41: 34 | B41: Burkina Faso | C41: Bulgarie | D41: Burundi | E41: country_selection | F41: =HLOOKUP($C$2,$B$8:$D41,$A41,FALSE) -> Burkina Faso | G41: country_selection34 | I41: Burkina Faso | J41: Burkina Faso | K41: Burkina Faso | L41: country_translation | M41: =HLOOKUP($C$2,$I$8:$K41,$A41,FALSE) -> Burkina Faso | N41: country_translation34
A42: 35 | B42: Burundi | C42: Burkina Faso | D42: Bután | E42: country_selection | F42: =HLOOKUP($C$2,$B$8:$D42,$A42,FALSE) -> Burundi | G42: country_selection35 | I42: Burundi | J42: Burundi | K42: Burundi | L42: country_translation | M42: =HLOOKUP($C$2,$I$8:$K42,$A42,FALSE) -> Burundi | N42: country_translation35
A43: 36 | B43: Cambodia | C43: Burundi | D43: Cabo Verde | E43: country_selection | F43: =HLOOKUP($C$2,$B$8:$D43,$A43,FALSE) -> Cambodia | G43: country_selection36 | I43: Cambodia | J43: Cambodge | K43: Camboya | L43: country_translation | M43: =HLOOKUP($C$2,$I$8:$K43,$A43,FALSE) -> Cambodia | N43: country_translation36
A44: 37 | B44: Cameroon | C44: Cabo Verde | D44: Camboya | E44: country_selection | F44: =HLOOKUP($C$2,$B$8:$D44,$A44,FALSE) -> Cameroon | G44: country_selection37 | I44: Cameroon | J44: Cameroun | K44: Camerún | L44: country_translation | M44: =HLOOKUP($C$2,$I$8:$K44,$A44,FALSE) -> Cameroon | N44: country_translation37
A45: 38 | B45: Canada | C45: Cambodge | D45: Camerún | E45: country_selection | F45: =HLOOKUP($C$2,$B$8:$D45,$A45,FALSE) -> Canada | G45: country_selection38 | I45: Canada | J45: Canada | K45: Canadá | L45: country_translation | M45: =HLOOKUP($C$2,$I$8:$K45,$A45,FALSE) -> Canada | N45: country_translation38
A46: 39 | B46: Cape Verde | C46: Cameroun | D46: Canadá | E46: country_selection | F46: =HLOOKUP($C$2,$B$8:$D46,$A46,FALSE) -> Cape Verde | G46: country_selection39 | I46: Cape Verde | J46: Cabo Verde | K46: Cabo Verde | L46: country_translation | M46: =HLOOKUP($C$2,$I$8:$K46,$A46,FALSE) -> Cape Verde | N46: country_translation39
A47: 40 | B47: Cayman Islands | C47: Canada | D47: Chad | E47: country_selection | F47: =HLOOKUP($C$2,$B$8:$D47,$A47,FALSE) -> Cayman Islands | G47: country_selection40 | I47: Cayman Islands | J47: Îles Caïmanes | K47: Islas Caimán | L47: country_translation | M47: =HLOOKUP($C$2,$I$8:$K47,$A47,FALSE) -> Cayman Islands | N47: country_translation40
A48: 41 | B48: Central African Republic | C48: Chili | D48: Chile | E48: country_selection | F48: =HLOOKUP($C$2,$B$8:$D48,$A48,FALSE) -> Central African Republic | G48: country_selection41 | I48: Central African Republic | J48: République centrafricaine | K48: República Centroafricana | L48: country_translation | M48: =HLOOKUP($C$2,$I$8:$K48,$A48,FALSE) -> Central African Republic | N48: country_translation41
A49: 42 | B49: Chad | C49: Chine | D49: China | E49: country_selection | F49: =HLOOKUP($C$2,$B$8:$D49,$A49,FALSE) -> Chad | G49: country_selection42 | I49: Chad | J49: Tchad | K49: Chad | L49: country_translation | M49: =HLOOKUP($C$2,$I$8:$K49,$A49,FALSE) -> Chad | N49: country_translation42
A50: 43 | B50: Chile | C50: Chypre | D50: Chipre | E50: country_selection | F50: =HLOOKUP($C$2,$B$8:$D50,$A50,FALSE) -> Chile | G50: country_selection43 | I50: Chile | J50: Chili | K50: Chile | L50: country_translation | M50: =HLOOKUP($C$2,$I$8:$K50,$A50,FALSE) -> Chile | N50: country_translation43
A51: 44 | B51: China | C51: Colombie | D51: Colombia | E51: country_selection | F51: =HLOOKUP($C$2,$B$8:$D51,$A51,FALSE) -> China | G51: country_selection44 | I51: China | J51: Chine | K51: China | L51: country_translation | M51: =HLOOKUP($C$2,$I$8:$K51,$A51,FALSE) -> China | N51: country_translation44
A52: 45 | B52: Colombia | C52: Comores | D52: Comoras | E52: country_selection | F52: =HLOOKUP($C$2,$B$8:$D52,$A52,FALSE) -> Colombia | G52: country_selection45 | I52: Colombia | J52: Colombie | K52: Colombia | L52: country_translation | M52: =HLOOKUP($C$2,$I$8:$K52,$A52,FALSE) -> Colombia | N52: country_translation45
A53: 46 | B53: Comoros | C53: Congo | D53: Congo | E53: country_selection | F53: =HLOOKUP($C$2,$B$8:$D53,$A53,FALSE) -> Comoros | G53: country_selection46 | I53: Comoros | J53: Comores | K53: Comoras | L53: country_translation | M53: =HLOOKUP($C$2,$I$8:$K53,$A53,FALSE) -> Comoros | N53: country_translation46
A54: 47 | B54: Congo | C54: Costa Rica | D54: Costa Rica | E54: country_selection | F54: =HLOOKUP($C$2,$B$8:$D54,$A54,FALSE) -> Congo | G54: country_selection47 | I54: Congo | J54: Congo | K54: Congo | L54: country_translation | M54: =HLOOKUP($C$2,$I$8:$K54,$A54,FALSE) -> Congo | N54: country_translation47
A55: 48 | B55: Cook Islands | C55: Côte d'Ivoire | D55: Côte d'Ivoire | E55: country_selection | F55: =HLOOKUP($C$2,$B$8:$D55,$A55,FALSE) -> Cook Islands | G55: country_selection48 | I55: Cook Islands | J55: Îles Cook | K55: Islas Cook | L55: country_translation | M55: =HLOOKUP($C$2,$I$8:$K55,$A55,FALSE) -> Cook Islands | N55: country_translation48
A56: 49 | B56: Costa Rica | C56: Croatie | D56: Croacia | E56: country_selection | F56: =HLOOKUP($C$2,$B$8:$D56,$A56,FALSE) -> Costa Rica | G56: country_selection49 | I56: Costa Rica | J56: Costa Rica | K56: Costa Rica | L56: country_translation | M56: =HLOOKUP($C$2,$I$8:$K56,$A56,FALSE) -> Costa Rica | N56: country_translation49
A57: 50 | B57: Côte d'Ivoire | C57: Cuba | D57: Cuba | E57: country_selection | F57: =HLOOKUP($C$2,$B$8:$D57,$A57,FALSE) -> Côte d'Ivoire | G57: country_selection50 | I57: Côte d'Ivoire | J57: Côte d'Ivoire | K57: Côte d'Ivoire | L57: country_translation | M57: =HLOOKUP($C$2,$I$8:$K57,$A57,FALSE) -> Côte d'Ivoire | N57: country_translation50
A58: 51 | B58: Croatia | C58: Danemark | D58: Dinamarca | E58: country_selection | F58: =HLOOKUP($C$2,$B$8:$D58,$A58,FALSE) -> Croatia | G58: country_selection51 | I58: Croatia | J58: Croatie | K58: Croacia | L58: country_translation | M58: =HLOOKUP($C$2,$I$8:$K58,$A58,FALSE) -> Croatia | N58: country_translation51
A59: 52 | B59: Cuba | C59: Djibouti | D59: Djibouti | E59: country_selection | F59: =HLOOKUP($C$2,$B$8:$D59,$A59,FALSE) -> Cuba | G59: country_selection52 | I59: Cuba | J59: Cuba | K59: Cuba | L59: country_translation | M59: =HLOOKUP($C$2,$I$8:$K59,$A59,FALSE) -> Cuba | N59: country_translation52
A60: 53 | B60: Cyprus | C60: Dominique | D60: Dominica | E60: country_selection | F60: =HLOOKUP($C$2,$B$8:$D60,$A60,FALSE) -> Cyprus | G60: country_selection53 | I60: Cyprus | J60: Chypre | K60: Chipre | L60: country_translation | M60: =HLOOKUP($C$2,$I$8:$K60,$A60,FALSE) -> Cyprus | N60: country_translation53
A61: 54 | B61: Czech Republic | C61: Égypte | D61: Ecuador | E61: country_selection | F61: =HLOOKUP($C$2,$B$8:$D61,$A61,FALSE) -> Czech Republic | G61: country_selection54 | I61: Czech Republic | J61: République tchèque | K61: República Checa | L61: country_translation | M61: =HLOOKUP($C$2,$I$8:$K61,$A61,FALSE) -> Czech Republic | N61: country_translation54
A62: 55 | B62: Democratic People's Republic of Korea | C62: El Salvador | D62: Egipto | E62: country_selection | F62: =HLOOKUP($C$2,$B$8:$D62,$A62,FALSE) -> Democratic People's Republic of Korea | G62: country_selection55 | I62: Democratic People's Republic of Korea | J62: République populaire démocratique de Corée | K62: República Popular Democrática de Corea | L62: country_translation | M62: =HLOOKUP($C$2,$I$8:$K62,$A62,FALSE) -> Democratic People's Republic of Korea | N62: country_translation55
A63: 56 | B63: Democratic Republic of the Congo | C63: Émirats arabes unis | D63: El Salvador | E63: country_selection | F63: =HLOOKUP($C$2,$B$8:$D63,$A63,FALSE) -> Democratic Republic of the Congo | G63: country_selection56 | I63: Democratic Republic of the Congo | J63: République démocratique du Congo | K63: República Democrática del Congo | L63: country_translation | M63: =HLOOKUP($C$2,$I$8:$K63,$A63,FALSE) -> Democratic Republic of the Congo | N63: country_translation56
A64: 57 | B64: Denmark | C64: Équateur | D64: Emiratos Árabes Unidos | E64: country_selection | F64: =HLOOKUP($C$2,$B$8:$D64,$A64,FALSE) -> Denmark | G64: country_selection57 | I64: Denmark | J64: Danemark | K64: Dinamarca | L64: country_translation | M64: =HLOOKUP($C$2,$I$8:$K64,$A64,FALSE) -> Denmark | N64: country_translation57
A65: 58 | B65: Djibouti | C65: Érythrée | D65: Eritrea | E65: country_selection | F65: =HLOOKUP($C$2,$B$8:$D65,$A65,FALSE) -> Djibouti | G65: country_selection58 | I65: Djibouti | J65: Djibouti | K65: Djibouti | L65: country_translation | M65: =HLOOKUP($C$2,$I$8:$K65,$A65,FALSE) -> Djibouti | N65: country_translation58
A66: 59 | B66: Dominica | C66: Espagne | D66: Eslovaquia | E66: country_selection | F66: =HLOOKUP($C$2,$B$8:$D66,$A66,FALSE) -> Dominica | G66: country_selection59 | I66: Dominica | J66: Dominique | K66: Dominica | L66: country_translation | M66: =HLOOKUP($C$2,$I$8:$K66,$A66,FALSE) -> Dominica | N66: country_translation59
A67: 60 | B67: Dominican Republic | C67: Estonie | D67: Eslovenia | E67: country_selection | F67: =HLOOKUP($C$2,$B$8:$D67,$A67,FALSE) -> Dominican Republic | G67: country_selection60 | I67: Dominican Republic | J67: République dominicaine | K67: República Dominicana | L67: country_translation | M67: =HLOOKUP($C$2,$I$8:$K67,$A67,FALSE) -> Dominican Republic | N67: country_translation60
A68: 61 | B68: Ecuador | C68: États-Unis d'Amérique | D68: España | E68: country_selection | F68: =HLOOKUP($C$2,$B$8:$D68,$A68,FALSE) -> Ecuador | G68: country_selection61 | I68: Ecuador | J68: Équateur | K68: Ecuador | L68: country_translation | M68: =HLOOKUP($C$2,$I$8:$K68,$A68,FALSE) -> Ecuador | N68: country_translation61
A69: 62 | B69: Egypt | C69: Éthiopie | D69: Estados Unidos de América | E69: country_selection | F69: =HLOOKUP($C$2,$B$8:$D69,$A69,FALSE) -> Egypt | G69: country_selection62 | I69: Egypt | J69: Égypte | K69: Egipto | L69: country_translation | M69: =HLOOKUP($C$2,$I$8:$K69,$A69,FALSE) -> Egypt | N69: country_translation62
A70: 63 | B70: El Salvador | C70: Fédération de Russie | D70: Estonia | E70: country_selection | F70: =HLOOKUP($C$2,$B$8:$D70,$A70,FALSE) -> El Salvador | G70: country_selection63 | I70: El Salvador | J70: El Salvador | K70: El Salvador | L70: country_translation | M70: =HLOOKUP($C$2,$I$8:$K70,$A70,FALSE) -> El Salvador | N70: country_translation63
A71: 64 | B71: Equatorial Guinea | C71: Fidji | D71: Etiopía | E71: country_selection | F71: =HLOOKUP($C$2,$B$8:$D71,$A71,FALSE) -> Equatorial Guinea | G71: country_selection64 | I71: Equatorial Guinea | J71: Guinée équatoriale | K71: Guinea Ecuatorial | L71: country_translation | M71: =HLOOKUP($C$2,$I$8:$K71,$A71,FALSE) -> Equatorial Guinea | N71: country_translation64
A72: 65 | B72: Eritrea | C72: Finlande | D72: Federación de Rusia | E72: country_selection | F72: =HLOOKUP($C$2,$B$8:$D72,$A72,FALSE) -> Eritrea | G72: country_selection65 | I72: Eritrea | J72: Érythrée | K72: Eritrea | L72: country_translation | M72: =HLOOKUP($C$2,$I$8:$K72,$A72,FALSE) -> Eritrea | N72: country_translation65
A73: 66 | B73: Estonia | C73: France | D73: Fiji | E73: country_selection | F73: =HLOOKUP($C$2,$B$8:$D73,$A73,FALSE) -> Estonia | G73: =$E73&$A73 -> country_selection66 | I73: Estonia | J73: Estonie | K73: Estonia | L73: country_translation | M73: =HLOOKUP($C$2,$I$8:$K73,$A73,FALSE) -> Estonia | N73: country_translation66
A74: 67 | B74: Ethiopia | C74: Gabon | D74: Filipinas | E74: country_selection | F74: =HLOOKUP($C$2,$B$8:$D74,$A74,FALSE) -> Ethiopia | G74: country_selection67 | I74: Ethiopia | J74: Éthiopie | K74: Etiopía | L74: country_translation | M74: =HLOOKUP($C$2,$I$8:$K74,$A74,FALSE) -> Ethiopia | N74: =$L74&$A74 -> country_translation67
A75: 68 | B75: Faeroe Islands | C75: Gambie | D75: Finlandia | E75: country_selection | F75: =HLOOKUP($C$2,$B$8:$D75,$A75,FALSE) -> Faeroe Islands | G75: country_selection68 | I75: Faeroe Islands | J75: Îles Féroé | K75: Islas Feroe | L75: country_translation | M75: =HLOOKUP($C$2,$I$8:$K75,$A75,FALSE) -> Faeroe Islands | N75: country_translation68
A76: 69 | B76: Falkland Islands (Malvinas) | C76: Géorgie | D76: Francia | E76: country_selection | F76: =HLOOKUP($C$2,$B$8:$D76,$A76,FALSE) -> Falkland Islands (Malvinas) | G76: country_selection69 | I76: Falkland Islands (Malvinas) | J76: Îles Falkland | K76: Islas Malvinas | L76: country_translation | M76: =HLOOKUP($C$2,$I$8:$K76,$A76,FALSE) -> Falkland Islands (Malvinas) | N76: country_translation69
A77: 70 | B77: Fiji | C77: Ghana | D77: Gabón | E77: country_selection | F77: =HLOOKUP($C$2,$B$8:$D77,$A77,FALSE) -> Fiji | G77: country_selection70 | I77: Fiji | J77: Fidji | K77: Fiji | L77: country_translation | M77: =HLOOKUP($C$2,$I$8:$K77,$A77,FALSE) -> Fiji | N77: country_translation70
A78: 71 | B78: Finland | C78: Gibraltar | D78: Gambia | E78: country_selection | F78: =HLOOKUP($C$2,$B$8:$D78,$A78,FALSE) -> Finland | G78: country_selection71 | I78: Finland | J78: Finlande | K78: Finlandia | L78: country_translation | M78: =HLOOKUP($C$2,$I$8:$K78,$A78,FALSE) -> Finland | N78: country_translation71
A79: 72 | B79: France | C79: Grèce | D79: Georgia | E79: country_selection | F79: =HLOOKUP($C$2,$B$8:$D79,$A79,FALSE) -> France | G79: country_selection72 | I79: France | J79: France | K79: Francia | L79: country_translation | M79: =HLOOKUP($C$2,$I$8:$K79,$A79,FALSE) -> France | N79: country_translation72
A80: 73 | B80: French Guiana | C80: Grenade | D80: Ghana | E80: country_selection | F80: =HLOOKUP($C$2,$B$8:$D80,$A80,FALSE) -> French Guiana | G80: country_selection73 | I80: French Guiana | J80: Guyane française | K80: Guayana francesa | L80: country_translation | M80: =HLOOKUP($C$2,$I$8:$K80,$A80,FALSE) -> French Guiana | N80: country_translation73
A81: 74 | B81: French Polynesia | C81: Groenland | D81: Gibraltar | E81: country_selection | F81: =HLOOKUP($C$2,$B$8:$D81,$A81,FALSE) -> French Polynesia | G81: country_selection74 | I81: French Polynesia | J81: Polynésie française | K81: Polinesia Francesa | L81: country_translation | M81: =HLOOKUP($C$2,$I$8:$K81,$A81,FALSE) -> French Polynesia | N81: country_translation74
A82: 75 | B82: Gabon | C82: Guadeloupe | D82: Granada | E82: country_selection | F82: =HLOOKUP($C$2,$B$8:$D82,$A82,FALSE) -> Gabon | G82: country_selection75 | I82: Gabon | J82: Gabon | K82: Gabón | L82: country_translation | M82: =HLOOKUP($C$2,$I$8:$K82,$A82,FALSE) -> Gabon | N82: country_translation75
A83: 76 | B83: Gambia | C83: Guam | D83: Grecia | E83: country_selection | F83: =HLOOKUP($C$2,$B$8:$D83,$A83,FALSE) -> Gambia | G83: country_selection76 | I83: Gambia | J83: Gambie | K83: Gambia | L83: country_translation | M83: =HLOOKUP($C$2,$I$8:$K83,$A83,FALSE) -> Gambia | N83: country_translation76
A84: 77 | B84: Georgia | C84: Guatemala | D84: Groenlandia | E84: country_selection | F84: =HLOOKUP($C$2,$B$8:$D84,$A84,FALSE) -> Georgia | G84: country_selection77 | I84: Georgia | J84: Géorgie | K84: Georgia | L84: country_translation | M84: =HLOOKUP($C$2,$I$8:$K84,$A84,FALSE) -> Georgia | N84: country_translation77
A85: 78 | B85: Germany | C85: Guinée | D85: Guadalupe | E85: country_selection | F85: =HLOOKUP($C$2,$B$8:$D85,$A85,FALSE) -> Germany | G85: country_selection78 | I85: Germany | J85: Allemagne | K85: Alemania | L85: country_translation | M85: =HLOOKUP($C$2,$I$8:$K85,$A85,FALSE) -> Germany | N85: country_translation78
A86: 79 | B86: Ghana | C86: Guinée équatoriale | D86: Guam | E86: country_selection | F86: =HLOOKUP($C$2,$B$8:$D86,$A86,FALSE) -> Ghana | G86: country_selection79 | I86: Ghana | J86: Ghana | K86: Ghana | L86: country_translation | M86: =HLOOKUP($C$2,$I$8:$K86,$A86,FALSE) -> Ghana | N86: country_translation79
A87: 80 | B87: Gibraltar | C87: Guinée-Bissau | D87: Guatemala | E87: country_selection | F87: =HLOOKUP($C$2,$B$8:$D87,$A87,FALSE) -> Gibraltar | G87: country_selection80 | I87: Gibraltar | J87: Gibraltar | K87: Gibraltar | L87: country_translation | M87: =HLOOKUP($C$2,$I$8:$K87,$A87,FALSE) -> Gibraltar | N87: country_translation80
A88: 81 | B88: Greece | C88: Guyana | D88: Guayana francesa | E88: country_selection | F88: =HLOOKUP($C$2,$B$8:$D88,$A88,FALSE) -> Greece | G88: country_selection81 | I88: Greece | J88: Grèce | K88: Granada | L88: country_translation | M88: =HLOOKUP($C$2,$I$8:$K88,$A88,FALSE) -> Greece | N88: country_translation81
A89: 82 | B89: Greenland | C89: Guyane française | D89: Guinea | E89: country_selection | F89: =HLOOKUP($C$2,$B$8:$D89,$A89,FALSE) -> Greenland | G89: country_selection82 | I89: Grenada | J89: Grenade | K89: Grecia | L89: country_translation | M89: =HLOOKUP($C$2,$I$8:$K89,$A89,FALSE) -> Grenada | N89: country_translation82
A90: 83 | B90: Grenada | C90: Haïti | D90: Guinea Ecuatorial | E90: country_selection | F90: =HLOOKUP($C$2,$B$8:$D90,$A90,FALSE) -> Grenada | G90: country_selection83 | I90: Greenland | J90: Groenland | K90: Groenlandia | L90: country_translation | M90: =HLOOKUP($C$2,$I$8:$K90,$A90,FALSE) -> Greenland | N90: country_translation83
A91: 84 | B91: Guadeloupe | C91: Honduras | D91: Guinea-Bissau | E91: country_selection | F91: =HLOOKUP($C$2,$B$8:$D91,$A91,FALSE) -> Guadeloupe | G91: country_selection84 | I91: Guadeloupe | J91: Guadeloupe | K91: Guadalupe | L91: country_translation | M91: =HLOOKUP($C$2,$I$8:$K91,$A91,FALSE) -> Guadeloupe | N91: country_translation84
A92: 85 | B92: Guam | C92: Hongrie | D92: Guyana | E92: country_selection | F92: =HLOOKUP($C$2,$B$8:$D92,$A92,FALSE) -> Guam | G92: country_selection85 | I92: Guam | J92: Guam | K92: Guam | L92: country_translation | M92: =HLOOKUP($C$2,$I$8:$K92,$A92,FALSE) -> Guam | N92: country_translation85
A93: 86 | B93: Guatemala | C93: Îles Caïmanes | D93: Haití | E93: country_selection | F93: =HLOOKUP($C$2,$B$8:$D93,$A93,FALSE) -> Guatemala | G93: country_selection86 | I93: Guatemala | J93: Guatemala | K93: Guatemala | L93: country_translation | M93: =HLOOKUP($C$2,$I$8:$K93,$A93,FALSE) -> Guatemala | N93: country_translation86
A94: 87 | B94: Guinea | C94: Îles Cook | D94: Honduras | E94: country_selection | F94: =HLOOKUP($C$2,$B$8:$D94,$A94,FALSE) -> Guinea | G94: country_selection87 | I94: Guinea | J94: Guinée | K94: Guinea | L94: country_translation | M94: =HLOOKUP($C$2,$I$8:$K94,$A94,FALSE) -> Guinea | N94: country_translation87
A95: 88 | B95: Guinea-Bissau | C95: Îles Falkland | D95: Hungría | E95: country_selection | F95: =HLOOKUP($C$2,$B$8:$D95,$A95,FALSE) -> Guinea-Bissau | G95: country_selection88 | I95: Guinea-Bissau | J95: Guinée-Bissau | K95: Guinea-Bissau | L95: country_translation | M95: =HLOOKUP($C$2,$I$8:$K95,$A95,FALSE) -> Guinea-Bissau | N95: country_translation88
A96: 89 | B96: Guyana | C96: Îles Féroé | D96: India | E96: country_selection | F96: =HLOOKUP($C$2,$B$8:$D96,$A96,FALSE) -> Guyana | G96: country_selection89 | I96: Guyana | J96: Guyana | K96: Guyana | L96: country_translation | M96: =HLOOKUP($C$2,$I$8:$K96,$A96,FALSE) -> Guyana | N96: country_translation89
A97: 90 | B97: Haiti | C97: Îles Mariannes du Nord | D97: Indonesia | E97: country_selection | F97: =HLOOKUP($C$2,$B$8:$D97,$A97,FALSE) -> Haiti | G97: country_selection90 | I97: Haiti | J97: Haïti | K97: Haití | L97: country_translation | M97: =HLOOKUP($C$2,$I$8:$K97,$A97,FALSE) -> Haiti | N97: country_translation90
A98: 91 | B98: Holy See | C98: Îles Marshall | D98: Irán (República Islámica del) | E98: country_selection | F98: =HLOOKUP($C$2,$B$8:$D98,$A98,FALSE) -> Holy See | G98: country_selection91 | I98: Holy See | J98: Saint-Siège | K98: Santa Sede | L98: country_translation | M98: =HLOOKUP($C$2,$I$8:$K98,$A98,FALSE) -> Holy See | N98: country_translation91
A99: 92 | B99: Honduras | C99: Îles Salomon | D99: Iraq | E99: country_selection | F99: =HLOOKUP($C$2,$B$8:$D99,$A99,FALSE) -> Honduras | G99: country_selection92 | I99: Honduras | J99: Honduras | K99: Honduras | L99: country_translation | M99: =HLOOKUP($C$2,$I$8:$K99,$A99,FALSE) -> Honduras | N99: country_translation92
A100: 93 | B100: Hungary | C100: Îles Turques et Caïques | D100: Irlanda | E100: country_selection | F100: =HLOOKUP($C$2,$B$8:$D100,$A100,FALSE) -> Hungary | G100: country_selection93 | I100: Hungary | J100: Hongrie | K100: Hungría | L100: country_translation | M100: =HLOOKUP($C$2,$I$8:$K100,$A100,FALSE) -> Hungary | N100: country_translation93
A101: 94 | B101: Iceland | C101: Îles Vierges américaines | D101: Isla de Norfolk | E101: country_selection | F101: =HLOOKUP($C$2,$B$8:$D101,$A101,FALSE) -> Iceland | G101: country_selection94 | I101: Iceland | J101: Islande | K101: Islandia | L101: country_translation | M101: =HLOOKUP($C$2,$I$8:$K101,$A101,FALSE) -> Iceland | N101: country_translation94
A102: 95 | B102: India | C102: Îles Vierges britanniques | D102: Islandia | E102: country_selection | F102: =HLOOKUP($C$2,$B$8:$D102,$A102,FALSE) -> India | G102: country_selection95 | I102: India | J102: Inde | K102: India | L102: country_translation | M102: =HLOOKUP($C$2,$I$8:$K102,$A102,FALSE) -> India | N102: country_translation95
A103: 96 | B103: Indonesia | C103: Inde | D103: Islas Caimán | E103: country_selection | F103: =HLOOKUP($C$2,$B$8:$D103,$A103,FALSE) -> Indonesia | G103: country_selection96 | I103: Indonesia | J103: Indonésie | K103: Indonesia | L103: country_translation | M103: =HLOOKUP($C$2,$I$8:$K103,$A103,FALSE) -> Indonesia | N103: country_translation96
A104: 97 | B104: Iran (Islamic Republic of) | C104: Indonésie | D104: Islas Cook | E104: country_selection | F104: =HLOOKUP($C$2,$B$8:$D104,$A104,FALSE) -> Iran (Islamic Republic of) | G104: country_selection97 | I104: Iran (Islamic Republic of) | J104: Iran (République islamique d') | K104: Irán (República Islámica del) | L104: country_translation | M104: =HLOOKUP($C$2,$I$8:$K104,$A104,FALSE) -> Iran (Islamic Republic of) | N104: country_translation97
A105: 98 | B105: Iraq | C105: Iran (République islamique d') | D105: Islas Feroe | E105: country_selection | F105: =HLOOKUP($C$2,$B$8:$D105,$A105,FALSE) -> Iraq | G105: country_selection98 | I105: Iraq | J105: Iraq | K105: Iraq | L105: country_translation | M105: =HLOOKUP($C$2,$I$8:$K105,$A105,FALSE) -> Iraq | N105: country_translation98
A106: 99 | B106: Ireland | C106: Iraq | D106: Islas Malvinas | E106: country_selection | F106: =HLOOKUP($C$2,$B$8:$D106,$A106,FALSE) -> Ireland | G106: country_selection99 | I106: Ireland | J106: Irlande | K106: Irlanda | L106: country_translation | M106: =HLOOKUP($C$2,$I$8:$K106,$A106,FALSE) -> Ireland | N106: country_translation99
A107: 100 | B107: Israel | C107: Irlande | D107: Islas Marianas septentrionales | E107: country_selection | F107: =HLOOKUP($C$2,$B$8:$D107,$A107,FALSE) -> Israel | G107: country_selection100 | I107: Israel | J107: Israël | K107: Israel | L107: country_translation | M107: =HLOOKUP($C$2,$I$8:$K107,$A107,FALSE) -> Israel | N107: country_translation100
A108: 101 | B108: Italy | C108: Islande | D108: Islas Marshall | E108: country_selection | F108: =HLOOKUP($C$2,$B$8:$D108,$A108,FALSE) -> Italy | G108: country_selection101 | I108: Italy | J108: Italie | K108: Italia | L108: country_translation | M108: =HLOOKUP($C$2,$I$8:$K108,$A108,FALSE) -> Italy | N108: country_translation101
A109: 102 | B109: Jamaica | C109: Israël | D109: Islas Salomón | E109: country_selection | F109: =HLOOKUP($C$2,$B$8:$D109,$A109,FALSE) -> Jamaica | G109: country_selection102 | I109: Jamaica | J109: Jamaïque | K109: Jamaica | L109: country_translation | M109: =HLOOKUP($C$2,$I$8:$K109,$A109,FALSE) -> Jamaica | N109: country_translation102
A110: 103 | B110: Japan | C110: Italie | D110: Islas Turcas y Caicos | E110: country_selection | F110: =HLOOKUP($C$2,$B$8:$D110,$A110,FALSE) -> Japan | G110: country_selection103 | I110: Japan | J110: Japon | K110: Japón | L110: country_translation | M110: =HLOOKUP($C$2,$I$8:$K110,$A110,FALSE) -> Japan | N110: country_translation103
A111: 104 | B111: Jordan | C111: Jamaïque | D111: Islas Vírgenes (EE.UU.) | E111: country_selection | F111: =HLOOKUP($C$2,$B$8:$D111,$A111,FALSE) -> Jordan | G111: country_selection104 | I111: Jordan | J111: Jordanie | K111: Jordania | L111: country_translation | M111: =HLOOKUP($C$2,$I$8:$K111,$A111,FALSE) -> Jordan | N111: country_translation104
A112: 105 | B112: Kazakhstan | C112: Japon | D112: Islas Vírgenes Británicas | E112: country_selection | F112: =HLOOKUP($C$2,$B$8:$D112,$A112,FALSE) -> Kazakhstan | G112: country_selection105 | I112: Kazakhstan | J112: Kazakhstan | K112: Kazajstán | L112: country_translation | M112: =HLOOKUP($C$2,$I$8:$K112,$A112,FALSE) -> Kazakhstan | N112: country_translation105
A113: 106 | B113: Kenya | C113: Jordanie | D113: Islas Wallis y Futuna | E113: country_selection | F113: =HLOOKUP($C$2,$B$8:$D113,$A113,FALSE) -> Kenya | G113: country_selection106 | I113: Kenya | J113: Kenya | K113: Kenya | L113: country_translation | M113: =HLOOKUP($C$2,$I$8:$K113,$A113,FALSE) -> Kenya | N113: country_translation106
A114: 107 | B114: Kiribati | C114: Kazakhstan | D114: Israel | E114: country_selection | F114: =HLOOKUP($C$2,$B$8:$D114,$A114,FALSE) -> Kiribati | G114: country_selection107 | I114: Kiribati | J114: Kiribati | K114: Kiribati | L114: country_translation | M114: =HLOOKUP($C$2,$I$8:$K114,$A114,FALSE) -> Kiribati | N114: country_translation107
A115: 108 | B115: Kuwait | C115: Kenya | D115: Italia | E115: country_selection | F115: =HLOOKUP($C$2,$B$8:$D115,$A115,FALSE) -> Kuwait | G115: country_selection108 | I115: Kuwait | J115: Koweït | K115: Kuwait | L115: country_translation | M115: =HLOOKUP($C$2,$I$8:$K115,$A115,FALSE) -> Kuwait | N115: country_translation108
A116: 109 | B116: Kyrgyzstan | C116: Kirghizistan | D116: Jamaica | E116: country_selection | F116: =HLOOKUP($C$2,$B$8:$D116,$A116,FALSE) -> Kyrgyzstan | G116: country_selection109 | I116: Kyrgyzstan | J116: Kirghizistan | K116: Kirguistán | L116: country_translation | M116: =HLOOKUP($C$2,$I$8:$K116,$A116,FALSE) -> Kyrgyzstan | N116: country_translation109
A117: 110 | B117: Lao People's Democratic Republic | C117: Kiribati | D117: Japón | E117: country_selection | F117: =HLOOKUP($C$2,$B$8:$D117,$A117,FALSE) -> Lao People's Democratic Republic | G117: country_selection110 | I117: Lao People's Democratic Republic | J117: République démocratique populaire lao | K117: República Democrática Popular Lao | L117: country_translation | M117: =HLOOKUP($C$2,$I$8:$K117,$A117,FALSE) -> Lao People's Democratic Republic | N117: country_translation110
A118: 111 | B118: Latvia | C118: Koweït | D118: Jordania | E118: country_selection | F118: =HLOOKUP($C$2,$B$8:$D118,$A118,FALSE) -> Latvia | G118: country_selection111 | I118: Latvia | J118: Lettonie | K118: Letonia | L118: country_translation | M118: =HLOOKUP($C$2,$I$8:$K118,$A118,FALSE) -> Latvia | N118: country_translation111
A119: 112 | B119: Lebanon | C119: Lesotho | D119: Kazajstán | E119: country_selection | F119: =HLOOKUP($C$2,$B$8:$D119,$A119,FALSE) -> Lebanon | G119: country_selection112 | I119: Lebanon | J119: Liban | K119: Líbano | L119: country_translation | M119: =HLOOKUP($C$2,$I$8:$K119,$A119,FALSE) -> Lebanon | N119: country_translation112
A120: 113 | B120: Lesotho | C120: Lettonie | D120: Kenya | E120: country_selection | F120: =HLOOKUP($C$2,$B$8:$D120,$A120,FALSE) -> Lesotho | G120: country_selection113 | I120: Lesotho | J120: Lesotho | K120: Lesotho | L120: country_translation | M120: =HLOOKUP($C$2,$I$8:$K120,$A120,FALSE) -> Lesotho | N120: country_translation113
A121: 114 | B121: Liberia | C121: l'ex-République yougoslave de Macédoine | D121: Kirguistán | E121: country_selection | F121: =HLOOKUP($C$2,$B$8:$D121,$A121,FALSE) -> Liberia | G121: country_selection114 | I121: Liberia | J121: Libéria | K121: Liberia | L121: country_translation | M121: =HLOOKUP($C$2,$I$8:$K121,$A121,FALSE) -> Liberia | N121: country_translation114
A122: 115 | B122: Libya | C122: Liban | D122: Kiribati | E122: country_selection | F122: =HLOOKUP($C$2,$B$8:$D122,$A122,FALSE) -> Libya | G122: country_selection115 | I122: Libya | J122: Libye | K122: Libia | L122: country_translation | M122: =HLOOKUP($C$2,$I$8:$K122,$A122,FALSE) -> Libya | N122: country_translation115
A123: 116 | B123: Liechtenstein | C123: Libéria | D123: Kuwait | E123: country_selection | F123: =HLOOKUP($C$2,$B$8:$D123,$A123,FALSE) -> Liechtenstein | G123: country_selection116 | I123: Liechtenstein | J123: Liechtenstein | K123: Liechtenstein | L123: country_translation | M123: =HLOOKUP($C$2,$I$8:$K123,$A123,FALSE) -> Liechtenstein | N123: country_translation116
A124: 117 | B124: Lithuania | C124: Libye | D124: la ex República Yugoslava de Macedonia | E124: country_selection | F124: =HLOOKUP($C$2,$B$8:$D124,$A124,FALSE) -> Lithuania | G124: country_selection117 | I124: Lithuania | J124: Lituanie | K124: Lituania | L124: country_translation | M124: =HLOOKUP($C$2,$I$8:$K124,$A124,FALSE) -> Lithuania | N124: country_translation117
A125: 118 | B125: Luxembourg | C125: Liechtenstein | D125: Lesotho | E125: country_selection | F125: =HLOOKUP($C$2,$B$8:$D125,$A125,FALSE) -> Luxembourg | G125: country_selection118 | I125: Luxembourg | J125: Luxembourg | K125: Luxemburgo | L125: country_translation | M125: =HLOOKUP($C$2,$I$8:$K125,$A125,FALSE) -> Luxembourg | N125: country_translation118
A126: 119 | B126: Madagascar | C126: l'île Norfolk | D126: Letonia | E126: country_selection | F126: =HLOOKUP($C$2,$B$8:$D126,$A126,FALSE) -> Madagascar | G126: country_selection119 | I126: Madagascar | J126: Madagascar | K126: Madagascar | L126: country_translation | M126: =HLOOKUP($C$2,$I$8:$K126,$A126,FALSE) -> Madagascar | N126: country_translation119
A127: 120 | B127: Malawi | C127: Lituanie | D127: Líbano | E127: country_selection | F127: =HLOOKUP($C$2,$B$8:$D127,$A127,FALSE) -> Malawi | G127: country_selection120 | I127: Malawi | J127: Malawi | K127: Malawi | L127: country_translation | M127: =HLOOKUP($C$2,$I$8:$K127,$A127,FALSE) -> Malawi | N127: country_translation120
A128: 121 | B128: Malaysia | C128: Luxembourg | D128: Liberia | E128: country_selection | F128: =HLOOKUP($C$2,$B$8:$D128,$A128,FALSE) -> Malaysia | G128: country_selection121 | I128: Malaysia | J128: Malaisie | K128: Malasia | L128: country_translation | M128: =HLOOKUP($C$2,$I$8:$K128,$A128,FALSE) -> Malaysia | N128: country_translation121
A129: 122 | B129: Maldives | C129: Madagascar | D129: Libia | E129: country_selection | F129: =HLOOKUP($C$2,$B$8:$D129,$A129,FALSE) -> Maldives | G129: country_selection122 | I129: Maldives | J129: Maldives | K129: Maldivas | L129: country_translation | M129: =HLOOKUP($C$2,$I$8:$K129,$A129,FALSE) -> Maldives | N129: country_translation122
A130: 123 | B130: Mali | C130: Malaisie | D130: Liechtenstein | E130: country_selection | F130: =HLOOKUP($C$2,$B$8:$D130,$A130,FALSE) -> Mali | G130: country_selection123 | I130: Mali | J130: Mali | K130: Malí | L130: country_translation | M130: =HLOOKUP($C$2,$I$8:$K130,$A130,FALSE) -> Mali | N130: country_translation123
A131: 124 | B131: Malta | C131: Malawi | D131: Lituania | E131: country_selection | F131: =HLOOKUP($C$2,$B$8:$D131,$A131,FALSE) -> Malta | G131: country_selection124 | I131: Malta | J131: Malte | K131: Malta | L131: country_translation | M131: =HLOOKUP($C$2,$I$8:$K131,$A131,FALSE) -> Malta | N131: country_translation124
A132: 125 | B132: Marshall Islands | C132: Maldives | D132: Luxemburgo | E132: country_selection | F132: =HLOOKUP($C$2,$B$8:$D132,$A132,FALSE) -> Marshall Islands | G132: country_selection125 | I132: Marshall Islands | J132: Îles Marshall | K132: Islas Marshall | L132: country_translation | M132: =HLOOKUP($C$2,$I$8:$K132,$A132,FALSE) -> Marshall Islands | N132: country_translation125
A133: 126 | B133: Martinique | C133: Mali | D133: Madagascar | E133: country_selection | F133: =HLOOKUP($C$2,$B$8:$D133,$A133,FALSE) -> Martinique | G133: country_selection126 | I133: Martinique | J133: Martinique | K133: Martinica | L133: country_translation | M133: =HLOOKUP($C$2,$I$8:$K133,$A133,FALSE) -> Martinique | N133: country_translation126
A134: 127 | B134: Mauritania | C134: Malte | D134: Malasia | E134: country_selection | F134: =HLOOKUP($C$2,$B$8:$D134,$A134,FALSE) -> Mauritania | G134: country_selection127 | I134: Mauritania | J134: Mauritanie | K134: Mauritania | L134: country_translation | M134: =HLOOKUP($C$2,$I$8:$K134,$A134,FALSE) -> Mauritania | N134: country_translation127
A135: 128 | B135: Mauritius | C135: Maroc | D135: Malawi | E135: country_selection | F135: =HLOOKUP($C$2,$B$8:$D135,$A135,FALSE) -> Mauritius | G135: country_selection128 | I135: Mauritius | J135: Maurice | K135: Mauricio | L135: country_translation | M135: =HLOOKUP($C$2,$I$8:$K135,$A135,FALSE) -> Mauritius | N135: country_translation128
A136: 129 | B136: Mayotte | C136: Martinique | D136: Maldivas | E136: country_selection | F136: =HLOOKUP($C$2,$B$8:$D136,$A136,FALSE) -> Mayotte | G136: country_selection129 | I136: Mayotte | J136: Mayotte | K136: Mayotte | L136: country_translation | M136: =HLOOKUP($C$2,$I$8:$K136,$A136,FALSE) -> Mayotte | N136: country_translation129
A137: 130 | B137: Mexico | C137: Maurice | D137: Malí | E137: country_selection | F137: =HLOOKUP($C$2,$B$8:$D137,$A137,FALSE) -> Mexico | G137: =$E137&$A137 -> country_selection130 | I137: Mexico | J137: Mexique | K137: México | L137: country_translation | M137: =HLOOKUP($C$2,$I$8:$K137,$A137,FALSE) -> Mexico | N137: country_translation130
A138: 131 | B138: Micronesia (Federated States of) | C138: Mauritanie | D138: Malta | E138: country_selection | F138: =HLOOKUP($C$2,$B$8:$D138,$A138,FALSE) -> Micronesia (Federated States of) | G138: country_selection131 | I138: Micronesia (Federated States of) | J138: Micronésie (États fédérés de) | K138: Micronesia (Estados Federados de) | L138: country_translation | M138: =HLOOKUP($C$2,$I$8:$K138,$A138,FALSE) -> Micronesia (Federated States of) | N138: =$L138&$A138 -> country_translation131
A139: 132 | B139: Monaco | C139: Mayotte | D139: Marruecos | E139: country_selection | F139: =HLOOKUP($C$2,$B$8:$D139,$A139,FALSE) -> Monaco | G139: country_selection132 | I139: Monaco | J139: Monaco | K139: Mónaco | L139: country_translation | M139: =HLOOKUP($C$2,$I$8:$K139,$A139,FALSE) -> Monaco | N139: country_translation132
A140: 133 | B140: Mongolia | C140: Mexique | D140: Martinica | E140: country_selection | F140: =HLOOKUP($C$2,$B$8:$D140,$A140,FALSE) -> Mongolia | G140: country_selection133 | I140: Mongolia | J140: Mongolie | K140: Mongolia | L140: country_translation | M140: =HLOOKUP($C$2,$I$8:$K140,$A140,FALSE) -> Mongolia | N140: country_translation133
A141: 134 | B141: Montenegro | C141: Micronésie (États fédérés de) | D141: Mauricio | E141: country_selection | F141: =HLOOKUP($C$2,$B$8:$D141,$A141,FALSE) -> Montenegro | G141: country_selection134 | I141: Montenegro | J141: Monténégro | K141: Montenegro | L141: country_translation | M141: =HLOOKUP($C$2,$I$8:$K141,$A141,FALSE) -> Montenegro | N141: country_translation134
A142: 135 | B142: Montserrat | C142: Monaco | D142: Mauritania | E142: country_selection | F142: =HLOOKUP($C$2,$B$8:$D142,$A142,FALSE) -> Montserrat | G142: country_selection135 | I142: Montserrat | J142: Montserrat | K142: Montserrat | L142: country_translation | M142: =HLOOKUP($C$2,$I$8:$K142,$A142,FALSE) -> Montserrat | N142: country_translation135
A143: 136 | B143: Morocco | C143: Mongolie | D143: Mayotte | E143: country_selection | F143: =HLOOKUP($C$2,$B$8:$D143,$A143,FALSE) -> Morocco | G143: country_selection136 | I143: Morocco | J143: Maroc | K143: Marruecos | L143: country_translation | M143: =HLOOKUP($C$2,$I$8:$K143,$A143,FALSE) -> Morocco | N143: country_translation136
A144: 137 | B144: Mozambique | C144: Monténégro | D144: México | E144: country_selection | F144: =HLOOKUP($C$2,$B$8:$D144,$A144,FALSE) -> Mozambique | G144: country_selection137 | I144: Mozambique | J144: Mozambique | K144: Mozambique | L144: country_translation | M144: =HLOOKUP($C$2,$I$8:$K144,$A144,FALSE) -> Mozambique | N144: country_translation137
A145: 138 | B145: Myanmar | C145: Montserrat | D145: Micronesia (Estados Federados de) | E145: country_selection | F145: =HLOOKUP($C$2,$B$8:$D145,$A145,FALSE) -> Myanmar | G145: country_selection138 | I145: Myanmar | J145: Myanmar | K145: Myanmar | L145: country_translation | M145: =HLOOKUP($C$2,$I$8:$K145,$A145,FALSE) -> Myanmar | N145: country_translation138
A146: 139 | B146: Namibia | C146: Mozambique | D146: Mónaco | E146: country_selection | F146: =HLOOKUP($C$2,$B$8:$D146,$A146,FALSE) -> Namibia | G146: country_selection139 | I146: Namibia | J146: Namibie | K146: Namibia | L146: country_translation | M146: =HLOOKUP($C$2,$I$8:$K146,$A146,FALSE) -> Namibia | N146: country_translation139
A147: 140 | B147: Nauru | C147: Myanmar | D147: Mongolia | E147: country_selection | F147: =HLOOKUP($C$2,$B$8:$D147,$A147,FALSE) -> Nauru | G147: country_selection140 | I147: Nauru | J147: Nauru | K147: Nauru | L147: country_translation | M147: =HLOOKUP($C$2,$I$8:$K147,$A147,FALSE) -> Nauru | N147: country_translation140
A148: 141 | B148: Nepal | C148: Namibie | D148: Montenegro | E148: country_selection | F148: =HLOOKUP($C$2,$B$8:$D148,$A148,FALSE) -> Nepal | G148: country_selection141 | I148: Nepal | J148: Népal | K148: Nepal | L148: country_translation | M148: =HLOOKUP($C$2,$I$8:$K148,$A148,FALSE) -> Nepal | N148: country_translation141
A149: 142 | B149: Netherlands | C149: Nauru | D149: Montserrat | E149: country_selection | F149: =HLOOKUP($C$2,$B$8:$D149,$A149,FALSE) -> Netherlands | G149: country_selection142 | I149: Netherlands | J149: Pays-Bas | K149: Países Bajos | L149: country_translation | M149: =HLOOKUP($C$2,$I$8:$K149,$A149,FALSE) -> Netherlands | N149: country_translation142
A150: 143 | B150: New Caledonia | C150: Népal | D150: Mozambique | E150: country_selection | F150: =HLOOKUP($C$2,$B$8:$D150,$A150,FALSE) -> New Caledonia | G150: country_selection143 | I150: New Caledonia | J150: Nouvelle-Calédonie | K150: Nueva Caledonia | L150: country_translation | M150: =HLOOKUP($C$2,$I$8:$K150,$A150,FALSE) -> New Caledonia | N150: country_translation143
A151: 144 | B151: New Zealand | C151: Nicaragua | D151: Myanmar | E151: country_selection | F151: =HLOOKUP($C$2,$B$8:$D151,$A151,FALSE) -> New Zealand | G151: country_selection144 | I151: New Zealand | J151: Nouvelle-Zélande | K151: Nueva Zelandia | L151: country_translation | M151: =HLOOKUP($C$2,$I$8:$K151,$A151,FALSE) -> New Zealand | N151: country_translation144
A152: 145 | B152: Nicaragua | C152: Niger | D152: Namibia | E152: country_selection | F152: =HLOOKUP($C$2,$B$8:$D152,$A152,FALSE) -> Nicaragua | G152: country_selection145 | I152: Nicaragua | J152: Nicaragua | K152: Nicaragua | L152: country_translation | M152: =HLOOKUP($C$2,$I$8:$K152,$A152,FALSE) -> Nicaragua | N152: country_translation145
A153: 146 | B153: Niger | C153: Nigéria | D153: Nauru | E153: country_selection | F153: =HLOOKUP($C$2,$B$8:$D153,$A153,FALSE) -> Niger | G153: country_selection146 | I153: Niger | J153: Niger | K153: Níger | L153: country_translation | M153: =HLOOKUP($C$2,$I$8:$K153,$A153,FALSE) -> Niger | N153: country_translation146
A154: 147 | B154: Nigeria | C154: Nioué | D154: Nepal | E154: country_selection | F154: =HLOOKUP($C$2,$B$8:$D154,$A154,FALSE) -> Nigeria | G154: country_selection147 | I154: Nigeria | J154: Nigéria | K154: Nigeria | L154: country_translation | M154: =HLOOKUP($C$2,$I$8:$K154,$A154,FALSE) -> Nigeria | N154: country_translation147
A155: 148 | B155: Niue | C155: Norvège | D155: Nicaragua | E155: country_selection | F155: =HLOOKUP($C$2,$B$8:$D155,$A155,FALSE) -> Niue | G155: country_selection148 | I155: Niue | J155: Nioué | K155: Niue | L155: country_translation | M155: =HLOOKUP($C$2,$I$8:$K155,$A155,FALSE) -> Niue | N155: country_translation148
A156: 149 | B156: Norfolk Island | C156: Nouvelle-Calédonie | D156: Níger | E156: country_selection | F156: =HLOOKUP($C$2,$B$8:$D156,$A156,FALSE) -> Norfolk Island | G156: country_selection149 | I156: Norfolk Island | J156: l'île Norfolk | K156: Isla de Norfolk | L156: country_translation | M156: =HLOOKUP($C$2,$I$8:$K156,$A156,FALSE) -> Norfolk Island | N156: country_translation149
A157: 150 | B157: Northern Mariana Islands | C157: Nouvelle-Zélande | D157: Nigeria | E157: country_selection | F157: =HLOOKUP($C$2,$B$8:$D157,$A157,FALSE) -> Northern Mariana Islands | G157: country_selection150 | I157: Northern Mariana Islands | J157: Îles Mariannes du Nord | K157: Islas Marianas septentrionales | L157: country_translation | M157: =HLOOKUP($C$2,$I$8:$K157,$A157,FALSE) -> Northern Mariana Islands | N157: country_translation150
A158: 151 | B158: Norway | C158: Oman | D158: Niue | E158: country_selection | F158: =HLOOKUP($C$2,$B$8:$D158,$A158,FALSE) -> Norway | G158: country_selection151 | I158: Norway | J158: Norvège | K158: Noruega | L158: country_translation | M158: =HLOOKUP($C$2,$I$8:$K158,$A158,FALSE) -> Norway | N158: country_translation151
A159: 152 | B159: Occupied Palestinian Territory | C159: Ouganda | D159: Noruega | E159: country_selection | F159: =HLOOKUP($C$2,$B$8:$D159,$A159,FALSE) -> Occupied Palestinian Territory | G159: country_selection152 | I159: Occupied Palestinian Territory | J159: Territoire palestinien occupé | K159: Territorio Palestino Ocupado | L159: country_translation | M159: =HLOOKUP($C$2,$I$8:$K159,$A159,FALSE) -> Occupied Palestinian Territory | N159: country_translation152
A160: 153 | B160: Oman | C160: Ouzbékistan | D160: Nueva Caledonia | E160: country_selection | F160: =HLOOKUP($C$2,$B$8:$D160,$A160,FALSE) -> Oman | G160: country_selection153 | I160: Oman | J160: Oman | K160: Omán | L160: country_translation | M160: =HLOOKUP($C$2,$I$8:$K160,$A160,FALSE) -> Oman | N160: country_translation153
A161: 154 | B161: Pakistan | C161: Pakistan | D161: Nueva Zelandia | E161: country_selection | F161: =HLOOKUP($C$2,$B$8:$D161,$A161,FALSE) -> Pakistan | G161: country_selection154 | I161: Pakistan | J161: Pakistan | K161: Pakistán | L161: country_translation | M161: =HLOOKUP($C$2,$I$8:$K161,$A161,FALSE) -> Pakistan | N161: country_translation154
A162: 155 | B162: Palau | C162: Palaos | D162: Omán | E162: country_selection | F162: =HLOOKUP($C$2,$B$8:$D162,$A162,FALSE) -> Palau | G162: country_selection155 | I162: Palau | J162: Palaos | K162: Palau | L162: country_translation | M162: =HLOOKUP($C$2,$I$8:$K162,$A162,FALSE) -> Palau | N162: country_translation155
A163: 156 | B163: Panama | C163: Panama | D163: Países Bajos | E163: country_selection | F163: =HLOOKUP($C$2,$B$8:$D163,$A163,FALSE) -> Panama | G163: country_selection156 | I163: Panama | J163: Panama | K163: Panamá | L163: country_translation | M163: =HLOOKUP($C$2,$I$8:$K163,$A163,FALSE) -> Panama | N163: country_translation156
A164: 157 | B164: Papua New Guinea | C164: Papouasie-Nouvelle-Guinée | D164: Pakistán | E164: country_selection | F164: =HLOOKUP($C$2,$B$8:$D164,$A164,FALSE) -> Papua New Guinea | G164: country_selection157 | I164: Papua New Guinea | J164: Papouasie-Nouvelle-Guinée | K164: Papua Nueva Guinea | L164: country_translation | M164: =HLOOKUP($C$2,$I$8:$K164,$A164,FALSE) -> Papua New Guinea | N164: country_translation157
A165: 158 | B165: Paraguay | C165: Paraguay | D165: Palau | E165: country_selection | F165: =HLOOKUP($C$2,$B$8:$D165,$A165,FALSE) -> Paraguay | G165: country_selection158 | I165: Paraguay | J165: Paraguay | K165: Paraguay | L165: country_translation | M165: =HLOOKUP($C$2,$I$8:$K165,$A165,FALSE) -> Paraguay | N165: country_translation158
A166: 159 | B166: Peru | C166: Pays-Bas | D166: Panamá | E166: country_selection | F166: =HLOOKUP($C$2,$B$8:$D166,$A166,FALSE) -> Peru | G166: country_selection159 | I166: Peru | J166: Pérou | K166: Perú | L166: country_translation | M166: =HLOOKUP($C$2,$I$8:$K166,$A166,FALSE) -> Peru | N166: country_translation159
A167: 160 | B167: Philippines | C167: Pérou | D167: Papua Nueva Guinea | E167: country_selection | F167: =HLOOKUP($C$2,$B$8:$D167,$A167,FALSE) -> Philippines | G167: country_selection160 | I167: Philippines | J167: Philippines | K167: Filipinas | L167: country_translation | M167: =HLOOKUP($C$2,$I$8:$K167,$A167,FALSE) -> Philippines | N167: country_translation160
A168: 161 | B168: Poland | C168: Philippines | D168: Paraguay | E168: country_selection | F168: =HLOOKUP($C$2,$B$8:$D168,$A168,FALSE) -> Poland | G168: country_selection161 | I168: Poland | J168: Pologne | K168: Polonia | L168: country_translation | M168: =HLOOKUP($C$2,$I$8:$K168,$A168,FALSE) -> Poland | N168: country_translation161
A169: 162 | B169: Portugal | C169: Pologne | D169: Perú | E169: country_selection | F169: =HLOOKUP($C$2,$B$8:$D169,$A169,FALSE) -> Portugal | G169: country_selection162 | I169: Portugal | J169: Portugal | K169: Portugal | L169: country_translation | M169: =HLOOKUP($C$2,$I$8:$K169,$A169,FALSE) -> Portugal | N169: country_translation162
A170: 163 | B170: Puerto Rico | C170: Polynésie française | D170: Polinesia Francesa | E170: country_selection | F170: =HLOOKUP($C$2,$B$8:$D170,$A170,FALSE) -> Puerto Rico | G170: country_selection163 | I170: Puerto Rico | J170: Porto Rico | K170: Puerto Rico | L170: country_translation | M170: =HLOOKUP($C$2,$I$8:$K170,$A170,FALSE) -> Puerto Rico | N170: country_translation163
A171: 164 | B171: Qatar | C171: Porto Rico | D171: Polonia | E171: country_selection | F171: =HLOOKUP($C$2,$B$8:$D171,$A171,FALSE) -> Qatar | G171: country_selection164 | I171: Qatar | J171: Qatar | K171: Qatar | L171: country_translation | M171: =HLOOKUP($C$2,$I$8:$K171,$A171,FALSE) -> Qatar | N171: country_translation164
A172: 165 | B172: Réunion | C172: Portugal | D172: Portugal | E172: country_selection | F172: =HLOOKUP($C$2,$B$8:$D172,$A172,FALSE) -> Réunion | G172: country_selection165 | I172: Réunion | J172: Réunion | K172: Reunión | L172: country_translation | M172: =HLOOKUP($C$2,$I$8:$K172,$A172,FALSE) -> Réunion | N172: country_translation165
A173: 166 | B173: Republic of Moldova | C173: Qatar | D173: Puerto Rico | E173: country_selection | F173: =HLOOKUP($C$2,$B$8:$D173,$A173,FALSE) -> Republic of Moldova | G173: country_selection166 | I173: Republic of Moldova | J173: République de Moldova | K173: República de Moldova | L173: country_translation | M173: =HLOOKUP($C$2,$I$8:$K173,$A173,FALSE) -> Republic of Moldova | N173: country_translation166
A174: 167 | B174: Republic of Korea | C174: République arabe syrienne | D174: Qatar | E174: country_selection | F174: =HLOOKUP($C$2,$B$8:$D174,$A174,FALSE) -> Republic of Korea | G174: country_selection167 | I174: Republic of Korea | J174: République de Corée | K174: República de Corea | L174: country_translation | M174: =HLOOKUP($C$2,$I$8:$K174,$A174,FALSE) -> Republic of Korea | N174: country_translation167
A175: 168 | B175: Romania | C175: République centrafricaine | D175: Reino Unido | E175: country_selection | F175: =HLOOKUP($C$2,$B$8:$D175,$A175,FALSE) -> Romania | G175: country_selection168 | I175: Romania | J175: Roumanie | K175: Rumania | L175: country_translation | M175: =HLOOKUP($C$2,$I$8:$K175,$A175,FALSE) -> Romania | N175: country_translation168
A176: 169 | B176: Russian Federation | C176: République de Corée | D176: República Árabe Siria | E176: country_selection | F176: =HLOOKUP($C$2,$B$8:$D176,$A176,FALSE) -> Russian Federation | G176: country_selection169 | I176: Russian Federation | J176: Fédération de Russie | K176: Federación de Rusia | L176: country_translation | M176: =HLOOKUP($C$2,$I$8:$K176,$A176,FALSE) -> Russian Federation | N176: country_translation169
A177: 170 | B177: Rwanda | C177: République de Moldova | D177: República Centroafricana | E177: country_selection | F177: =HLOOKUP($C$2,$B$8:$D177,$A177,FALSE) -> Rwanda | G177: country_selection170 | I177: Rwanda | J177: Rwanda | K177: Rwanda | L177: country_translation | M177: =HLOOKUP($C$2,$I$8:$K177,$A177,FALSE) -> Rwanda | N177: country_translation170
A178: 171 | B178: Saint Helena, Ascension and Tristan da Cunha | C178: République démocratique du Congo | D178: República Checa | E178: country_selection | F178: =HLOOKUP($C$2,$B$8:$D178,$A178,FALSE) -> Saint Helena, Ascension and Tristan da Cunha | G178: country_selection171 | I178: Saint Helena, Ascension and Tristan da Cunha | J178: Sainte-Hélène Ascension et Tristan de Cunha | K178: Santa Elena Ascension y Tristan da Cunha | L178: country_translation | M178: =HLOOKUP($C$2,$I$8:$K178,$A178,FALSE) -> Saint Helena, Ascension and Tristan da Cunha | N178: country_translation171
A179: 172 | B179: Saint Kitts and Nevis | C179: République démocratique populaire lao | D179: República de Corea | E179: country_selection | F179: =HLOOKUP($C$2,$B$8:$D179,$A179,FALSE) -> Saint Kitts and Nevis | G179: country_selection172 | I179: Saint Kitts and Nevis | J179: Saint-Kitts-et-Nevis | K179: Saint Kitts y Nevis | L179: country_translation | M179: =HLOOKUP($C$2,$I$8:$K179,$A179,FALSE) -> Saint Kitts and Nevis | N179: country_translation172
A180: 173 | B180: Saint Lucia | C180: République dominicaine | D180: República de Moldova | E180: country_selection | F180: =HLOOKUP($C$2,$B$8:$D180,$A180,FALSE) -> Saint Lucia | G180: country_selection173 | I180: Saint Lucia | J180: Sainte-Lucie | K180: Santa Lucía | L180: country_translation | M180: =HLOOKUP($C$2,$I$8:$K180,$A180,FALSE) -> Saint Lucia | N180: country_translation173
A181: 174 | B181: Saint Pierre and Miquelon | C181: République populaire démocratique de Corée | D181: República Democrática del Congo | E181: country_selection | F181: =HLOOKUP($C$2,$B$8:$D181,$A181,FALSE) -> Saint Pierre and Miquelon | G181: country_selection174 | I181: Saint Pierre and Miquelon | J181: Saint-Pierre-et-Miquelon | K181: Saint-Pierre y Miquelon | L181: country_translation | M181: =HLOOKUP($C$2,$I$8:$K181,$A181,FALSE) -> Saint Pierre and Miquelon | N181: country_translation174
A182: 175 | B182: Saint Vincent and the Grenadines | C182: République tchèque | D182: República Democrática Popular Lao | E182: country_selection | F182: =HLOOKUP($C$2,$B$8:$D182,$A182,FALSE) -> Saint Vincent and the Grenadines | G182: country_selection175 | I182: Saint Vincent and the Grenadines | J182: Saint-Vincent-et-les Grenadines | K182: San Vicente y las Granadinas | L182: country_translation | M182: =HLOOKUP($C$2,$I$8:$K182,$A182,FALSE) -> Saint Vincent and the Grenadines | N182: country_translation175
A183: 176 | B183: Samoa | C183: République-Unie de Tanzanie | D183: República Dominicana | E183: country_selection | F183: =HLOOKUP($C$2,$B$8:$D183,$A183,FALSE) -> Samoa | G183: country_selection176 | I183: Samoa | J183: Samoa | K183: Samoa | L183: country_translation | M183: =HLOOKUP($C$2,$I$8:$K183,$A183,FALSE) -> Samoa | N183: country_translation176
A184: 177 | B184: San Marino | C184: Réunion | D184: República Popular Democrática de Corea | E184: country_selection | F184: =HLOOKUP($C$2,$B$8:$D184,$A184,FALSE) -> San Marino | G184: country_selection177 | I184: San Marino | J184: Saint-Marin | K184: San Marino | L184: country_translation | M184: =HLOOKUP($C$2,$I$8:$K184,$A184,FALSE) -> San Marino | N184: country_translation177
A185: 178 | B185: Sao Tome and Principe | C185: Roumanie | D185: República Unida de Tanzanía | E185: country_selection | F185: =HLOOKUP($C$2,$B$8:$D185,$A185,FALSE) -> Sao Tome and Principe | G185: country_selection178 | I185: Sao Tome and Principe | J185: Sao Tomé-et-Principe | K185: Santo Tomé y Príncipe | L185: country_translation | M185: =HLOOKUP($C$2,$I$8:$K185,$A185,FALSE) -> Sao Tome and Principe | N185: country_translation178
A186: 179 | B186: Saudi Arabia | C186: Royaume-Uni | D186: Reunión | E186: country_selection | F186: =HLOOKUP($C$2,$B$8:$D186,$A186,FALSE) -> Saudi Arabia | G186: country_selection179 | I186: Saudi Arabia | J186: Arabie saoudite | K186: Arabia Saudita | L186: country_translation | M186: =HLOOKUP($C$2,$I$8:$K186,$A186,FALSE) -> Saudi Arabia | N186: country_translation179
A187: 180 | B187: Senegal | C187: Rwanda | D187: Rumania | E187: country_selection | F187: =HLOOKUP($C$2,$B$8:$D187,$A187,FALSE) -> Senegal | G187: country_selection180 | I187: Senegal | J187: Sénégal | K187: Senegal | L187: country_translation | M187: =HLOOKUP($C$2,$I$8:$K187,$A187,FALSE) -> Senegal | N187: country_translation180
A188: 181 | B188: Serbia | C188: Sahara occidental | D188: Rwanda | E188: country_selection | F188: =HLOOKUP($C$2,$B$8:$D188,$A188,FALSE) -> Serbia | G188: country_selection181 | I188: Serbia | J188: Serbie | K188: Serbia | L188: country_translation | M188: =HLOOKUP($C$2,$I$8:$K188,$A188,FALSE) -> Serbia | N188: country_translation181
A189: 182 | B189: Seychelles | C189: Sainte-Hélène Ascension et Tristan de Cunha | D189: Sáhara occidental | E189: country_selection | F189: =HLOOKUP($C$2,$B$8:$D189,$A189,FALSE) -> Seychelles | G189: country_selection182 | I189: Seychelles | J189: Seychelles | K189: Seychelles | L189: country_translation | M189: =HLOOKUP($C$2,$I$8:$K189,$A189,FALSE) -> Seychelles | N189: country_translation182
A190: 183 | B190: Sierra Leone | C190: Sainte-Lucie | D190: Saint Kitts y Nevis | E190: country_selection | F190: =HLOOKUP($C$2,$B$8:$D190,$A190,FALSE) -> Sierra Leone | G190: country_selection183 | I190: Sierra Leone | J190: Sierra Leone | K190: Sierra Leona | L190: country_translation | M190: =HLOOKUP($C$2,$I$8:$K190,$A190,FALSE) -> Sierra Leone | N190: country_translation183
A191: 184 | B191: Singapore | C191: Saint-Kitts-et-Nevis | D191: Saint-Pierre y Miquelon | E191: country_selection | F191: =HLOOKUP($C$2,$B$8:$D191,$A191,FALSE) -> Singapore | G191: country_selection184 | I191: Singapore | J191: Singapour | K191: Singapur | L191: country_translation | M191: =HLOOKUP($C$2,$I$8:$K191,$A191,FALSE) -> Singapore | N191: country_translation184
A192: 185 | B192: Slovakia | C192: Saint-Marin | D192: Samoa | E192: country_selection | F192: =HLOOKUP($C$2,$B$8:$D192,$A192,FALSE) -> Slovakia | G192: country_selection185 | I192: Slovakia | J192: Slovaquie | K192: Eslovaquia | L192: country_translation | M192: =HLOOKUP($C$2,$I$8:$K192,$A192,FALSE) -> Slovakia | N192: country_translation185
A193: 186 | B193: Slovenia | C193: Saint-Pierre-et-Miquelon | D193: Samoa Americana | E193: country_selection | F193: =HLOOKUP($C$2,$B$8:$D193,$A193,FALSE) -> Slovenia | G193: country_selection186 | I193: Slovenia | J193: Slovénie | K193: Eslovenia | L193: country_translation | M193: =HLOOKUP($C$2,$I$8:$K193,$A193,FALSE) -> Slovenia | N193: country_translation186
A194: 187 | B194: Solomon Islands | C194: Saint-Siège | D194: San Marino | E194: country_selection | F194: =HLOOKUP($C$2,$B$8:$D194,$A194,FALSE) -> Solomon Islands | G194: country_selection187 | I194: Solomon Islands | J194: Îles Salomon | K194: Islas Salomón | L194: country_translation | M194: =HLOOKUP($C$2,$I$8:$K194,$A194,FALSE) -> Solomon Islands | N194: country_translation187
A195: 188 | B195: Somalia | C195: Saint-Vincent-et-les Grenadines | D195: San Vicente y las Granadinas | E195: country_selection | F195: =HLOOKUP($C$2,$B$8:$D195,$A195,FALSE) -> Somalia | G195: country_selection188 | I195: Somalia | J195: Somalie | K195: Somalia | L195: country_translation | M195: =HLOOKUP($C$2,$I$8:$K195,$A195,FALSE) -> Somalia | N195: country_translation188
A196: 189 | B196: South Africa | C196: Samoa | D196: Santa Elena Ascension y Tristan da Cunha | E196: country_selection | F196: =HLOOKUP($C$2,$B$8:$D196,$A196,FALSE) -> South Africa | G196: country_selection189 | I196: South Africa | J196: Afrique du Sud | K196: Sudáfrica | L196: country_translation | M196: =HLOOKUP($C$2,$I$8:$K196,$A196,FALSE) -> South Africa | N196: country_translation189
A197: 190 | B197: South Sudan | C197: Samoa américaines | D197: Santa Lucía | E197: country_selection | F197: =HLOOKUP($C$2,$B$8:$D197,$A197,FALSE) -> South Sudan | G197: country_selection190 | I197: South Sudan | J197: Sud du Soudan | K197: Sudan del Sur | L197: country_translation | M197: =HLOOKUP($C$2,$I$8:$K197,$A197,FALSE) -> South Sudan | N197: country_translation190
A198: 191 | B198: Spain | C198: Sao Tomé-et-Principe | D198: Santa Sede | E198: country_selection | F198: =HLOOKUP($C$2,$B$8:$D198,$A198,FALSE) -> Spain | G198: country_selection191 | I198: Spain | J198: Espagne | K198: España | L198: country_translation | M198: =HLOOKUP($C$2,$I$8:$K198,$A198,FALSE) -> Spain | N198: country_translation191
A199: 192 | B199: Sri Lanka | C199: Sénégal | D199: Santo Tomé y Príncipe | E199: country_selection | F199: =HLOOKUP($C$2,$B$8:$D199,$A199,FALSE) -> Sri Lanka | G199: country_selection192 | I199: Sri Lanka | J199: Sri Lanka | K199: Sri Lanka | L199: country_translation | M199: =HLOOKUP($C$2,$I$8:$K199,$A199,FALSE) -> Sri Lanka | N199: country_translation192
A200: 193 | B200: Sudan | C200: Serbie | D200: Senegal | E200: country_selection | F200: =HLOOKUP($C$2,$B$8:$D200,$A200,FALSE) -> Sudan | G200: country_selection193 | I200: Sudan | J200: Soudan | K200: Sudán | L200: country_translation | M200: =HLOOKUP($C$2,$I$8:$K200,$A200,FALSE) -> Sudan | N200: country_translation193
A201: 194 | B201: Sudan (former) | C201: Seychelles | D201: Serbia | E201: country_selection | F201: =HLOOKUP($C$2,$B$8:$D201,$A201,FALSE) -> Sudan (former) | G201: =$E201&$A201 -> country_selection194 | I201: Sudan (former) | J201: Sudan | K201: Sudan | L201: country_translation | M201: =HLOOKUP($C$2,$I$8:$K201,$A201,FALSE) -> Sudan (former) | N201: country_translation194
... 44 more rows

Sheet PROPERTIES_DATABASE (hidden)
B1: Biogas composition
B2: Manure | C2: CH4 | D2: CO2 | E2: H2 | F2: N2 | G2: CO | H2: O2 | I2: H2S | J2: NH3 | K2: Density (kg/m3) | L2: Calorific Power (MJ/m3) | M2: Calorific Power (MJ/kg)
B3: =title11 -> Buffalo | C3: 0.590982747 | D3: 0.343151272 | E3: 0.0476599 | F3: 0.015727766 | G3: 0.0009531979 | H3: 0.0009531979 | I3: 0.00047660141 | J3: 9.5331979e-05 | K3: =(0.7168*C3)+(D3*1.9768)+(E3*0.0898)+(F3*1.2507)+(G3*1.2501)+(H3*1.4289)+(I3*1.5392)+(J3*0.7708) -> 1.129269127 | L3: =(C3*35.786)+0.0532 -> 21.20210858 | M3: =L3/K3 -> 18.77507148
B4: =title9 -> Dairy cattle | C4: 0.577 | D4: 0.375 | E4: 0.00325 | F4: 0.025 | G4: 0.00325 | H4: 0.01 | I4: 0.006 | J4: 0.0005 | K4: =(0.7168*C4)+(D4*1.9768)+(E4*0.0898)+(F4*1.2507)+(G4*1.2501)+(H4*1.4289)+(I4*1.5392)+(J4*0.7708) -> 1.214425375 | L4: =(C4*35.786)+0.0532 -> 20.701722 | M4: =L4/K4 -> 17.04651634
B5: Dairy Cattle | C5: 0.591 | D5: 0.392 | E5: 0.00376375 | F5: 0.00376375 | G5: 0.00376375 | H5: 0.00376375 | I5: 0.00193 | J5: 1.5e-05 | K5: =(0.7168*C5)+(D5*1.9768)+(E5*0.0898)+(F5*1.2507)+(G5*1.2501)+(H5*1.4289)+(I5*1.5392)+(J5*0.7708) -> 1.216645011 | L5: =(C5*35.786)+0.0532 -> 21.202726 | M5: =L5/K5 -> 17.42720827
B6: Poultry | C6: 0.638 | D6: 0.343 | E6: 0.0098 | F6: 0.0049 | G6: 0.00098 | H6: 0.00098 | I6: 0.00234 | J6: 0 | K6: =(0.7168*C6)+(D6*1.9768)+(E6*0.0898)+(F6*1.2507)+(G6*1.2501)+(H6*1.4289)+(I6*1.5392)+(J6*0.7708) -> 1.148596418 | L6: =(C6*35.786)+0.0532 -> 22.884668 | M6: =L6/K6 -> 19.9240287
B7: =title10 -> Swine | C7: 0.588 | D7: 0.387 | E7: 0.0049 | F7: 0.015 | G7: 0 | H7: 0 | I7: 0.0051 | J7: 0 | K7: =(0.7168*C7)+(D7*1.9768)+(E7*0.0898)+(F7*1.2507)+(G7*1.2501)+(H7*1.4289)+(I7*1.5392)+(J7*0.7708) -> 1.21355044 | L7: =(C7*35.786)+0.0532 -> 21.095368 | M7: =L7/K7 -> 17.38318186
B9: Slurry NPK composition - dry basis
B10: Manure | C10: N (kg N/kg bioslurry) | D10: P (Kg P2O5/kg bioslurry) | E10: K (Kg K2O/kg bioslurry)
B11: =title11 -> Buffalo | C11: 0.0105 | D11: 0.0082 | E11: 0.0055
B12: =title9 -> Dairy cattle | C12: 0.017 | D12: 0.014 | E12: 0.006
B13: Dairy Cattle | C13: 0.0142 | D13: 0.0068 | E13: 0.0032
B14: Poultry | C14: 0.0185 | D14: 0.0088 | E14: 0.0055
B15: =title10 -> Swine | C15: 0.022 | D15: 0.018 | E15: 0.008
C17: Effective consumption in biogas equivalent
C18: Stoves efficiency | D18: %
C19: Charcoal | D19: 0.45
C20: Biogas | D20: 0.65
C21: =title15 -> Kerosene | D21: 0.55
C22: Wood | D22: 0.2
C23: Improved wood-stove for Briquettes/Pellets | D23: 0.7
C24: Natural Gas | D24: 0.8
C25: Coal | D25: 0.6
C26: Electrict Stove | D26: 0.7
C27: =title16 -> LPG | D27: 0.6
B30: Fuel heat in biogas equivalent
B31: Fuel | C31: CV (MJ/unit) | D31: Useful energy use (MJ/unit) | E31: Equivalent useful energy (m3 biogas/unit) | F31: Electricity equivalent of usefull energy (kWh/unit)
A32: =+ROW(B32) -> 32 | B32: Coal (kg) | C32: 33 | D32: =C32*D25 -> 19.8 | E32: =$D$34/D32 -> 0.6772474747 | F32: =D32/3.6 -> 5.5
A33: =+ROW(B33) -> 33 | B33: Natural Gas (m3) | C33: 34.94 | D33: =C33*D24 -> 27.952 | E33: =$D$34/D33 -> 0.4797331139 | F33: 7.764444444
A34: 34 | B34: Biogas (m3) | C34: 20.63 | D34: =C34*D20 -> 13.4095 | E34: 1 | F34: 3.724861111
A35: 35 | B35: =title14&" (kg)" -> Briquettes/Pellets (kg) | C35: 15.4 | D35: =C35*D23 -> 10.78 | E35: 1.243923933 | F35: 2.994444444
A36: 36 | B36: =title12&" (kg)" -> Fuelwood (kg) | C36: 14.5 | D36: =C36*D22 -> 2.9 | E36: 4.623965517 | F36: 0.8055555556
A37: 37 | B37: =title13&" (kg)" -> Charcoal (kg) | C37: 30.8 | D37: =C37*D19 -> 13.86 | E37: 0.9674963925 | F37: 3.85
A38: 38 | B38: Kerosene (kg) | C38: 35 | D38: =C38*D21 -> 19.25 | E38: 0.6965974026 | F38: 5.347222222
A39: 39 | B39: LPG (l) | C39: 46.89 | D39: =C39*D27 -> 28.134 | E39: 0.4766297007 | F39: 7.815
B41: Region | C41: Manure | E41: Bo (m3/kg SV)
B42: =region236 -> North America | C42: =title11 -> Buffalo | D42: =+B42&C42 -> North AmericaBuffalo | E42: 0.1
B43: =region238 -> Western Europe | C43: Buffalo | D43: =+B43&C43 -> Western EuropeBuffalo | E43: 0.1
B44: =region232 -> Eastern Europe | C44: Buffalo | D44: Eastern EuropeBuffalo | E44: 0.1
B45: =region237 -> Oceania | C45: Buffalo | D45: OceaniaBuffalo | E45: 0.1
B46: =region234 -> Latin America | C46: Buffalo | D46: Latin AmericaBuffalo | E46: 0.1
B47: =region230 -> Africa | C47: Buffalo | D47: AfricaBuffalo | E47: 0.1
B48: =region235 -> Middle East | C48: Buffalo | D48: Middle EastBuffalo | E48: 0.1
B49: =region231 -> Asia | C49: Buffalo | D49: AsiaBuffalo | E49: 0.1
B50: =region233 -> Indian Subcontinent | C50: Buffalo | D50: Indian SubcontinentBuffalo | E50: 0.1
B51: =region236 -> North America | C51: =title9 -> Dairy cattle | D51: North AmericaDairy cattle | E51: 0.19
B52: =region238 -> Western Europe | C52: Dairy cattle | D52: Western EuropeDairy cattle | E52: 0.18
B53: =region232 -> Eastern Europe | C53: Dairy cattle | D53: Eastern EuropeDairy cattle | E53: 0.17
B54: =region237 -> Oceania | C54: Dairy cattle | D54: OceaniaDairy cattle | E54: 0.17
B55: =region234 -> Latin America | C55: Dairy cattle | D55: Latin AmericaDairy cattle | E55: 0.1
B56: =region230 -> Africa | C56: Dairy cattle | D56: AfricaDairy cattle | E56: 0.1
B57: =region235 -> Middle East | C57: Dairy cattle | D57: Middle EastDairy cattle | E57: 0.1
B58: =region231 -> Asia | C58: Dairy cattle | D58: AsiaDairy cattle | E58: 0.1
B59: =region233 -> Indian Subcontinent | C59: Dairy cattle | D59: Indian SubcontinentDairy cattle | E59: 0.1
B60: =region236 -> North America | C60: Dairy Clattle | D60: North AmericaDairy Clattle | E60: 0.24
B61: =region238 -> Western Europe | C61: Dairy Clattle | D61: Western EuropeDairy Clattle | E61: 0.24
B62: =region232 -> Eastern Europe | C62: Dairy Clattle | D62: Eastern EuropeDairy Clattle | E62: 0.24
B63: =region237 -> Oceania | C63: Dairy Clattle | D63: OceaniaDairy Clattle | E63: 0.24
B64: =region234 -> Latin America | C64: Dairy Clattle | D64: Latin AmericaDairy Clattle | E64: 0.13
B65: =region230 -> Africa | C65: Dairy Clattle | D65: AfricaDairy Clattle | E65: 0.13
B66: =region235 -> Middle East | C66: Dairy Clattle | D66: Middle EastDairy Clattle | E66: 0.13
B67: =region231 -> Asia | C67: Dairy Clattle | D67: AsiaDairy Clattle | E67: 0.13
B68: =region233 -> Indian Subcontinent | C68: Dairy Clattle | D68: Indian SubcontinentDairy Clattle | E68: 0.13
B69: =region236 -> North America | C69: Poultry | D69: North AmericaPoultry | E69: 0.39
B70: =region238 -> Western Europe | C70: Poultry | D70: Western EuropePoultry | E70: 0.39
B71: =region232 -> Eastern Europe | C71: Poultry | D71: Eastern EuropePoultry | E71: 0.39
B72: =region237 -> Oceania | C72: Poultry | D72: OceaniaPoultry | E72: 0.39
B73: =region234 -> Latin America | C73: Poultry | D73: Latin AmericaPoultry | E73: 0.39
B74: =region230 -> Africa | C74: Poultry | D74: AfricaPoultry | E74: 0.39
B75: =region235 -> Middle East | C75: Poultry | D75: Middle EastPoultry | E75: 0.39
B76: =region231 -> Asia | C76: Poultry | D76: AsiaPoultry | E76: 0.39
B77: =region233 -> Indian Subcontinent | C77: Poultry | D77: Indian SubcontinentPoultry | E77: 0.39
B78: =region236 -> North America | C78: =title10 -> Swine | D78: North AmericaSwine | E78: 0.48
B79: =region238 -> Western Europe | C79: Swine | D79: Western EuropeSwine | E79: 0.45
B80: =region232 -> Eastern Europe | C80: Swine | D80: Eastern EuropeSwine | E80: 0.45
B81: =region237 -> Oceania | C81: Swine | D81: OceaniaSwine | E81: 0.45
B82: =region234 -> Latin America | C82: Swine | D82: Latin AmericaSwine | E82: 0.29
B83: =region230 -> Africa | C83: Swine | D83: AfricaSwine | E83: 0.29
B84: =region235 -> Middle East | C84: Swine | D84: Middle EastSwine | E84: 0.29
B85: =region231 -> Asia | C85: Swine | D85: AsiaSwine | E85: 0.29
B86: =region233 -> Indian Subcontinent | C86: Swine | D86: Indian SubcontinentSwine | E86: 0.29
B90: Manure composition
B91: Manure | C91: N (composition)
B92: =title11 -> Buffalo | C92: 0.017
B93: =title9 -> Dairy cattle | C93: 0.0394
B94: Dairy catlle | C94: 0.0585
B95: Poultry | C95: 0.0503
B96: =title10 -> Swine | C96: 0.0409

Sheet Model Calculations_ALL (hidden)
B1: =title224 -> Manure type | C1: =+'Data entry needs'!AA92 -> Dairy cattle
B2: Location | C2: =+'Data entry needs'!$AA$97 -> Select a country
B4: Basic properties
C5: Density (Kg/m3) | D5: Volatile solids (kg/kg) | E5: Moisture (kg/kg)
B6: =title11 -> Buffalo | C6: 960 | D6: 0.1364 | E6: 0.73
B7: =title9 -> Dairy cattle | C7: 960 | D7: 0.1325 | E7: 0.366
B8: Dairy Cattle | C8: 994 | D8: 0.2047 | E8: 0.6738
B9: Poultry | C9: 961.11 | D9: 0.4934 | E9: 0.253
B10: =title10 -> Swine | C10: 1140.9 | D10: 0.236 | E10: 0.0722
B12: Kinetic parameters
C13: um (1/d) | D13: k | E13: Bo (m3/kg SV)
B14: =title11 -> Buffalo | C14: =IF(T<5,0,IF(T>60,NA( ),0.566*((1+1110*EXP(-0.187*T))^(-0.546)))) -> 0 | D14: =0.6+(0.021*EXP(0.05*SV)) ->  | E14: =+VLOOKUP(region&B14,PROPERTIES_DATABASE!$D$42:$E$86,2,FALSE) -> 
B15: =title9 -> Dairy cattle | C15: =IF(T<5,0,IF(T>60,NA( ),0.566*((1+1110*EXP(-0.187*T))^(-0.546)))) -> 0 | D15: =0.8+(0.01*EXP(0.06*SV)) ->  | E15: =+VLOOKUP(region&B15,PROPERTIES_DATABASE!$D$42:$E$86,2,FALSE) -> 
B16: Dairy Clattle | C16: =IF(T<5,0,IF(T>60,NA( ),0.566*((1+1110*EXP(-0.187*T))^(-0.546)))) -> 0 | D16: =IF(SV<=88.2,0.7,(0.0015*(SV^2))-(0.02477*SV)+10.924) ->  | E16: =+VLOOKUP(region&B16,PROPERTIES_DATABASE!$D$42:$E$86,2,FALSE) -> 
B17: Poultry | C17: =IF(T<5,0,IF(T>60,NA( ),0.566*((1+1110*EXP(-0.187*T))^(-0.546)))) -> 0 | D17: =IF(SV<=39.169,1,(0.002021*(SV^2))-(0.083*SV)+0.041) ->  | E17: =+VLOOKUP(region&B17,PROPERTIES_DATABASE!$D$42:$E$86,2,FALSE) -> 
B18: =title10 -> Swine | C18: =IF(T<5,0,IF(T>60,NA( ),0.566*((1+1110*EXP(-0.187*T))^(-0.546)))) -> 0 | D18: =IF(SV<=58.6,0.8,(0.0866*SV)-4.2755) ->  | E18: =+VLOOKUP(region&B18,PROPERTIES_DATABASE!$D$42:$E$86,2,FALSE) -> 
B21: Operational parameters
D22: LeveL1 | E22: LeveL2 | F22: LeveL3 | G22: LeveL4
B23: Parameters | C23: Units | D23: =title130 -> Quantity | E23: =title130 -> Quantity | F23: =title130 -> Quantity | G23: =title130 -> Quantity
B24: =title67 -> Feedstock
B25: Manure rate | C25: kg/d | D25: ='Data entry needs'!D17/VLOOKUP($C$1,$B$6:$D$10,3,FALSE) -> 0 | E25: ='Data entry needs'!E17/VLOOKUP($C$1,$B$6:$D$10,3,FALSE) -> 0 | F25: ='Data entry needs'!F17/VLOOKUP($C$1,$B$6:$D$10,3,FALSE) -> 0 | G25: ='Data entry needs'!G17/VLOOKUP($C$1,$B$6:$D$10,3,FALSE) -> 0
B26: Water rate | C26: kg/d | D26: =D$25*((VLOOKUP($C$1,'Model Calculations_ALL'!$B$6:$E$10,3,FALSE)/0.06)-1) -> 0 | E26: =E$25*((VLOOKUP($C$1,'Model Calculations_ALL'!$B$6:$E$10,3,FALSE)/0.06)-1) -> 0 | F26: =F$25*((VLOOKUP($C$1,'Model Calculations_ALL'!$B$6:$E$10,3,FALSE)/0.06)-1) -> 0 | G26: =G$25*((VLOOKUP($C$1,'Model Calculations_ALL'!$B$6:$E$10,3,FALSE)/0.06)-1) -> 0
B27: Initial volatile solids | C27: kg/m3 | D27: =IF((D$25*VLOOKUP($C$1,'Model Calculations_ALL'!$B$6:$D$10,3,FALSE))/((D$25/VLOOKUP($C$1,'Model Calculations_ALL'!$B$6:$D$10,2,FALSE))+('Model Calculations_ALL'!D$26/1000))<=100,(D$25*VLOOKUP($C$1,'Model Calculations_ALL'!$B$6:$D$10,3,FALSE))/((D$25/VLOOKUP($C$1,'Model Calculations_ALL'!$B$6:$D$10,2,FALSE))+('Model Calculations_ALL'!D$26/1000)),NA()) ->  | E27: =IF((E$25*VLOOKUP($C$1,'Model Calculations_ALL'!$B$6:$D$10,3,FALSE))/((E$25/VLOOKUP($C$1,'Model Calculations_ALL'!$B$6:$D$10,2,FALSE))+('Model Calculations_ALL'!E$26/1000))<=100,(E$25*VLOOKUP($C$1,'Model Calculations_ALL'!$B$6:$D$10,3,FALSE))/((E$25/VLOOKUP($C$1,'Model Calculations_ALL'!$B$6:$D$10,2,FALSE))+('Model Calculations_ALL'!E$26/1000)),NA()) ->  | F27: =IF((F$25*VLOOKUP($C$1,'Model Calculations_ALL'!$B$6:$D$10,3,FALSE))/((F$25/VLOOKUP($C$1,'Model Calculations_ALL'!$B$6:$D$10,2,FALSE))+('Model Calculations_ALL'!F$26/1000))<=100,(F$25*VLOOKUP($C$1,'Model Calculations_ALL'!$B$6:$D$10,3,FALSE))/((F$25/VLOOKUP($C$1,'Model Calculations_ALL'!$B$6:$D$10,2,FALSE))+('Model Calculations_ALL'!F$26/1000)),NA()) ->  | G27: =IF((G$25*VLOOKUP($C$1,'Model Calculations_ALL'!$B$6:$D$10,3,FALSE))/((G$25/VLOOKUP($C$1,'Model Calculations_ALL'!$B$6:$D$10,2,FALSE))+('Model Calculations_ALL'!G$26/1000))<=100,(G$25*VLOOKUP($C$1,'Model Calculations_ALL'!$B$6:$D$10,3,FALSE))/((G$25/VLOOKUP($C$1,'Model Calculations_ALL'!$B$6:$D$10,2,FALSE))+('Model Calculations_ALL'!G$26/1000)),NA()) -> 
B28: Operation
B29: Reactor volume | C29: m3 | D29: =((D$25/VLOOKUP($C$1,'Model Calculations_ALL'!$B$6:$D$10,2,FALSE))+('Model Calculations_ALL'!D$26/1000))*td -> 0 | E29: =((E$25/VLOOKUP($C$1,'Model Calculations_ALL'!$B$6:$D$10,2,FALSE))+('Model Calculations_ALL'!E$26/1000))*td -> 0 | F29: =((F$25/VLOOKUP($C$1,'Model Calculations_ALL'!$B$6:$D$10,2,FALSE))+('Model Calculations_ALL'!F$26/1000))*td -> 0 | G29: =((G$25/VLOOKUP($C$1,'Model Calculations_ALL'!$B$6:$D$10,2,FALSE))+('Model Calculations_ALL'!G$26/1000))*td -> 0
B30: Digestion time | C30: d | D30: =122.16*EXP(-0.05*T) -> 122.16 | E30: =122.16*EXP(-0.05*T) -> 122.16 | F30: =122.16*EXP(-0.05*T) -> 122.16 | G30: =122.16*EXP(-0.05*T) -> 122.16
B31: Products
B32: =title258 -> Biogas production | C32: m3/d | D32: =SUM(D33:D40) ->  | E32: =SUM(E33:E40) ->  | F32: =SUM(F33:F40) ->  | G32: =SUM(G33:G40) -> 
B33: Methane | C33: m3/d | D33: =(((D$27*VLOOKUP($C$1,'Model Calculations_ALL'!$B$14:$E$18,4,FALSE)))*(1-(VLOOKUP($C$1,'Model Calculations_ALL'!$B$14:$D$18,3,FALSE)/((VLOOKUP('Model Calculations_ALL'!$C$1,'Model Calculations_ALL'!$B$14:$D$18,2,FALSE)*'Model Calculations_ALL'!D$30)-1+VLOOKUP('Model Calculations_ALL'!$C$1,'Model Calculations_ALL'!$B$14:$D$18,3,FALSE))))*((D$25/VLOOKUP($C$1,'Model Calculations_ALL'!$B$6:$D$10,2,FALSE))+('Model Calculations_ALL'!D$26/1000))) ->  | E33: =(((E$27*VLOOKUP($C$1,'Model Calculations_ALL'!$B$14:$E$18,4,FALSE)))*(1-(VLOOKUP($C$1,'Model Calculations_ALL'!$B$14:$D$18,3,FALSE)/((VLOOKUP('Model Calculations_ALL'!$C$1,'Model Calculations_ALL'!$B$14:$D$18,2,FALSE)*'Model Calculations_ALL'!E$30)-1+VLOOKUP('Model Calculations_ALL'!$C$1,'Model Calculations_ALL'!$B$14:$D$18,3,FALSE))))*((E$25/VLOOKUP($C$1,'Model Calculations_ALL'!$B$6:$D$10,2,FALSE))+('Model Calculations_ALL'!E$26/1000))) ->  | F33: =(((F$27*VLOOKUP($C$1,'Model Calculations_ALL'!$B$14:$E$18,4,FALSE)))*(1-(VLOOKUP($C$1,'Model Calculations_ALL'!$B$14:$D$18,3,FALSE)/((VLOOKUP('Model Calculations_ALL'!$C$1,'Model Calculations_ALL'!$B$14:$D$18,2,FALSE)*'Model Calculations_ALL'!F$30)-1+VLOOKUP('Model Calculations_ALL'!$C$1,'Model Calculations_ALL'!$B$14:$D$18,3,FALSE))))*((F$25/VLOOKUP($C$1,'Model Calculations_ALL'!$B$6:$D$10,2,FALSE))+('Model Calculations_ALL'!F$26/1000))) ->  | G33: =(((G$27*VLOOKUP($C$1,'Model Calculations_ALL'!$B$14:$E$18,4,FALSE)))*(1-(VLOOKUP($C$1,'Model Calculations_ALL'!$B$14:$D$18,3,FALSE)/((VLOOKUP('Model Calculations_ALL'!$C$1,'Model Calculations_ALL'!$B$14:$D$18,2,FALSE)*'Model Calculations_ALL'!G$30)-1+VLOOKUP('Model Calculations_ALL'!$C$1,'Model Calculations_ALL'!$B$14:$D$18,3,FALSE))))*((G$25/VLOOKUP($C$1,'Model Calculations_ALL'!$B$6:$D$10,2,FALSE))+('Model Calculations_ALL'!G$26/1000))) -> 
B34: Carbon dioxide | C34: m3/d | D34: =D$33*(VLOOKUP($C$1,PROPERTIES_DATABASE!$B$3:$J$7,3,FALSE)/VLOOKUP('Model Calculations_ALL'!$C$1,PROPERTIES_DATABASE!$B$3:$J$7,2,FALSE)) ->  | E34: =E$33*(VLOOKUP($C$1,PROPERTIES_DATABASE!$B$3:$J$7,3,FALSE)/VLOOKUP('Model Calculations_ALL'!$C$1,PROPERTIES_DATABASE!$B$3:$J$7,2,FALSE)) ->  | F34: =F$33*(VLOOKUP($C$1,PROPERTIES_DATABASE!$B$3:$J$7,3,FALSE)/VLOOKUP('Model Calculations_ALL'!$C$1,PROPERTIES_DATABASE!$B$3:$J$7,2,FALSE)) ->  | G34: =G$33*(VLOOKUP($C$1,PROPERTIES_DATABASE!$B$3:$J$7,3,FALSE)/VLOOKUP('Model Calculations_ALL'!$C$1,PROPERTIES_DATABASE!$B$3:$J$7,2,FALSE)) -> 
B35: Hydrogen | C35: m3/d | D35: =D$33*(VLOOKUP($C$1,PROPERTIES_DATABASE!$B$3:$J$7,4,FALSE)/VLOOKUP('Model Calculations_ALL'!$C$1,PROPERTIES_DATABASE!$B$3:$J$7,2,FALSE)) ->  | E35: =E$33*(VLOOKUP($C$1,PROPERTIES_DATABASE!$B$3:$J$7,4,FALSE)/VLOOKUP('Model Calculations_ALL'!$C$1,PROPERTIES_DATABASE!$B$3:$J$7,2,FALSE)) ->  | F35: =F$33*(VLOOKUP($C$1,PROPERTIES_DATABASE!$B$3:$J$7,4,FALSE)/VLOOKUP('Model Calculations_ALL'!$C$1,PROPERTIES_DATABASE!$B$3:$J$7,2,FALSE)) ->  | G35: =G$33*(VLOOKUP($C$1,PROPERTIES_DATABASE!$B$3:$J$7,4,FALSE)/VLOOKUP('Model Calculations_ALL'!$C$1,PROPERTIES_DATABASE!$B$3:$J$7,2,FALSE)) -> 
B36: =title104 -> Nitrogen | C36: m3/d | D36: =D$33*(VLOOKUP($C$1,PROPERTIES_DATABASE!$B$3:$J$7,5,FALSE)/VLOOKUP('Model Calculations_ALL'!$C$1,PROPERTIES_DATABASE!$B$3:$J$7,2,FALSE)) ->  | E36: =E$33*(VLOOKUP($C$1,PROPERTIES_DATABASE!$B$3:$J$7,5,FALSE)/VLOOKUP('Model Calculations_ALL'!$C$1,PROPERTIES_DATABASE!$B$3:$J$7,2,FALSE)) ->  | F36: =F$33*(VLOOKUP($C$1,PROPERTIES_DATABASE!$B$3:$J$7,5,FALSE)/VLOOKUP('Model Calculations_ALL'!$C$1,PROPERTIES_DATABASE!$B$3:$J$7,2,FALSE)) ->  | G36: =G$33*(VLOOKUP($C$1,PROPERTIES_DATABASE!$B$3:$J$7,5,FALSE)/VLOOKUP('Model Calculations_ALL'!$C$1,PROPERTIES_DATABASE!$B$3:$J$7,2,FALSE)) -> 
B37: Carbon monoxide | C37: m3/d | D37: =D$33*(VLOOKUP($C$1,PROPERTIES_DATABASE!$B$3:$J$7,6,FALSE)/VLOOKUP('Model Calculations_ALL'!$C$1,PROPERTIES_DATABASE!$B$3:$J$7,2,FALSE)) ->  | E37: =E$33*(VLOOKUP($C$1,PROPERTIES_DATABASE!$B$3:$J$7,6,FALSE)/VLOOKUP('Model Calculations_ALL'!$C$1,PROPERTIES_DATABASE!$B$3:$J$7,2,FALSE)) ->  | F37: =F$33*(VLOOKUP($C$1,PROPERTIES_DATABASE!$B$3:$J$7,6,FALSE)/VLOOKUP('Model Calculations_ALL'!$C$1,PROPERTIES_DATABASE!$B$3:$J$7,2,FALSE)) ->  | G37: =G$33*(VLOOKUP($C$1,PROPERTIES_DATABASE!$B$3:$J$7,6,FALSE)/VLOOKUP('Model Calculations_ALL'!$C$1,PROPERTIES_DATABASE!$B$3:$J$7,2,FALSE)) -> 
B38: Oxygen | C38: m3/d | D38: =D$33*(VLOOKUP($C$1,PROPERTIES_DATABASE!$B$3:$J$7,7,FALSE)/VLOOKUP('Model Calculations_ALL'!$C$1,PROPERTIES_DATABASE!$B$3:$J$7,2,FALSE)) ->  | E38: =E$33*(VLOOKUP($C$1,PROPERTIES_DATABASE!$B$3:$J$7,7,FALSE)/VLOOKUP('Model Calculations_ALL'!$C$1,PROPERTIES_DATABASE!$B$3:$J$7,2,FALSE)) ->  | F38: =F$33*(VLOOKUP($C$1,PROPERTIES_DATABASE!$B$3:$J$7,7,FALSE)/VLOOKUP('Model Calculations_ALL'!$C$1,PROPERTIES_DATABASE!$B$3:$J$7,2,FALSE)) ->  | G38: =G$33*(VLOOKUP($C$1,PROPERTIES_DATABASE!$B$3:$J$7,7,FALSE)/VLOOKUP('Model Calculations_ALL'!$C$1,PROPERTIES_DATABASE!$B$3:$J$7,2,FALSE)) -> 
B39: Hydrogen sulfide | C39: m3/d | D39: =D$33*VLOOKUP($C$1,PROPERTIES_DATABASE!$B$3:$J$7,8,FALSE)/VLOOKUP('Model Calculations_ALL'!$C$1,PROPERTIES_DATABASE!$B$3:$J$7,2,FALSE) ->  | E39: =E$33*VLOOKUP($C$1,PROPERTIES_DATABASE!$B$3:$J$7,8,FALSE)/VLOOKUP('Model Calculations_ALL'!$C$1,PROPERTIES_DATABASE!$B$3:$J$7,2,FALSE) ->  | F39: =F$33*VLOOKUP($C$1,PROPERTIES_DATABASE!$B$3:$J$7,8,FALSE)/VLOOKUP('Model Calculations_ALL'!$C$1,PROPERTIES_DATABASE!$B$3:$J$7,2,FALSE) ->  | G39: =G$33*VLOOKUP($C$1,PROPERTIES_DATABASE!$B$3:$J$7,8,FALSE)/VLOOKUP('Model Calculations_ALL'!$C$1,PROPERTIES_DATABASE!$B$3:$J$7,2,FALSE) -> 
B40: Ammonia | C40: m3/d | D40: =D$33*(VLOOKUP($C$1,PROPERTIES_DATABASE!$B$3:$J$7,9,FALSE)/VLOOKUP('Model Calculations_ALL'!$C$1,PROPERTIES_DATABASE!$B$3:$J$7,2,FALSE)) ->  | E40: =E$33*(VLOOKUP($C$1,PROPERTIES_DATABASE!$B$3:$J$7,9,FALSE)/VLOOKUP('Model Calculations_ALL'!$C$1,PROPERTIES_DATABASE!$B$3:$J$7,2,FALSE)) ->  | F40: =F$33*(VLOOKUP($C$1,PROPERTIES_DATABASE!$B$3:$J$7,9,FALSE)/VLOOKUP('Model Calculations_ALL'!$C$1,PROPERTIES_DATABASE!$B$3:$J$7,2,FALSE)) ->  | G40: =G$33*(VLOOKUP($C$1,PROPERTIES_DATABASE!$B$3:$J$7,9,FALSE)/VLOOKUP('Model Calculations_ALL'!$C$1,PROPERTIES_DATABASE!$B$3:$J$7,2,FALSE)) -> 
B41: Bioslurry
B42: Total | C42: kg/d | D42: =((SV*(VLOOKUP('Model Calculations_ALL'!$C$1,'Model Calculations_ALL'!$B$14:$E$18,3,FALSE)/((VLOOKUP('Model Calculations_ALL'!$C$1,'Model Calculations_ALL'!$B$14:$E$18,2,FALSE)*td)-1+VLOOKUP('Model Calculations_ALL'!$C$1,'Model Calculations_ALL'!$B$14:$E$18,3,FALSE)))))*((D$25/VLOOKUP($C$1,'Model Calculations_ALL'!$B$6:$E$10,2,FALSE))+('Model Calculations_ALL'!D$26/1000))+(D$25*(1-VLOOKUP($C$1,'Model Calculations_ALL'!$B$6:$E$10,3,FALSE)))+'Model Calculations_ALL'!D$26 ->  | E42: =((SV*(VLOOKUP('Model Calculations_ALL'!$C$1,'Model Calculations_ALL'!$B$14:$E$18,3,FALSE)/((VLOOKUP('Model Calculations_ALL'!$C$1,'Model Calculations_ALL'!$B$14:$E$18,2,FALSE)*td)-1+VLOOKUP('Model Calculations_ALL'!$C$1,'Model Calculations_ALL'!$B$14:$E$18,3,FALSE)))))*((E$25/VLOOKUP($C$1,'Model Calculations_ALL'!$B$6:$E$10,2,FALSE))+('Model Calculations_ALL'!E$26/1000))+(E$25*(1-VLOOKUP($C$1,'Model Calculations_ALL'!$B$6:$E$10,3,FALSE)))+'Model Calculations_ALL'!E$26 ->  | F42: =((SV*(VLOOKUP('Model Calculations_ALL'!$C$1,'Model Calculations_ALL'!$B$14:$E$18,3,FALSE)/((VLOOKUP('Model Calculations_ALL'!$C$1,'Model Calculations_ALL'!$B$14:$E$18,2,FALSE)*td)-1+VLOOKUP('Model Calculations_ALL'!$C$1,'Model Calculations_ALL'!$B$14:$E$18,3,FALSE)))))*((F$25/VLOOKUP($C$1,'Model Calculations_ALL'!$B$6:$E$10,2,FALSE))+('Model Calculations_ALL'!F$26/1000))+(F$25*(1-VLOOKUP($C$1,'Model Calculations_ALL'!$B$6:$E$10,3,FALSE)))+'Model Calculations_ALL'!F$26 ->  | G42: =((SV*(VLOOKUP('Model Calculations_ALL'!$C$1,'Model Calculations_ALL'!$B$14:$E$18,3,FALSE)/((VLOOKUP('Model Calculations_ALL'!$C$1,'Model Calculations_ALL'!$B$14:$E$18,2,FALSE)*td)-1+VLOOKUP('Model Calculations_ALL'!$C$1,'Model Calculations_ALL'!$B$14:$E$18,3,FALSE)))))*((G$25/VLOOKUP($C$1,'Model Calculations_ALL'!$B$6:$E$10,2,FALSE))+('Model Calculations_ALL'!G$26/1000))+(G$25*(1-VLOOKUP($C$1,'Model Calculations_ALL'!$B$6:$E$10,3,FALSE)))+'Model Calculations_ALL'!G$26 -> 
B43: N-fertilizer potential | C43: kg/d | D43: =(D$42-D$26-(D$25*VLOOKUP('Model Calculations_ALL'!$C$1,'Model Calculations_ALL'!$B$6:$E$10,4,FALSE)))*VLOOKUP($C$1,PROPERTIES_DATABASE!$B$11:$E$15,2,FALSE) ->  | E43: =(E$42-E$26-(E$25*VLOOKUP('Model Calculations_ALL'!$C$1,'Model Calculations_ALL'!$B$6:$E$10,4,FALSE)))*VLOOKUP($C$1,PROPERTIES_DATABASE!$B$11:$E$15,2,FALSE) ->  | F43: =(F$42-F$26-(F$25*VLOOKUP('Model Calculations_ALL'!$C$1,'Model Calculations_ALL'!$B$6:$E$10,4,FALSE)))*VLOOKUP($C$1,PROPERTIES_DATABASE!$B$11:$E$15,2,FALSE) ->  | G43: =(G$42-G$26-(G$25*VLOOKUP('Model Calculations_ALL'!$C$1,'Model Calculations_ALL'!$B$6:$E$10,4,FALSE)))*VLOOKUP($C$1,PROPERTIES_DATABASE!$B$11:$E$15,2,FALSE) -> 
B44: P-Fertilizer potential | C44: kg/d | D44: =(D$42-D$26-(D$25*VLOOKUP($C$1,'Model Calculations_ALL'!$B$6:$E$10,4,FALSE)))*VLOOKUP($C$1,PROPERTIES_DATABASE!$B$11:$E$15,3,FALSE) ->  | E44: =(E$42-E$26-(E$25*VLOOKUP($C$1,'Model Calculations_ALL'!$B$6:$E$10,4,FALSE)))*VLOOKUP($C$1,PROPERTIES_DATABASE!$B$11:$E$15,3,FALSE) ->  | F44: =(F$42-F$26-(F$25*VLOOKUP($C$1,'Model Calculations_ALL'!$B$6:$E$10,4,FALSE)))*VLOOKUP($C$1,PROPERTIES_DATABASE!$B$11:$E$15,3,FALSE) ->  | G44: =(G$42-G$26-(G$25*VLOOKUP($C$1,'Model Calculations_ALL'!$B$6:$E$10,4,FALSE)))*VLOOKUP($C$1,PROPERTIES_DATABASE!$B$11:$E$15,3,FALSE) -> 
B45: K-fertilizer potential | C45: kg/d | D45: =(D$42-D$26-(D$25*VLOOKUP($C$1,'Model Calculations_ALL'!$B$6:$E$10,4,FALSE)))*VLOOKUP($C$1,PROPERTIES_DATABASE!$B$11:$E$15,4,FALSE) ->  | E45: =(E$42-E$26-(E$25*VLOOKUP($C$1,'Model Calculations_ALL'!$B$6:$E$10,4,FALSE)))*VLOOKUP($C$1,PROPERTIES_DATABASE!$B$11:$E$15,4,FALSE) ->  | F45: =(F$42-F$26-(F$25*VLOOKUP($C$1,'Model Calculations_ALL'!$B$6:$E$10,4,FALSE)))*VLOOKUP($C$1,PROPERTIES_DATABASE!$B$11:$E$15,4,FALSE) ->  | G45: =(G$42-G$26-(G$25*VLOOKUP($C$1,'Model Calculations_ALL'!$B$6:$E$10,4,FALSE)))*VLOOKUP($C$1,PROPERTIES_DATABASE!$B$11:$E$15,4,FALSE) -> 

Sheet MATERIALS_ALL (hidden)
B2: Lifetime
D3: years
B4: Fixed-dome reactor | D4: 20 | M4: legend
B5: Floating-drum rector | D5: 20 | K5: Selection | L5: =+'Data entry needs'!$AB$103 -> 1 | M5: simple | N5: 1
B6: Tubular reactor | D6: 10 | M6: detailed | N6: 2
B8: Fixed-dome reactor - All materials | F8: =title5 -> Size 1 | G8: =title6 -> Size 2 | H8: =title7 -> Size 3 | I8: =title8 -> Size 4 | K8: =title124 -> Construction materials | L8: =title69 -> Unit | M8: =title110 -> Unit Price | O8: =title127 -> Other Materials
B9: Material | C9: Units | D9: a | E9: b | F9: =title130 -> Quantity | G9: =title130 -> Quantity | H9: =title130 -> Quantity | I9: =title130 -> Quantity | M9: ="("&title37&")" -> (USD/unit) | P9: =title239 -> Fixed-dome | Q9: =title60 -> Floating drum | R9: =title146 -> Tubular
B10: =title75 -> Bricks | C10: Pcs | D10: 106 | E10: 706.8 | F10: =($D10*'Model Calculations_ALL'!D$29)+$E10 -> 706.8 | G10: =($D10*'Model Calculations_ALL'!E$29)+$E10 -> 706.8 | H10: =($D10*'Model Calculations_ALL'!F$29)+$E10 -> 706.8 | I10: =($D10*'Model Calculations_ALL'!G$29)+$E10 -> 706.8 | K10: =title75 -> Bricks | L10: Pcs | M10: =+IF($L$5=1,'Data entry needs'!D47,'Data entry needs'!$D52) -> 0 | O10: =UPPER(title5) -> SIZE 1 | P10: 0.465718817 | Q10: 0.5402978483 | R10: 0.8817716448
B11: =title125 -> Cement 50 kg bag | C11: Bags | D11: 1.37 | E11: 7.224 | F11: =($D11*'Model Calculations_ALL'!D$29)+$E11 -> 7.224 | G11: =($D11*'Model Calculations_ALL'!E$29)+$E11 -> 7.224 | H11: =($D11*'Model Calculations_ALL'!F$29)+$E11 -> 7.224 | I11: =($D11*'Model Calculations_ALL'!G$29)+$E11 -> 7.224 | K11: =title125 -> Cement 50 kg bag | L11: Bags | M11: =+IF($L$5=1,'Data entry needs'!$D48,'Data entry needs'!$D53) -> 0 | O11: =UPPER(title6) -> SIZE 2 | P11: 0.4371026984 | Q11: 0.5218828999 | R11: 0.8776056576
B12: =title80 -> Sand | C12: m3 | D12: 0.074 | E12: 1.652 | F12: =($D12*'Model Calculations_ALL'!D$29)+$E12 -> 1.652 | G12: =($D12*'Model Calculations_ALL'!E$29)+$E12 -> 1.652 | H12: =($D12*'Model Calculations_ALL'!F$29)+$E12 -> 1.652 | I12: =($D12*'Model Calculations_ALL'!G$29)+$E12 -> 1.652 | K12: =title80 -> Sand | L12: m3 | M12: =+IF($L$5=1,'Data entry needs'!$G$47,'Data entry needs'!$D$54) -> 0 | O12: =UPPER(title7) -> SIZE 3 | P12: 0.414418186 | Q12: 0.5086428084 | R12: 0.8735706833
B13: =title81 -> Gravel | C13: m3 | D13: 0.07 | E13: 0.864 | F13: =($D13*'Model Calculations_ALL'!D$29)+$E13 -> 0.864 | G13: =($D13*'Model Calculations_ALL'!E$29)+$E13 -> 0.864 | H13: =($D13*'Model Calculations_ALL'!F$29)+$E13 -> 0.864 | I13: =($D13*'Model Calculations_ALL'!G$29)+$E13 -> 0.864 | K13: =title81 -> Gravel | L13: m3 | M13: =+IF($L$5=1,'Data entry needs'!$G$48,'Data entry needs'!$D$55) -> 0 | O13: =UPPER(title8) -> SIZE 4 | P13: 0.3959941994 | Q13: 0.4986649942 | R13: 0.8696606373
B14: Iron bar (ø 6 and 8) | C14: kg | D14: 0.06 | E14: 9.002 | F14: =($D14*'Model Calculations_ALL'!D$29)+$E14 -> 9.002 | G14: =($D14*'Model Calculations_ALL'!E$29)+$E14 -> 9.002 | H14: =($D14*'Model Calculations_ALL'!F$29)+$E14 -> 9.002 | I14: =($D14*'Model Calculations_ALL'!G$29)+$E14 -> 9.002 | K14: =title126 -> Tubular bag (0,2 mm thick) | L14: meter | M14: =+IF($L$5=1,'Data entry needs'!$D$49,'Data entry needs'!$D$59) -> 0
B15: Paint | C15: l | D15: 0.149 | E15: 0.351 | F15: =($D15*'Model Calculations_ALL'!D$29)+$E15 -> 0.351 | G15: =($D15*'Model Calculations_ALL'!E$29)+$E15 -> 0.351 | H15: =($D15*'Model Calculations_ALL'!F$29)+$E15 -> 0.351 | I15: =($D15*'Model Calculations_ALL'!G$29)+$E15 -> 0.351 | K15: Paint | L15: l | M15: =+IF($L$5=2,'Data entry needs'!$D$56,0) -> 0
B16: Inlet pipe | C16: m | D16: 0 | E16: 4 | F16: =($D16*'Model Calculations_ALL'!D$29)+$E16 -> 4 | G16: =($D16*'Model Calculations_ALL'!E$29)+$E16 -> 4 | H16: =($D16*'Model Calculations_ALL'!F$29)+$E16 -> 4 | I16: =($D16*'Model Calculations_ALL'!G$29)+$E16 -> 4 | K16: Net cyclone 4'' feet | L16: rolls | M16: =+IF($L$5=2,'Data entry needs'!D57,0) -> 0
B17: GI gas outlet pipe | C17: m | D17: 0 | E17: 0.6 | F17: =($D17*'Model Calculations_ALL'!D$29)+$E17 -> 0.6 | G17: =($D17*'Model Calculations_ALL'!E$29)+$E17 -> 0.6 | H17: =($D17*'Model Calculations_ALL'!F$29)+$E17 -> 0.6 | I17: =($D17*'Model Calculations_ALL'!G$29)+$E17 -> 0.6 | K17: Zinc sheets | L17: kg | M17: =+IF($L$5=2,'Data entry needs'!D58,0) -> 0
B18: GI socket 0,5" | C18: Pcs | D18: 0 | E18: 1 | F18: =($D18*'Model Calculations_ALL'!D$29)+$E18 -> 1 | G18: =($D18*'Model Calculations_ALL'!E$29)+$E18 -> 1 | H18: =($D18*'Model Calculations_ALL'!F$29)+$E18 -> 1 | I18: =($D18*'Model Calculations_ALL'!G$29)+$E18 -> 1 | K18: Plastic valve 1/2'' | L18: meter | M18: =+IF($L$5=2,'Data entry needs'!G52,0) -> 0
B19: Tee joint (GI, Al or PVC) | C19: Pcs | D19: 0 | E19: 1.6 | F19: =($D19*'Model Calculations_ALL'!D$29)+$E19 -> 1.6 | G19: =($D19*'Model Calculations_ALL'!E$29)+$E19 -> 1.6 | H19: =($D19*'Model Calculations_ALL'!F$29)+$E19 -> 1.6 | I19: =($D19*'Model Calculations_ALL'!G$29)+$E19 -> 1.6 | K19: Plastic hub 1/2'' | L19: meter | M19: =+IF($L$5=2,'Data entry needs'!G53,0) -> 0
B20: Elbow (GI or PVC) | C20: Pcs | D20: 0 | E20: 4 | F20: =($D20*'Model Calculations_ALL'!D$29)+$E20 -> 4 | G20: =($D20*'Model Calculations_ALL'!E$29)+$E20 -> 4 | H20: =($D20*'Model Calculations_ALL'!F$29)+$E20 -> 4 | I20: =($D20*'Model Calculations_ALL'!G$29)+$E20 -> 4 | K20: Pheumatic leange | L20: meter | M20: =+IF($L$5=2,'Data entry needs'!G54,0) -> 0
B21: G.I. 2" Nipple 1/2" | C21: Pcs | D21: 0.2 | E21: 2.1 | F21: =($D21*'Model Calculations_ALL'!D$29)+$E21 -> 2.1 | G21: =($D21*'Model Calculations_ALL'!E$29)+$E21 -> 2.1 | H21: =($D21*'Model Calculations_ALL'!F$29)+$E21 -> 2.1 | I21: =($D21*'Model Calculations_ALL'!G$29)+$E21 -> 2.1 | K21: Gas stove | L21: set | M21: =+IF($L$5=2,'Data entry needs'!G58,0) -> 0
B22: G.I. 6" Nipple 1/2" | C22: Pcs | D22: 0 | E22: 1 | F22: =($D22*'Model Calculations_ALL'!D$29)+$E22 -> 1 | G22: =($D22*'Model Calculations_ALL'!E$29)+$E22 -> 1 | H22: =($D22*'Model Calculations_ALL'!F$29)+$E22 -> 1 | I22: =($D22*'Model Calculations_ALL'!G$29)+$E22 -> 1 | K22: Gas light | L22: set | M22: =+IF($L$5=2,'Data entry needs'!G59,0) -> 0
B23: Gas pipe GI | C23: m | D23: 0 | E23: 12 | F23: =($D23*'Model Calculations_ALL'!D$29)+$E23 -> 12 | G23: =($D23*'Model Calculations_ALL'!E$29)+$E23 -> 12 | H23: =($D23*'Model Calculations_ALL'!F$29)+$E23 -> 12 | I23: =($D23*'Model Calculations_ALL'!G$29)+$E23 -> 12 | K23: Main valve | L23: Pcs | M23: =+IF($L$5=2,'Data entry needs'!G56,0) -> 0
B24: Water drain | C24: Pcs | D24: 0 | E24: 1 | F24: =($D24*'Model Calculations_ALL'!D$29)+$E24 -> 1 | G24: =($D24*'Model Calculations_ALL'!E$29)+$E24 -> 1 | H24: =($D24*'Model Calculations_ALL'!F$29)+$E24 -> 1 | I24: =($D24*'Model Calculations_ALL'!G$29)+$E24 -> 1 | K24: H2S filter | L24: Pcs | M24: =+IF($L$5=2,'Data entry needs'!G55,0) -> 0
B25: Gas tap | C25: Pcs | D25: 0.2 | E25: 0.1 | F25: =($D25*'Model Calculations_ALL'!D$29)+$E25 -> 0.1 | G25: =($D25*'Model Calculations_ALL'!E$29)+$E25 -> 0.1 | H25: =($D25*'Model Calculations_ALL'!F$29)+$E25 -> 0.1 | I25: =($D25*'Model Calculations_ALL'!G$29)+$E25 -> 0.1 | K25: Pressure manometer | L25: Pca | M25: =+IF($L$5=2,'Data entry needs'!D60,0) -> 0
B26: Teflon tape | C26: Rolls | D26: 2.5 | E26: 0.4 | F26: =($D26*'Model Calculations_ALL'!D$29)+$E26 -> 0.4 | G26: =($D26*'Model Calculations_ALL'!E$29)+$E26 -> 0.4 | H26: =($D26*'Model Calculations_ALL'!F$29)+$E26 -> 0.4 | I26: =($D26*'Model Calculations_ALL'!G$29)+$E26 -> 0.4 | K26: Mixing decive | L26: Pcs | M26: =+IF($L$5=2,'Data entry needs'!G57,0) -> 0
B27: Rubber hose pipe | C27: m | D27: 0.68 | E27: 0.182 | F27: =($D27*'Model Calculations_ALL'!D$29)+$E27 -> 0.182 | G27: =($D27*'Model Calculations_ALL'!E$29)+$E27 -> 0.182 | H27: =($D27*'Model Calculations_ALL'!F$29)+$E27 -> 0.182 | I27: =($D27*'Model Calculations_ALL'!G$29)+$E27 -> 0.182
B28: Unskilled labour | C28: Md | D28: 1.835 | E28: 9.48 | F28: =($D28*'Model Calculations_ALL'!D$29)+$E28 -> 9.48 | G28: =($D28*'Model Calculations_ALL'!E$29)+$E28 -> 9.48 | H28: =($D28*'Model Calculations_ALL'!F$29)+$E28 -> 9.48 | I28: =($D28*'Model Calculations_ALL'!G$29)+$E28 -> 9.48
B29: Skilled labour | C29: Md | D29: 0.748 | E29: 4.819 | F29: =($D29*'Model Calculations_ALL'!D$29)+$E29 -> 4.819 | G29: =($D29*'Model Calculations_ALL'!E$29)+$E29 -> 4.819 | H29: =($D29*'Model Calculations_ALL'!F$29)+$E29 -> 4.819 | I29: =($D29*'Model Calculations_ALL'!G$29)+$E29 -> 4.819
B30: Building | C30: Md | D30: 0.748 | E30: 4.819 | F30: =($D30*'Model Calculations_ALL'!D$29)+$E30 -> 4.819 | G30: =($D30*'Model Calculations_ALL'!E$29)+$E30 -> 4.819 | H30: =($D30*'Model Calculations_ALL'!F$29)+$E30 -> 4.819 | I30: =($D30*'Model Calculations_ALL'!G$29)+$E30 -> 4.819
B32: Fixed-dome reactor - Some materials
B33: Material | C33: Units | D33: a | E33: b | F33: =title130 -> Quantity | G33: =title130 -> Quantity | H33: =title130 -> Quantity | I33: =title130 -> Quantity
B34: =title75 -> Bricks | C34: Pcs | D34: 106 | E34: 706.8 | F34: =($D34*'Model Calculations_ALL'!D$29)+$E34 -> 706.8 | G34: =($D34*'Model Calculations_ALL'!E$29)+$E34 -> 706.8 | H34: =($D34*'Model Calculations_ALL'!F$29)+$E34 -> 706.8 | I34: =($D34*'Model Calculations_ALL'!G$29)+$E34 -> 706.8
B35: =title125 -> Cement 50 kg bag | C35: Bags | D35: 1.37 | E35: 7.224 | F35: =($D35*'Model Calculations_ALL'!D$29)+$E35 -> 7.224 | G35: =($D35*'Model Calculations_ALL'!E$29)+$E35 -> 7.224 | H35: =($D35*'Model Calculations_ALL'!F$29)+$E35 -> 7.224 | I35: =($D35*'Model Calculations_ALL'!G$29)+$E35 -> 7.224
B36: =title80 -> Sand | C36: m3 | D36: 0.074 | E36: 1.652 | F36: =($D36*'Model Calculations_ALL'!D$29)+$E36 -> 1.652 | G36: =($D36*'Model Calculations_ALL'!E$29)+$E36 -> 1.652 | H36: =($D36*'Model Calculations_ALL'!F$29)+$E36 -> 1.652 | I36: =($D36*'Model Calculations_ALL'!G$29)+$E36 -> 1.652
B37: =title81 -> Gravel | C37: m3 | D37: 0.07 | E37: 0.864 | F37: =($D37*'Model Calculations_ALL'!D$29)+$E37 -> 0.864 | G37: =($D37*'Model Calculations_ALL'!E$29)+$E37 -> 0.864 | H37: =($D37*'Model Calculations_ALL'!F$29)+$E37 -> 0.864 | I37: =($D37*'Model Calculations_ALL'!G$29)+$E37 -> 0.864
B38: Paint | C38: l | D38: 0.149 | E38: 0.351 | F38: =($D38*'Model Calculations_ALL'!D$29)+$E38 -> 0.351 | G38: =($D38*'Model Calculations_ALL'!E$29)+$E38 -> 0.351 | H38: =($D38*'Model Calculations_ALL'!F$29)+$E38 -> 0.351 | I38: =($D38*'Model Calculations_ALL'!G$29)+$E38 -> 0.351
B39: Piping | C39: % | D39: 0 | E39: 0.15 | F39: =($D39*'Model Calculations_ALL'!D$29)+$E39 -> 0.15 | G39: =($D39*'Model Calculations_ALL'!E$29)+$E39 -> 0.15 | H39: =($D39*'Model Calculations_ALL'!F$29)+$E39 -> 0.15 | I39: =($D39*'Model Calculations_ALL'!G$29)+$E39 -> 0.15
B40: Tools | C40: % | D40: 0.111 | E40: 1.865 | F40: =(($D40*'Model Calculations_ALL'!D$29)+$E40)/100 -> 0.01865 | G40: =(($D40*'Model Calculations_ALL'!E$29)+$E40)/100 -> 0.01865 | H40: =(($D40*'Model Calculations_ALL'!F$29)+$E40)/100 -> 0.01865 | I40: =(($D40*'Model Calculations_ALL'!G$29)+$E40)/100 -> 0.01865
B41: Floating drum-reactor - All materials
B42: Material | C42: Units | D42: a | E42: b | F42: =title130 -> Quantity | G42: =title130 -> Quantity | H42: =title130 -> Quantity | I42: =title130 -> Quantity
B43: =title75 -> Bricks | C43: Pcs | D43: 212 | E43: 1413.6 | F43: =($D43*'Model Calculations_ALL'!D$29)+$E43 -> 1413.6 | G43: =($D43*'Model Calculations_ALL'!E$29)+$E43 -> 1413.6 | H43: =($D43*'Model Calculations_ALL'!F$29)+$E43 -> 1413.6 | I43: =($D43*'Model Calculations_ALL'!G$29)+$E43 -> 1413.6
B44: =title125 -> Cement 50 kg bag | C44: Bags | D44: 1.233 | E44: 6.5016 | F44: =($D44*'Model Calculations_ALL'!D$29)+$E44 -> 6.5016 | G44: =($D44*'Model Calculations_ALL'!E$29)+$E44 -> 6.5016 | H44: =($D44*'Model Calculations_ALL'!F$29)+$E44 -> 6.5016 | I44: =($D44*'Model Calculations_ALL'!G$29)+$E44 -> 6.5016
B45: =title80 -> Sand | C45: m3 | D45: 0.316 | E45: 0.608 | F45: =($D45*'Model Calculations_ALL'!D$29)+$E45 -> 0.608 | G45: =($D45*'Model Calculations_ALL'!E$29)+$E45 -> 0.608 | H45: =($D45*'Model Calculations_ALL'!F$29)+$E45 -> 0.608 | I45: =($D45*'Model Calculations_ALL'!G$29)+$E45 -> 0.608
B46: =title81 -> Gravel | C46: m3 | D46: 0.15 | E46: 0.35 | F46: =($D46*'Model Calculations_ALL'!D$29)+$E46 -> 0.35 | G46: =($D46*'Model Calculations_ALL'!E$29)+$E46 -> 0.35 | H46: =($D46*'Model Calculations_ALL'!F$29)+$E46 -> 0.35 | I46: =($D46*'Model Calculations_ALL'!G$29)+$E46 -> 0.35
B47: Paint | C47: l | D47: 0.576 | E47: 1.145 | F47: =($D47*'Model Calculations_ALL'!D$29)+$E47 -> 1.145 | G47: =($D47*'Model Calculations_ALL'!E$29)+$E47 -> 1.145 | H47: =($D47*'Model Calculations_ALL'!F$29)+$E47 -> 1.145 | I47: =($D47*'Model Calculations_ALL'!G$29)+$E47 -> 1.145
B48: Inlet pipe | C48: m | D48: 1.313 | E48: 2.918 | F48: =($D48*'Model Calculations_ALL'!D$29)+$E48 -> 2.918 | G48: =($D48*'Model Calculations_ALL'!E$29)+$E48 -> 2.918 | H48: =($D48*'Model Calculations_ALL'!F$29)+$E48 -> 2.918 | I48: =($D48*'Model Calculations_ALL'!G$29)+$E48 -> 2.918
B49: Iron Angle (5mm) | C49: m | D49: 4.234 | E49: 18.38 | F49: =($D49*'Model Calculations_ALL'!D$29)+$E49 -> 18.38 | G49: =($D49*'Model Calculations_ALL'!E$29)+$E49 -> 18.38 | H49: =($D49*'Model Calculations_ALL'!F$29)+$E49 -> 18.38 | I49: =($D49*'Model Calculations_ALL'!G$29)+$E49 -> 18.38
B50: Square plate | C50: Pcs | D50: 0 | E50: 2 | F50: =($D50*'Model Calculations_ALL'!D$29)+$E50 -> 2 | G50: =($D50*'Model Calculations_ALL'!E$29)+$E50 -> 2 | H50: =($D50*'Model Calculations_ALL'!F$29)+$E50 -> 2 | I50: =($D50*'Model Calculations_ALL'!G$29)+$E50 -> 2
B51: Bolts and nuts | C51: Pcs | D51: 0 | E51: 16 | F51: =($D51*'Model Calculations_ALL'!D$29)+$E51 -> 16 | G51: =($D51*'Model Calculations_ALL'!E$29)+$E51 -> 16 | H51: =($D51*'Model Calculations_ALL'!F$29)+$E51 -> 16 | I51: =($D51*'Model Calculations_ALL'!G$29)+$E51 -> 16
B52: MS pipe | C52: m | D52: 0.135 | E52: 2.578 | F52: =($D52*'Model Calculations_ALL'!D$29)+$E52 -> 2.578 | G52: =($D52*'Model Calculations_ALL'!E$29)+$E52 -> 2.578 | H52: =($D52*'Model Calculations_ALL'!F$29)+$E52 -> 2.578 | I52: =($D52*'Model Calculations_ALL'!G$29)+$E52 -> 2.578
B53: Flange Plat | C53: Pcs | D53: 0 | E53: 2 | F53: =($D53*'Model Calculations_ALL'!D$29)+$E53 -> 2 | G53: =($D53*'Model Calculations_ALL'!E$29)+$E53 -> 2 | H53: =($D53*'Model Calculations_ALL'!F$29)+$E53 -> 2 | I53: =($D53*'Model Calculations_ALL'!G$29)+$E53 -> 2
B54: Flats | C54: m | D54: 0 | E54: 4.2 | F54: =($D54*'Model Calculations_ALL'!D$29)+$E54 -> 4.2 | G54: =($D54*'Model Calculations_ALL'!E$29)+$E54 -> 4.2 | H54: =($D54*'Model Calculations_ALL'!F$29)+$E54 -> 4.2 | I54: =($D54*'Model Calculations_ALL'!G$29)+$E54 -> 4.2
B55: Gas pipe GI | C55: m | D55: 0 | E55: 12 | F55: =($D55*'Model Calculations_ALL'!D$29)+$E55 -> 12 | G55: =($D55*'Model Calculations_ALL'!E$29)+$E55 -> 12 | H55: =($D55*'Model Calculations_ALL'!F$29)+$E55 -> 12 | I55: =($D55*'Model Calculations_ALL'!G$29)+$E55 -> 12
B56: Unskilled Labor | C56: Md | D56: 4 | E56: 8 | F56: =($D56*'Model Calculations_ALL'!D$29)+$E56 -> 8 | G56: =($D56*'Model Calculations_ALL'!E$29)+$E56 -> 8 | H56: =($D56*'Model Calculations_ALL'!F$29)+$E56 -> 8 | I56: =($D56*'Model Calculations_ALL'!G$29)+$E56 -> 8
B57: Skilled labour | C57: Md | D57: 1.621 | E57: 4.81 | F57: =($D57*'Model Calculations_ALL'!D$29)+$E57 -> 4.81 | G57: =($D57*'Model Calculations_ALL'!E$29)+$E57 -> 4.81 | H57: =($D57*'Model Calculations_ALL'!F$29)+$E57 -> 4.81 | I57: =($D57*'Model Calculations_ALL'!G$29)+$E57 -> 4.81
B58: Building | C58: Md | D58: 1.621 | E58: 4.81 | F58: =($D58*'Model Calculations_ALL'!D$29)+$E58 -> 4.81 | G58: =($D58*'Model Calculations_ALL'!E$29)+$E58 -> 4.81 | H58: =($D58*'Model Calculations_ALL'!F$29)+$E58 -> 4.81 | I58: =($D58*'Model Calculations_ALL'!G$29)+$E58 -> 4.81
B59: Floating drum-reactor -Some materials
B60: Material | C60: Units | D60: a | E60: b | F60: =title130 -> Quantity | G60: =title130 -> Quantity | H60: =title130 -> Quantity | I60: =title130 -> Quantity
B61: =title75 -> Bricks | C61: Pcs | D61: 212 | E61: 1413.6 | F61: =($D61*'Model Calculations_ALL'!D$29)+$E61 -> 1413.6 | G61: =($D61*'Model Calculations_ALL'!E$29)+$E61 -> 1413.6 | H61: =($D61*'Model Calculations_ALL'!F$29)+$E61 -> 1413.6 | I61: =($D61*'Model Calculations_ALL'!G$29)+$E61 -> 1413.6
B62: =title125 -> Cement 50 kg bag | C62: Bags | D62: 1.233 | E62: 6.5016 | F62: =($D62*'Model Calculations_ALL'!D$29)+$E62 -> 6.5016 | G62: =($D62*'Model Calculations_ALL'!E$29)+$E62 -> 6.5016 | H62: =($D62*'Model Calculations_ALL'!F$29)+$E62 -> 6.5016 | I62: =($D62*'Model Calculations_ALL'!G$29)+$E62 -> 6.5016
B63: =title80 -> Sand | C63: m3 | D63: 0.316 | E63: 0.608 | F63: =($D63*'Model Calculations_ALL'!D$29)+$E63 -> 0.608 | G63: =($D63*'Model Calculations_ALL'!E$29)+$E63 -> 0.608 | H63: =($D63*'Model Calculations_ALL'!F$29)+$E63 -> 0.608 | I63: =($D63*'Model Calculations_ALL'!G$29)+$E63 -> 0.608
B64: =title81 -> Gravel | C64: m3 | D64: 0.15 | E64: 0.35 | F64: =($D64*'Model Calculations_ALL'!D$29)+$E64 -> 0.35 | G64: =($D64*'Model Calculations_ALL'!E$29)+$E64 -> 0.35 | H64: =($D64*'Model Calculations_ALL'!F$29)+$E64 -> 0.35 | I64: =($D64*'Model Calculations_ALL'!G$29)+$E64 -> 0.35
B65: Paint | C65: l | D65: 0.576 | E65: 1.145 | F65: =($D65*'Model Calculations_ALL'!D$29)+$E65 -> 1.145 | G65: =($D65*'Model Calculations_ALL'!E$29)+$E65 -> 1.145 | H65: =($D65*'Model Calculations_ALL'!F$29)+$E65 -> 1.145 | I65: =($D65*'Model Calculations_ALL'!G$29)+$E65 -> 1.145
B66: Piping | C66: % | D66: 0 | E66: 0.15 | F66: =($D66*'Model Calculations_ALL'!D$29)+$E66 -> 0.15 | G66: =($D66*'Model Calculations_ALL'!E$29)+$E66 -> 0.15 | H66: =($D66*'Model Calculations_ALL'!F$29)+$E66 -> 0.15 | I66: =($D66*'Model Calculations_ALL'!G$29)+$E66 -> 0.15
B67: Tools | C67: % | D67: 0 | E67: 0.04 | F67: =($D67*'Model Calculations_ALL'!D$29)+$E67 -> 0.04 | G67: =($D67*'Model Calculations_ALL'!E$29)+$E67 -> 0.04 | H67: =($D67*'Model Calculations_ALL'!F$29)+$E67 -> 0.04 | I67: =($D67*'Model Calculations_ALL'!G$29)+$E67 -> 0.04
B68: Tubular reactor- All materials
B69: Material | C69: Units | D69: a | E69: b | F69: =title130 -> Quantity | G69: =title130 -> Quantity | H69: =title130 -> Quantity | I69: =title130 -> Quantity
B70: Polyethelene sheet (0,2 mm thick) | C70: m | D70: 2.8 | E70: 12.06 | F70: =($D70*'Model Calculations_ALL'!D$29)+$E70 -> 12.06 | G70: =($D70*'Model Calculations_ALL'!E$29)+$E70 -> 12.06 | H70: =($D70*'Model Calculations_ALL'!F$29)+$E70 -> 12.06 | I70: =($D70*'Model Calculations_ALL'!G$29)+$E70 -> 12.06
B71: PVC tube 1/2'' | C71: m | D71: 0 | E71: 25 | F71: =($D71*'Model Calculations_ALL'!D$29)+$E71 -> 25 | G71: =($D71*'Model Calculations_ALL'!E$29)+$E71 -> 25 | H71: =($D71*'Model Calculations_ALL'!F$29)+$E71 -> 25 | I71: =($D71*'Model Calculations_ALL'!G$29)+$E71 -> 25
B72: Plastic valve 1/2'' | C72: m | D72: 0 | E72: 4 | F72: =($D72*'Model Calculations_ALL'!D$29)+$E72 -> 4 | G72: =($D72*'Model Calculations_ALL'!E$29)+$E72 -> 4 | H72: =($D72*'Model Calculations_ALL'!F$29)+$E72 -> 4 | I72: =($D72*'Model Calculations_ALL'!G$29)+$E72 -> 4
B73: Plastic hub 1/2'' | C73: Pcs | D73: 0 | E73: 2 | F73: =($D73*'Model Calculations_ALL'!D$29)+$E73 -> 2 | G73: =($D73*'Model Calculations_ALL'!E$29)+$E73 -> 2 | H73: =($D73*'Model Calculations_ALL'!F$29)+$E73 -> 2 | I73: =($D73*'Model Calculations_ALL'!G$29)+$E73 -> 2
B74: PVC elbow 1/2'' | C74: Pcs | D74: 0 | E74: 4 | F74: =($D74*'Model Calculations_ALL'!D$29)+$E74 -> 4 | G74: =($D74*'Model Calculations_ALL'!E$29)+$E74 -> 4 | H74: =($D74*'Model Calculations_ALL'!F$29)+$E74 -> 4 | I74: =($D74*'Model Calculations_ALL'!G$29)+$E74 -> 4
B75: PVC nipple 1/2'' | C75: Pcs | D75: 0 | E75: 2 | F75: =($D75*'Model Calculations_ALL'!D$29)+$E75 -> 2 | G75: =($D75*'Model Calculations_ALL'!E$29)+$E75 -> 2 | H75: =($D75*'Model Calculations_ALL'!F$29)+$E75 -> 2 | I75: =($D75*'Model Calculations_ALL'!G$29)+$E75 -> 2
B76: PVC T 1/2'' | C76: Pcs | D76: 0 | E76: 4 | F76: =($D76*'Model Calculations_ALL'!D$29)+$E76 -> 4 | G76: =($D76*'Model Calculations_ALL'!E$29)+$E76 -> 4 | H76: =($D76*'Model Calculations_ALL'!F$29)+$E76 -> 4 | I76: =($D76*'Model Calculations_ALL'!G$29)+$E76 -> 4
B77: Teflon | C77: Pcs | D77: 0 | E77: 2 | F77: =($D77*'Model Calculations_ALL'!D$29)+$E77 -> 2 | G77: =($D77*'Model Calculations_ALL'!E$29)+$E77 -> 2 | H77: =($D77*'Model Calculations_ALL'!F$29)+$E77 -> 2 | I77: =($D77*'Model Calculations_ALL'!G$29)+$E77 -> 2
B78: Metal elbow 1/2'' | C78: Pcs | D78: 0 | E78: 2 | F78: =($D78*'Model Calculations_ALL'!D$29)+$E78 -> 2 | G78: =($D78*'Model Calculations_ALL'!E$29)+$E78 -> 2 | H78: =($D78*'Model Calculations_ALL'!F$29)+$E78 -> 2 | I78: =($D78*'Model Calculations_ALL'!G$29)+$E78 -> 2
B79: Metal tube 1/2'' | C79: cm | D79: 0 | E79: 38 | F79: =($D79*'Model Calculations_ALL'!D$29)+$E79 -> 38 | G79: =($D79*'Model Calculations_ALL'!E$29)+$E79 -> 38 | H79: =($D79*'Model Calculations_ALL'!F$29)+$E79 -> 38 | I79: =($D79*'Model Calculations_ALL'!G$29)+$E79 -> 38
B80: PVC tube 6'' | C80: m | D80: 0 | E80: 2 | F80: =($D80*'Model Calculations_ALL'!D$29)+$E80 -> 2 | G80: =($D80*'Model Calculations_ALL'!E$29)+$E80 -> 2 | H80: =($D80*'Model Calculations_ALL'!F$29)+$E80 -> 2 | I80: =($D80*'Model Calculations_ALL'!G$29)+$E80 -> 2
B81: Pneumatic league | C81: m | D81: 0 | E81: 60 | F81: =($D81*'Model Calculations_ALL'!D$29)+$E81 -> 60 | G81: =($D81*'Model Calculations_ALL'!E$29)+$E81 -> 60 | H81: =($D81*'Model Calculations_ALL'!F$29)+$E81 -> 60 | I81: =($D81*'Model Calculations_ALL'!G$29)+$E81 -> 60
B82: Cloves | C82: kg | D82: 0.339 | E82: 0 | F82: =($D82*'Model Calculations_ALL'!D$29)+$E82 -> 0 | G82: =($D82*'Model Calculations_ALL'!E$29)+$E82 -> 0 | H82: =($D82*'Model Calculations_ALL'!F$29)+$E82 -> 0 | I82: =($D82*'Model Calculations_ALL'!G$29)+$E82 -> 0
B83: Net cyclone 4'' feet | C83: roll | D83: 0.125 | E83: 0 | F83: =($D83*'Model Calculations_ALL'!D$29)+$E83 -> 0 | G83: =($D83*'Model Calculations_ALL'!E$29)+$E83 -> 0 | H83: =($D83*'Model Calculations_ALL'!F$29)+$E83 -> 0 | I83: =($D83*'Model Calculations_ALL'!G$29)+$E83 -> 0
B84: Zinc sheets | C84: kg | D84: 1.5 | E84: 0 | F84: =($D84*'Model Calculations_ALL'!D$29)+$E84 -> 0 | G84: =($D84*'Model Calculations_ALL'!E$29)+$E84 -> 0 | H84: =($D84*'Model Calculations_ALL'!F$29)+$E84 -> 0 | I84: =($D84*'Model Calculations_ALL'!G$29)+$E84 -> 0
B85: Unskilled labour | C85: Md | D85: 0.75 | E85: 2 | F85: =($D85*'Model Calculations_ALL'!D$29)+$E85 -> 2 | G85: =($D85*'Model Calculations_ALL'!E$29)+$E85 -> 2 | H85: =($D85*'Model Calculations_ALL'!F$29)+$E85 -> 2 | I85: =($D85*'Model Calculations_ALL'!G$29)+$E85 -> 2
B86: Skilled labour | C86: Md | D86: 0.75 | E86: 2 | F86: =($D86*'Model Calculations_ALL'!D$29)+$E86 -> 2 | G86: =($D86*'Model Calculations_ALL'!E$29)+$E86 -> 2 | H86: =($D86*'Model Calculations_ALL'!F$29)+$E86 -> 2 | I86: =($D86*'Model Calculations_ALL'!G$29)+$E86 -> 2
B87: Building | C87: Md | D87: 0.75 | E87: 1 | F87: =($D87*'Model Calculations_ALL'!D$29)+$E87 -> 1 | G87: =($D87*'Model Calculations_ALL'!E$29)+$E87 -> 1 | H87: =($D87*'Model Calculations_ALL'!F$29)+$E87 -> 1 | I87: =($D87*'Model Calculations_ALL'!G$29)+$E87 -> 1
B88: Tubular reactor - Some materials
B89: Material | C89: Units | D89: a | E89: b | F89: =title130 -> Quantity | G89: =title130 -> Quantity | H89: =title130 -> Quantity | I89: =title130 -> Quantity
B90: Polyethelene sheet (0,2 mm thick) | C90: m | D90: 2.8 | E90: 12.06 | F90: =($D90*'Model Calculations_ALL'!D$29)+$E90 -> 12.06 | G90: =($D90*'Model Calculations_ALL'!E$29)+$E90 -> 12.06 | H90: =($D90*'Model Calculations_ALL'!F$29)+$E90 -> 12.06 | I90: =($D90*'Model Calculations_ALL'!G$29)+$E90 -> 12.06
B91: Plastic valve 1/2'' | C91: m | D91: 0 | E91: 4 | F91: =($D91*'Model Calculations_ALL'!D$29)+$E91 -> 4 | G91: =($D91*'Model Calculations_ALL'!E$29)+$E91 -> 4 | H91: =($D91*'Model Calculations_ALL'!F$29)+$E91 -> 4 | I91: =($D91*'Model Calculations_ALL'!G$29)+$E91 -> 4
B92: Plastic hub 1/2'' | C92: Pcs | D92: 0 | E92: 2 | F92: =($D92*'Model Calculations_ALL'!D$29)+$E92 -> 2 | G92: =($D92*'Model Calculations_ALL'!E$29)+$E92 -> 2 | H92: =($D92*'Model Calculations_ALL'!F$29)+$E92 -> 2 | I92: =($D92*'Model Calculations_ALL'!G$29)+$E92 -> 2
B93: Pneumatic league | C93: m | D93: 0 | E93: 60 | F93: =($D93*'Model Calculations_ALL'!D$29)+$E93 -> 60 | G93: =($D93*'Model Calculations_ALL'!E$29)+$E93 -> 60 | H93: =($D93*'Model Calculations_ALL'!F$29)+$E93 -> 60 | I93: =($D93*'Model Calculations_ALL'!G$29)+$E93 -> 60
B94: Net cyclone 4'' feet | C94: roll | D94: 0.125 | E94: 0 | F94: =($D94*'Model Calculations_ALL'!D$29)+$E94 -> 0 | G94: =($D94*'Model Calculations_ALL'!E$29)+$E94 -> 0 | H94: =($D94*'Model Calculations_ALL'!F$29)+$E94 -> 0 | I94: =($D94*'Model Calculations_ALL'!G$29)+$E94 -> 0
B95: Zinc sheets | C95: kg | D95: 1.5 | E95: 0 | F95: =($D95*'Model Calculations_ALL'!D$29)+$E95 -> 0 | G95: =($D95*'Model Calculations_ALL'!E$29)+$E95 -> 0 | H95: =($D95*'Model Calculations_ALL'!F$29)+$E95 -> 0 | I95: =($D95*'Model Calculations_ALL'!G$29)+$E95 -> 0
B96: Piping | C96: % | D96: 0 | E96: 0.03 | F96: =($D96*'Model Calculations_ALL'!D$29)+$E96 -> 0.03 | G96: =($D96*'Model Calculations_ALL'!E$29)+$E96 -> 0.03 | H96: =($D96*'Model Calculations_ALL'!F$29)+$E96 -> 0.03 | I96: =($D96*'Model Calculations_ALL'!G$29)+$E96 -> 0.03
B97: Tools | C97: % | D97: 0.348 | E97: 2.213 | F97: =(($D97*'Model Calculations_ALL'!D$29)+$E97)/100 -> 0.02213 | G97: =(($D97*'Model Calculations_ALL'!E$29)+$E97)/100 -> 0.02213 | H97: =(($D97*'Model Calculations_ALL'!F$29)+$E97)/100 -> 0.02213 | I97: =(($D97*'Model Calculations_ALL'!G$29)+$E97)/100 -> 0.02213
B98: Unskilled labour | C98: Md | D98: 0.75 | E98: 2 | F98: =($D98*'Model Calculations_ALL'!D$29)+$E98 -> 2 | G98: =($D98*'Model Calculations_ALL'!E$29)+$E98 -> 2 | H98: =($D98*'Model Calculations_ALL'!F$29)+$E98 -> 2 | I98: =($D98*'Model Calculations_ALL'!G$29)+$E98 -> 2
B99: Skilled labour | C99: Md | D99: 0.75 | E99: 2 | F99: =($D99*'Model Calculations_ALL'!D$29)+$E99 -> 2 | G99: =($D99*'Model Calculations_ALL'!E$29)+$E99 -> 2 | H99: =($D99*'Model Calculations_ALL'!F$29)+$E99 -> 2 | I99: =($D99*'Model Calculations_ALL'!G$29)+$E99 -> 2
B100: Building | C100: Md | D100: 0.75 | E100: 1 | F100: =($D100*'Model Calculations_ALL'!D$29)+$E100 -> 1 | G100: =($D100*'Model Calculations_ALL'!E$29)+$E100 -> 1 | H100: =($D100*'Model Calculations_ALL'!F$29)+$E100 -> 1 | I100: =($D100*'Model Calculations_ALL'!G$29)+$E100 -> 1

Sheet Label (hidden)
B2: Selection | C2: =VLOOKUP(Start!B2,$A$3:$C$5,3,FALSE) -> 1
A3: EN | B3: English | C3: 1
A4: FR | B4: French | C4: 2
A5: ES | B5: Spanish | C5: 3
A7: ID | B7: English | C7: French | D7: Spanish | E7: Typeof | F7: Ref | G7: Name
A8: 1 | B8: 1 | C8: 2 | D8: 3
A9: 2 | B9: Biogas Process Description | C9: Description du Processus de Biogaz | D9: Descripción del Proceso de Obtención de Biogás | E9: label | F9: =HLOOKUP($C$2,$B$8:$D9,$A9,FALSE) -> Biogas Process Description | G9: =$E9&$A9 -> label2
A10: 3 | B10: Data Entry | C10: Saisie de Données | D10: Datos de Entrada | E10: label | F10: =HLOOKUP($C$2,$B$8:$D10,$A10,FALSE) -> Data Entry | G10: label3
A11: 4 | B11: NEXT >> Energy Demand | C11: SUIVANT >> Demande d'Énergie | D11: SIGUIENTE >> Demanda de Energía | E11: label | F11: =HLOOKUP($C$2,$B$8:$D11,$A11,FALSE) -> NEXT >> Energy Demand | G11: label4
A12: 5 | B12: << BACK Start | C12: << RETOUR Début | D12: << VOLVER Inicio | E12: label | F12: =HLOOKUP($C$2,$B$8:$D12,$A12,FALSE) -> << BACK Start | G12: label5
A13: 6 | B13: Energy Demand | C13: Demande d'Énergie | D13: Demanda de Energía | E13: label | F13: =HLOOKUP($C$2,$B$8:$D13,$A13,FALSE) -> Energy Demand | G13: label6
A14: 7 | B14: NEXT >> Data Entry | C14: SUIVANT >> Saisie de Données | D14: SIGUIENTE >> Datos de Entrada | E14: label | F14: =HLOOKUP($C$2,$B$8:$D14,$A14,FALSE) -> NEXT >> Data Entry | G14: label7
A15: 8 | B15: Clear data | C15: Effacer les données | D15: Borrar datos | E15: label | F15: =HLOOKUP($C$2,$B$8:$D15,$A15,FALSE) -> Clear data | G15: label8
A16: 9 | B16: Load Default Values | C16: Charger les Valeurs par Défaut | D16: Cargar Valores por Defecto | E16: label | F16: =HLOOKUP($C$2,$B$8:$D16,$A16,FALSE) -> Load Default Values | G16: label9
A17: 10 | B17: Production Cost 1 | C17: Coût de Production 1 | D17: Costo de Producción 1 | E17: label | F17: =HLOOKUP($C$2,$B$8:$D17,$A17,FALSE) -> Production Cost 1 | G17: label10
A18: 11 | B18: Production Cost 2 | C18: Coût de Production 2 | D18: Costo de Producción 2 | E18: label | F18: =HLOOKUP($C$2,$B$8:$D18,$A18,FALSE) -> Production Cost 2 | G18: label11
A19: 12 | B19: Production Cost 3 | C19: Coût de Production 3 | D19: Costo de Producción 3 | E19: label | F19: =HLOOKUP($C$2,$B$8:$D19,$A19,FALSE) -> Production Cost 3 | G19: label12
A20: 13 | B20: Production Cost 4 | C20: Coût de Production 4 | D20: Costo de Producción 4 | E20: label | F20: =HLOOKUP($C$2,$B$8:$D20,$A20,FALSE) -> Production Cost 4 | G20: label13
A21: 14 | B21: NEXT >> Summary of Results Comparative | C21: SUIVANT >> Résumé des Résultats Comparatifs | D21: SIGUIENTE >> Resumen de Resultados Comparativos | E21: label | F21: =HLOOKUP($C$2,$B$8:$D21,$A21,FALSE) -> NEXT >> Summary of Results Comparative | G21: label14
A22: 15 | B22: NEXT >> Summary of Results by Size | C22: SUIVANT >> Résumé des Résultats Selon la Taille | D22: SIGUIENTE >> Resumen de los Resultados por Tamaño | E22: label | F22: =HLOOKUP($C$2,$B$8:$D22,$A22,FALSE) -> NEXT >> Summary of Results by Size | G22: label15
A23: 16 | B23: << BACK Data Entry | C23: << RETOUR Saisie de Données | D23: << VOLVER Datos de Entrada | E23: label | F23: =HLOOKUP($C$2,$B$8:$D23,$A23,FALSE) -> << BACK Data Entry | G23: label16
A24: 17 | B24: << BACK Production Cost 1 | C24: << RETOUR Coût de Production 1 | D24: << VOLVER Costo de Producción 1 | E24: label | F24: =HLOOKUP($C$2,$B$8:$D24,$A24,FALSE) -> << BACK Production Cost 1 | G24: label17
A25: 18 | B25: Hide this sheet | C25: Cachez cette feuille | D25: Ocultar esta Hoja | E25: label | F25: =HLOOKUP($C$2,$B$8:$D25,$A25,FALSE) -> Hide this sheet | G25: label18
A26: 19 | B26: << BACK Production Cost 2 | C26: << RETOUR Coût de Production 2 | D26: << VOLVER Costo de Producción 2 | E26: label | F26: =HLOOKUP($C$2,$B$8:$D26,$A26,FALSE) -> << BACK Production Cost 2 | G26: label19
A27: 20 | B27: << BACK Production Cost 3 | C27: << RETOUR Coût de Production 3 | D27: << VOLVER Costo de Producción 3 | E27: label | F27: =HLOOKUP($C$2,$B$8:$D27,$A27,FALSE) -> << BACK Production Cost 3 | G27: label20
A28: 21 | B28: << BACK Production Cost 4 | C28: << RETOUR Coût de Production 4 | D28: << VOLVER Costo de Producción 4 | E28: label | F28: =HLOOKUP($C$2,$B$8:$D28,$A28,FALSE) -> << BACK Production Cost 4 | G28: label21
A29: 22 | B29: Create a PDF report | C29: Créer un rapport PDF | D29: Crear un Reporte en PDF | E29: label | F29: =HLOOKUP($C$2,$B$8:$D29,$A29,FALSE) -> Create a PDF report | G29: label22

Sheet Title (hidden)
B2: Selection | C2: =VLOOKUP(Start!B2,$A$3:$C$5,3,FALSE) -> 1
A3: EN | B3: English | C3: 1
A4: FR | B4: French | C4: 2
A5: ES | B5: Spanish | C5: 3
A7: ID | B7: English | C7: French | D7: Spanish | E7: Typeof | F7: Ref | G7: Name
A8: 1 | B8: 1 | C8: 2 | D8: 3
A9: 2 | B9: Disclaimer | C9: Déni de responsabilité | D9: Descargo de Responsabilidad | E9: title | F9: =HLOOKUP($C$2,$B$8:$D9,$A9,FALSE) -> Disclaimer | G9: =$E9&$A9 -> title2
A10: 3 | B10: FAO declines all responsibility for errors or deficiencies in the database or software or in the documentation accompanying it, for program maintenance and upgrading as well as for any damage that may arise from them. FAO also declines any responsibility for updating the data and assumes no responsibility for errors and omissions in the data provided. Users are, however, kindly asked to report any errors or deficiencies in this product to FAO. The choices of calculation made in this tool are those of the author(s) and do not necessarily reflect the views and choices of the Food and Agriculture Organization of the United Nations. © FAO, 2014. | C10: La FAO décline toute responsabilité quant aux erreurs ou défauts des textes du présent site et des bases de données y afférentes, ainsi que pour les dommages pouvant en résulter. La FAO décline également toute responsabilité quant à la mise à jour des données et se dégage de toute responsabilité quant aux erreurs ou omissions concernant les données fournies. Les utilisateurs sont toutefois invités à signaler toute erreur ou lacune de ce produit à la FAO. Les choix des calculs faits dans le présent outil sont celles du/des auteur(s) et ne reflètent pas nécessairement les choix et opinions de l’Organisation des Nations Unies pour l’alimentation et l’agriculture (FAO). © FAO, 2014. | D10: La FAO declina cualquier responsabilidad por errores u otros defectos del banco de datos, programa o de la documentación que los acompaña, o por cualquier daño derivado de ellos, así como por el mantenimiento y el mejoramiento de los programas. La FAO declina asimismo cualquier responsabilidad por la actualización de los datos, o por errores u omisiones en los datos que se han proporcionado. Se pide no obstante a los usuarios que señalen eventuales errores o defectos de este producto a la FAO. La elección de los cálculos presente en esta herramienta son las del/de los autor(es) y no reflejan necesariamente las opiniones y elecciones de la Organización de las Naciones Unidas para la Agricultura y la Alimentación. © FAO, 2014. | E10: title | F10: =HLOOKUP($C$2,$B$8:$D10,$A10,FALSE) -> FAO declines all responsibility for errors or deficiencies in the database or software or in the documentation accompanying it, for program maintenance and upgrading as well as for any damage that may arise from them. FAO also declines any responsibility for updating the data and assumes no responsibility for errors and omissions in the data provided. Users are, however, kindly asked to report any errors or deficiencies in this product to FAO. The choices of calculation made in this tool are those of the author(s) and do not necessarily reflect the views and choices of the Food and Agriculture Organization of the United Nations. © FAO, 2014. | G10: title3
A11: 4 | B11: RAPID APPRAISAL TOOL FOR BIOGAS COMMUNITY PRODUCTION | C11: OUTIL D'EVALUATION RAPIDE POUR LA PRODUCTION DE BIOGAZ COMMUNAUTAIRE | D11: HERRAMIENTA EVALUACIÓN RÁPIDA PARA LA PRODUCCIÓN DE BIOGÁS COMUNITARIO | E11: title | F11: =HLOOKUP($C$2,$B$8:$D11,$A11,FALSE) -> RAPID APPRAISAL TOOL FOR BIOGAS COMMUNITY PRODUCTION | G11: title4
A12: 5 | B12: Size 1 | C12: Taille 1 | D12: Tamaño 1 | E12: title | F12: =HLOOKUP($C$2,$B$8:$D12,$A12,FALSE) -> Size 1 | G12: title5
A13: 6 | B13: Size 2 | C13: Taille 2 | D13: Tamaño 2 | E13: title | F13: =HLOOKUP($C$2,$B$8:$D13,$A13,FALSE) -> Size 2 | G13: title6
A14: 7 | B14: Size 3 | C14: Taille 3 | D14: Tamaño 3 | E14: title | F14: =HLOOKUP($C$2,$B$8:$D14,$A14,FALSE) -> Size 3 | G14: title7
A15: 8 | B15: Size 4 | C15: Taille 4 | D15: Tamaño 4 | E15: title | F15: =HLOOKUP($C$2,$B$8:$D15,$A15,FALSE) -> Size 4 | G15: title8
A16: 9 | B16: Dairy cattle | C16: Bovins laitiers | D16: Ganado Lechero | E16: title | F16: =HLOOKUP($C$2,$B$8:$D16,$A16,FALSE) -> Dairy cattle | G16: title9
A17: 10 | B17: Swine | C17: Porcs | D17: Cerdos | E17: title | F17: =HLOOKUP($C$2,$B$8:$D17,$A17,FALSE) -> Swine | G17: title10
A18: 11 | B18: Buffalo | C18: Buffles | D18: Búfalos | E18: title | F18: =HLOOKUP($C$2,$B$8:$D18,$A18,FALSE) -> Buffalo | G18: title11
A19: 12 | B19: Fuelwood | C19: Bois de feu | D19: Madera combustible | E19: title | F19: =HLOOKUP($C$2,$B$8:$D19,$A19,FALSE) -> Fuelwood | G19: title12
A20: 13 | B20: Charcoal | C20: Charbon de bois | D20: Carbón vegetal | E20: title | F20: =HLOOKUP($C$2,$B$8:$D20,$A20,FALSE) -> Charcoal | G20: title13
A21: 14 | B21: Briquettes/Pellets | C21: Briquette/Granulés de bois | D21: Briquetas/Pellets | E21: title | F21: =HLOOKUP($C$2,$B$8:$D21,$A21,FALSE) -> Briquettes/Pellets | G21: title14
A22: 15 | B22: Kerosene | C22: Kérosène | D22: Queroseno | E22: title | F22: =HLOOKUP($C$2,$B$8:$D22,$A22,FALSE) -> Kerosene | G22: title15
A23: 16 | B23: LPG | C23: GPL | D23: Gas de baja presión | E23: title | F23: =HLOOKUP($C$2,$B$8:$D23,$A23,FALSE) -> LPG | G23: title16
A24: 17 | B24: Electricity | C24: Électricité | D24: Electricidad | E24: title | F24: =HLOOKUP($C$2,$B$8:$D24,$A24,FALSE) -> Electricity | G24: title17
A25: 18 | B25: BIOGAS SYSTEM FOR RURAL ENERGY | C25: SYSTÈME DE BIOGAZ DE L'ENERGIE RURALE | D25: SISTEMA DE BIOGÁS PARA ENERGÍA RURAL | E25: title | F25: =HLOOKUP($C$2,$B$8:$D25,$A25,FALSE) -> BIOGAS SYSTEM FOR RURAL ENERGY | G25: title18
A26: 19 | B26: Non monetary benefits | C26: Avantages non-monétaires | D26: Beneficios no monetarios | E26: title | F26: =HLOOKUP($C$2,$B$8:$D26,$A26,FALSE) -> Non monetary benefits | G26: title19
A27: 20 | B27: Smokeless kitchen | C27: Cuisine sans fumée | D27: Cocina sin humos | E27: title | F27: =HLOOKUP($C$2,$B$8:$D27,$A27,FALSE) -> Smokeless kitchen | G27: title20
A28: 21 | B28: Effects of bioslurry on agriculture | C28: Effets de la bouillie biologique sur l'agriculture | D28: Efectos de biolodos sobre la agricultura | E28: title | F28: =HLOOKUP($C$2,$B$8:$D28,$A28,FALSE) -> Effects of bioslurry on agriculture | G28: title21
A29: 22 | B29: Health and hygiene | C29: Santé et hygiène | D29: Salud e higiene | E29: title | F29: =HLOOKUP($C$2,$B$8:$D29,$A29,FALSE) -> Health and hygiene | G29: title22
A30: 23 | B30: Study hours | C30: Heures d'étude | D30: Horas de estudio | E30: title | F30: =HLOOKUP($C$2,$B$8:$D30,$A30,FALSE) -> Study hours | G30: title23
A31: 24 | B31: Economic activities | C31: Activités économiques | D31: Actividades económicas | E31: title | F31: =HLOOKUP($C$2,$B$8:$D31,$A31,FALSE) -> Economic activities | G31: title24
A32: 25 | B32: Effect | C32: Effet | D32: Efecto | E32: title | F32: =HLOOKUP($C$2,$B$8:$D32,$A32,FALSE) -> Effect | G32: title25
A33: 26 | B33: How? | C33: Comment? | D33: ¿Cómo? | E33: title | F33: =HLOOKUP($C$2,$B$8:$D33,$A33,FALSE) -> How? | G33: title26
A34: 27 | B34: Reducing the amount of biomass used in the kitchen decreases the amount of pollution. | C34: La réduction de la quantité de biomasse utilisée dans la cuisine diminue la quantité de pollution. | D34: La reducción de la cantidad de biomasa utilizada en la cocina disminuye la cantidad de contaminación. | E34: title | F34: =HLOOKUP($C$2,$B$8:$D34,$A34,FALSE) -> Reducing the amount of biomass used in the kitchen decreases the amount of pollution. | G34: title27
A35: 28 | B35: Bioslurry can have a positive effect on soil and agricultural yields. | C35: La bouillie biologique peut avoir un effet positif sur les sols et les rendements agricoles. | D35: Los biolodos pueden tener un efecto positivo sobre el rendimiento del suelo y la agricultura. | E35: title | F35: =HLOOKUP($C$2,$B$8:$D35,$A35,FALSE) -> Bioslurry can have a positive effect on soil and agricultural yields. | G35: title28
A36: 29 | B36: Heating water can improve the general hygienic conditions at households levels and reduces diseases. | C36: Chauffer l’eau peut améliorer les conditions générales d'hygiène des ménages et peut réduire les maladies. | D36: El agua caliente puede mejorar las condiciones de higiene generales a nivel de los hogares y reduce las enfermedades. | E36: title | F36: =HLOOKUP($C$2,$B$8:$D36,$A36,FALSE) -> Heating water can improve the general hygienic conditions at households levels and reduces diseases. | G36: title29
A37: 30 | B37: Extended light availability. | C37: Disponibilité prolongée de lumière. | D37: Extensión de la disponibilidad de luz. | E37: title | F37: =HLOOKUP($C$2,$B$8:$D37,$A37,FALSE) -> Extended light availability. | G37: title30
A38: 31 | B38: Potential displacement of economic activities primarily related to firewood, charcoal and LPG vendors. Creation of employment opportunities from building, management and processing of biogas plants. | C38: Déplacement potentiel des activités économiques liées principalement au bois de chauffage, charbon de bois et fournisseurs de GPL. Création de nouveaux emplois de la construction, à la gestion et traitement des installations de biogaz. | D38: Desplazamiento potencial de las actividades económicas relacionadas principalmente con madera combustible, carbón vegetal y los vendedores de GLP. Creación de nuevos puestos de trabajo para la construcción, la administración y procesamiento de plantas de biogás. | E38: title | F38: =HLOOKUP($C$2,$B$8:$D38,$A38,FALSE) -> Potential displacement of economic activities primarily related to firewood, charcoal and LPG vendors. Creation of employment opportunities from building, management and processing of biogas plants. | G38: title31
A39: 32 | B39: ENERGY DEMAND FOR BIOGAS PRODUCTION | C39: DEMANDE D'ÉNERGIE POUR LE BIOGAZ | D39: DEMANDA DE ENERGÍA PARA BIOGÁS | E39: title | F39: =HLOOKUP($C$2,$B$8:$D39,$A39,FALSE) -> ENERGY DEMAND FOR BIOGAS PRODUCTION | G39: title32
A40: 33 | B40: Use white cells to input data | C40: Utilisez les cellules blanches pour entrer les données | D40: Utilice las celdas blancas para ingresar los datos | E40: title | F40: =HLOOKUP($C$2,$B$8:$D40,$A40,FALSE) -> Use white cells to input data | G40: title33
A41: 34 | B41: Grey cells are used for calculations | C41: Les cellules grises sont utilisées pour les calculs | D41: Utilice las celdas grises para los cálculos | E41: title | F41: =HLOOKUP($C$2,$B$8:$D41,$A41,FALSE) -> Grey cells are used for calculations | G41: title34
A42: 35 | B42: Energy Consumption per rural household | C42: Consommation d'Énergie par Ménages rurale | D42: Consumo de energía por hogar rural | E42: title | F42: =HLOOKUP($C$2,$B$8:$D42,$A42,FALSE) -> Energy Consumption per rural household | G42: title35
A43: 36 | B43: Price | C43: Prix | D43: Precio | E43: title | F43: =HLOOKUP($C$2,$B$8:$D43,$A43,FALSE) -> Price | G43: title36
A44: 37 | B44: USD/unit | C44: USD/unité | D44: USD/unidad | E44: title | F44: =HLOOKUP($C$2,$B$8:$D44,$A44,FALSE) -> USD/unit | G44: title37
A45: 38 | B45: Consumption | C45: Consommation | D45: Consumo | E45: title | F45: =HLOOKUP($C$2,$B$8:$D45,$A45,FALSE) -> Consumption | G45: title38
A46: 39 | B46: unit/day | C46: unité/jour | D46: unit/día | E46: title | F46: =HLOOKUP($C$2,$B$8:$D46,$A46,FALSE) -> unit/day | G46: title39
A47: 40 | B47: unit/year | C47: unité/an | D47: unidad/año | E47: title | F47: =HLOOKUP($C$2,$B$8:$D47,$A47,FALSE) -> unit/year | G47: title40
A48: 41 | B48: Energy expenditure | C48: Dépense d'énergie | D48: Gasto de energía | E48: title | F48: =HLOOKUP($C$2,$B$8:$D48,$A48,FALSE) -> Energy expenditure | G48: title41
A49: 42 | B49: USD/year | C49: USD/an | D49: USD/año | E49: title | F49: =HLOOKUP($C$2,$B$8:$D49,$A49,FALSE) -> USD/year | G49: title42
A50: 43 | B50: Biogas equivalent requirement | C50: Exigence en équivalent biogaz | D50: Requerimiento equivalente de biogás | E50: title | F50: =HLOOKUP($C$2,$B$8:$D50,$A50,FALSE) -> Biogas equivalent requirement | G50: title43
A51: 44 | B51: m3/day/hh | C51: m3/an/hh | D51: m3/día/hh | E51: title | F51: =HLOOKUP($C$2,$B$8:$D51,$A51,FALSE) -> m3/day/hh | G51: title44
A52: 45 | B52: m3/year/hh | C52: m3/an/hh | D52: m3/año/hh | E52: title | F52: =HLOOKUP($C$2,$B$8:$D52,$A52,FALSE) -> m3/year/hh | G52: title45
A53: 46 | B53: DATA ENTRY FOR BIOGAS PRODUCTION | C53: SAISIE DE DONNEES POUR LA PRODUCTION DE BIOGAZ | D53: DATOS DE ENTRADA PARA LA PRODUCCIÓN DE BIOGÁS | E53: title | F53: =HLOOKUP($C$2,$B$8:$D53,$A53,FALSE) -> DATA ENTRY FOR BIOGAS PRODUCTION | G53: title46
A54: 47 | B54: Manure Type Selection and Sizes Definition | C54: Sélection des Types de Fumier et Définition des Tailles | D54: Selección del tipo estiércol y definición de tamaños | E54: title | F54: =HLOOKUP($C$2,$B$8:$D54,$A54,FALSE) -> Manure Type Selection and Sizes Definition | G54: title47
A55: 48 | B55: Manure type | C55: Type de fumier | D55: Tipo de estiércol | E55: title | F55: =HLOOKUP($C$2,$B$8:$D55,$A55,FALSE) -> Manure type | G55: title48
A56: 49 | B56: Country | C56: Pays | D56: País | E56: title | F56: =HLOOKUP($C$2,$B$8:$D56,$A56,FALSE) -> Country | G56: title49
A57: 50 | B57: Average annual temperature (°C) | C57: Température moyenne annuelle (°C) | D57: Temperatura anual promedio (°C) | E57: title | F57: =HLOOKUP($C$2,$B$8:$D57,$A57,FALSE) -> Average annual temperature (°C) | G57: title50
A58: 51 | B58: Total manure available (t/year) | C58: Total du fumier disponible (t/an) | D58: Estiercol total disponible (t/año) | E58: title | F58: =HLOOKUP($C$2,$B$8:$D58,$A58,FALSE) -> Total manure available (t/year) | G58: title51
A59: 52 | B59: Number of stable reared heads | C59: Nombre de têtes en stabulation | D59: Número de cabezas criadas en establos | E59: title | F59: =HLOOKUP($C$2,$B$8:$D59,$A59,FALSE) -> Number of stable reared heads | G59: title52
A60: 53 | B60: Number of animals per community | C60: Nombre d'animaux par ménage | D60: Número de animales por comunidad | E60: title | F60: =HLOOKUP($C$2,$B$8:$D60,$A60,FALSE) -> Number of animals per community | G60: title53
A61: 54 | B61: Number of animals (Range) | C61: Nombre d'animaux (range) | D61: Número de animales (intervalo) | E61: title | F61: =HLOOKUP($C$2,$B$8:$D61,$A61,FALSE) -> Number of animals (Range) | G61: title54
A62: 55 | B62: Volatile Solids Available (kg VS/day/household) | C62: Particules Volatiles Disponibles (kg VS/jour/ménage) | D62: Volatile Solids Available (kg VS/día/household) | E62: title | F62: =HLOOKUP($C$2,$B$8:$D62,$A62,FALSE) -> Volatile Solids Available (kg VS/day/household) | G62: title55
A63: 56 | B63: Share of heads (%) | C63: Part de têtess (%) | D63: Porcentaje animales (%) | E63: title | F63: =HLOOKUP($C$2,$B$8:$D63,$A63,FALSE) -> Share of heads (%) | G63: title56
A64: 57 | B64: Manure available (kg manure/day/household) | C64: Fumier disponible (kg de fumier/jour/ménage) | D64: Estiércol disponible (kg de estiércol/día/hogar) | E64: title | F64: =HLOOKUP($C$2,$B$8:$D64,$A64,FALSE) -> Manure available (kg manure/day/household) | G64: title57
A65: 58 | B65: Type of Digesters | C65: Type de Digesteurs | D65: Tipo de digestores | E65: title | F65: =HLOOKUP($C$2,$B$8:$D65,$A65,FALSE) -> Type of Digesters | G65: title58
A66: 59 | B66: Fixed dome | C66: Dôme fixe | D66: Domo Fijo | E66: title | F66: =HLOOKUP($C$2,$B$8:$D66,$A66,FALSE) -> Fixed dome | G66: title59
A67: 60 | B67: Floating drum | C67: Tambour flottant | D67: Tambor Flotante | E67: title | F67: =HLOOKUP($C$2,$B$8:$D67,$A67,FALSE) -> Floating drum | G67: title60
A68: 61 | B68: Tubular bag | C68: Sac tubulaire | D68: Tubular | E68: title | F68: =HLOOKUP($C$2,$B$8:$D68,$A68,FALSE) -> Tubular bag | G68: title61
A69: 62 | B69: The fixed dome digester is filled through the inlet pipe until the level reaches the bottom level of the expansion chamber. The produced biogas is accumulated at the upper part of the digester called storage part. The difference in the level between slurry inside of the digester and the expansion chamber creates a gas pressure. The collected gas requires space and presses a part of the substrate into an expansion chamber. The slurry flows back into the digester immediately after gas is released. Fixed dome digesters are usually built underground. | C69: Le digesteur à dôme fixe est rempli par le tuyau d'aspiration jusqu'à ce que le niveau atteigne le plus bas niveau de la chambre d'expansion. Le biogaz produit est accumulé dans la partie supérieure du digesteur, partie dite de stockage. La différence de niveau entre la suspension à l'intérieur du digesteur et la chambre d'expansion crée une pression de gaz. Le gaz recueilli a besoin d'espace et appuie sur une partie du substrat dans une chambre d'expansion. La suspension s'écoule de nouveau dans le digesteur immédiatement après que le gaz est libéré. Les digesteurs à dôme fixe sont généralement construits sous terre. | D69: Los digestores de Domo Fijo se llenan a través de la tubería de entrada hasta que el nivel alcance el nivel inferior de la cámara de expansión. El biogás producido se acumula en la parte superior del digestor, llamada parte de almacenamiento. La diferencia en el nivel entre los lodos en el interior del digestor y la cámara de expansión crea una presión de gas. El gas recogido requiere espacio y presiona una parte del sustrato dentro de la cámara de expansión. Los lodos fluyen de nuevo en el digestor inmediatamente después de que el gas es liberado. Los digestores de domo fijo son usualmente construidos bajo tierra. | E69: title | F69: =HLOOKUP($C$2,$B$8:$D69,$A69,FALSE) -> The fixed dome digester is filled through the inlet pipe until the level reaches the bottom level of the expansion chamber. The produced biogas is accumulated at the upper part of the digester called storage part. The difference in the level between slurry inside of the digester and the expansion chamber creates a gas pressure. The collected gas requires space and presses a part of the substrate into an expansion chamber. The slurry flows back into the digester immediately after gas is released. Fixed dome digesters are usually built underground. | G69: title62
A70: 63 | B70: This design includes a movable inverted drum placed on a well-shaped digester. An inverted steel drum that acts as a storage tank is placed on the digester, which can move up and down depending on the amount of accumulated gas at the top of the digester. The weight of this inverted drum applies the pressure needed for the gas flow through the pipeline for use. Floating drum digesters produce biogas at a constant pressure with variable volume. | C70: Cette conception inclut un tambour inversé mobile placé sur un digesteur bien en forme. Un tambour d'acier inversé qui agit comme un réservoir de stockage est placé sur le digesteur, qui peut se déplacer vers le haut et vers le bas en fonction de la quantité de gaz accumulée dans la partie supérieure du digesteur. Le poids de ce tambour inversé applique la pression nécessaire à l'écoulement de gaz à travers le pipeline destiné à être utilisé. Les digesteurs de biogaz produisent une batterie flottante avec une pression constante à volume variable. | D70: Este diseño incluye un tambor móvil invertido localizado en el digestor. Un tambor de acero invertido que actúa como un tanque de almacenamiento se coloca en el digestor, este puede moverse hacia arriba y hacia abajo dependiendo de la cantidad de gas acumulado en la parte superior del digestor. El peso de este tambor invertido, aplica la presión necesaria para que el gas fluya a través de la tubería de salida para su disposición final. Los digestores de tambor flotante producen biogás a una presión constante con un volumen variable. | E70: title | F70: =HLOOKUP($C$2,$B$8:$D70,$A70,FALSE) -> This design includes a movable inverted drum placed on a well-shaped digester. An inverted steel drum that acts as a storage tank is placed on the digester, which can move up and down depending on the amount of accumulated gas at the top of the digester. The weight of this inverted drum applies the pressure needed for the gas flow through the pipeline for use. Floating drum digesters produce biogas at a constant pressure with variable volume. | G70: title63
A71: 64 | B71: Tubular or Plug-flow digesters consist of a narrow and long tank with, an average length to width ratio of 5:1.The inlet and outlet of the digester are located at opposite ends, kept above ground, while the remaining parts of the digester is buried in the ground in an inclined position. As the fresh substrate is added from the inlet, the digestated flows towards the outlet at the other end of the tank. | C71: Les tubulaires ou autoclaves à écoulement piston sont constitués d'un réservoir étroit et long avec une longueur moyenne à largeur de 5:1. L'entrée et la sortie du digesteur sont situés à des extrémités opposées, maintenu au dessus du sol, tandis que les parties restantes du digesteur est enterré dans le sol dans une position inclinée. Comme le substrat frais est ajouté à partir de l'entrée, le digestat s'écoule vers la sortie à l'autre extrémité de la cuve. | D71: Los digestores Tubulares o de Flujo de Pistón consisten en un tanque estrecho y largo, con una relación promedio de largo a ancho de 5:1. La entrada y la salida del digestor se encuentran en los extremos opuestos y estas se mantienen por encima del suelo, mientras que las partes restantes del digestor están enterradas en el suelo con cierta inclinación. A medida que se alimenta sustrato fresco, el digestato fluye hacia la salida en el otro extremo del tanque. | E71: title | F71: =HLOOKUP($C$2,$B$8:$D71,$A71,FALSE) -> Tubular or Plug-flow digesters consist of a narrow and long tank with, an average length to width ratio of 5:1.The inlet and outlet of the digester are located at opposite ends, kept above ground, while the remaining parts of the digester is buried in the ground in an inclined position. As the fresh substrate is added from the inlet, the digestated flows towards the outlet at the other end of the tank. | G71: title64
A72: 65 | B72: Production Cost and Financial Parameters | C72: Coût de Production et Paramètres Financiers | D72: Costo de producción y parámetros financieros | E72: title | F72: =HLOOKUP($C$2,$B$8:$D72,$A72,FALSE) -> Production Cost and Financial Parameters | G72: title65
A73: 66 | B73: Input prices | C73: Prix des intrants | D73: Precios de entrada | E73: title | F73: =HLOOKUP($C$2,$B$8:$D73,$A73,FALSE) -> Input prices | G73: =$E73&$A73 -> title66
A74: 67 | B74: Feedstock | C74: Matières premières | D74: Materia prima | E74: title | F74: =HLOOKUP($C$2,$B$8:$D74,$A74,FALSE) -> Feedstock | G74: title67
A75: 68 | B75: Selection of materials costing method | C75: Sélection de la méthode des coûts de matériaux | D75: Selección del método para el costo de los materiales | E75: title | F75: =HLOOKUP($C$2,$B$8:$D75,$A75,FALSE) -> Selection of materials costing method | G75: title68
A76: 69 | B76: Unit | C76: Unité | D76: Unidad | E76: title | F76: =HLOOKUP($C$2,$B$8:$D76,$A76,FALSE) -> Unit | G76: title69
A77: 70 | B77: Water | C77: Eau | D77: Agua | E77: title | F77: =HLOOKUP($C$2,$B$8:$D77,$A77,FALSE) -> Water | G77: title70
A78: 71 | B78: Selecting this option you are asked for the simple and basic materials required to build biodigester. | C78: En sélectionnant cette option, vous êtes demandé à fournir la liste de matériaux simples et de base nécessaires à la construction d’un biodigesteur. | D78: Seleccionando esta opción usted tendrá que proporcionar la lista de materiales completa requeridos para la construcción de biodigestores. | E78: title | F78: =HLOOKUP($C$2,$B$8:$D78,$A78,FALSE) -> Selecting this option you are asked for the simple and basic materials required to build biodigester. | G78: title71
A79: 72 | B79: Other materials costs are calculated as a fraction of the materials costs introduced. | C79: D’autres coûts des matériaux sont calculées comme une fraction des coûts des matières introduites. | D79: Otros costos de materiales son calculados como una fracción de los costos de los materiales introducidos. | E79: title | F79: =HLOOKUP($C$2,$B$8:$D79,$A79,FALSE) -> Other materials costs are calculated as a fraction of the materials costs introduced. | G79: title72
A80: 73 | B80: By accessing to each COST_SIZE# sheet, you can check proxies for quantities and costs of the full list of materials. | C80: En ayant accès à chaque feuille COST_ SIZE#, vous pouvez vérifier les procurations pour les quantités et les coûts de la liste complète des matériaux. | D80: Accediendo a cada hoja COST_SIZE #, puede revisar las cantidades y costos representativos de la lista de materiales completa. | E80: title | F80: =HLOOKUP($C$2,$B$8:$D80,$A80,FALSE) -> By accessing to each COST_SIZE# sheet, you can check proxies for quantities and costs of the full list of materials. | G80: title73
A81: 74 | B81: Materials - Simple costing | C81: Matériaux - Coûts simples | D81: Materiales - Costeo Simple | E81: title | F81: =HLOOKUP($C$2,$B$8:$D81,$A81,FALSE) -> Materials - Simple costing | G81: title74
A82: 75 | B82: Bricks | C82: Briques | D82: Ladrillos | E82: title | F82: =HLOOKUP($C$2,$B$8:$D82,$A82,FALSE) -> Bricks | G82: title75
A83: 76 | B83: Cement 50 kg | C83: Ciment 50 kg | D83: Cemento de 50 kg | E83: title | F83: =HLOOKUP($C$2,$B$8:$D83,$A83,FALSE) -> Cement 50 kg | G83: title76
A84: 77 | B84: Plastic bag (0.2 mm thick) | C84: Sac en plastique (0,2 mm d'épaisseur) | D84: Bolsa de plástico (0.2 mm de espesor) | E84: title | F84: =HLOOKUP($C$2,$B$8:$D84,$A84,FALSE) -> Plastic bag (0.2 mm thick) | G84: title77
A85: 78 | B85: Piece | C85: Pièce | D85: Pieza | E85: title | F85: =HLOOKUP($C$2,$B$8:$D85,$A85,FALSE) -> Piece | G85: title78
A86: 79 | B86: Bag | C86: Sac | D86: Bolsa | E86: title | F86: =HLOOKUP($C$2,$B$8:$D86,$A86,FALSE) -> Bag | G86: title79
A87: 80 | B87: Sand | C87: Sable | D87: Arena | E87: title | F87: =HLOOKUP($C$2,$B$8:$D87,$A87,FALSE) -> Sand | G87: title80
A88: 81 | B88: Gravel | C88: Gravier | D88: Grava | E88: title | F88: =HLOOKUP($C$2,$B$8:$D88,$A88,FALSE) -> Gravel | G88: title81
A89: 82 | B89: Other costs | C89: Autres coûts | D89: Otros costos | E89: title | F89: =HLOOKUP($C$2,$B$8:$D89,$A89,FALSE) -> Other costs | G89: title82
A90: 83 | B90: Maintenance (%) | C90: Entretien (%) | D90: Mantenimiento (%) | E90: title | F90: =HLOOKUP($C$2,$B$8:$D90,$A90,FALSE) -> Maintenance (%) | G90: title83
A91: 84 | B91: Labour | C91: Travail | D91: Mano de obra | E91: title | F91: =HLOOKUP($C$2,$B$8:$D91,$A91,FALSE) -> Labour | G91: title84
A92: 85 | B92: Semi-skilled worker (masonry) | C92: Travailleur semi-qualifié (maçonnerie) | D92: Trabajadores semicualificados (construcción) | E92: title | F92: =HLOOKUP($C$2,$B$8:$D92,$A92,FALSE) -> Semi-skilled worker (masonry) | G92: title85
A93: 86 | B93: USD/person-hour | C93: USD/heure-personne | D93: USD/persona-hora | E93: title | F93: =HLOOKUP($C$2,$B$8:$D93,$A93,FALSE) -> USD/person-hour | G93: title86
A94: 87 | B94: Unskilled worker | C94: Travailleur non-qualifié | D94: Trabajadores no cualificados | E94: title | F94: =HLOOKUP($C$2,$B$8:$D94,$A94,FALSE) -> Unskilled worker | G94: title87
A95: 88 | B95: Household (hh) Profile | C95: Profil du Ménage (hh) | D95: Perfil de hogares (hh) | E95: title | F95: =HLOOKUP($C$2,$B$8:$D95,$A95,FALSE) -> Household (hh) Profile | G95: title88
A96: 89 | B96: Fuelwood collection | C96: Collecte de bois de feu | D96: Recolección de madera combustible | E96: title | F96: =HLOOKUP($C$2,$B$8:$D96,$A96,FALSE) -> Fuelwood collection | G96: title89
A97: 90 | B97: Share of hh collecting fuelwood | C97: Portion du ménage qui collecte du bois de feu | D97: Proporción de madera combustible recolectada por hh | E97: title | F97: =HLOOKUP($C$2,$B$8:$D97,$A97,FALSE) -> Share of hh collecting fuelwood | G97: title90
A98: 91 | B98: Share of hh purchasing fuelwood | C98: Portion du ménage qui achète du bois de feu | D98: Proporción de madera combustible comprada por hh | E98: title | F98: =HLOOKUP($C$2,$B$8:$D98,$A98,FALSE) -> Share of hh purchasing fuelwood | G98: title91
A99: 92 | B99: Income-earning opportunity in rural areas from Biogas use | C99: Possibilité de gagner un revenu de l'utilisation du biogaz dans les zones rurales | D99: Oportunidades de generación de ingresos en las zonas rurales por el uso de biogás | E99: title | F99: =HLOOKUP($C$2,$B$8:$D99,$A99,FALSE) -> Income-earning opportunity in rural areas from Biogas use | G99: title92
A100: 93 | B100: Share of net time saved dedicated to income generation (%) | C100: Portion du temps épargné net dédié à la génération de revenus (%) | D100: Proporción de tiempo neto dedicado a la generación de ingresos (%) | E100: title | F100: =HLOOKUP($C$2,$B$8:$D100,$A100,FALSE) -> Share of net time saved dedicated to income generation (%) | G100: title93
A101: 94 | B101: Time usage | C101: Utilisation du temps | D101: Tiempo de uso | E101: title | F101: =HLOOKUP($C$2,$B$8:$D101,$A101,FALSE) -> Time usage | G101: title94
A102: 95 | B102: Cooking using fuelwood | C102: Cuisson à l'aide du bois de feu | D102: Cocinar usando madera combustible | E102: title | F102: =HLOOKUP($C$2,$B$8:$D102,$A102,FALSE) -> Cooking using fuelwood | G102: title95
A103: 96 | B103: Biogas-related activities | C103: Activités liées à la production de biogaz | D103: Actividades relacionadas con el biogás | E103: title | F103: =HLOOKUP($C$2,$B$8:$D103,$A103,FALSE) -> Biogas-related activities | G103: title96
A104: 97 | B104: Dung collection | C104: Collecte de fumier | D104: Recolección del estiércol | E104: title | F104: =HLOOKUP($C$2,$B$8:$D104,$A104,FALSE) -> Dung collection | G104: title97
A105: 98 | B105: Water collection | C105: Collecte d'eau | D105: Recolección de agua | E105: title | F105: =HLOOKUP($C$2,$B$8:$D105,$A105,FALSE) -> Water collection | G105: title98
A106: 99 | B106: Mixing the digester | C106: Mélange du digesteur | D106: Mezcla en el digestor | E106: title | F106: =HLOOKUP($C$2,$B$8:$D106,$A106,FALSE) -> Mixing the digester | G106: title99
A107: 100 | B107: Average time spent | C107: Temps passé en moyenne | D107: Tiempo promedio de permanencia | E107: title | F107: =HLOOKUP($C$2,$B$8:$D107,$A107,FALSE) -> Average time spent | G107: title100
A108: 101 | B108: h/day | C108: h/jour | D108: h/día | E108: title | F108: =HLOOKUP($C$2,$B$8:$D108,$A108,FALSE) -> h/day | G108: title101
A109: 102 | B109: Social Benefits | C109: Avantages Sociaux | D109: Beneficios sociales | E109: title | F109: =HLOOKUP($C$2,$B$8:$D109,$A109,FALSE) -> Social Benefits | G109: title102
A110: 103 | B110: Consumption fertilizer per household | C110: Consommation d’engrais par ménage | D110: Consumo de fertilizantes por hogar | E110: title | F110: =HLOOKUP($C$2,$B$8:$D110,$A110,FALSE) -> Consumption fertilizer per household | G110: title103
A111: 104 | B111: Nitrogen | C111: Azote | D111: Nitrógeno | E111: title | F111: =HLOOKUP($C$2,$B$8:$D111,$A111,FALSE) -> Nitrogen | G111: title104
A112: 105 | B112: Phosphorous | C112: Phosphore | D112: Fosforoso | E112: title | F112: =HLOOKUP($C$2,$B$8:$D112,$A112,FALSE) -> Phosphorous | G112: title105
A113: 106 | B113: Potassium | C113: Potassium | D113: Potasio | E113: title | F113: =HLOOKUP($C$2,$B$8:$D113,$A113,FALSE) -> Potassium | G113: title106
A114: 107 | B114: Do you use manure as fertilizer? | C114: Utilisez-vous du fumier comme engrais? | D114: ¿Utiliza el estiércol como fertilizante? | E114: title | F114: =HLOOKUP($C$2,$B$8:$D114,$A114,FALSE) -> Do you use manure as fertilizer? | G114: title107
A115: 108 | B115: Implementation of Biogas Programme | C115: Mise en œuvre du programme biogaz | D115: Implementación del programa de Biogás | E115: title | F115: =HLOOKUP($C$2,$B$8:$D115,$A115,FALSE) -> Implementation of Biogas Programme | G115: title108
A116: 109 | B116: Implementation of Biogas Programme (years) | C116: Mise en œuvre du programme Biogaz (ans) | D116: Implementación del programa de Biogás (años) | E116: title | F116: =HLOOKUP($C$2,$B$8:$D116,$A116,FALSE) -> Implementation of Biogas Programme (years) | G116: title109
A117: 110 | B117: Unit Price | C117: Prix unitaire | D117: Precio unitario | E117: title | F117: =HLOOKUP($C$2,$B$8:$D117,$A117,FALSE) -> Unit Price | G117: title110
A118: 111 | B118: kg/year | C118: kg/an | D118: kg/año | E118: title | F118: =HLOOKUP($C$2,$B$8:$D118,$A118,FALSE) -> kg/year | G118: title111
A119: 112 | B119: Financial variables | C119: Variables financières | D119: Variables financieras | E119: title | F119: =HLOOKUP($C$2,$B$8:$D119,$A119,FALSE) -> Financial variables | G119: title112
A120: 113 | B120: Loan interest rate (%) | C120: Taux d'intérêt du prêt (%) | D120: Tasa de interés de créditos (%) | E120: title | F120: =HLOOKUP($C$2,$B$8:$D120,$A120,FALSE) -> Loan interest rate (%) | G120: title113
A121: 114 | B121: Loan term (years) | C121: Durée du prêt (années) | D121: Plazo del crédito (años) | E121: title | F121: =HLOOKUP($C$2,$B$8:$D121,$A121,FALSE) -> Loan term (years) | G121: title114
A122: 115 | B122: Discount rate (%) | C122: Taux d'actualisation (%) | D122: Tasa de descuento (%) | E122: title | F122: =HLOOKUP($C$2,$B$8:$D122,$A122,FALSE) -> Discount rate (%) | G122: title115
A123: 116 | B123: Loan ratio (%) | C123: Ratio du prêt (%) | D123: Proporción de créditos (%) | E123: title | F123: =HLOOKUP($C$2,$B$8:$D123,$A123,FALSE) -> Loan ratio (%) | G123: title116
A124: 117 | B124: kg/day/hh | C124: Kg/jour/hh | D124: Kg/día/hh | E124: title | F124: =HLOOKUP($C$2,$B$8:$D124,$A124,FALSE) -> kg/day/hh | G124: title117
A125: 118 | B125: Kg/day | C125: Kg/jour | D125: Kg/día | E125: title | F125: =HLOOKUP($C$2,$B$8:$D125,$A125,FALSE) -> Kg/day | G125: title118
A126: 119 | B126: PROCESSING COSTS FOR BIOGAS PRODUCTION | C126: COÛTS DE TRANSFORMATION DU BIOGAZ | D126: COSTOS DE PROCESAMIENTO PARA LA PRODUCCIÓN DE BIOGÁS | E126: title | F126: =HLOOKUP($C$2,$B$8:$D126,$A126,FALSE) -> PROCESSING COSTS FOR BIOGAS PRODUCTION | G126: title119
A127: 120 | B127: Biogas production (m3/day) | C127: Production de biogaz (m3/jour) | D127: Producción de biogás (m3/día) | E127: title | F127: =HLOOKUP($C$2,$B$8:$D127,$A127,FALSE) -> Biogas production (m3/day) | G127: title120
A128: 121 | B128: Biogas production (m3/year) | C128: Production de biogaz (m3/an) | D128: Producción de biogás (m3/año) | E128: title | F128: =HLOOKUP($C$2,$B$8:$D128,$A128,FALSE) -> Biogas production (m3/year) | G128: title121
A129: 122 | B129: Recommended size of biodigestor (m3) | C129: Taille recommandée du biodigesteur (m3) | D129: Tamaño recomendado del biodigestor (m3) | E129: title | F129: =HLOOKUP($C$2,$B$8:$D129,$A129,FALSE) -> Recommended size of biodigestor (m3) | G129: title122
A130: 123 | B130: Materials Cost Details | C130: Détails des Coûts des Matériaux | D130: Detalles de costos de materiales | E130: title | F130: =HLOOKUP($C$2,$B$8:$D130,$A130,FALSE) -> Materials Cost Details | G130: title123
A131: 124 | B131: Construction materials | C131: Matériaux de construction | D131: Materiales de construcción | E131: title | F131: =HLOOKUP($C$2,$B$8:$D131,$A131,FALSE) -> Construction materials | G131: title124
A132: 125 | B132: Cement 50 kg bag | C132: Ciment 50 kg | D132: Cemento de 50 kg bolsa | E132: title | F132: =HLOOKUP($C$2,$B$8:$D132,$A132,FALSE) -> Cement 50 kg bag | G132: title125
A133: 126 | B133: Tubular bag (0,2 mm thick) | C133: Sac tubulaire (0,2 mm thick) | D133: Bolsa tubular (0,2 mm de espesor) | E133: title | F133: =HLOOKUP($C$2,$B$8:$D133,$A133,FALSE) -> Tubular bag (0,2 mm thick) | G133: title126
A134: 127 | B134: Other Materials | C134: Autres Matériaux | D134: Otros Materiales | E134: title | F134: =HLOOKUP($C$2,$B$8:$D134,$A134,FALSE) -> Other Materials | G134: title127
A135: 128 | B135: Other accessories | C135: Autres accessoires | D135: Otros accesorios | E135: title | F135: =HLOOKUP($C$2,$B$8:$D135,$A135,FALSE) -> Other accessories | G135: title128
A136: 129 | B136: Total construction material | C136: Total des matériaux de construction | D136: Materiales de construcción totales | E136: title | F136: =HLOOKUP($C$2,$B$8:$D136,$A136,FALSE) -> Total construction material | G136: title129
A137: 130 | B137: Quantity | C137: Quantité | D137: Cantidad | E137: title | F137: =HLOOKUP($C$2,$B$8:$D137,$A137,FALSE) -> Quantity | G137: title130
A138: 131 | B138: metre | C138: mètre | D138: metro | E138: title | F138: =HLOOKUP($C$2,$B$8:$D138,$A138,FALSE) -> metre | G138: title131
A139: 132 | B139: Total Production Cost | C139: Total des coûts de production | D139: Costos totales de producción | E139: title | F139: =HLOOKUP($C$2,$B$8:$D139,$A139,FALSE) -> Total Production Cost | G139: title132
A140: 133 | B140: Unit cost of biogas (USD/m3) | C140: Coût unitaire de production de biogaz (USD/m3) | D140: Costo unitario de biogás (USD/m3) | E140: title | F140: =HLOOKUP($C$2,$B$8:$D140,$A140,FALSE) -> Unit cost of biogas (USD/m3) | G140: =$E140&$A140 -> title133
A141: 134 | B141: Average loan interest without policy | C141: Intérêt moyen des prêts sans politique | D141: Interés promedio del préstamo antes de impuestos | E141: title | F141: =HLOOKUP($C$2,$B$8:$D141,$A141,FALSE) -> Average loan interest without policy | G141: title134
A142: 135 | B142: Loan amount | C142: Montant du prêt | D142: Monto del crédito | E142: title | F142: =HLOOKUP($C$2,$B$8:$D142,$A142,FALSE) -> Loan amount | G142: title135
A143: 136 | B143: Loan interest rate | C143: Taux d'intérêt du prêt | D143: Tasa de interés de créditos | E143: title | F143: =HLOOKUP($C$2,$B$8:$D143,$A143,FALSE) -> Loan interest rate | G143: title136
A144: 137 | B144: Loan payment | C144: Paiement du prêt | D144: Pago del crédito | E144: title | F144: =HLOOKUP($C$2,$B$8:$D144,$A144,FALSE) -> Loan payment | G144: title137
A145: 138 | B145: Annual loan payment | C145: Paiement annuel du prêt | D145: Pago anual del crédito | E145: title | F145: =HLOOKUP($C$2,$B$8:$D145,$A145,FALSE) -> Annual loan payment | G145: title138
A146: 139 | B146: Loan terms | C146: Conditions du prêt | D146: Plazo del créditos | E146: title | F146: =HLOOKUP($C$2,$B$8:$D146,$A146,FALSE) -> Loan terms | G146: title139
A147: 140 | B147: Total loan payment | C147: Paiement total du prêt | D147: Pago total del crédito | E147: title | F147: =HLOOKUP($C$2,$B$8:$D147,$A147,FALSE) -> Total loan payment | G147: title140
A148: 141 | B148: Loan interest | C148: Intérêt du prêt | D148: Intereses de créditos | E148: title | F148: =HLOOKUP($C$2,$B$8:$D148,$A148,FALSE) -> Loan interest | G148: title141
A149: 142 | B149: Average loan interest | C149: Intérêt moyen des prêts | D149: Interés promedio del crédito | E149: title | F149: =HLOOKUP($C$2,$B$8:$D149,$A149,FALSE) -> Average loan interest | G149: title142
A150: 143 | B150: USD/month | C150: USD/mois | D150: USD/mes | E150: title | F150: =HLOOKUP($C$2,$B$8:$D150,$A150,FALSE) -> USD/month | G150: title143
A151: 144 | B151: year | C151: an | D151: año | E151: title | F151: =HLOOKUP($C$2,$B$8:$D151,$A151,FALSE) -> year | G151: title144
A152: 145 | B152: Biodigester Options | C152: Options de Biodigesteur | D152: Opciones de biodigestores | E152: title | F152: =HLOOKUP($C$2,$B$8:$D152,$A152,FALSE) -> Biodigester Options | G152: title145
A153: 146 | B153: Tubular | C153: Tubulaire | D153: Tubular | E153: title | F153: =HLOOKUP($C$2,$B$8:$D153,$A153,FALSE) -> Tubular | G153: title146
A154: 147 | B154: Total investment | C154: Investissement total | D154: Inversión total | E154: title | F154: =HLOOKUP($C$2,$B$8:$D154,$A154,FALSE) -> Total investment | G154: title147
A155: 148 | B155: Operating costs | C155: Coûts opérationnels | D155: Costos de operacións | E155: title | F155: =HLOOKUP($C$2,$B$8:$D155,$A155,FALSE) -> Operating costs | G155: title148
A156: 149 | B156: Water/urine | C156: Eau/urine | D156: Agua/urine | E156: title | F156: =HLOOKUP($C$2,$B$8:$D156,$A156,FALSE) -> Water/urine | G156: title149
A157: 150 | B157: Subtotal | C157: Sous-total | D157: Subtotal | E157: title | F157: =HLOOKUP($C$2,$B$8:$D157,$A157,FALSE) -> Subtotal | G157: title150
A158: 151 | B158: Labour for installation and construction | C158: Main-d'oeuvre pour l'installation et la construction | D158: Mano de obra para la instalación y la construcción | E158: title | F158: =HLOOKUP($C$2,$B$8:$D158,$A158,FALSE) -> Labour for installation and construction | G158: title151
A159: 152 | B159: Skilled worker | C159: Ouvrier qualifié | D159: Trabajadores cualificados | E159: title | F159: =HLOOKUP($C$2,$B$8:$D159,$A159,FALSE) -> Skilled worker | G159: title152
A160: 153 | B160: Total labour for installation | C160: Travail total pour l'installation | D160: Mano de obra de instalación total | E160: title | F160: =HLOOKUP($C$2,$B$8:$D160,$A160,FALSE) -> Total labour for installation | G160: title153
A161: 154 | B161: person-day | C161: personne-jour | D161: persona-día | E161: title | F161: =HLOOKUP($C$2,$B$8:$D161,$A161,FALSE) -> person-day | G161: title154
A162: 155 | B162: Total maintenance cost | C162: Coût total de l'entretien | D162: Costos total de mantenimiento | E162: title | F162: =HLOOKUP($C$2,$B$8:$D162,$A162,FALSE) -> Total maintenance cost | G162: title155
A163: 156 | B163: Subtotal fixed costs | C163: Sous-total des coûts fixes | D163: Subtotal costos fijos | E163: title | F163: =HLOOKUP($C$2,$B$8:$D163,$A163,FALSE) -> Subtotal fixed costs | G163: title156
A164: 157 | B164: Total Depreciation | C164: Amortissement total | D164: Depreciación total | E164: title | F164: =HLOOKUP($C$2,$B$8:$D164,$A164,FALSE) -> Total Depreciation | G164: title157
A165: 158 | B165: Depreciation | C165: Amortissement | D165: Depreciación | E165: title | F165: =HLOOKUP($C$2,$B$8:$D165,$A165,FALSE) -> Depreciation | G165: title158
A166: 159 | B166: Total costs | C166: Coûts totals | D166: Costos totales | E166: title | F166: =HLOOKUP($C$2,$B$8:$D166,$A166,FALSE) -> Total costs | G166: title159
A167: 160 | B167: Total operating costs | C167: Coûts totals d'opérations | D167: Costos de operación totales | E167: title | F167: =HLOOKUP($C$2,$B$8:$D167,$A167,FALSE) -> Total operating costs | G167: title160
A168: 161 | B168: Total fixed costs | C168: Total des coûts fixes | D168: Costos fijos totales | E168: title | F168: =HLOOKUP($C$2,$B$8:$D168,$A168,FALSE) -> Total fixed costs | G168: title161
A169: 162 | B169: Total other costs | C169: Total des autres coûts | D169: Otros costos totales | E169: title | F169: =HLOOKUP($C$2,$B$8:$D169,$A169,FALSE) -> Total other costs | G169: title162
A170: 163 | B170: Total production costs | C170: Total des coûts de production | D170: Costos de producción totales | E170: title | F170: =HLOOKUP($C$2,$B$8:$D170,$A170,FALSE) -> Total production costs | G170: title163
A171: 164 | B171: Show costing details | C171: Voir Détails des Coûts | D171: Mostrar detalles de cálculo de costos | E171: title | F171: =HLOOKUP($C$2,$B$8:$D171,$A171,FALSE) -> Show costing details | G171: title164
A172: 165 | B172: Hide costing details | C172: Masquer les Détails des Coûts | D172: Ocultar detalles de cálculo de costos | E172: title | F172: =HLOOKUP($C$2,$B$8:$D172,$A172,FALSE) -> Hide costing details | G172: title165
A173: 166 | B173: Production Cost Details | C173: Détails sur les Coûts de Production | D173: Detalles de costos de producción | E173: title | F173: =HLOOKUP($C$2,$B$8:$D173,$A173,FALSE) -> Production Cost Details | G173: title166
A174: 167 | B174: FINANCIAL ANALYSIS OF BIOGAS PRODUCTION IN A FIXED DOME BIODIGESTOR | C174: ANALYSE FINANCIÈRE DE LA PRODUCTION DE BIOGAZ DANS UN BIODIGESTEUR DOME FIXE | D174: ANÁLISIS FINANCIERO DE LA PRODUCCIÓN DE BIOGAS EN UN BIODIGESTOR DE DOMO FIJO | E174: title | F174: =HLOOKUP($C$2,$B$8:$D174,$A174,FALSE) -> FINANCIAL ANALYSIS OF BIOGAS PRODUCTION IN A FIXED DOME BIODIGESTOR | G174: title167
A175: 168 | B175: Operating Year | C175: Année Opérationnelle | D175: Año de operación | E175: title | F175: =HLOOKUP($C$2,$B$8:$D175,$A175,FALSE) -> Operating Year | G175: title168
A176: 169 | B176: Lifetime of the reactor | C176: Durée de vie du réacteur | D176: Vida útil del reactor | E176: title | F176: =HLOOKUP($C$2,$B$8:$D176,$A176,FALSE) -> Lifetime of the reactor | G176: title169
A177: 170 | B177: Direct capital cost (USD) | C177: Coût direct du capital (USD) | D177: Costo de capital (USD) | E177: title | F177: =HLOOKUP($C$2,$B$8:$D177,$A177,FALSE) -> Direct capital cost (USD) | G177: title170
A178: 171 | B178: Reactor construction | C178: Construction du réacteur | D178: Construcción del reactor | E178: title | F178: =HLOOKUP($C$2,$B$8:$D178,$A178,FALSE) -> Reactor construction | G178: title171
A179: 172 | B179: Total capital cost (USD) | C179: Coût total du capital (USD) | D179: Costo total de capital (USD) | E179: title | F179: =HLOOKUP($C$2,$B$8:$D179,$A179,FALSE) -> Total capital cost (USD) | G179: title172
A180: 173 | B180: Total savings on energy "revenue" | C180: Total des économies sur l'énergie "revenus" | D180: Total ahorro de energía "ingresos" | E180: title | F180: =HLOOKUP($C$2,$B$8:$D180,$A180,FALSE) -> Total savings on energy "revenue" | G180: title173
A181: 174 | B181: Appraisal | C181: Évaluation | D181: Evaluación | E181: title | F181: =HLOOKUP($C$2,$B$8:$D181,$A181,FALSE) -> Appraisal | G181: title174
A182: 175 | B182: Project lifetime | C182: Durée de vie du projet | D182: Tiempo de vida del proyecto | E182: title | F182: =HLOOKUP($C$2,$B$8:$D182,$A182,FALSE) -> Project lifetime | G182: title175
A183: 176 | B183: per year | C183: par année | D183: por año | E183: title | F183: =HLOOKUP($C$2,$B$8:$D183,$A183,FALSE) -> per year | G183: title176
A184: 177 | B184: Annual operating and maintenance cost | C184: Coûts d'opérations et d'entretien annuel | D184: Costo anual de operación y mantenimiento | E184: title | F184: =HLOOKUP($C$2,$B$8:$D184,$A184,FALSE) -> Annual operating and maintenance cost | G184: title177
A185: 178 | B185: Sub-total operating cost (USD) | C185: Sous-total des coûts d'opérations (USD) | D185: Sub-total costos de operación (USD) | E185: title | F185: =HLOOKUP($C$2,$B$8:$D185,$A185,FALSE) -> Sub-total operating cost (USD) | G185: title178
A186: 179 | B186: Biomass cost (USD/year) | C186: Coût de la biomasse (USD/an) | D186: Costo de la biomasa (USD/año) | E186: title | F186: =HLOOKUP($C$2,$B$8:$D186,$A186,FALSE) -> Biomass cost (USD/year) | G186: title179
A187: 180 | B187: Water cost (USD/year) | C187: Coût de l'eau (USD/an) | D187: Costo del agua (USD/año) | E187: title | F187: =HLOOKUP($C$2,$B$8:$D187,$A187,FALSE) -> Water cost (USD/year) | G187: title180
A188: 181 | B188: Sub-total maintenance cost | C188: Sous-total des coûts d'entretien | D188: Sub-total costos de mantenimiento | E188: title | F188: =HLOOKUP($C$2,$B$8:$D188,$A188,FALSE) -> Sub-total maintenance cost | G188: title181
A189: 182 | B189: Sub-total of annual investment cost | C189: Sous-total des coûts d'investissement annuel | D189: Sub-total del costo anual de la inversión | E189: title | F189: =HLOOKUP($C$2,$B$8:$D189,$A189,FALSE) -> Sub-total of annual investment cost | G189: title182
A190: 183 | B190: Total annual production cost (USD) | C190: Total des coûts de production annuelle (USD) | D190: Costo de producción total anual (USD) | E190: title | F190: =HLOOKUP($C$2,$B$8:$D190,$A190,FALSE) -> Total annual production cost (USD) | G190: title183
A191: 184 | B191: Financial without policy | C191: Analyse financière sans politique | D191: Análisis financiero antes de intereses | E191: title | F191: =HLOOKUP($C$2,$B$8:$D191,$A191,FALSE) -> Financial without policy | G191: title184
A192: 185 | B192: Loan payment (USD/month) | C192: Paiement de prêt (USD/mois) | D192: Pago del crédito (USD/mes) | E192: title | F192: =HLOOKUP($C$2,$B$8:$D192,$A192,FALSE) -> Loan payment (USD/month) | G192: title185
A193: 186 | B193: Loan payment (USD/year) | C193: Paiement de prêt (USD/an) | D193: Pago del crédito (USD/año) | E193: title | F193: =HLOOKUP($C$2,$B$8:$D193,$A193,FALSE) -> Loan payment (USD/year) | G193: title186
A194: 187 | B194: Total loan payment (USD) | C194: Paiement total du prêt (USD) | D194: Pago total del crédito (USD) | E194: title | F194: =HLOOKUP($C$2,$B$8:$D194,$A194,FALSE) -> Total loan payment (USD) | G194: title187
A195: 188 | B195: Loan interest payment (USD) | C195: Paiement prêt d'intérêt (USD) | D195: Pago de interés del crédito (USD) | E195: title | F195: =HLOOKUP($C$2,$B$8:$D195,$A195,FALSE) -> Loan interest payment (USD) | G195: title188
A196: 189 | B196: Average loan interest payment for project lifetime | C196: Paiement prêt d'intérêt moyen pour la vie du projet | D196: Pago de intereses del préstamo promedio por la vida del proyecto | E196: title | F196: =HLOOKUP($C$2,$B$8:$D196,$A196,FALSE) -> Average loan interest payment for project lifetime | G196: title189
A197: 190 | B197: Total revenue (USD) | C197: Total des revenus (USD) | D197: Ingresos totales (USD) | E197: title | F197: =HLOOKUP($C$2,$B$8:$D197,$A197,FALSE) -> Total revenue (USD) | G197: title190
A198: 191 | B198: Total operating and maintenance cost (USD) | C198: Total des coûts d'opérations et d'entretien (USD) | D198: Costo total de operación y mantenimiento (USD) | E198: title | F198: =HLOOKUP($C$2,$B$8:$D198,$A198,FALSE) -> Total operating and maintenance cost (USD) | G198: title191
A199: 192 | B199: Loan payment (USD) | C199: Paiement de prêt (USD) | D199: Pago del crédito (USD) | E199: title | F199: =HLOOKUP($C$2,$B$8:$D199,$A199,FALSE) -> Loan payment (USD) | G199: title192
A200: 193 | B200: Cash flow (USD per year) | C200: Flux de trésorerie (USD par année) | D200: El flujo de efectivo (USD por año) | E200: title | F200: =HLOOKUP($C$2,$B$8:$D200,$A200,FALSE) -> Cash flow (USD per year) | G200: title193
A201: 194 | B201: Financial analysis without policy | C201: Analyse financière sans politique | D201: Análisis financiero sin incentivos | E201: title | F201: =HLOOKUP($C$2,$B$8:$D201,$A201,FALSE) -> Financial analysis without policy | G201: title194
A202: 195 | B202: Net present value | C202: Valeur actuelle nette | D202: Valor Actual Neto | E202: title | F202: =HLOOKUP($C$2,$B$8:$D202,$A202,FALSE) -> Net present value | G202: title195
... 94 more rows

Sheet Start
B2: EN
C24: =title2 -> Disclaimer
C25: =title3 -> FAO declines all responsibility for errors or deficiencies in the database or software or in the documentation accompanying it, for program maintenance and upgrading as well as for any damage that may arise from them. FAO also declines any responsibility for updating the data and assumes no responsibility for errors and omissions in the data provided. Users are, however, kindly asked to report any errors or deficiencies in this product to FAO. The choices of calculation made in this tool are those of the author(s) and do not necessarily reflect the views and choices of the Food and Agriculture Organization of the United Nations. © FAO, 2014.
C28: © FAO, 2014

Sheet Process Description
C3: =title18 -> BIOGAS SYSTEM FOR RURAL ENERGY
M6: =title19 -> Non monetary benefits | O6: =title25 -> Effect | P6: =title26 -> How?
M7: =title20 -> Smokeless kitchen | O7: + | P7: =title27 -> Reducing the amount of biomass used in the kitchen decreases the amount of pollution.
M8: =title21 -> Effects of bioslurry on agriculture | O8: + | P8: =title28 -> Bioslurry can have a positive effect on soil and agricultural yields.
M9: =title22 -> Health and hygiene | O9: + | P9: =title29 -> Heating water can improve the general hygienic conditions at households levels and reduces diseases.
M10: =title23 -> Study hours | O10: + | P10: =title30 -> Extended light availability.
M11: =title24 -> Economic activities | O11: - / + | P11: =title31 -> Potential displacement of economic activities primarily related to firewood, charcoal and LPG vendors. Creation of employment opportunities from building, management and processing of biogas plants.

Sheet Energy_Demand
C3: =title32 -> ENERGY DEMAND FOR BIOGAS PRODUCTION
C6: =title33 -> Use white cells to input data | E6: =title34 -> Grey cells are used for calculations
C7: =title35 -> Energy Consumption per rural household
G9: =title41 -> Energy expenditure | J9: =title43 -> Biogas equivalent requirement
D10: =title36 -> Price | E10: =title38 -> Consumption
D11: =title37 -> USD/unit | E11: =title39 -> unit/day | F11: =title40 -> unit/year | G11: =title42 -> USD/year | J11: =title44 -> m3/day/hh | K11: =title45 -> m3/year/hh
C12: =title287&" (kg)" -> Coal (kg) | F12: =E12*365 -> 0 | G12: =D12*F12 -> 0 | I12: =+$D12/PROPERTIES_DATABASE!$F32 -> 0 | J12: =$E12/(PROPERTIES_DATABASE!$E32) -> 0 | K12: =J12*365 -> 0
C13: =title288&" (m3)" -> Natural Gas (m3) | F13: =E13*365 -> 0 | G13: =D13*F13 -> 0 | I13: =+$D13/PROPERTIES_DATABASE!$F33 -> 0 | J13: =$E13/(PROPERTIES_DATABASE!$E33) -> 0 | K13: 0
C14: =title12&" (kg)" -> Fuelwood (kg) | F14: 0 | G14: =D14*F14 -> 0 | I14: =+$D14/PROPERTIES_DATABASE!$F35 -> 0 | J14: =$E14/(PROPERTIES_DATABASE!$E36) -> 0 | K14: 0
C15: =title13&" (kg)" -> Charcoal (kg) | F15: 0 | G15: =D15*F15 -> 0 | I15: =+$D15/PROPERTIES_DATABASE!$F37 -> 0 | J15: =$E15/(PROPERTIES_DATABASE!$E37) -> 0 | K15: 0
C16: =title14&" (kg)" -> Briquettes/Pellets (kg) | F16: 0 | G16: =D16*F16 -> 0 | I16: =+$D16/PROPERTIES_DATABASE!$F35 -> 0 | J16: =$E16/(PROPERTIES_DATABASE!$E35) -> 0 | K16: 0
C17: =title15&" (l)" -> Kerosene (l) | F17: 0 | G17: =F17*D17 -> 0 | I17: =+$D17/PROPERTIES_DATABASE!$F38 -> 0 | J17: =$E17/(PROPERTIES_DATABASE!$E38) -> 0 | K17: 0
C18: =title16&" (l)" -> LPG (l) | F18: 0 | G18: =F18*D18 -> 0 | I18: =+$D18/PROPERTIES_DATABASE!$F39 -> 0 | J18: =$E18/(PROPERTIES_DATABASE!$E39) -> 0 | K18: 0
C19: =title17&" (kWh)" -> Electricity (kWh) | F19: 0 | G19: =F19*D19 -> 0 | I19: =+$D$19 -> 0 | J19: =$E19*3.6/(PROPERTIES_DATABASE!$D$26*PROPERTIES_DATABASE!$D$34) -> 0 | K19: 0
E20: 1 | G20: =SUM(G12:H19) -> 0 | J20: =SUM(J12:J19) -> 0 | K20: =SUM(K12:K19) -> 0
C22: Avoided Fossil fuel Consumption
D24: =title5 -> Size 1 | G24: =title6 -> Size 2 | J24: =title7 -> Size 3 | M24: =title8 -> Size 4
D25: Biogas (m3/year) | F25: =COST_SIZE1!G8 ->  | G25: Biogas (m3/year) | I25: =COST_SIZE2!G8 ->  | J25: Biogas (m3/year) | L25: =COST_SIZE3!G8 ->  | M25: Biogas (m3/year) | O25: =COST_SIZE4!G8 -> 
D26: Avoided | F26: Expenditures | G26: Avoided | I26: Expenditures | J26: Avoided | L26: Expenditures | M26: Avoided | O26: Expenditures
D27: fuel consumption | F27: avoided | G27: fuel consumption | I27: avoided | J27: fuel consumption | L27: avoided | M27: fuel consumption | O27: avoided
D28: (%) | E28: =title40 -> unit/year | F28: =title42 -> USD/year | G28: (%) | H28: =title40 -> unit/year | I28: =title42 -> USD/year | J28: (%) | K28: =title40 -> unit/year | L28: =title42 -> USD/year | M28: (%) | N28: =title40 -> unit/year | O28: =title42 -> USD/year
C29: Fossil Fuels | D29: =+F25/$K$20 ->  | E29: =+F25 ->  | F29: =+($G$20/$K$20)*F25 ->  | G29: =+I25/$K$20 ->  | H29: =+I25 ->  | I29: =+($G$20/$K$20)*I25 ->  | J29: =+L25/$K$20 ->  | K29: =+L25 ->  | L29: =+($G$20/$K$20)*L25 ->  | M29: =+O25/$K$20 ->  | N29: =+O25 ->  | O29: =+($G$20/$K$20)*O25 -> 
E30: =SUM(E29:E29) ->  | F30: =SUM(F29:F29) ->  | H30: =SUM(H29:H29) ->  | I30: =SUM(I29:I29) ->  | K30: =SUM(K29:K29) ->  | L30: =SUM(L29:L29) ->  | N30: =SUM(N29:N29) ->  | O30: =SUM(O29:O29) -> 

Sheet Data entry needs
C3: =title46 -> DATA ENTRY FOR BIOGAS PRODUCTION
C6: =title33 -> Use white cells to input data | D6: =title34 -> Grey cells are used for calculations
C8: =title47 -> Manure Type Selection and Sizes Definition
C10: =title48 -> Manure type | D10: =title49 -> Country | E10: =+VLOOKUP($AA$97,DUMMY_DATABASE!$B$18:$C$244,2,FALSE) -> 0 | F10: =+"Region "&E10 -> Region 0 | G10: =title50 -> Average annual temperature (°C)
D12: =title51 -> Total manure available (t/year) | F12: =title52 -> Number of stable reared heads
D14: =title53 -> Number of animals per community
D15: =UPPER(title5) -> SIZE 1 | E15: =UPPER(title6) -> SIZE 2 | F15: =UPPER(title7) -> SIZE 3 | G15: =UPPER(title8) -> SIZE 4 | AB15: heads/hh | AC15: head | AD15: hh | AE15: =title118 -> Kg/day | AF15: =title117 -> kg/day/hh
C16: =title54 -> Number of animals (Range) | AB16: =+AVERAGE(AC22:AD22) -> 0 | AC16: =+$F$13*$D$18 -> 0 | AD16: =+AC16/AB16 ->  | AE16: =+$D$13*$D$18 -> 0 | AF16: =+AE16*1000/AD16/365 -> 
C17: =title55 -> Volatile Solids Available (kg VS/day/household) | D17: =D19/VLOOKUP($AA$92,DUMMY_DATABASE!$F$8:$G$10,2,FALSE) -> 0 | E17: =E19/VLOOKUP($AA$92,DUMMY_DATABASE!$F$8:$G$10,2,FALSE) -> 0 | F17: =F19/VLOOKUP($AA$92,DUMMY_DATABASE!$F$8:$G$10,2,FALSE) -> 0 | G17: =G19/VLOOKUP($AA$92,DUMMY_DATABASE!$F$8:$G$10,2,FALSE) -> 0 | AB17: =+AVERAGE(AC23:AD23) -> 0 | AC17: =+$F$13*$E$18 -> 0 | AD17: =+AC17/AB17 ->  | AE17: =+$D$13*$E$18 -> 0 | AF17: =+AE17*1000/AD17/365 -> 
C18: =title56 -> Share of heads (%) | AB18: =+AVERAGE(AC24:AD24) -> 0 | AC18: =+$F$13*$F$18 -> 0 | AD18: =+AC18/AB18 ->  | AE18: =+$D$13*$F$18 -> 0 | AF18: =+AE18*1000/AD18/365 -> 
C19: =title57 -> Manure available (kg manure/day/household) | D19: =+VLOOKUP(D15&$AA$92,DUMMY_DATABASE!$K$3:$M$14,3,FALSE) -> 0 | E19: =+VLOOKUP(E15&$AA$92,DUMMY_DATABASE!$K$3:$M$14,3,FALSE) -> 0 | F19: =+VLOOKUP(F15&$AA$92,DUMMY_DATABASE!$K$3:$M$14,3,FALSE) -> 0 | G19: =+VLOOKUP(G15&$AA$92,DUMMY_DATABASE!$K$3:$M$14,3,FALSE) -> 0 | AB19: =+AVERAGE(AC25:AD25) -> 0 | AC19: =+$F$13*$G$18 -> 0 | AD19: =+AC19/AB19 ->  | AE19: =+$D$13*$G$18 -> 0 | AF19: =+AE19*1000/AD19/365 -> 
C21: =title58 -> Type of Digesters | AB21: Range | AC21: min | AD21: max
AB22: =title5 -> Size 1 | AC22: 0 | AD22: 0
C23: =title59 -> Fixed dome | D23: =title62 -> The fixed dome digester is filled through the inlet pipe until the level reaches the bottom level of the expansion chamber. The produced biogas is accumulated at the upper part of the digester called storage part. The difference in the level between slurry inside of the digester and the expansion chamber creates a gas pressure. The collected gas requires space and presses a part of the substrate into an expansion chamber. The slurry flows back into the digester immediately after gas is released. Fixed dome digesters are usually built underground. | AB23: =title6 -> Size 2 | AC23: 0 | AD23: 0
AB24: =title7 -> Size 3 | AC24: 0 | AD24: 0
AB25: =title8 -> Size 4 | AC25: 0 | AD25: 0
C27: =title60 -> Floating drum | D27: =title63 -> This design includes a movable inverted drum placed on a well-shaped digester. An inverted steel drum that acts as a storage tank is placed on the digester, which can move up and down depending on the amount of accumulated gas at the top of the digester. The weight of this inverted drum applies the pressure needed for the gas flow through the pipeline for use. Floating drum digesters produce biogas at a constant pressure with variable volume.
AB28: t/head/year | AC28: heads/hh | AD28: =title117 -> kg/day/hh
AB29: =+$D$13*$D$18/$F$13 ->  | AC29: 4 | AD29: =+AC29*AB29*10000/365 -> 
AB30: =+$D$13*$E$18/$F$13 ->  | AC30: 6 | AD30: =+AC30*AB30*10000/365 -> 
AB31: =+$D$13*$F$18/$F$13 ->  | AC31: 8 | AD31: =+AC31*AB31*10000/365 -> 
C32: =title61 -> Tubular bag | D32: =title64 -> Tubular or Plug-flow digesters consist of a narrow and long tank with, an average length to width ratio of 5:1.The inlet and outlet of the digester are located at opposite ends, kept above ground, while the remaining parts of the digester is buried in the ground in an inclined position. As the fresh substrate is added from the inlet, the digestated flows towards the outlet at the other end of the tank. | AB32: =+$D$13*$G$18/$F$13 ->  | AC32: 10 | AD32: =+AC32*AB32*10000/365 -> 
C35: =title65 -> Production Cost and Financial Parameters
C37: =title66 -> Input prices | E37: =title69 -> Unit | H37: =title69 -> Unit
C38: =title67 -> Feedstock | E38: USD/t | F38: =title70 -> Water | H38: USD/m3
C40: =title68 -> Selection of materials costing method | E40: =title69 -> Unit | H40: =title69 -> Unit
D42: =+VLOOKUP($AB$103,$AB$105:$AE$106,2) -> Selecting this option you are asked for the simple and basic materials required to build biodigester.
D43: =+VLOOKUP($AB$103,$AB$105:$AE$106,3) -> Other materials costs are calculated as a fraction of the materials costs introduced.
D44: =IF($AB$103=2,"",VLOOKUP($AB$103,$AB$105:$AE$106,4)) -> By accessing to each COST_SIZE# sheet, you can check proxies for quantities and costs of the full list of materials.
C46: =title74 -> Materials - Simple costing | E46: =title69 -> Unit | H46: =title69 -> Unit
C47: =title75 -> Bricks | E47: =title78 -> Piece | F47: =title80 -> Sand | H47: m3
C48: =title76 -> Cement 50 kg | E48: =title79 -> Bag | F48: =title81 -> Gravel | H48: m3
C49: =title77 -> Plastic bag (0.2 mm thick) | E49: m
C51: =title203 -> Materials - detailed costing | E51: =title69 -> Unit | H51: =title69 -> Unit
C52: =title75 -> Bricks | E52: pc | F52: =title209 -> Plastic valve 1/2'' | H52: pc
C53: =title76 -> Cement 50 kg | E53: =title79 -> Bag | F53: =title210 -> Plastic hub 1/2'' | H53: pc
C54: =title80 -> Sand | E54: m3 | F54: =title211 -> Pneumatic league | H54: pc
C55: =title81 -> Gravel | E55: m3 | F55: =title212 -> H2S filter | H55: set
C56: =title204 -> Paint | E56: l | F56: =title213 -> Main valve | H56: pc
C57: =title205 -> Net cyclone 4'' feet | E57: pc | F57: =title214 -> Mixing device | H57: pc
C58: =title206 -> Zinc sheets | E58: kg | F58: =title215 -> Gas stove | H58: pc
C59: =title207 -> Plastic bag (0,2 mm thick) | E59: m | F59: =title216 -> Gaslight | H59: pc
C60: =title208 -> Pressure manometer | E60: pc
C62: =title82 -> Other costs | E62: =title69 -> Unit
C63: =title83 -> Maintenance (%)
C64: =title84 -> Labour | E64: =title69 -> Unit | H64: =title69 -> Unit
C65: =title85 -> Semi-skilled worker (masonry) | E65: =title86 -> USD/person-hour | F65: =title87 -> Unskilled worker | H65: =title86 -> USD/person-hour
C68: =title88 -> Household (hh) Profile
C70: =title89 -> Fuelwood collection | E70: =title94 -> Time usage | G70: =title100 -> Average time spent | H70: =title69 -> Unit
C71: =title90 -> Share of hh collecting fuelwood | E71: =title89 -> Fuelwood collection | H71: =title101 -> h/day
C72: =title91 -> Share of hh purchasing fuelwood | D72: =100%-D71 -> 1 | E72: =title95 -> Cooking using fuelwood | H72: =title101 -> h/day
C74: =title92 -> Income-earning opportunity in rural areas from Biogas use | E74: =title96 -> Biogas-related activities | G74: =title100 -> Average time spent | H74: =title69 -> Unit
C75: =title93 -> Share of net time saved dedicated to income generation (%) | E75: =title97 -> Dung collection | H75: =title101 -> h/day
E76: =title98 -> Water collection | H76: =title101 -> h/day
E77: =title99 -> Mixing the digester | H77: =title101 -> h/day
C79: =title102 -> Social Benefits
C81: =title103 -> Consumption fertilizer per household | D81: =title110 -> Unit Price | E81: =title38 -> Consumption | G81: =title112 -> Financial variables
D82: USD/kg | E82: =title111 -> kg/year | F82: =title69 -> Unit
C83: =title104 -> Nitrogen | G83: =title113 -> Loan interest rate (%)
C84: =title105 -> Phosphorous | G84: =title114 -> Loan term (years)
C85: =title106 -> Potassium | G85: =title115 -> Discount rate (%)
C86: =title107 -> Do you use manure as fertilizer? | E86: no | G86: =title116 -> Loan ratio (%)
C87: =title222 -> How much manure is used as fertilizer? | F87: =title111 -> kg/year
C89: =title108 -> Implementation of Biogas Programme
C90: =title109 -> Implementation of Biogas Programme (years)
AA92: Dairy cattle
AA93: =title9 -> Dairy cattle
AA94: =title11 -> Buffalo
AA95: =title10 -> Swine
AA97: Select a country
AA99: =title221 -> yes
AA100: no
Z101: Fertilizer | AA101: =+IF($E$86="no",TRUE,FALSE) -> TRUE
AA103: Costing | AB103: 1
AA104: selection
AA105: Simple | AB105: 1 | AC105: =title71 -> Selecting this option you are asked for the simple and basic materials required to build biodigester. | AD105: =title72 -> Other materials costs are calculated as a fraction of the materials costs introduced. | AE105: =title73 -> By accessing to each COST_SIZE# sheet, you can check proxies for quantities and costs of the full list of materials.
AA106: Detailed | AB106: 2 | AC106: =title285 -> Selecting this option you are asked for a full list of materials required to build a biodigester. | AD106: =title73 -> By accessing to each COST_SIZE# sheet, you can check proxies for quantities and costs of the full list of materials.

Sheet COST_SIZE1
C3: =title119&'Data entry needs'!$D$15 -> PROCESSING COSTS FOR BIOGAS PRODUCTION SIZE 1
C6: =title33 -> Use white cells to input data | D6: =title34 -> Grey cells are used for calculations
C8: =title120 -> Biogas production (m3/day) | D8: ='Model Calculations_ALL'!D32 ->  | E8: =title121 -> Biogas production (m3/year) | G8: =D8*365 ->  | H8: =title122 -> Recommended size of biodigestor (m3) | K8: =IF('Model Calculations_ALL'!$D$29<1,ROUNDUP('Model Calculations_ALL'!$D$29,2),ROUNDUP('Model Calculations_ALL'!$D$29,0)) -> 0
C11: Materials Cost Details
F13: =title145 -> Biodigester Options
F14: =title59 -> Fixed dome | H14: =title60 -> Floating drum | J14: =title146 -> Tubular
C17: =title148 -> Operating costs | D17: =title69 -> Unit | E17: =title110 -> Unit Price | F17: =title130 -> Quantity | G17: Total | H17: =title130 -> Quantity | I17: Total | J17: =title130 -> Quantity | K17: Total
E18: ="("&title37&")" -> (USD/unit) | F18: ="("&title40&")" -> (unit/year) | G18: ="("&title42&")" -> (USD/year) | H18: ="("&title40&")" -> (unit/year) | I18: ="("&title42&")" -> (USD/year) | J18: ="("&title40&")" -> (unit/year) | K18: ="("&title42&")" -> (USD/year)
C19: =title67 -> Feedstock | D19: t | E19: ='Data entry needs'!$D$38 -> 0 | F19: =(('Model Calculations_ALL'!$D$25)/1000)*365 -> 0 | G19: =E19*F19 -> 0 | H19: =+F19 -> 0 | I19: =E19*H19 -> 0 | J19: =+H19 -> 0 | K19: =J19*E19 -> 0
C20: =title149 -> Water/urine | D20: m3 | E20: ='Data entry needs'!$G$38 -> 0 | F20: =(('Model Calculations_ALL'!$D$26)/1000)*365 -> 0 | G20: =E20*F20 -> 0 | H20: =+F20 -> 0 | I20: =E20*H20 -> 0 | J20: =+H20 -> 0 | K20: =J20*E20 -> 0
C21: =title150 -> Subtotal | E21: =title42 -> USD/year | G21: =SUM(G19:G20) -> 0 | I21: =SUM(I19:I20) -> 0 | K21: =SUM(K19:K20) -> 0
C23: =title151 -> Labour for installation and construction | D23: =title69 -> Unit | E23: =title110 -> Unit Price | F23: =title130 -> Quantity | G23: Total | H23: =title130 -> Quantity | I23: Total | J23: =title130 -> Quantity | K23: Total
E24: ="("&title86&")" -> (USD/person-hour) | F24: ="("&title154&")" -> (person-day) | G24: (USD) | H24: ="("&title154&")" -> (person-day) | I24: (USD) | J24: ="("&title154&")" -> (person-day) | K24: (USD)
C25: =title87 -> Unskilled worker | D25: =title154 -> person-day | E25: ='Data entry needs'!G65 -> 0 | F25: =MATERIALS_ALL!$F$28+MATERIALS_ALL!$F$30 -> 14.299 | G25: =E25*F25*8 -> 0 | H25: =MATERIALS_ALL!$F$56+MATERIALS_ALL!$F$58 -> 12.81 | I25: =E25*H25*8 -> 0 | J25: =MATERIALS_ALL!$F$85+MATERIALS_ALL!$F$87 -> 3 | K25: =E25*J25*8 -> 0
C26: =title152 -> Skilled worker | D26: =title154 -> person-day | E26: ='Data entry needs'!D65 -> 0 | F26: =MATERIALS_ALL!$F$29 -> 4.819 | G26: =E26*F26*8 -> 0 | H26: =MATERIALS_ALL!$F$58 -> 4.81 | I26: =H26*E26*8 -> 0 | J26: =MATERIALS_ALL!$F$86 -> 2 | K26: =J26*E26*8 -> 0
C27: =title153 -> Total labour for installation | E27: USD | F27: =SUM(G25:G26) -> 0 | H27: =SUM(I25:I26) -> 0 | J27: =SUM(K25:K26) -> 0
C28: =title124 -> Construction materials | D28: =title69 -> Unit | E28: =title110 -> Unit Price | F28: =title130 -> Quantity | G28: Total | H28: =title130 -> Quantity | I28: Total | J28: =title130 -> Quantity | K28: Total
E29: ="("&title37&")" -> (USD/unit) | F29: ="("&title69&")" -> (Unit) | G29: (USD) | H29: ="("&title69&")" -> (Unit) | I29: (USD) | J29: ="("&title69&")" -> (Unit) | K29: (USD)
C30: =title75 -> Bricks | D30: pc | E30: =+MATERIALS_ALL!$M$10 -> 0 | F30: =MATERIALS_ALL!$F$34 -> 706.8 | G30: =F30*E30 -> 0 | H30: =MATERIALS_ALL!$F$61 -> 1413.6 | I30: =H30*E30 -> 0
C31: =title125 -> Cement 50 kg bag | D31: =LOWER(title79) -> bag | E31: =+MATERIALS_ALL!$M$11 -> 0 | F31: =MATERIALS_ALL!$F$35 -> 7.224 | G31: =F31*E31 -> 0 | H31: =MATERIALS_ALL!$F$62 -> 6.5016 | I31: =H31*E31 -> 0
C32: =title80 -> Sand | D32: m3 | E32: =+MATERIALS_ALL!$M$12 -> 0 | F32: =MATERIALS_ALL!$F$36 -> 1.652 | G32: =F32*E32 -> 0 | H32: =MATERIALS_ALL!$F$63 -> 0.608 | I32: =H32*E32 -> 0
C33: =title81 -> Gravel | D33: m3 | E33: =+MATERIALS_ALL!$M$13 -> 0 | F33: =MATERIALS_ALL!$F$37 -> 0.864 | G33: =F33*E33 -> 0 | H33: =MATERIALS_ALL!$F$64 -> 0.35 | I33: =H33*E33 -> 0
C34: =title126 -> Tubular bag (0,2 mm thick) | D34: =title131 -> metre | E34: =+MATERIALS_ALL!$M$14 -> 0 | J34: =MATERIALS_ALL!$F$90 -> 12.06 | K34: =J34*E34 -> 0
C35: =title127 -> Other Materials | D35: % | F35: =IF('Data entry needs'!$AB$103=1,MATERIALS_ALL!$P$10,0) -> 0.465718817 | G35: =IF('Data entry needs'!$AB$103=1,SUM(G30:G34)*(F35/(1-F35)),0) -> 0 | H35: =IF('Data entry needs'!$AB$103=1,MATERIALS_ALL!$Q$10,0) -> 0.5402978483 | I35: =IF('Data entry needs'!$AB$103=1,SUM(I30:I34)*(H35/(1-H35)),0) -> 0 | J35: =IF('Data entry needs'!$AB$103=1,MATERIALS_ALL!$R$10,0) -> 0.8817716448 | K35: =IF('Data entry needs'!$AB$103=1,SUM(K30:K34)*(H49/F49/(1-J35)),0) -> 
C36: =title128 -> Other accessories | D36: % | F36: =(MATERIALS_ALL!$F$39+MATERIALS_ALL!$F$40) -> 0.16865 | G36: =IF('Data entry needs'!$AB$104=1,(SUM(G30:G33)+G35)*(F36/(1-F36)),(SUM(G30:G33)+SUM(G37:G48))*(F36/(1-F36))) -> 0 | H36: =MATERIALS_ALL!$F$66+MATERIALS_ALL!$F$67 -> 0.19 | I36: =IF('Data entry needs'!$AB$104=1,(SUM(I30:I33)+I35)*(H36/(1-H36)),(SUM(I30:I33)+SUM(I37:I48))*(H36/(1-H36))) -> 0 | J36: =MATERIALS_ALL!$F$96+MATERIALS_ALL!$F$97 -> 0.05213 | K36: =IF('Data entry needs'!$AB$103=1,(SUM(K30:K34)+K35)*(J36/(1-J36)),(SUM(K30:K34)+SUM(K37:K48))*(J36/(1-J36))) -> 
C37: Paint | D37: l | E37: =+MATERIALS_ALL!$M$15 -> 0 | F37: =MATERIALS_ALL!$F$38 -> 0.351 | G37: =F37*E37 -> 0 | H37: =MATERIALS_ALL!$F$65 -> 1.145 | I37: =H37*E37 -> 0
C38: Net cyclone 4'' feet | D38: roll | E38: =+MATERIALS_ALL!$M$16 -> 0 | G38: =F38*E38 -> 0 | I38: =H38*E38 -> 0 | J38: =MATERIALS_ALL!$F$94 -> 0 | K38: =J38*E38 -> 0
C39: Zinc sheets | D39: kg | E39: =+MATERIALS_ALL!$M$17 -> 0 | G39: 0 | I39: 0 | J39: =MATERIALS_ALL!$F$95 -> 0 | K39: 0
C40: Plastic valve 1/2'' | D40: pc | E40: =+MATERIALS_ALL!$M$18 -> 0 | G40: 0 | I40: 0 | J40: =MATERIALS_ALL!$F$91 -> 4 | K40: 0
C41: Plastic hub 1/2'' | D41: pc | E41: =+MATERIALS_ALL!$M$19 -> 0 | G41: 0 | I41: 0 | J41: =MATERIALS_ALL!$F$92 -> 2 | K41: 0
C42: Pneumatic league | D42: pc | E42: =+MATERIALS_ALL!$M$20 -> 0 | G42: 0 | I42: 0 | J42: =MATERIALS_ALL!$F$93 -> 60 | K42: 0
C43: Gas stove | D43: pc | E43: =+MATERIALS_ALL!$M$21 -> 0 | F43: 1 | G43: 0 | H43: 1 | I43: 0 | J43: 1 | K43: 0
C44: Gas light | D44: pc | E44: =+MATERIALS_ALL!$M$22 -> 0 | F44: 1 | G44: 0 | H44: 1 | I44: 0 | J44: 1 | K44: 0
C45: Main valve | D45: pc | E45: =+MATERIALS_ALL!$M$23 -> 0 | F45: 1 | G45: 0 | H45: 1 | I45: 0 | J45: 1 | K45: 0
C46: H2S filter | D46: set | E46: =+MATERIALS_ALL!$M$24 -> 0 | F46: 1 | G46: 0 | H46: 1 | I46: 0 | J46: 1 | K46: 0
C47: Pressure manometer | D47: pc | E47: =+MATERIALS_ALL!$M$25 -> 0 | F47: 1 | G47: 0 | H47: 1 | I47: 0 | J47: 1 | K47: 0
C48: Mixing decive | D48: pc | E48: =+MATERIALS_ALL!$M$26 -> 0 | F48: 1 | G48: =F48*E48 -> 0 | H48: 1 | I48: =H48*E48 -> 0 | J48: 1 | K48: 0
C49: =title129 -> Total construction material | E49: USD | F49: =IF('Data entry needs'!$AB$103=1,SUM(G30:G48),SUM(G30:G34,G36:G48)) -> 0 | H49: =IF('Data entry needs'!$AB$103=1,SUM(I30:I48),SUM(I30:I34,I36:I48)) -> 0 | J49: =IF('Data entry needs'!$AB$103=1,SUM(K30:K48),SUM(K30:K34,K36:K48)) -> 
C50: Total investment cost | E50: USD | F50: =+(F49+F27) -> 0 | H50: =+(H49+H27) -> 0 | J50: =+(J49+J27) -> 
F51: =title157 -> Total Depreciation | G51: =+F50/MATERIALS_ALL!$D$4 -> 0 | H51: =title157 -> Total Depreciation | I51: =+H50/MATERIALS_ALL!$D$5 -> 0 | J51: =title157 -> Total Depreciation | K51: =+J50/MATERIALS_ALL!$D$6 -> 
C52: =title155 -> Total maintenance cost | E52: =+'Data entry needs'!$D$63 -> 0 | G52: =+G51*$E$52 -> 0 | I52: =+I51*$E$52 -> 0 | K52: =+K51*$E$52 -> 
C53: =title156 -> Subtotal fixed costs | E53: =title42 -> USD/year | G53: =SUM(G51:G52) -> 0 | I53: =SUM(I51:I52) -> 0 | K53: =SUM(K51:K52) -> 
C55: =title82 -> Other costs | G55: Total | I55: =title158 -> Depreciation | K55: =title158 -> Depreciation
G56: ="("&title42&")" -> (USD/year) | I56: ="("&title42&")" -> (USD/year) | K56: ="("&title42&")" -> (USD/year)
C57: =title141 -> Loan interest | G57: =-FA_FIXED_SIZE1!$K$30 -> 0 | I57: =-FA_FLOATING_SIZE1!$K$30 -> 0 | K57: =-FA_TUBULAR_SIZE1!$K$30 -> 
C58: =title156 -> Subtotal fixed costs | E58: =title42 -> USD/year | G58: =SUM(G55:G57) -> 0 | I58: =SUM(I55:I57) -> 0 | K58: =SUM(K55:K57) -> 
C60: =title159 -> Total costs | F60: =title59 -> Fixed dome | H60: =title60 -> Floating drum | J60: =title146 -> Tubular
C61: Investment | F61: ="("&title42&")" -> (USD/year) | H61: ="("&title42&")" -> (USD/year) | J61: ="("&title42&")" -> (USD/year)
C62: =title160 -> Total operating costs | F62: =+G21 -> 0 | G62: =+F62/$G$65 ->  | H62: =+I21 -> 0 | I62: =+H62/$I$65 ->  | J62: =+K21 -> 0 | K62: =+J62/$K$65 -> 
C63: =title161 -> Total fixed costs | F63: =+G53 -> 0 | G63: =+F63/$G$65 ->  | H63: =+I53 -> 0 | I63: =+H63/$I$65 ->  | J63: =+K53 ->  | K63: =+J63/$K$65 -> 
C64: =title162 -> Total other costs | F64: =+G58 -> 0 | G64: =+F64/$G$65 ->  | H64: =+I58 -> 0 | I64: =+H64/$I$65 ->  | J64: =+K58 ->  | K64: =+J64/$K$65 -> 
C65: =title163 -> Total production costs | G65: =+F62+F63+F64 -> 0 | I65: =I21+I53+I57 -> 0 | K65: =K21+K53+K57 -> 
C67: =title132 -> Total Production Cost
F69: =title145 -> Biodigester Options
F70: =title59 -> Fixed dome | H70: =title60 -> Floating drum | J70: =title146 -> Tubular
C71: =title133 -> Unit cost of biogas (USD/m3) | G71: =G65/G8 ->  | I71: =I65/G8 ->  | K71: =K65/G8 -> 
C73: =title134 -> Average loan interest without policy | D73: =title69 -> Unit | E73: =title116 -> Loan ratio (%) | F73: =title147 -> Total investment | G73: =title135 -> Loan amount | H73: =title147 -> Total investment | I73: =title135 -> Loan amount | J73: =title147 -> Total investment | K73: =title135 -> Loan amount
F74: (USD) | G74: (USD) | H74: (USD) | I74: (USD) | J74: (USD) | K74: (USD)
C75: =title135 -> Loan amount | D75: USD | E75: =+'Data entry needs'!$H$86 -> 0 | F75: =+$F$50 -> 0 | G75: =$E$75*F75 -> 0 | H75: =+$H$50 -> 0 | I75: =$E$75*H75 -> 0 | J75: =+$J$50 ->  | K75: =$E$75*J75 -> 
C76: =title136 -> Loan interest rate | D76: % | G76: =+'Data entry needs'!$H$83 -> 0 | I76: =+G76 -> 0 | K76: =+I76 -> 0
C77: =title137 -> Loan payment | D77: =title143 -> USD/month | G77: =PMT(G76/12,G79*12,G75,0) ->  | I77: =PMT(I76/12,I79*12,I75,0) ->  | K77: =PMT(K76/12,K79*12,K75,0) -> 
C78: =title138 -> Annual loan payment | D78: =title42 -> USD/year | G78: =G77*12 ->  | I78: =I77*12 ->  | K78: =K77*12 -> 
C79: =title139 -> Loan terms | D79: =title144 -> year | G79: =+'Data entry needs'!$H$84 -> 0 | I79: =+G79 -> 0 | K79: =+G79 -> 0
C80: =title140 -> Total loan payment | D80: USD | G80: =G78*G79 ->  | I80: =I78*I79 ->  | K80: =K78*K79 -> 
C81: =title141 -> Loan interest | D81: USD | G81: =G80+G75 ->  | I81: =I80+I75 ->  | K81: =K80+K75 -> 
C82: =title142 -> Average loan interest | D82: =title42 -> USD/year | G82: =+G81/20 ->  | I82: =+I81/20 ->  | K82: =+K81/10 -> 

Sheet FA_FIXED_SIZE1 (hidden)
B2: =title167 -> FINANCIAL ANALYSIS OF BIOGAS PRODUCTION IN A FIXED DOME BIODIGESTOR
B5: =title168 -> Operating Year | C5: 0 | D5: 1 | E5: 2 | F5: 3 | G5: 4 | H5: 5 | I5: 6 | J5: 7 | K5: 8 | L5: 9 | M5: 10 | N5: 11 | O5: 12 | P5: 13 | Q5: 14 | R5: 15 | S5: 16 | T5: 17 | U5: 18 | V5: 19 | W5: 20
B6: =title169 -> Lifetime of the reactor | C6: 20
C8: =title174 -> Appraisal | D8: =title175 -> Project lifetime | E8: =title176 -> per year
B9: =title170 -> Direct capital cost (USD)
B10: =title171 -> Reactor construction | C10: =+COST_SIZE1!$F$50 -> 0 | D10: =+MATERIALS_ALL!$D$4 -> 20 | E10: =C10/D10 -> 0
B11: =title172 -> Total capital cost (USD) | C11: =SUM(C10:C10) -> 0
B12: =title173 -> Total savings on energy "revenue" | D12: =SUM(D33:W33) ->  | E12: =D12/C6 -> 
B14: =title168 -> Operating Year | C14: =title174 -> Appraisal | D14: 1 | E14: 2 | F14: 3 | G14: 4 | H14: 5 | I14: 6 | J14: 7 | K14: 8 | L14: 9 | M14: 10 | N14: 11 | O14: 12 | P14: 13 | Q14: 14 | R14: 15 | S14: 16 | T14: 17 | U14: 18 | V14: 19 | W14: 20
B15: =title177 -> Annual operating and maintenance cost
B16: =title178 -> Sub-total operating cost (USD) | C16: =C17+C18 -> 0 | D16: =D17+D18 -> 0 | E16: 0 | F16: 0 | G16: 0 | H16: 0 | I16: 0 | J16: 0 | K16: 0 | L16: 0 | M16: 0 | N16: 0 | O16: 0 | P16: 0 | Q16: 0 | R16: 0 | S16: 0 | T16: 0 | U16: 0 | V16: 0 | W16: 0
B17: =title179 -> Biomass cost (USD/year) | C17: =COST_SIZE1!$G$19 -> 0 | D17: =COST_SIZE1!$G$19 -> 0 | E17: =COST_SIZE1!$G$19 -> 0 | F17: =COST_SIZE1!$G$19 -> 0 | G17: =COST_SIZE1!$G$19 -> 0 | H17: =COST_SIZE1!$G$19 -> 0 | I17: =COST_SIZE1!$G$19 -> 0 | J17: =COST_SIZE1!$G$19 -> 0 | K17: =COST_SIZE1!$G$19 -> 0 | L17: =COST_SIZE1!$G$19 -> 0 | M17: =COST_SIZE1!$G$19 -> 0 | N17: =COST_SIZE1!$G$19 -> 0 | O17: =COST_SIZE1!$G$19 -> 0 | P17: =COST_SIZE1!$G$19 -> 0 | Q17: =COST_SIZE1!$G$19 -> 0 | R17: =COST_SIZE1!$G$19 -> 0 | S17: =COST_SIZE1!$G$19 -> 0 | T17: =COST_SIZE1!$G$19 -> 0 | U17: =COST_SIZE1!$G$19 -> 0 | V17: =COST_SIZE1!$G$19 -> 0 | W17: =COST_SIZE1!$G$19 -> 0
B18: =title180 -> Water cost (USD/year) | C18: =COST_SIZE1!$G$20 -> 0 | D18: =COST_SIZE1!$G$20 -> 0 | E18: =COST_SIZE1!$G$20 -> 0 | F18: =COST_SIZE1!$G$20 -> 0 | G18: =COST_SIZE1!$G$20 -> 0 | H18: =COST_SIZE1!$G$20 -> 0 | I18: =COST_SIZE1!$G$20 -> 0 | J18: =COST_SIZE1!$G$20 -> 0 | K18: =COST_SIZE1!$G$20 -> 0 | L18: =COST_SIZE1!$G$20 -> 0 | M18: =COST_SIZE1!$G$20 -> 0 | N18: =COST_SIZE1!$G$20 -> 0 | O18: =COST_SIZE1!$G$20 -> 0 | P18: =COST_SIZE1!$G$20 -> 0 | Q18: =COST_SIZE1!$G$20 -> 0 | R18: =COST_SIZE1!$G$20 -> 0 | S18: =COST_SIZE1!$G$20 -> 0 | T18: =COST_SIZE1!$G$20 -> 0 | U18: =COST_SIZE1!$G$20 -> 0 | V18: =COST_SIZE1!$G$20 -> 0 | W18: =COST_SIZE1!$G$20 -> 0
B19: =title181 -> Sub-total maintenance cost | C19: =COST_SIZE1!$G$52 -> 0 | D19: =COST_SIZE1!$G$52 -> 0 | E19: =COST_SIZE1!$G$52 -> 0 | F19: =COST_SIZE1!$G$52 -> 0 | G19: =COST_SIZE1!$G$52 -> 0 | H19: =COST_SIZE1!$G$52 -> 0 | I19: =COST_SIZE1!$G$52 -> 0 | J19: =COST_SIZE1!$G$52 -> 0 | K19: =COST_SIZE1!$G$52 -> 0 | L19: =COST_SIZE1!$G$52 -> 0 | M19: =COST_SIZE1!$G$52 -> 0 | N19: =COST_SIZE1!$G$52 -> 0 | O19: =COST_SIZE1!$G$52 -> 0 | P19: =COST_SIZE1!$G$52 -> 0 | Q19: =COST_SIZE1!$G$52 -> 0 | R19: =COST_SIZE1!$G$52 -> 0 | S19: =COST_SIZE1!$G$52 -> 0 | T19: =COST_SIZE1!$G$52 -> 0 | U19: =COST_SIZE1!$G$52 -> 0 | V19: =COST_SIZE1!$G$52 -> 0 | W19: =COST_SIZE1!$G$52 -> 0
B20: =title182 -> Sub-total of annual investment cost | C20: =E10 -> 0 | D20: =C20 -> 0 | E20: =D20 -> 0 | F20: 0 | G20: 0 | H20: 0 | I20: 0 | J20: 0 | K20: 0 | L20: 0 | M20: 0 | N20: 0 | O20: 0 | P20: 0 | Q20: 0 | R20: 0 | S20: 0 | T20: 0 | U20: 0 | V20: 0 | W20: 0
B21: =title183 -> Total annual production cost (USD) | C21: =C20+C16+C19 -> 0 | D21: =D20+D16+D19 -> 0 | E21: 0 | F21: 0 | G21: 0 | H21: 0 | I21: 0 | J21: 0 | K21: 0 | L21: 0 | M21: 0 | N21: 0 | O21: 0 | P21: 0 | Q21: 0 | R21: 0 | S21: 0 | T21: 0 | U21: 0 | V21: 0 | W21: 0
B23: =title184 -> Financial without policy | C23: =title174 -> Appraisal
B24: =title135 -> Loan amount | C24: =C11*'Data entry needs'!$H$86 -> 0
B25: =title113 -> Loan interest rate (%) | C25: ='Data entry needs'!H83 -> 0
B26: =title114 -> Loan term (years) | C26: ='Data entry needs'!H84 -> 0
B27: =title185 -> Loan payment (USD/month) | C27: =PMT(C25/12,C26*12,C24) -> 
B28: =title186 -> Loan payment (USD/year) | D28: =IF(D14<=$C$26,$C$27*12,0) -> 0 | E28: =IF(E14<=$C$26,$C$27*12,0) -> 0 | F28: 0 | G28: 0 | H28: 0 | I28: 0 | J28: 0 | K28: 0 | L28: 0 | M28: 0 | N28: 0 | O28: 0 | P28: 0 | Q28: 0 | R28: 0 | S28: 0 | T28: 0 | U28: 0 | V28: 0 | W28: 0
B29: =title187 -> Total loan payment (USD) | C29: =+SUM(D28:W28) -> 0
B30: =title188 -> Loan interest payment (USD) | D30: =+C29+C24 -> 0 | E30: =title189 -> Average loan interest payment for project lifetime | K30: =+D30/C6 -> 0 | L30: =title42 -> USD/year
B32: =title168 -> Operating Year | C32: =title174 -> Appraisal | D32: 1 | E32: 2 | F32: 3 | G32: 4 | H32: 5 | I32: 6 | J32: 7 | K32: 8 | L32: 9 | M32: 10 | N32: 11 | O32: 12 | P32: 13 | Q32: 14 | R32: 15 | S32: 16 | T32: 17 | U32: 18 | V32: 19 | W32: 20
B33: =title190 -> Total revenue (USD) | C33: 0 | D33: =+'Summary of Results-By Size'!$AT$187 ->  | E33: =+'Summary of Results-By Size'!$AT$187 ->  | F33: =+'Summary of Results-By Size'!$AT$187 ->  | G33: =+'Summary of Results-By Size'!$AT$187 ->  | H33: =+'Summary of Results-By Size'!$AT$187 ->  | I33: =+'Summary of Results-By Size'!$AT$187 ->  | J33: =+'Summary of Results-By Size'!$AT$187 ->  | K33: =+'Summary of Results-By Size'!$AT$187 ->  | L33: =+'Summary of Results-By Size'!$AT$187 ->  | M33: =+'Summary of Results-By Size'!$AT$187 ->  | N33: =+'Summary of Results-By Size'!$AT$187 ->  | O33: =+'Summary of Results-By Size'!$AT$187 ->  | P33: =+'Summary of Results-By Size'!$AT$187 ->  | Q33: =+'Summary of Results-By Size'!$AT$187 ->  | R33: =+'Summary of Results-By Size'!$AT$187 ->  | S33: =+'Summary of Results-By Size'!$AT$187 ->  | T33: =+'Summary of Results-By Size'!$AT$187 ->  | U33: =+'Summary of Results-By Size'!$AT$187 ->  | V33: =+'Summary of Results-By Size'!$AT$187 ->  | W33: =+'Summary of Results-By Size'!$AT$187 -> 
B34: =title172 -> Total capital cost (USD) | C34: =-ABS(C11-C24) -> 0 | D34: 0 | E34: 0 | F34: 0 | G34: 0 | H34: 0 | I34: 0 | J34: 0 | K34: 0 | L34: 0 | M34: 0 | N34: 0 | O34: 0 | P34: 0 | Q34: 0 | R34: 0 | S34: 0 | T34: 0 | U34: 0 | V34: 0 | W34: 0 | Y34: =title198 -> From the digester user point of view, in the first two years there should be some sort of guarantee so that any maintenance costs will be paid by the biogas business.
B35: =title191 -> Total operating and maintenance cost (USD) | D35: =-D16-D19 -> 0 | E35: =-E16-E19 -> 0 | F35: 0 | G35: 0 | H35: 0 | I35: 0 | J35: 0 | K35: 0 | L35: 0 | M35: 0 | N35: 0 | O35: 0 | P35: 0 | Q35: 0 | R35: 0 | S35: 0 | T35: 0 | U35: 0 | V35: 0 | W35: 0
B36: =title192 -> Loan payment (USD) | C36: 0 | D36: =+D28 -> 0 | E36: =+E28 -> 0 | F36: 0 | G36: 0 | H36: 0 | I36: 0 | J36: 0 | K36: 0 | L36: 0 | M36: 0 | N36: 0 | O36: 0 | P36: 0 | Q36: 0 | R36: 0 | S36: 0 | T36: 0 | U36: 0 | V36: 0 | W36: 0
B37: =title193 -> Cash flow (USD per year) | C37: =SUM(C33:C36) -> 0
B38: =title194 -> Financial analysis without policy
B39: =title195 -> Net present value | C39: =NPV('Data entry needs'!H85,D37:W37)+C37 -> 
B40: =title196 -> Internal rate of return (IRR) | C40: =IF(C39<0,title197,IRR(C37:W37,'Data entry needs'!H85)) -> 

Sheet FA_FLOATING_SIZE1 (hidden)
B2: =title199 -> FINANCIAL ANALYSIS OF BIOGAS PRODUCTION IN A FLOATING DRUM BIODIGESTOR
B5: =title168 -> Operating Year | C5: 0 | D5: 1 | E5: 2 | F5: 3 | G5: 4 | H5: 5 | I5: 6 | J5: 7 | K5: 8 | L5: 9 | M5: 10 | N5: 11 | O5: 12 | P5: 13 | Q5: 14 | R5: 15 | S5: 16 | T5: 17 | U5: 18 | V5: 19 | W5: 20
B6: =title169 -> Lifetime of the reactor | C6: 20
C8: =title174 -> Appraisal | D8: =title175 -> Project lifetime | E8: =title176 -> per year
B9: =title170 -> Direct capital cost (USD)
B10: =title171 -> Reactor construction | C10: =+COST_SIZE1!$H$50 -> 0 | D10: =+MATERIALS_ALL!$D$5 -> 20 | E10: =C10/D10 -> 0
B11: =title172 -> Total capital cost (USD) | C11: =SUM(C10:C10) -> 0
B12: =title173 -> Total savings on energy "revenue" | D12: =SUM(D33:W33) ->  | E12: =D12/C6 -> 
B14: =title168 -> Operating Year | C14: =title174 -> Appraisal | D14: 1 | E14: 2 | F14: 3 | G14: 4 | H14: 5 | I14: 6 | J14: 7 | K14: 8 | L14: 9 | M14: 10 | N14: 11 | O14: 12 | P14: 13 | Q14: 14 | R14: 15 | S14: 16 | T14: 17 | U14: 18 | V14: 19 | W14: 20
B15: =title177 -> Annual operating and maintenance cost
B16: =title178 -> Sub-total operating cost (USD) | C16: =C17+C18 -> 0 | D16: =D17+D18 -> 0 | E16: 0 | F16: 0 | G16: 0 | H16: 0 | I16: 0 | J16: 0 | K16: 0 | L16: 0 | M16: 0 | N16: 0 | O16: 0 | P16: 0 | Q16: 0 | R16: 0 | S16: 0 | T16: 0 | U16: 0 | V16: 0 | W16: 0
B17: =title179 -> Biomass cost (USD/year) | C17: =COST_SIZE1!$I$19 -> 0 | D17: =COST_SIZE1!$I$19 -> 0 | E17: =COST_SIZE1!$I$19 -> 0 | F17: =COST_SIZE1!$I$19 -> 0 | G17: =COST_SIZE1!$I$19 -> 0 | H17: =COST_SIZE1!$I$19 -> 0 | I17: =COST_SIZE1!$I$19 -> 0 | J17: =COST_SIZE1!$I$19 -> 0 | K17: =COST_SIZE1!$I$19 -> 0 | L17: =COST_SIZE1!$I$19 -> 0 | M17: =COST_SIZE1!$I$19 -> 0 | N17: =COST_SIZE1!$I$19 -> 0 | O17: =COST_SIZE1!$I$19 -> 0 | P17: =COST_SIZE1!$I$19 -> 0 | Q17: =COST_SIZE1!$I$19 -> 0 | R17: =COST_SIZE1!$I$19 -> 0 | S17: =COST_SIZE1!$I$19 -> 0 | T17: =COST_SIZE1!$I$19 -> 0 | U17: =COST_SIZE1!$I$19 -> 0 | V17: =COST_SIZE1!$I$19 -> 0 | W17: =COST_SIZE1!$I$19 -> 0
B18: =title180 -> Water cost (USD/year) | C18: =COST_SIZE1!$I$20 -> 0 | D18: =COST_SIZE1!$I$20 -> 0 | E18: =COST_SIZE1!$I$20 -> 0 | F18: =COST_SIZE1!$I$20 -> 0 | G18: =COST_SIZE1!$I$20 -> 0 | H18: =COST_SIZE1!$I$20 -> 0 | I18: =COST_SIZE1!$I$20 -> 0 | J18: =COST_SIZE1!$I$20 -> 0 | K18: =COST_SIZE1!$I$20 -> 0 | L18: =COST_SIZE1!$I$20 -> 0 | M18: =COST_SIZE1!$I$20 -> 0 | N18: =COST_SIZE1!$I$20 -> 0 | O18: =COST_SIZE1!$I$20 -> 0 | P18: =COST_SIZE1!$I$20 -> 0 | Q18: =COST_SIZE1!$I$20 -> 0 | R18: =COST_SIZE1!$I$20 -> 0 | S18: =COST_SIZE1!$I$20 -> 0 | T18: =COST_SIZE1!$I$20 -> 0 | U18: =COST_SIZE1!$I$20 -> 0 | V18: =COST_SIZE1!$I$20 -> 0 | W18: =COST_SIZE1!$I$20 -> 0
B19: =title181 -> Sub-total maintenance cost | C19: =COST_SIZE1!$I$52 -> 0 | D19: =COST_SIZE1!$I$52 -> 0 | E19: =COST_SIZE1!$I$52 -> 0 | F19: =COST_SIZE1!$I$52 -> 0 | G19: =COST_SIZE1!$I$52 -> 0 | H19: =COST_SIZE1!$I$52 -> 0 | I19: =COST_SIZE1!$I$52 -> 0 | J19: =COST_SIZE1!$I$52 -> 0 | K19: =COST_SIZE1!$I$52 -> 0 | L19: =COST_SIZE1!$I$52 -> 0 | M19: =COST_SIZE1!$I$52 -> 0 | N19: =COST_SIZE1!$I$52 -> 0 | O19: =COST_SIZE1!$I$52 -> 0 | P19: =COST_SIZE1!$I$52 -> 0 | Q19: =COST_SIZE1!$I$52 -> 0 | R19: =COST_SIZE1!$I$52 -> 0 | S19: =COST_SIZE1!$I$52 -> 0 | T19: =COST_SIZE1!$I$52 -> 0 | U19: =COST_SIZE1!$I$52 -> 0 | V19: =COST_SIZE1!$I$52 -> 0 | W19: =COST_SIZE1!$I$52 -> 0
B20: =title182 -> Sub-total of annual investment cost | C20: =E10 -> 0 | D20: =C20 -> 0 | E20: =D20 -> 0 | F20: 0 | G20: 0 | H20: 0 | I20: 0 | J20: 0 | K20: 0 | L20: 0 | M20: 0 | N20: 0 | O20: 0 | P20: 0 | Q20: 0 | R20: 0 | S20: 0 | T20: 0 | U20: 0 | V20: 0 | W20: 0
B21: =title183 -> Total annual production cost (USD) | C21: =C20+C16+C19 -> 0 | D21: =D20+D16+D19 -> 0 | E21: 0 | F21: 0 | G21: 0 | H21: 0 | I21: 0 | J21: 0 | K21: 0 | L21: 0 | M21: 0 | N21: 0 | O21: 0 | P21: 0 | Q21: 0 | R21: 0 | S21: 0 | T21: 0 | U21: 0 | V21: 0 | W21: 0
B23: =title184 -> Financial without policy | C23: =title174 -> Appraisal
B24: =title135 -> Loan amount | C24: =C11*'Data entry needs'!$H$86 -> 0
B25: =title113 -> Loan interest rate (%) | C25: ='Data entry needs'!H83 -> 0
B26: =title114 -> Loan term (years) | C26: ='Data entry needs'!H84 -> 0
B27: =title185 -> Loan payment (USD/month) | C27: =PMT(C25/12,C26*12,C24) -> 
B28: =title186 -> Loan payment (USD/year) | D28: =IF(D14<=$C$26,$C$27*12,0) -> 0 | E28: =IF(E14<=$C$26,$C$27*12,0) -> 0 | F28: 0 | G28: 0 | H28: 0 | I28: 0 | J28: 0 | K28: 0 | L28: 0 | M28: 0 | N28: 0 | O28: 0 | P28: 0 | Q28: 0 | R28: 0 | S28: 0 | T28: 0 | U28: 0 | V28: 0 | W28: 0
B29: =title187 -> Total loan payment (USD) | C29: =+SUM(D28:W28) -> 0
B30: =title188 -> Loan interest payment (USD) | D30: =+C29+C24 -> 0 | E30: =title189 -> Average loan interest payment for project lifetime | K30: =+D30/C6 -> 0 | L30: =title42 -> USD/year
B32: =title168 -> Operating Year | C32: =title174 -> Appraisal | D32: 1 | E32: 2 | F32: 3 | G32: 4 | H32: 5 | I32: 6 | J32: 7 | K32: 8 | L32: 9 | M32: 10 | N32: 11 | O32: 12 | P32: 13 | Q32: 14 | R32: 15 | S32: 16 | T32: 17 | U32: 18 | V32: 19 | W32: 20
B33: =title190 -> Total revenue (USD) | C33: 0 | D33: =+'Summary of Results-By Size'!$AT$187 ->  | E33: =+'Summary of Results-By Size'!$AT$187 ->  | F33: =+'Summary of Results-By Size'!$AT$187 ->  | G33: =+'Summary of Results-By Size'!$AT$187 ->  | H33: =+'Summary of Results-By Size'!$AT$187 ->  | I33: =+'Summary of Results-By Size'!$AT$187 ->  | J33: =+'Summary of Results-By Size'!$AT$187 ->  | K33: =+'Summary of Results-By Size'!$AT$187 ->  | L33: =+'Summary of Results-By Size'!$AT$187 ->  | M33: =+'Summary of Results-By Size'!$AT$187 ->  | N33: =+'Summary of Results-By Size'!$AT$187 ->  | O33: =+'Summary of Results-By Size'!$AT$187 ->  | P33: =+'Summary of Results-By Size'!$AT$187 ->  | Q33: =+'Summary of Results-By Size'!$AT$187 ->  | R33: =+'Summary of Results-By Size'!$AT$187 ->  | S33: =+'Summary of Results-By Size'!$AT$187 ->  | T33: =+'Summary of Results-By Size'!$AT$187 ->  | U33: =+'Summary of Results-By Size'!$AT$187 ->  | V33: =+'Summary of Results-By Size'!$AT$187 ->  | W33: =+'Summary of Results-By Size'!$AT$187 -> 
B34: =title172 -> Total capital cost (USD) | C34: =-ABS(C11-C24) -> 0 | D34: 0 | E34: 0 | F34: 0 | G34: 0 | H34: 0 | I34: 0 | J34: 0 | K34: 0 | L34: 0 | M34: 0 | N34: 0 | O34: 0 | P34: 0 | Q34: 0 | R34: 0 | S34: 0 | T34: 0 | U34: 0 | V34: 0 | W34: 0 | Y34: =title198 -> From the digester user point of view, in the first two years there should be some sort of guarantee so that any maintenance costs will be paid by the biogas business.
B35: =title191 -> Total operating and maintenance cost (USD) | D35: =-D16-D19 -> 0 | E35: =-E16-E19 -> 0 | F35: 0 | G35: 0 | H35: 0 | I35: 0 | J35: 0 | K35: 0 | L35: 0 | M35: 0 | N35: 0 | O35: 0 | P35: 0 | Q35: 0 | R35: 0 | S35: 0 | T35: 0 | U35: 0 | V35: 0 | W35: 0
B36: =title192 -> Loan payment (USD) | C36: 0 | D36: =+D28 -> 0 | E36: =+E28 -> 0 | F36: 0 | G36: 0 | H36: 0 | I36: 0 | J36: 0 | K36: 0 | L36: 0 | M36: 0 | N36: 0 | O36: 0 | P36: 0 | Q36: 0 | R36: 0 | S36: 0 | T36: 0 | U36: 0 | V36: 0 | W36: 0
B37: =title193 -> Cash flow (USD per year) | C37: =SUM(C33:C36) -> 0 | D37: =SUM(D33:D36) ->  | E37: =SUM(E33:E36) ->  | F37: =SUM(F33:F36) -> 
B38: =title194 -> Financial analysis without policy
B39: =title195 -> Net present value | C39: =NPV('Data entry needs'!H85,D37:W37)+C37 -> 
B40: =title196 -> Internal rate of return (IRR) | C40: =IF(C39<0,title197,IRR(C37:W37,'Data entry needs'!H85)) -> 

Sheet FA_TUBULAR_SIZE1 (hidden)
B2: =title200 -> FINANCIAL ANALYSIS OF BIOGAS PRODUCTION IN A TUBULAR BIODIGESTOR
B5: =title168 -> Operating Year | C5: 0 | D5: 1 | E5: 2 | F5: 3 | G5: 4 | H5: 5 | I5: 6 | J5: 7 | K5: 8 | L5: 9 | M5: 10 | N5: 11 | O5: 12 | P5: 13 | Q5: 14 | R5: 15 | S5: 16 | T5: 17 | U5: 18 | V5: 19 | W5: 20
B6: =title169 -> Lifetime of the reactor | C6: 10
C8: =title174 -> Appraisal | D8: =title175 -> Project lifetime | E8: =title176 -> per year
B9: =title170 -> Direct capital cost (USD)
B10: =title171 -> Reactor construction | C10: =+COST_SIZE1!$J$50 ->  | D10: =+MATERIALS_ALL!$D$6 -> 10 | E10: =C10/D10 -> 
B11: =title172 -> Total capital cost (USD) | C11: =SUM(C10:C10) -> 
B12: =title173 -> Total savings on energy "revenue" | D12: =SUM(D33:W33) ->  | E12: =D12/C6 -> 
B14: =title168 -> Operating Year | C14: =title174 -> Appraisal | D14: 1 | E14: 2 | F14: 3 | G14: 4 | H14: 5 | I14: 6 | J14: 7 | K14: 8 | L14: 9 | M14: 10 | N14: 11 | O14: 12 | P14: 13 | Q14: 14 | R14: 15 | S14: 16 | T14: 17 | U14: 18 | V14: 19 | W14: 20
B15: =title177 -> Annual operating and maintenance cost
B16: =title178 -> Sub-total operating cost (USD) | C16: =C17+C18 -> 0 | D16: =D17+D18 -> 0 | E16: 0 | F16: 0 | G16: 0 | H16: 0 | I16: 0 | J16: 0 | K16: 0 | L16: 0 | M16: 0 | N16: 0 | O16: 0 | P16: 0 | Q16: 0 | R16: 0 | S16: 0 | T16: 0 | U16: 0 | V16: 0 | W16: 0
B17: =title179 -> Biomass cost (USD/year) | C17: =COST_SIZE1!$K$19 -> 0 | D17: =COST_SIZE1!$K$19 -> 0 | E17: =COST_SIZE1!$K$19 -> 0 | F17: =COST_SIZE1!$K$19 -> 0 | G17: =COST_SIZE1!$K$19 -> 0 | H17: =COST_SIZE1!$K$19 -> 0 | I17: =COST_SIZE1!$K$19 -> 0 | J17: =COST_SIZE1!$K$19 -> 0 | K17: =COST_SIZE1!$K$19 -> 0 | L17: =COST_SIZE1!$K$19 -> 0 | M17: =COST_SIZE1!$K$19 -> 0 | N17: =COST_SIZE1!$K$19 -> 0 | O17: =COST_SIZE1!$K$19 -> 0 | P17: =COST_SIZE1!$K$19 -> 0 | Q17: =COST_SIZE1!$K$19 -> 0 | R17: =COST_SIZE1!$K$19 -> 0 | S17: =COST_SIZE1!$K$19 -> 0 | T17: =COST_SIZE1!$K$19 -> 0 | U17: =COST_SIZE1!$K$19 -> 0 | V17: =COST_SIZE1!$K$19 -> 0 | W17: =COST_SIZE1!$K$19 -> 0
B18: =title180 -> Water cost (USD/year) | C18: =COST_SIZE1!$K$20 -> 0 | D18: =COST_SIZE1!$K$20 -> 0 | E18: =COST_SIZE1!$K$20 -> 0 | F18: =COST_SIZE1!$K$20 -> 0 | G18: =COST_SIZE1!$K$20 -> 0 | H18: =COST_SIZE1!$K$20 -> 0 | I18: =COST_SIZE1!$K$20 -> 0 | J18: =COST_SIZE1!$K$20 -> 0 | K18: =COST_SIZE1!$K$20 -> 0 | L18: =COST_SIZE1!$K$20 -> 0 | M18: =COST_SIZE1!$K$20 -> 0 | N18: =COST_SIZE1!$K$20 -> 0 | O18: =COST_SIZE1!$K$20 -> 0 | P18: =COST_SIZE1!$K$20 -> 0 | Q18: =COST_SIZE1!$K$20 -> 0 | R18: =COST_SIZE1!$K$20 -> 0 | S18: =COST_SIZE1!$K$20 -> 0 | T18: =COST_SIZE1!$K$20 -> 0 | U18: =COST_SIZE1!$K$20 -> 0 | V18: =COST_SIZE1!$K$20 -> 0 | W18: =COST_SIZE1!$K$20 -> 0
B19: =title181 -> Sub-total maintenance cost | C19: =COST_SIZE1!$K$52 ->  | D19: =COST_SIZE1!$K$52 ->  | E19: =COST_SIZE1!$K$52 ->  | F19: =COST_SIZE1!$K$52 ->  | G19: =COST_SIZE1!$K$52 ->  | H19: =COST_SIZE1!$K$52 ->  | I19: =COST_SIZE1!$K$52 ->  | J19: =COST_SIZE1!$K$52 ->  | K19: =COST_SIZE1!$K$52 ->  | L19: =COST_SIZE1!$K$52 ->  | M19: =COST_SIZE1!$K$52 ->  | N19: =COST_SIZE1!$K$52 ->  | O19: =COST_SIZE1!$K$52 ->  | P19: =COST_SIZE1!$K$52 ->  | Q19: =COST_SIZE1!$K$52 ->  | R19: =COST_SIZE1!$K$52 ->  | S19: =COST_SIZE1!$K$52 ->  | T19: =COST_SIZE1!$K$52 ->  | U19: =COST_SIZE1!$K$52 ->  | V19: =COST_SIZE1!$K$52 ->  | W19: =COST_SIZE1!$K$52 -> 
B20: =title182 -> Sub-total of annual investment cost | C20: =E10 ->  | D20: =C20 ->  | E20: =D20 -> 
B21: =title183 -> Total annual production cost (USD) | C21: =C20+C16+C19 ->  | D21: =D20+D16+D19 -> 
B23: =title184 -> Financial without policy | C23: =title174 -> Appraisal
B24: =title135 -> Loan amount | C24: =C11*'Data entry needs'!$H$86 ->  | M24: =+C24 -> 
B25: =title113 -> Loan interest rate (%) | C25: ='Data entry needs'!$H$83 -> 0 | M25: ='Data entry needs'!$H$83 -> 0
B26: =title114 -> Loan term (years) | C26: ='Data entry needs'!H84 -> 0 | M26: =+C26 -> 0
B27: =title185 -> Loan payment (USD/month) | C27: =PMT(C25/12,C26*12,C24) ->  | M27: =PMT(M25/12,M26*12,M24) -> 
B28: =title186 -> Loan payment (USD/year) | D28: =IF(D14<=$C$26,$C$27*12,0) -> 0 | E28: =IF(E14<=$C$26,$C$27*12,0) -> 0 | F28: 0 | G28: 0 | H28: 0 | I28: 0 | J28: 0 | K28: 0 | L28: 0 | M28: =IF(M14<=$C$26,$C$27*12+$M$27*12,0) -> 0 | N28: =IF(N14<=$C$26,$C$27*12+$M$27*12,0) -> 0 | O28: =IF(O14<=$C$26,$C$27*12+$M$27*12,0) -> 0 | P28: =IF(P14<=$C$26,$C$27*12+$M$27*12,0) -> 0 | Q28: 0 | R28: 0 | S28: 0 | T28: 0 | U28: 0 | V28: 0 | W28: 0
B29: =title187 -> Total loan payment (USD) | C29: =+SUM(D28:W28) -> 0
B30: =title188 -> Loan interest payment (USD) | D30: =+C29+C24 ->  | E30: =title189 -> Average loan interest payment for project lifetime | K30: =+D30/C6 ->  | L30: =title42 -> USD/year
B32: =title168 -> Operating Year | C32: =title174 -> Appraisal | D32: 1 | E32: 2 | F32: 3 | G32: 4 | H32: 5 | I32: 6 | J32: 7 | K32: 8 | L32: 9 | M32: 10 | N32: 11 | O32: 12 | P32: 13 | Q32: 14 | R32: 15 | S32: 16 | T32: 17 | U32: 18 | V32: 19 | W32: 20
B33: =title190 -> Total revenue (USD) | C33: 0 | D33: =+'Summary of Results-By Size'!$AT$187 ->  | E33: =+'Summary of Results-By Size'!$AT$187 ->  | F33: =+'Summary of Results-By Size'!$AT$187 ->  | G33: =+'Summary of Results-By Size'!$AT$187 ->  | H33: =+'Summary of Results-By Size'!$AT$187 ->  | I33: =+'Summary of Results-By Size'!$AT$187 ->  | J33: =+'Summary of Results-By Size'!$AT$187 ->  | K33: =+'Summary of Results-By Size'!$AT$187 ->  | L33: =+'Summary of Results-By Size'!$AT$187 ->  | M33: =+'Summary of Results-By Size'!$AT$187 ->  | N33: =+'Summary of Results-By Size'!$AT$187 ->  | O33: =+'Summary of Results-By Size'!$AT$187 ->  | P33: =+'Summary of Results-By Size'!$AT$187 ->  | Q33: =+'Summary of Results-By Size'!$AT$187 ->  | R33: =+'Summary of Results-By Size'!$AT$187 ->  | S33: =+'Summary of Results-By Size'!$AT$187 ->  | T33: =+'Summary of Results-By Size'!$AT$187 ->  | U33: =+'Summary of Results-By Size'!$AT$187 ->  | V33: =+'Summary of Results-By Size'!$AT$187 ->  | W33: =+'Summary of Results-By Size'!$AT$187 -> 
B34: =title172 -> Total capital cost (USD) | C34: =-ABS(C11-C24) ->  | D34: 0 | E34: 0 | F34: 0 | G34: 0 | H34: 0 | I34: 0 | J34: 0 | K34: 0 | L34: 0 | M34: 0 | N34: 0 | O34: 0 | P34: 0 | Q34: 0 | R34: 0 | S34: 0 | T34: 0 | U34: 0 | V34: 0 | W34: 0 | Y34: =title198 -> From the digester user point of view, in the first two years there should be some sort of guarantee so that any maintenance costs will be paid by the biogas business.
B35: =title191 -> Total operating and maintenance cost (USD) | D35: =-D16-D19 ->  | E35: =-E16-E19 -> 
B36: =title192 -> Loan payment (USD) | C36: 0 | D36: =+D28 -> 0 | E36: =+E28 -> 0 | F36: 0 | G36: 0 | H36: 0 | I36: 0 | J36: 0 | K36: 0 | L36: 0 | M36: 0 | N36: 0 | O36: 0 | P36: 0 | Q36: 0 | R36: 0 | S36: 0 | T36: 0 | U36: 0 | V36: 0 | W36: 0
B37: =title193 -> Cash flow (USD per year) | C37: =SUM(C33:C36) ->  | D37: =SUM(D33:D36) ->  | E37: =SUM(E33:E36) ->  | F37: =SUM(F33:F36) -> 
B38: =title194 -> Financial analysis without policy
B39: =title195 -> Net present value | C39: =NPV('Data entry needs'!H85,D37:M37)+C37 -> 
B40: =title196 -> Internal rate of return (IRR) | C40: =IF(C39<0, title197, IRR(C37:M37,'Data entry needs'!H85)) -> 

Sheet COST_SIZE2
C3: =title119&'Data entry needs'!$E$15 -> PROCESSING COSTS FOR BIOGAS PRODUCTION SIZE 2
C6: =title33 -> Use white cells to input data | D6: =title34 -> Grey cells are used for calculations
C8: =title120 -> Biogas production (m3/day) | D8: ='Model Calculations_ALL'!E32 ->  | E8: =title121 -> Biogas production (m3/year) | G8: =D8*365 ->  | H8: =title122 -> Recommended size of biodigestor (m3) | K8: =IF('Model Calculations_ALL'!$E$29<1,ROUNDUP('Model Calculations_ALL'!$E$29,2),ROUNDUP('Model Calculations_ALL'!$E$29,0)) -> 0
C11: Materials Cost Details
F13: =title145 -> Biodigester Options
F14: =title59 -> Fixed dome | H14: =title60 -> Floating drum | J14: =title146 -> Tubular
C17: =title148 -> Operating costs | D17: =title69 -> Unit | E17: =title110 -> Unit Price | F17: =title130 -> Quantity | G17: Total | H17: =title130 -> Quantity | I17: Total | J17: =title130 -> Quantity | K17: Total
E18: ="("&title37&")" -> (USD/unit) | F18: ="("&title40&")" -> (unit/year) | G18: ="("&title42&")" -> (USD/year) | H18: ="("&title40&")" -> (unit/year) | I18: ="("&title42&")" -> (USD/year) | J18: ="("&title40&")" -> (unit/year) | K18: ="("&title42&")" -> (USD/year)
C19: =title67 -> Feedstock | D19: t | E19: ='Data entry needs'!$D$38 -> 0 | F19: =(('Model Calculations_ALL'!$E$25)/1000)*365 -> 0 | G19: =E19*F19 -> 0 | H19: =+F19 -> 0 | I19: =E19*H19 -> 0 | J19: =+H19 -> 0 | K19: =J19*E19 -> 0
C20: =title149 -> Water/urine | D20: m3 | E20: ='Data entry needs'!$G$38 -> 0 | F20: =(('Model Calculations_ALL'!$E$26)/1000)*365 -> 0 | G20: =E20*F20 -> 0 | H20: =+F20 -> 0 | I20: =E20*H20 -> 0 | J20: =+H20 -> 0 | K20: =J20*E20 -> 0
C21: =title150 -> Subtotal | E21: =title42 -> USD/year | G21: =SUM(G19:G20) -> 0 | I21: =SUM(I19:I20) -> 0 | K21: =SUM(K19:K20) -> 0
C23: =title151 -> Labour for installation and construction | D23: =title69 -> Unit | E23: =title110 -> Unit Price | F23: =title130 -> Quantity | G23: Total | H23: =title130 -> Quantity | I23: Total | J23: =title130 -> Quantity | K23: Total
E24: ="("&title86&")" -> (USD/person-hour) | F24: ="("&title154&")" -> (person-day) | G24: (USD) | H24: ="("&title154&")" -> (person-day) | I24: (USD) | J24: ="("&title154&")" -> (person-day) | K24: (USD)
C25: =title87 -> Unskilled worker | D25: =title154 -> person-day | E25: ='Data entry needs'!G65 -> 0 | F25: =MATERIALS_ALL!$G$28+MATERIALS_ALL!$G$30 -> 14.299 | G25: =E25*F25*8 -> 0 | H25: =MATERIALS_ALL!$G$56+MATERIALS_ALL!$G$58 -> 12.81 | I25: =E25*H25*8 -> 0 | J25: =MATERIALS_ALL!$G$85+MATERIALS_ALL!$G$87 -> 3 | K25: =E25*J25*8 -> 0
C26: =title152 -> Skilled worker | D26: =title154 -> person-day | E26: ='Data entry needs'!D65 -> 0 | F26: =MATERIALS_ALL!$G$29 -> 4.819 | G26: =E26*F26*8 -> 0 | H26: =MATERIALS_ALL!$G$58 -> 4.81 | I26: =H26*E26*8 -> 0 | J26: =MATERIALS_ALL!$G$86 -> 2 | K26: =J26*E26*8 -> 0
C27: =title153 -> Total labour for installation | E27: USD | F27: =SUM(G25:G26) -> 0 | H27: =SUM(I25:I26) -> 0 | J27: =SUM(K25:K26) -> 0
C28: =title124 -> Construction materials | D28: =title69 -> Unit | E28: =title110 -> Unit Price | F28: =title130 -> Quantity | G28: Total | H28: =title130 -> Quantity | I28: Total | J28: =title130 -> Quantity | K28: Total
E29: ="("&title37&")" -> (USD/unit) | F29: ="("&title69&")" -> (Unit) | G29: (USD) | H29: ="("&title69&")" -> (Unit) | I29: (USD) | J29: ="("&title69&")" -> (Unit) | K29: (USD)
C30: =title75 -> Bricks | D30: pc | E30: =+MATERIALS_ALL!$M$10 -> 0 | F30: =MATERIALS_ALL!$G$34 -> 706.8 | G30: =F30*E30 -> 0 | H30: =MATERIALS_ALL!$G$61 -> 1413.6 | I30: =H30*E30 -> 0
C31: =title125 -> Cement 50 kg bag | D31: =LOWER(title79) -> bag | E31: =+MATERIALS_ALL!$M$11 -> 0 | F31: =MATERIALS_ALL!$G$35 -> 7.224 | G31: =F31*E31 -> 0 | H31: =MATERIALS_ALL!$G$62 -> 6.5016 | I31: =H31*E31 -> 0
C32: =title80 -> Sand | D32: m3 | E32: =+MATERIALS_ALL!$M$12 -> 0 | F32: =MATERIALS_ALL!$G$36 -> 1.652 | G32: =F32*E32 -> 0 | H32: =MATERIALS_ALL!$G$63 -> 0.608 | I32: =H32*E32 -> 0
C33: =title81 -> Gravel | D33: m3 | E33: =+MATERIALS_ALL!$M$13 -> 0 | F33: =MATERIALS_ALL!$G$37 -> 0.864 | G33: =F33*E33 -> 0 | H33: =MATERIALS_ALL!$G$64 -> 0.35 | I33: =H33*E33 -> 0
C34: =title126 -> Tubular bag (0,2 mm thick) | D34: =title131 -> metre | E34: =+MATERIALS_ALL!$M$14 -> 0 | J34: =MATERIALS_ALL!$G$90 -> 12.06 | K34: =J34*E34 -> 0
C35: =title127 -> Other Materials | D35: % | F35: =IF('Data entry needs'!$AB$103=1,MATERIALS_ALL!$P$10,0) -> 0.465718817 | G35: =IF('Data entry needs'!$AB$103=1,SUM(G30:G34)*(F35/(1-F35)),0) -> 0 | H35: =IF('Data entry needs'!$AB$103=1,MATERIALS_ALL!$Q$10,0) -> 0.5402978483 | I35: =IF('Data entry needs'!$AB$103=1,SUM(I30:I34)*(H35/(1-H35)),0) -> 0 | J35: =IF('Data entry needs'!$AB$103=1,MATERIALS_ALL!$R$10,0) -> 0.8817716448 | K35: =IF('Data entry needs'!$AB$103=1,SUM(K30:K34)*(H49/F49/(1-J35)),0) -> 
C36: =title128 -> Other accessories | D36: % | F36: =(MATERIALS_ALL!$G$39+MATERIALS_ALL!$G$40) -> 0.16865 | G36: =IF('Data entry needs'!$AB$104=1,(SUM(G30:G33)+G35)*(F36/(1-F36)),(SUM(G30:G33)+SUM(G37:G48))*(F36/(1-F36))) -> 0 | H36: =MATERIALS_ALL!$G$66+MATERIALS_ALL!$G$67 -> 0.19 | I36: =IF('Data entry needs'!$AB$104=1,(SUM(I30:I33)+I35)*(H36/(1-H36)),(SUM(I30:I33)+SUM(I37:I48))*(H36/(1-H36))) -> 0 | J36: =MATERIALS_ALL!$G$96+MATERIALS_ALL!$G$97 -> 0.05213 | K36: =IF('Data entry needs'!$AB$103=1,(SUM(K30:K33)+K35)*(J36/(1-J36)),(SUM(K30:K33)+SUM(K37:K48))*(J36/(1-J36))) -> 
C37: Paint | D37: l | E37: =+MATERIALS_ALL!$M$15 -> 0 | F37: =MATERIALS_ALL!$G$38 -> 0.351 | G37: =F37*E37 -> 0 | H37: =MATERIALS_ALL!$G$65 -> 1.145 | I37: =H37*E37 -> 0
C38: Net cyclone 4'' feet | D38: roll | E38: =+MATERIALS_ALL!$M$16 -> 0 | G38: =F38*E38 -> 0 | I38: =H38*E38 -> 0 | J38: =MATERIALS_ALL!$G$94 -> 0 | K38: =J38*E38 -> 0
C39: Zinc sheets | D39: kg | E39: =+MATERIALS_ALL!$M$17 -> 0 | G39: 0 | I39: 0 | J39: =MATERIALS_ALL!$G$95 -> 0 | K39: 0
C40: Plastic valve 1/2'' | D40: pc | E40: =+MATERIALS_ALL!$M$18 -> 0 | G40: 0 | I40: 0 | J40: =MATERIALS_ALL!$G$91 -> 4 | K40: 0
C41: Plastic hub 1/2'' | D41: pc | E41: =+MATERIALS_ALL!$M$19 -> 0 | G41: 0 | I41: 0 | J41: =MATERIALS_ALL!$G$92 -> 2 | K41: 0
C42: Pneumatic league | D42: pc | E42: =+MATERIALS_ALL!$M$20 -> 0 | G42: 0 | I42: 0 | J42: =MATERIALS_ALL!$G$93 -> 60 | K42: 0
C43: Gas stove | D43: pc | E43: =+MATERIALS_ALL!$M$21 -> 0 | F43: 1 | G43: 0 | H43: 1 | I43: 0 | J43: 1 | K43: 0
C44: Gas light | D44: pc | E44: =+MATERIALS_ALL!$M$22 -> 0 | F44: 1 | G44: 0 | H44: 1 | I44: 0 | J44: 1 | K44: 0
C45: Main valve | D45: pc | E45: =+MATERIALS_ALL!$M$23 -> 0 | F45: 1 | G45: 0 | H45: 1 | I45: 0 | J45: 1 | K45: 0
C46: H2S filter | D46: set | E46: =+MATERIALS_ALL!$M$24 -> 0 | F46: 1 | G46: 0 | H46: 1 | I46: 0 | J46: 1 | K46: 0
C47: Pressure manometer | D47: pc | E47: =+MATERIALS_ALL!$M$25 -> 0 | F47: 1 | G47: 0 | H47: 1 | I47: 0 | J47: 1 | K47: 0
C48: Mixing decive | D48: pc | E48: =+MATERIALS_ALL!$M$26 -> 0 | F48: 1 | G48: =F48*E48 -> 0 | H48: 1 | I48: =H48*E48 -> 0 | J48: 1 | K48: 0
C49: =title129 -> Total construction material | E49: USD | F49: =IF('Data entry needs'!$AB$103=1,SUM(G30:G48),SUM(G30:G34,G36:G48)) -> 0 | H49: =IF('Data entry needs'!$AB$103=1,SUM(I30:I48),SUM(I30:I34,I36:I48)) -> 0 | J49: =IF('Data entry needs'!$AB$103=1,SUM(K30:K48),SUM(K30:K34,K36:K48)) -> 
C50: Total investment cost | E50: USD | F50: =+(F49+F27) -> 0 | H50: =+(H49+H27) -> 0 | J50: =+(J49+J27) -> 
F51: =title157 -> Total Depreciation | G51: =+F50/MATERIALS_ALL!$D$4 -> 0 | H51: =title157 -> Total Depreciation | I51: =+H50/MATERIALS_ALL!$D$5 -> 0 | J51: =title157 -> Total Depreciation | K51: =+J50/MATERIALS_ALL!$D$6 -> 
C52: =title155 -> Total maintenance cost | E52: =+'Data entry needs'!$D$63 -> 0 | G52: =+G51*$E$52 -> 0 | I52: =+I51*$E$52 -> 0 | K52: =+K51*$E$52 -> 
C53: =title156 -> Subtotal fixed costs | E53: =title42 -> USD/year | G53: =SUM(G51:G52) -> 0 | I53: =SUM(I51:I52) -> 0 | K53: =SUM(K51:K52) -> 
C55: =title82 -> Other costs | G55: Total | I55: =title158 -> Depreciation | K55: =title158 -> Depreciation
G56: ="("&title42&")" -> (USD/year) | I56: ="("&title42&")" -> (USD/year) | K56: ="("&title42&")" -> (USD/year)
C57: =title141 -> Loan interest | G57: =-FA_FIXED_SIZE2!$K$30 -> 0 | I57: =-FA_FLOATING_SIZE2!$K$30 -> 0 | K57: =-FA_TUBULAR_SIZE2!$K$30 -> 
C58: =title156 -> Subtotal fixed costs | E58: =title42 -> USD/year | G58: =SUM(G55:G57) -> 0 | I58: =SUM(I55:I57) -> 0 | K58: =SUM(K55:K57) -> 
C60: =title159 -> Total costs | F60: =title59 -> Fixed dome | H60: =title60 -> Floating drum | J60: =title146 -> Tubular
C61: Investment | F61: ="("&title42&")" -> (USD/year) | H61: ="("&title42&")" -> (USD/year) | J61: ="("&title42&")" -> (USD/year)
C62: =title160 -> Total operating costs | F62: =+G21 -> 0 | G62: =+F62/$G$65 ->  | H62: =+I21 -> 0 | I62: =+H62/$I$65 ->  | J62: =+K21 -> 0 | K62: =+J62/$K$65 -> 
C63: =title161 -> Total fixed costs | F63: =+G53 -> 0 | G63: =+F63/$G$65 ->  | H63: =+I53 -> 0 | I63: =+H63/$I$65 ->  | J63: =+K53 ->  | K63: =+J63/$K$65 -> 
C64: =title162 -> Total other costs | F64: =+G58 -> 0 | G64: =+F64/$G$65 ->  | H64: =+I58 -> 0 | I64: =+H64/$I$65 ->  | J64: =+K58 ->  | K64: =+J64/$K$65 -> 
C65: =title163 -> Total production costs | G65: =+F62+F63+F64 -> 0 | I65: =I21+I53+I57 -> 0 | K65: =K21+K53+K57 -> 
C67: =title132 -> Total Production Cost
F69: =title145 -> Biodigester Options
F70: =title59 -> Fixed dome | H70: =title60 -> Floating drum | J70: =title146 -> Tubular
C71: =title133 -> Unit cost of biogas (USD/m3) | G71: =G65/G8 ->  | I71: =I65/G8 ->  | K71: =K65/G8 -> 
C73: =title134 -> Average loan interest without policy | D73: =title69 -> Unit | E73: =title116 -> Loan ratio (%) | F73: =title147 -> Total investment | G73: =title135 -> Loan amount | H73: =title147 -> Total investment | I73: =title135 -> Loan amount | J73: =title147 -> Total investment | K73: =title135 -> Loan amount
F74: (USD) | G74: (USD) | H74: (USD) | I74: (USD) | J74: (USD) | K74: (USD)
C75: =title135 -> Loan amount | D75: USD | E75: =+'Data entry needs'!$H$86 -> 0 | F75: =+$F$50 -> 0 | G75: =$E$75*F75 -> 0 | H75: =+$H$50 -> 0 | I75: =$E$75*H75 -> 0 | J75: =+$J$50 ->  | K75: =$E$75*J75 -> 
C76: =title136 -> Loan interest rate | D76: % | G76: =+'Data entry needs'!$H$83 -> 0 | I76: =+G76 -> 0 | K76: =+I76 -> 0
C77: =title137 -> Loan payment | D77: =title143 -> USD/month | G77: =PMT(G76/12,G79*12,G75,0) ->  | I77: =PMT(I76/12,I79*12,I75,0) ->  | K77: =PMT(K76/12,K79*12,K75,0) -> 
C78: =title138 -> Annual loan payment | D78: =title42 -> USD/year | G78: =G77*12 ->  | I78: =I77*12 ->  | K78: =K77*12 -> 
C79: =title139 -> Loan terms | D79: =title144 -> year | G79: =+'Data entry needs'!$H$84 -> 0 | I79: =+G79 -> 0 | K79: =+G79 -> 0
C80: =title140 -> Total loan payment | D80: USD | G80: =G78*G79 ->  | I80: =I78*I79 ->  | K80: =K78*K79 -> 
C81: =title141 -> Loan interest | D81: USD | G81: =G80+G75 ->  | I81: =I80+I75 ->  | K81: =K80+K75 -> 
C82: =title142 -> Average loan interest | D82: =title42 -> USD/year | G82: =+G81/20 ->  | I82: =+I81/20 ->  | K82: =+K81/10 -> 

Sheet FA_FIXED_SIZE2 (hidden)
B2: =title167 -> FINANCIAL ANALYSIS OF BIOGAS PRODUCTION IN A FIXED DOME BIODIGESTOR
B5: =title168 -> Operating Year | C5: 0 | D5: 1 | E5: 2 | F5: 3 | G5: 4 | H5: 5 | I5: 6 | J5: 7 | K5: 8 | L5: 9 | M5: 10 | N5: 11 | O5: 12 | P5: 13 | Q5: 14 | R5: 15 | S5: 16 | T5: 17 | U5: 18 | V5: 19 | W5: 20
B6: =title169 -> Lifetime of the reactor | C6: 20
C8: =title174 -> Appraisal | D8: =title175 -> Project lifetime | E8: =title176 -> per year
B9: =title170 -> Direct capital cost (USD)
B10: =title171 -> Reactor construction | C10: =+COST_SIZE2!$F$50 -> 0 | D10: =+MATERIALS_ALL!$D$4 -> 20 | E10: =C10/D10 -> 0
B11: =title172 -> Total capital cost (USD) | C11: =SUM(C10:C10) -> 0
B12: =title173 -> Total savings on energy "revenue" | D12: =SUM(D33:W33) ->  | E12: =D12/C6 -> 
B14: =title168 -> Operating Year | C14: =title174 -> Appraisal | D14: 1 | E14: 2 | F14: 3 | G14: 4 | H14: 5 | I14: 6 | J14: 7 | K14: 8 | L14: 9 | M14: 10 | N14: 11 | O14: 12 | P14: 13 | Q14: 14 | R14: 15 | S14: 16 | T14: 17 | U14: 18 | V14: 19 | W14: 20
B15: =title177 -> Annual operating and maintenance cost
B16: =title178 -> Sub-total operating cost (USD) | C16: =C17+C18 -> 0 | D16: =D17+D18 -> 0 | E16: 0 | F16: 0 | G16: 0 | H16: 0 | I16: 0 | J16: 0 | K16: 0 | L16: 0 | M16: 0 | N16: 0 | O16: 0 | P16: 0 | Q16: 0 | R16: 0 | S16: 0 | T16: 0 | U16: 0 | V16: 0 | W16: 0
B17: =title179 -> Biomass cost (USD/year) | C17: =COST_SIZE2!$G$19 -> 0 | D17: =COST_SIZE2!$G$19 -> 0 | E17: =COST_SIZE2!$G$19 -> 0 | F17: =COST_SIZE2!$G$19 -> 0 | G17: =COST_SIZE2!$G$19 -> 0 | H17: =COST_SIZE2!$G$19 -> 0 | I17: =COST_SIZE2!$G$19 -> 0 | J17: =COST_SIZE2!$G$19 -> 0 | K17: =COST_SIZE2!$G$19 -> 0 | L17: =COST_SIZE2!$G$19 -> 0 | M17: =COST_SIZE2!$G$19 -> 0 | N17: =COST_SIZE2!$G$19 -> 0 | O17: =COST_SIZE2!$G$19 -> 0 | P17: =COST_SIZE2!$G$19 -> 0 | Q17: =COST_SIZE2!$G$19 -> 0 | R17: =COST_SIZE2!$G$19 -> 0 | S17: =COST_SIZE2!$G$19 -> 0 | T17: =COST_SIZE2!$G$19 -> 0 | U17: =COST_SIZE2!$G$19 -> 0 | V17: =COST_SIZE2!$G$19 -> 0 | W17: =COST_SIZE2!$G$19 -> 0
B18: =title180 -> Water cost (USD/year) | C18: =COST_SIZE2!$G$20 -> 0 | D18: =COST_SIZE2!$G$20 -> 0 | E18: =COST_SIZE2!$G$20 -> 0 | F18: =COST_SIZE2!$G$20 -> 0 | G18: =COST_SIZE2!$G$20 -> 0 | H18: =COST_SIZE2!$G$20 -> 0 | I18: =COST_SIZE2!$G$20 -> 0 | J18: =COST_SIZE2!$G$20 -> 0 | K18: =COST_SIZE2!$G$20 -> 0 | L18: =COST_SIZE2!$G$20 -> 0 | M18: =COST_SIZE2!$G$20 -> 0 | N18: =COST_SIZE2!$G$20 -> 0 | O18: =COST_SIZE2!$G$20 -> 0 | P18: =COST_SIZE2!$G$20 -> 0 | Q18: =COST_SIZE2!$G$20 -> 0 | R18: =COST_SIZE2!$G$20 -> 0 | S18: =COST_SIZE2!$G$20 -> 0 | T18: =COST_SIZE2!$G$20 -> 0 | U18: =COST_SIZE2!$G$20 -> 0 | V18: =COST_SIZE2!$G$20 -> 0 | W18: =COST_SIZE2!$G$20 -> 0
B19: =title181 -> Sub-total maintenance cost | C19: =COST_SIZE2!$G$52 -> 0 | D19: =COST_SIZE2!$G$52 -> 0 | E19: =COST_SIZE2!$G$52 -> 0 | F19: =COST_SIZE2!$G$52 -> 0 | G19: =COST_SIZE2!$G$52 -> 0 | H19: =COST_SIZE2!$G$52 -> 0 | I19: =COST_SIZE2!$G$52 -> 0 | J19: =COST_SIZE2!$G$52 -> 0 | K19: =COST_SIZE2!$G$52 -> 0 | L19: =COST_SIZE2!$G$52 -> 0 | M19: =COST_SIZE2!$G$52 -> 0 | N19: =COST_SIZE2!$G$52 -> 0 | O19: =COST_SIZE2!$G$52 -> 0 | P19: =COST_SIZE2!$G$52 -> 0 | Q19: =COST_SIZE2!$G$52 -> 0 | R19: =COST_SIZE2!$G$52 -> 0 | S19: =COST_SIZE2!$G$52 -> 0 | T19: =COST_SIZE2!$G$52 -> 0 | U19: =COST_SIZE2!$G$52 -> 0 | V19: =COST_SIZE2!$G$52 -> 0 | W19: =COST_SIZE2!$G$52 -> 0
B20: =title182 -> Sub-total of annual investment cost | C20: =E10 -> 0 | D20: =C20 -> 0 | E20: =D20 -> 0 | F20: 0 | G20: 0 | H20: 0 | I20: 0 | J20: 0 | K20: 0 | L20: 0 | M20: 0 | N20: 0 | O20: 0 | P20: 0 | Q20: 0 | R20: 0 | S20: 0 | T20: 0 | U20: 0 | V20: 0 | W20: 0
B21: =title183 -> Total annual production cost (USD) | C21: =C20+C16+C19 -> 0 | D21: =D20+D16+D19 -> 0 | E21: 0 | F21: 0 | G21: 0 | H21: 0 | I21: 0 | J21: 0 | K21: 0 | L21: 0 | M21: 0 | N21: 0 | O21: 0 | P21: 0 | Q21: 0 | R21: 0 | S21: 0 | T21: 0 | U21: 0 | V21: 0 | W21: 0
B23: =title184 -> Financial without policy | C23: =title174 -> Appraisal
B24: =title135 -> Loan amount | C24: =C11*'Data entry needs'!$H$86 -> 0
B25: =title113 -> Loan interest rate (%) | C25: ='Data entry needs'!H83 -> 0
B26: =title114 -> Loan term (years) | C26: ='Data entry needs'!H84 -> 0
B27: =title185 -> Loan payment (USD/month) | C27: =PMT(C25/12,C26*12,C24) -> 
B28: =title186 -> Loan payment (USD/year) | D28: =IF(D14<=$C$26,$C$27*12,0) -> 0 | E28: =IF(E14<=$C$26,$C$27*12,0) -> 0 | F28: 0 | G28: 0 | H28: 0 | I28: 0 | J28: 0 | K28: 0 | L28: 0 | M28: 0 | N28: 0 | O28: 0 | P28: 0 | Q28: 0 | R28: 0 | S28: 0 | T28: 0 | U28: 0 | V28: 0 | W28: 0
B29: =title187 -> Total loan payment (USD) | C29: =+SUM(D28:W28) -> 0
B30: =title188 -> Loan interest payment (USD) | D30: =+C29+C24 -> 0 | E30: =title189 -> Average loan interest payment for project lifetime | K30: =+D30/C6 -> 0 | L30: =title42 -> USD/year
B32: =title168 -> Operating Year | C32: =title174 -> Appraisal | D32: 1 | E32: 2 | F32: 3 | G32: 4 | H32: 5 | I32: 6 | J32: 7 | K32: 8 | L32: 9 | M32: 10 | N32: 11 | O32: 12 | P32: 13 | Q32: 14 | R32: 15 | S32: 16 | T32: 17 | U32: 18 | V32: 19 | W32: 20
B33: =title190 -> Total revenue (USD) | C33: 0 | D33: =+'Summary of Results-By Size'!$AT$188 ->  | E33: =+'Summary of Results-By Size'!$AT$188 ->  | F33: =+'Summary of Results-By Size'!$AT$188 ->  | G33: =+'Summary of Results-By Size'!$AT$188 ->  | H33: =+'Summary of Results-By Size'!$AT$188 ->  | I33: =+'Summary of Results-By Size'!$AT$188 ->  | J33: =+'Summary of Results-By Size'!$AT$188 ->  | K33: =+'Summary of Results-By Size'!$AT$188 ->  | L33: =+'Summary of Results-By Size'!$AT$188 ->  | M33: =+'Summary of Results-By Size'!$AT$188 ->  | N33: =+'Summary of Results-By Size'!$AT$188 ->  | O33: =+'Summary of Results-By Size'!$AT$188 ->  | P33: =+'Summary of Results-By Size'!$AT$188 ->  | Q33: =+'Summary of Results-By Size'!$AT$188 ->  | R33: =+'Summary of Results-By Size'!$AT$188 ->  | S33: =+'Summary of Results-By Size'!$AT$188 ->  | T33: =+'Summary of Results-By Size'!$AT$188 ->  | U33: =+'Summary of Results-By Size'!$AT$188 ->  | V33: =+'Summary of Results-By Size'!$AT$188 ->  | W33: =+'Summary of Results-By Size'!$AT$188 -> 
B34: =title172 -> Total capital cost (USD) | C34: =-ABS(C11-C24) -> 0 | D34: 0 | E34: 0 | F34: 0 | G34: 0 | H34: 0 | I34: 0 | J34: 0 | K34: 0 | L34: 0 | M34: 0 | N34: 0 | O34: 0 | P34: 0 | Q34: 0 | R34: 0 | S34: 0 | T34: 0 | U34: 0 | V34: 0 | W34: 0 | Y34: =title198 -> From the digester user point of view, in the first two years there should be some sort of guarantee so that any maintenance costs will be paid by the biogas business.
B35: =title191 -> Total operating and maintenance cost (USD) | D35: =-D16-D19 -> 0 | E35: =-E16-E19 -> 0 | F35: 0 | G35: 0 | H35: 0 | I35: 0 | J35: 0 | K35: 0 | L35: 0 | M35: 0 | N35: 0 | O35: 0 | P35: 0 | Q35: 0 | R35: 0 | S35: 0 | T35: 0 | U35: 0 | V35: 0 | W35: 0
B36: =title192 -> Loan payment (USD) | C36: 0 | D36: =+D28 -> 0 | E36: =+E28 -> 0 | F36: 0 | G36: 0 | H36: 0 | I36: 0 | J36: 0 | K36: 0 | L36: 0 | M36: 0 | N36: 0 | O36: 0 | P36: 0 | Q36: 0 | R36: 0 | S36: 0 | T36: 0 | U36: 0 | V36: 0 | W36: 0
B37: =title193 -> Cash flow (USD per year) | C37: =SUM(C33:C36) -> 0
B38: =title194 -> Financial analysis without policy
B39: =title195 -> Net present value | C39: =NPV('Data entry needs'!H85,D37:W37)+C37 -> 
B40: =title196 -> Internal rate of return (IRR) | C40: =IF(C39<0, title197, IRR(C37:W37,'Data entry needs'!H85)) -> 

Sheet FA_FLOATING_SIZE2 (hidden)
B2: =title199 -> FINANCIAL ANALYSIS OF BIOGAS PRODUCTION IN A FLOATING DRUM BIODIGESTOR
B5: =title168 -> Operating Year | C5: 0 | D5: 1 | E5: 2 | F5: 3 | G5: 4 | H5: 5 | I5: 6 | J5: 7 | K5: 8 | L5: 9 | M5: 10 | N5: 11 | O5: 12 | P5: 13 | Q5: 14 | R5: 15 | S5: 16 | T5: 17 | U5: 18 | V5: 19 | W5: 20
B6: =title169 -> Lifetime of the reactor | C6: 20
C8: =title174 -> Appraisal | D8: =title175 -> Project lifetime | E8: =title176 -> per year
B9: =title170 -> Direct capital cost (USD)
B10: =title171 -> Reactor construction | C10: =+COST_SIZE2!$H$50 -> 0 | D10: =+MATERIALS_ALL!$D$5 -> 20 | E10: =C10/D10 -> 0
B11: =title172 -> Total capital cost (USD) | C11: =SUM(C10:C10) -> 0
B12: =title173 -> Total savings on energy "revenue" | D12: =SUM(D33:W33) ->  | E12: =D12/C6 -> 
B14: =title168 -> Operating Year | C14: =title174 -> Appraisal | D14: 1 | E14: 2 | F14: 3 | G14: 4 | H14: 5 | I14: 6 | J14: 7 | K14: 8 | L14: 9 | M14: 10 | N14: 11 | O14: 12 | P14: 13 | Q14: 14 | R14: 15 | S14: 16 | T14: 17 | U14: 18 | V14: 19 | W14: 20
B15: =title177 -> Annual operating and maintenance cost
B16: =title178 -> Sub-total operating cost (USD) | C16: =C17+C18 -> 0 | D16: =D17+D18 -> 0 | E16: 0 | F16: 0 | G16: 0 | H16: 0 | I16: 0 | J16: 0 | K16: 0 | L16: 0 | M16: 0 | N16: 0 | O16: 0 | P16: 0 | Q16: 0 | R16: 0 | S16: 0 | T16: 0 | U16: 0 | V16: 0 | W16: 0
B17: =title179 -> Biomass cost (USD/year) | C17: =COST_SIZE2!$I$19 -> 0 | D17: =COST_SIZE2!$I$19 -> 0 | E17: =COST_SIZE2!$I$19 -> 0 | F17: =COST_SIZE2!$I$19 -> 0 | G17: =COST_SIZE2!$I$19 -> 0 | H17: =COST_SIZE2!$I$19 -> 0 | I17: =COST_SIZE2!$I$19 -> 0 | J17: =COST_SIZE2!$I$19 -> 0 | K17: =COST_SIZE2!$I$19 -> 0 | L17: =COST_SIZE2!$I$19 -> 0 | M17: =COST_SIZE2!$I$19 -> 0 | N17: =COST_SIZE2!$I$19 -> 0 | O17: =COST_SIZE2!$I$19 -> 0 | P17: =COST_SIZE2!$I$19 -> 0 | Q17: =COST_SIZE2!$I$19 -> 0 | R17: =COST_SIZE2!$I$19 -> 0 | S17: =COST_SIZE2!$I$19 -> 0 | T17: =COST_SIZE2!$I$19 -> 0 | U17: =COST_SIZE2!$I$19 -> 0 | V17: =COST_SIZE2!$I$19 -> 0 | W17: =COST_SIZE2!$I$19 -> 0
B18: =title180 -> Water cost (USD/year) | C18: =COST_SIZE2!$I$20 -> 0 | D18: =COST_SIZE2!$I$20 -> 0 | E18: =COST_SIZE2!$I$20 -> 0 | F18: =COST_SIZE2!$I$20 -> 0 | G18: =COST_SIZE2!$I$20 -> 0 | H18: =COST_SIZE2!$I$20 -> 0 | I18: =COST_SIZE2!$I$20 -> 0 | J18: =COST_SIZE2!$I$20 -> 0 | K18: =COST_SIZE2!$I$20 -> 0 | L18: =COST_SIZE2!$I$20 -> 0 | M18: =COST_SIZE2!$I$20 -> 0 | N18: =COST_SIZE2!$I$20 -> 0 | O18: =COST_SIZE2!$I$20 -> 0 | P18: =COST_SIZE2!$I$20 -> 0 | Q18: =COST_SIZE2!$I$20 -> 0 | R18: =COST_SIZE2!$I$20 -> 0 | S18: =COST_SIZE2!$I$20 -> 0 | T18: =COST_SIZE2!$I$20 -> 0 | U18: =COST_SIZE2!$I$20 -> 0 | V18: =COST_SIZE2!$I$20 -> 0 | W18: =COST_SIZE2!$I$20 -> 0
B19: =title181 -> Sub-total maintenance cost | C19: =COST_SIZE2!$I$52 -> 0 | D19: =COST_SIZE2!$I$52 -> 0 | E19: =COST_SIZE2!$I$52 -> 0 | F19: =COST_SIZE2!$I$52 -> 0 | G19: =COST_SIZE2!$I$52 -> 0 | H19: =COST_SIZE2!$I$52 -> 0 | I19: =COST_SIZE2!$I$52 -> 0 | J19: =COST_SIZE2!$I$52 -> 0 | K19: =COST_SIZE2!$I$52 -> 0 | L19: =COST_SIZE2!$I$52 -> 0 | M19: =COST_SIZE2!$I$52 -> 0 | N19: =COST_SIZE2!$I$52 -> 0 | O19: =COST_SIZE2!$I$52 -> 0 | P19: =COST_SIZE2!$I$52 -> 0 | Q19: =COST_SIZE2!$I$52 -> 0 | R19: =COST_SIZE2!$I$52 -> 0 | S19: =COST_SIZE2!$I$52 -> 0 | T19: =COST_SIZE2!$I$52 -> 0 | U19: =COST_SIZE2!$I$52 -> 0 | V19: =COST_SIZE2!$I$52 -> 0 | W19: =COST_SIZE2!$I$52 -> 0
B20: =title182 -> Sub-total of annual investment cost | C20: =E10 -> 0 | D20: =C20 -> 0 | E20: =D20 -> 0 | F20: 0 | G20: 0 | H20: 0 | I20: 0 | J20: 0 | K20: 0 | L20: 0 | M20: 0 | N20: 0 | O20: 0 | P20: 0 | Q20: 0 | R20: 0 | S20: 0 | T20: 0 | U20: 0 | V20: 0 | W20: 0
B21: =title183 -> Total annual production cost (USD) | C21: =C20+C16+C19 -> 0 | D21: =D20+D16+D19 -> 0 | E21: 0 | F21: 0 | G21: 0 | H21: 0 | I21: 0 | J21: 0 | K21: 0 | L21: 0 | M21: 0 | N21: 0 | O21: 0 | P21: 0 | Q21: 0 | R21: 0 | S21: 0 | T21: 0 | U21: 0 | V21: 0 | W21: 0
B23: =title184 -> Financial without policy | C23: =title174 -> Appraisal
B24: =title135 -> Loan amount | C24: =C11*'Data entry needs'!$H$86 -> 0
B25: =title113 -> Loan interest rate (%) | C25: ='Data entry needs'!H83 -> 0
B26: =title114 -> Loan term (years) | C26: ='Data entry needs'!H84 -> 0
B27: =title185 -> Loan payment (USD/month) | C27: =PMT(C25/12,C26*12,C24) -> 
B28: =title186 -> Loan payment (USD/year) | D28: =IF(D14<=$C$26,$C$27*12,0) -> 0 | E28: =IF(E14<=$C$26,$C$27*12,0) -> 0 | F28: 0 | G28: 0 | H28: 0 | I28: 0 | J28: 0 | K28: 0 | L28: 0 | M28: 0 | N28: 0 | O28: 0 | P28: 0 | Q28: 0 | R28: 0 | S28: 0 | T28: 0 | U28: 0 | V28: 0 | W28: 0
B29: =title187 -> Total loan payment (USD) | C29: =+SUM(D28:W28) -> 0
B30: =title188 -> Loan interest payment (USD) | D30: =+C29+C24 -> 0 | E30: =title189 -> Average loan interest payment for project lifetime | K30: =+D30/C6 -> 0 | L30: =title42 -> USD/year
B32: =title168 -> Operating Year | C32: =title174 -> Appraisal | D32: 1 | E32: 2 | F32: 3 | G32: 4 | H32: 5 | I32: 6 | J32: 7 | K32: 8 | L32: 9 | M32: 10 | N32: 11 | O32: 12 | P32: 13 | Q32: 14 | R32: 15 | S32: 16 | T32: 17 | U32: 18 | V32: 19 | W32: 20
B33: =title190 -> Total revenue (USD) | C33: 0 | D33: =+'Summary of Results-By Size'!$AT$188 ->  | E33: =+'Summary of Results-By Size'!$AT$188 ->  | F33: =+'Summary of Results-By Size'!$AT$188 ->  | G33: =+'Summary of Results-By Size'!$AT$188 ->  | H33: =+'Summary of Results-By Size'!$AT$188 ->  | I33: =+'Summary of Results-By Size'!$AT$188 ->  | J33: =+'Summary of Results-By Size'!$AT$188 ->  | K33: =+'Summary of Results-By Size'!$AT$188 ->  | L33: =+'Summary of Results-By Size'!$AT$188 ->  | M33: =+'Summary of Results-By Size'!$AT$188 ->  | N33: =+'Summary of Results-By Size'!$AT$188 ->  | O33: =+'Summary of Results-By Size'!$AT$188 ->  | P33: =+'Summary of Results-By Size'!$AT$188 ->  | Q33: =+'Summary of Results-By Size'!$AT$188 ->  | R33: =+'Summary of Results-By Size'!$AT$188 ->  | S33: =+'Summary of Results-By Size'!$AT$188 ->  | T33: =+'Summary of Results-By Size'!$AT$188 ->  | U33: =+'Summary of Results-By Size'!$AT$188 ->  | V33: =+'Summary of Results-By Size'!$AT$188 ->  | W33: =+'Summary of Results-By Size'!$AT$188 -> 
B34: =title172 -> Total capital cost (USD) | C34: =-ABS(C11-C24) -> 0 | D34: 0 | E34: 0 | F34: 0 | G34: 0 | H34: 0 | I34: 0 | J34: 0 | K34: 0 | L34: 0 | M34: 0 | N34: 0 | O34: 0 | P34: 0 | Q34: 0 | R34: 0 | S34: 0 | T34: 0 | U34: 0 | V34: 0 | W34: 0 | Y34: =title198 -> From the digester user point of view, in the first two years there should be some sort of guarantee so that any maintenance costs will be paid by the biogas business.
B35: =title191 -> Total operating and maintenance cost (USD) | D35: =-D16-D19 -> 0 | E35: =-E16-E19 -> 0 | F35: 0 | G35: 0 | H35: 0 | I35: 0 | J35: 0 | K35: 0 | L35: 0 | M35: 0 | N35: 0 | O35: 0 | P35: 0 | Q35: 0 | R35: 0 | S35: 0 | T35: 0 | U35: 0 | V35: 0 | W35: 0
B36: =title192 -> Loan payment (USD) | C36: 0 | D36: =+D28 -> 0 | E36: =+E28 -> 0 | F36: 0 | G36: 0 | H36: 0 | I36: 0 | J36: 0 | K36: 0 | L36: 0 | M36: 0 | N36: 0 | O36: 0 | P36: 0 | Q36: 0 | R36: 0 | S36: 0 | T36: 0 | U36: 0 | V36: 0 | W36: 0
B37: =title193 -> Cash flow (USD per year) | C37: =SUM(C33:C36) -> 0 | D37: =SUM(D33:D36) ->  | E37: =SUM(E33:E36) ->  | F37: =SUM(F33:F36) -> 
B38: =title194 -> Financial analysis without policy
B39: =title195 -> Net present value | C39: =NPV('Data entry needs'!H85,D37:W37)+C37 -> 
B40: =title196 -> Internal rate of return (IRR) | C40: =IF(C39<0, title197, IRR(C37:W37,'Data entry needs'!H85)) -> 

Sheet FA_TUBULAR_SIZE2 (hidden)
B2: =title200 -> FINANCIAL ANALYSIS OF BIOGAS PRODUCTION IN A TUBULAR BIODIGESTOR
B5: =title168 -> Operating Year | C5: 0 | D5: 1 | E5: 2 | F5: 3 | G5: 4 | H5: 5 | I5: 6 | J5: 7 | K5: 8 | L5: 9 | M5: 10 | N5: 11 | O5: 12 | P5: 13 | Q5: 14 | R5: 15 | S5: 16 | T5: 17 | U5: 18 | V5: 19 | W5: 20
B6: =title169 -> Lifetime of the reactor | C6: 10
C8: =title174 -> Appraisal | D8: =title175 -> Project lifetime | E8: =title176 -> per year
B9: =title170 -> Direct capital cost (USD)
B10: =title171 -> Reactor construction | C10: =+COST_SIZE2!$J$50 ->  | D10: =+MATERIALS_ALL!$D$6 -> 10 | E10: =C10/D10 -> 
B11: =title172 -> Total capital cost (USD) | C11: =SUM(C10:C10) -> 
B12: =title173 -> Total savings on energy "revenue" | D12: =SUM(D33:W33) ->  | E12: =D12/C6 -> 
B14: =title168 -> Operating Year | C14: =title174 -> Appraisal | D14: 1 | E14: 2 | F14: 3 | G14: 4 | H14: 5 | I14: 6 | J14: 7 | K14: 8 | L14: 9 | M14: 10 | N14: 11 | O14: 12 | P14: 13 | Q14: 14 | R14: 15 | S14: 16 | T14: 17 | U14: 18 | V14: 19 | W14: 20
B15: =title177 -> Annual operating and maintenance cost
B16: =title178 -> Sub-total operating cost (USD) | C16: =C17+C18 -> 0 | D16: =D17+D18 -> 0 | E16: 0 | F16: 0 | G16: 0 | H16: 0 | I16: 0 | J16: 0 | K16: 0 | L16: 0 | M16: 0 | N16: 0 | O16: 0 | P16: 0 | Q16: 0 | R16: 0 | S16: 0 | T16: 0 | U16: 0 | V16: 0 | W16: 0
B17: =title179 -> Biomass cost (USD/year) | C17: =COST_SIZE2!$K$19 -> 0 | D17: =COST_SIZE2!$K$19 -> 0 | E17: =COST_SIZE2!$K$19 -> 0 | F17: =COST_SIZE2!$K$19 -> 0 | G17: =COST_SIZE2!$K$19 -> 0 | H17: =COST_SIZE2!$K$19 -> 0 | I17: =COST_SIZE2!$K$19 -> 0 | J17: =COST_SIZE2!$K$19 -> 0 | K17: =COST_SIZE2!$K$19 -> 0 | L17: =COST_SIZE2!$K$19 -> 0 | M17: =COST_SIZE2!$K$19 -> 0 | N17: =COST_SIZE2!$K$19 -> 0 | O17: =COST_SIZE2!$K$19 -> 0 | P17: =COST_SIZE2!$K$19 -> 0 | Q17: =COST_SIZE2!$K$19 -> 0 | R17: =COST_SIZE2!$K$19 -> 0 | S17: =COST_SIZE2!$K$19 -> 0 | T17: =COST_SIZE2!$K$19 -> 0 | U17: =COST_SIZE2!$K$19 -> 0 | V17: =COST_SIZE2!$K$19 -> 0 | W17: =COST_SIZE2!$K$19 -> 0
B18: =title180 -> Water cost (USD/year) | C18: =COST_SIZE2!$K$20 -> 0 | D18: =COST_SIZE2!$K$20 -> 0 | E18: =COST_SIZE2!$K$20 -> 0 | F18: =COST_SIZE2!$K$20 -> 0 | G18: =COST_SIZE2!$K$20 -> 0 | H18: =COST_SIZE2!$K$20 -> 0 | I18: =COST_SIZE2!$K$20 -> 0 | J18: =COST_SIZE2!$K$20 -> 0 | K18: =COST_SIZE2!$K$20 -> 0 | L18: =COST_SIZE2!$K$20 -> 0 | M18: =COST_SIZE2!$K$20 -> 0 | N18: =COST_SIZE2!$K$20 -> 0 | O18: =COST_SIZE2!$K$20 -> 0 | P18: =COST_SIZE2!$K$20 -> 0 | Q18: =COST_SIZE2!$K$20 -> 0 | R18: =COST_SIZE2!$K$20 -> 0 | S18: =COST_SIZE2!$K$20 -> 0 | T18: =COST_SIZE2!$K$20 -> 0 | U18: =COST_SIZE2!$K$20 -> 0 | V18: =COST_SIZE2!$K$20 -> 0 | W18: =COST_SIZE2!$K$20 -> 0
B19: =title181 -> Sub-total maintenance cost | C19: =COST_SIZE2!$K$52 ->  | D19: =COST_SIZE2!$K$52 ->  | E19: =COST_SIZE2!$K$52 ->  | F19: =COST_SIZE2!$K$52 ->  | G19: =COST_SIZE2!$K$52 ->  | H19: =COST_SIZE2!$K$52 ->  | I19: =COST_SIZE2!$K$52 ->  | J19: =COST_SIZE2!$K$52 ->  | K19: =COST_SIZE2!$K$52 ->  | L19: =COST_SIZE2!$K$52 ->  | M19: =COST_SIZE2!$K$52 ->  | N19: =COST_SIZE2!$K$52 ->  | O19: =COST_SIZE2!$K$52 ->  | P19: =COST_SIZE2!$K$52 ->  | Q19: =COST_SIZE2!$K$52 ->  | R19: =COST_SIZE2!$K$52 ->  | S19: =COST_SIZE2!$K$52 ->  | T19: =COST_SIZE2!$K$52 ->  | U19: =COST_SIZE2!$K$52 ->  | V19: =COST_SIZE2!$K$52 ->  | W19: =COST_SIZE2!$K$52 -> 
B20: =title182 -> Sub-total of annual investment cost | C20: =E10 ->  | D20: =C20 ->  | E20: =D20 -> 
B21: =title183 -> Total annual production cost (USD) | C21: =C20+C16+C19 ->  | D21: =D20+D16+D19 -> 
B23: =title184 -> Financial without policy | C23: =title174 -> Appraisal
B24: =title135 -> Loan amount | C24: =C11*'Data entry needs'!$H$86 ->  | M24: =C24 -> 
B25: =title113 -> Loan interest rate (%) | C25: ='Data entry needs'!H83 -> 0 | M25: =C25 -> 0
B26: =title114 -> Loan term (years) | C26: ='Data entry needs'!H84 -> 0 | M26: 0
B27: =title185 -> Loan payment (USD/month) | C27: =PMT(C25/12,C26*12,C24) -> 
B28: =title186 -> Loan payment (USD/year) | D28: =IF(D14<=$C$26,$C$27*12,0) -> 0 | E28: =IF(E14<=$C$26,$C$27*12,0) -> 0 | F28: 0 | G28: 0 | H28: 0 | I28: 0 | J28: 0 | K28: 0 | L28: 0 | M28: =IF(M14<=$C$26,$C$27*12+$M$27*12,0) -> 0 | N28: =IF(N14<=$C$26,$C$27*12+$M$27*12,0) -> 0 | O28: 0 | P28: 0 | Q28: 0 | R28: 0 | S28: 0 | T28: 0 | U28: 0 | V28: 0 | W28: 0
B29: =title187 -> Total loan payment (USD) | C29: =+SUM(D28:W28) -> 0
B30: =title188 -> Loan interest payment (USD) | D30: =+C29+C24 ->  | E30: =title189 -> Average loan interest payment for project lifetime | K30: =+D30/C6 ->  | L30: =title42 -> USD/year
B32: =title168 -> Operating Year | C32: =title174 -> Appraisal | D32: 1 | E32: 2 | F32: 3 | G32: 4 | H32: 5 | I32: 6 | J32: 7 | K32: 8 | L32: 9 | M32: 10 | N32: 11 | O32: 12 | P32: 13 | Q32: 14 | R32: 15 | S32: 16 | T32: 17 | U32: 18 | V32: 19 | W32: 20
B33: =title190 -> Total revenue (USD) | C33: 0 | D33: =+'Summary of Results-By Size'!$AT$188 ->  | E33: =+'Summary of Results-By Size'!$AT$188 ->  | F33: =+'Summary of Results-By Size'!$AT$188 ->  | G33: =+'Summary of Results-By Size'!$AT$188 ->  | H33: =+'Summary of Results-By Size'!$AT$188 ->  | I33: =+'Summary of Results-By Size'!$AT$188 ->  | J33: =+'Summary of Results-By Size'!$AT$188 ->  | K33: =+'Summary of Results-By Size'!$AT$188 ->  | L33: =+'Summary of Results-By Size'!$AT$188 ->  | M33: =+'Summary of Results-By Size'!$AT$188 ->  | N33: =+'Summary of Results-By Size'!$AT$188 ->  | O33: =+'Summary of Results-By Size'!$AT$188 ->  | P33: =+'Summary of Results-By Size'!$AT$188 ->  | Q33: =+'Summary of Results-By Size'!$AT$188 ->  | R33: =+'Summary of Results-By Size'!$AT$188 ->  | S33: =+'Summary of Results-By Size'!$AT$188 ->  | T33: =+'Summary of Results-By Size'!$AT$188 ->  | U33: =+'Summary of Results-By Size'!$AT$188 ->  | V33: =+'Summary of Results-By Size'!$AT$188 ->  | W33: =+'Summary of Results-By Size'!$AT$188 -> 
B34: =title172 -> Total capital cost (USD) | C34: =-ABS(C11-C24) ->  | D34: 0 | E34: 0 | F34: 0 | G34: 0 | H34: 0 | I34: 0 | J34: 0 | K34: 0 | L34: 0 | M34: 0 | N34: 0 | O34: 0 | P34: 0 | Q34: 0 | R34: 0 | S34: 0 | T34: 0 | U34: 0 | V34: 0 | W34: 0 | Y34: =title198 -> From the digester user point of view, in the first two years there should be some sort of guarantee so that any maintenance costs will be paid by the biogas business.
B35: =title191 -> Total operating and maintenance cost (USD) | D35: =-D16-D19 ->  | E35: =-E16-E19 -> 
B36: =title192 -> Loan payment (USD) | C36: 0 | D36: =+D28 -> 0 | E36: =+E28 -> 0 | F36: 0 | G36: 0 | H36: 0 | I36: 0 | J36: 0 | K36: 0 | L36: 0 | M36: 0 | N36: 0 | O36: 0 | P36: 0 | Q36: 0 | R36: 0 | S36: 0 | T36: 0 | U36: 0 | V36: 0 | W36: 0
B37: =title193 -> Cash flow (USD per year) | C37: =SUM(C33:C36) ->  | D37: =SUM(D33:D36) ->  | E37: =SUM(E33:E36) ->  | F37: =SUM(F33:F36) -> 
B38: =title194 -> Financial analysis without policy
B39: =title195 -> Net present value | C39: =NPV('Data entry needs'!H85,D37:M37)+C37 -> 
B40: =title196 -> Internal rate of return (IRR) | C40: =IF(C39<0, title197, IRR(C37:M37,'Data entry needs'!H85)) -> 

Sheet COST_SIZE3
C3: =title119&'Data entry needs'!$F$15 -> PROCESSING COSTS FOR BIOGAS PRODUCTION SIZE 3
C6: =title33 -> Use white cells to input data | D6: =title34 -> Grey cells are used for calculations
C8: =title120 -> Biogas production (m3/day) | D8: ='Model Calculations_ALL'!F32 ->  | E8: =title121 -> Biogas production (m3/year) | G8: =D8*365 ->  | H8: =title122 -> Recommended size of biodigestor (m3) | K8: =IF('Model Calculations_ALL'!$F$29<1,ROUNDUP('Model Calculations_ALL'!$F$29,2),ROUNDUP('Model Calculations_ALL'!$F$29,0)) -> 0
C11: Materials Cost Details
F13: =title145 -> Biodigester Options
F14: =title59 -> Fixed dome | H14: =title60 -> Floating drum | J14: =title146 -> Tubular
C17: =title148 -> Operating costs | D17: =title69 -> Unit | E17: =title110 -> Unit Price | F17: =title130 -> Quantity | G17: Total | H17: =title130 -> Quantity | I17: Total | J17: =title130 -> Quantity | K17: Total
E18: ="("&title37&")" -> (USD/unit) | F18: ="("&title40&")" -> (unit/year) | G18: ="("&title42&")" -> (USD/year) | H18: ="("&title40&")" -> (unit/year) | I18: ="("&title42&")" -> (USD/year) | J18: ="("&title40&")" -> (unit/year) | K18: ="("&title42&")" -> (USD/year)
C19: =title67 -> Feedstock | D19: t | E19: ='Data entry needs'!$D$38 -> 0 | F19: =(('Model Calculations_ALL'!$F$25)/1000)*365 -> 0 | G19: =E19*F19 -> 0 | H19: =+F19 -> 0 | I19: =E19*H19 -> 0 | J19: =+H19 -> 0 | K19: =J19*E19 -> 0
C20: =title149 -> Water/urine | D20: m3 | E20: ='Data entry needs'!$G$38 -> 0 | F20: =(('Model Calculations_ALL'!$F$26)/1000)*365 -> 0 | G20: =E20*F20 -> 0 | H20: =+F20 -> 0 | I20: =E20*H20 -> 0 | J20: =+H20 -> 0 | K20: =J20*E20 -> 0
C21: =title150 -> Subtotal | E21: =title42 -> USD/year | G21: =SUM(G19:G20) -> 0 | I21: =SUM(I19:I20) -> 0 | K21: =SUM(K19:K20) -> 0
C23: =title151 -> Labour for installation and construction | D23: =title69 -> Unit | E23: =title110 -> Unit Price | F23: =title130 -> Quantity | G23: Total | H23: =title130 -> Quantity | I23: Total | J23: =title130 -> Quantity | K23: Total
E24: ="("&title86&")" -> (USD/person-hour) | F24: ="("&title154&")" -> (person-day) | G24: (USD) | H24: ="("&title154&")" -> (person-day) | I24: (USD) | J24: ="("&title154&")" -> (person-day) | K24: (USD)
C25: =title87 -> Unskilled worker | D25: =title154 -> person-day | E25: ='Data entry needs'!G65 -> 0 | F25: =MATERIALS_ALL!$H$28+MATERIALS_ALL!$H$30 -> 14.299 | G25: =E25*F25*8 -> 0 | H25: =MATERIALS_ALL!$H$56+MATERIALS_ALL!$H$58 -> 12.81 | I25: =E25*H25*8 -> 0 | J25: =MATERIALS_ALL!$H$85+MATERIALS_ALL!$H$87 -> 3 | K25: =E25*J25*8 -> 0
C26: =title152 -> Skilled worker | D26: =title154 -> person-day | E26: ='Data entry needs'!D65 -> 0 | F26: =MATERIALS_ALL!$H$29 -> 4.819 | G26: =E26*F26*8 -> 0 | H26: =MATERIALS_ALL!$H$58 -> 4.81 | I26: =H26*E26*8 -> 0 | J26: =MATERIALS_ALL!$H$86 -> 2 | K26: =J26*E26*8 -> 0
C27: =title153 -> Total labour for installation | E27: USD | F27: =SUM(G25:G26) -> 0 | H27: =SUM(I25:I26) -> 0 | J27: =SUM(K25:K26) -> 0
C28: =title124 -> Construction materials | D28: =title69 -> Unit | E28: =title110 -> Unit Price | F28: =title130 -> Quantity | G28: Total | H28: =title130 -> Quantity | I28: Total | J28: =title130 -> Quantity | K28: Total
E29: ="("&title37&")" -> (USD/unit) | F29: ="("&title69&")" -> (Unit) | G29: (USD) | H29: ="("&title69&")" -> (Unit) | I29: (USD) | J29: ="("&title69&")" -> (Unit) | K29: (USD)
C30: =title75 -> Bricks | D30: pc | E30: =+MATERIALS_ALL!$M$10 -> 0 | F30: =MATERIALS_ALL!$H$34 -> 706.8 | G30: =F30*E30 -> 0 | H30: =MATERIALS_ALL!$H$61 -> 1413.6 | I30: =H30*E30 -> 0
C31: =title125 -> Cement 50 kg bag | D31: =LOWER(title79) -> bag | E31: =+MATERIALS_ALL!$M$11 -> 0 | F31: =MATERIALS_ALL!$H$35 -> 7.224 | G31: =F31*E31 -> 0 | H31: =MATERIALS_ALL!$H$62 -> 6.5016 | I31: =H31*E31 -> 0
C32: =title80 -> Sand | D32: m3 | E32: =+MATERIALS_ALL!$M$12 -> 0 | F32: =MATERIALS_ALL!$H$36 -> 1.652 | G32: =F32*E32 -> 0 | H32: =MATERIALS_ALL!$H$63 -> 0.608 | I32: =H32*E32 -> 0
C33: =title81 -> Gravel | D33: m3 | E33: =+MATERIALS_ALL!$M$13 -> 0 | F33: =MATERIALS_ALL!$H$37 -> 0.864 | G33: =F33*E33 -> 0 | H33: =MATERIALS_ALL!$H$64 -> 0.35 | I33: =H33*E33 -> 0
C34: =title126 -> Tubular bag (0,2 mm thick) | D34: =title131 -> metre | E34: =+MATERIALS_ALL!$M$14 -> 0 | J34: =MATERIALS_ALL!$H$90 -> 12.06 | K34: =J34*E34 -> 0
C35: =title127 -> Other Materials | D35: % | F35: =IF('Data entry needs'!$AB$103=1,MATERIALS_ALL!$P$10,0) -> 0.465718817 | G35: =IF('Data entry needs'!$AB$103=1,SUM(G30:G34)*(F35/(1-F35)),0) -> 0 | H35: =IF('Data entry needs'!$AB$103=1,MATERIALS_ALL!$Q$10,0) -> 0.5402978483 | I35: =IF('Data entry needs'!$AB$103=1,SUM(I30:I34)*(H35/(1-H35)),0) -> 0 | J35: =IF('Data entry needs'!$AB$103=1,MATERIALS_ALL!$R$10,0) -> 0.8817716448 | K35: =IF('Data entry needs'!$AB$103=1,SUM(K30:K34)*(H49/F49/(1-J35)),0) -> 
C36: =title128 -> Other accessories | D36: % | F36: =(MATERIALS_ALL!$H$39+MATERIALS_ALL!$H$40) -> 0.16865 | G36: =IF('Data entry needs'!$AB$104=1,(SUM(G30:G33)+G35)*(F36/(1-F36)),(SUM(G30:G33)+SUM(G37:G48))*(F36/(1-F36))) -> 0 | H36: =MATERIALS_ALL!$H$66+MATERIALS_ALL!$H$67 -> 0.19 | I36: =IF('Data entry needs'!$AB$104=1,(SUM(I30:I33)+I35)*(H36/(1-H36)),(SUM(I30:I33)+SUM(I37:I48))*(H36/(1-H36))) -> 0 | J36: =MATERIALS_ALL!$H$96+MATERIALS_ALL!$H$97 -> 0.05213 | K36: =IF('Data entry needs'!$AB$103=1,(SUM(K30:K33)+K35)*(J36/(1-J36)),(SUM(K30:K33)+SUM(K37:K48))*(J36/(1-J36))) -> 
C37: Paint | D37: l | E37: =+MATERIALS_ALL!$M$15 -> 0 | F37: =MATERIALS_ALL!$H$38 -> 0.351 | G37: =F37*E37 -> 0 | H37: =MATERIALS_ALL!$H$65 -> 1.145 | I37: =H37*E37 -> 0
C38: Net cyclone 4'' feet | D38: roll | E38: =+MATERIALS_ALL!$M$16 -> 0 | G38: =F38*E38 -> 0 | I38: =H38*E38 -> 0 | J38: =MATERIALS_ALL!$H$94 -> 0 | K38: =J38*E38 -> 0
C39: Zinc sheets | D39: kg | E39: =+MATERIALS_ALL!$M$17 -> 0 | G39: 0 | I39: 0 | J39: =MATERIALS_ALL!$H$95 -> 0 | K39: 0
C40: Plastic valve 1/2'' | D40: pc | E40: =+MATERIALS_ALL!$M$18 -> 0 | G40: 0 | I40: 0 | J40: =MATERIALS_ALL!$H$91 -> 4 | K40: 0
C41: Plastic hub 1/2'' | D41: pc | E41: =+MATERIALS_ALL!$M$19 -> 0 | G41: 0 | I41: 0 | J41: =MATERIALS_ALL!$H$92 -> 2 | K41: 0
C42: Pneumatic league | D42: pc | E42: =+MATERIALS_ALL!$M$20 -> 0 | G42: 0 | I42: 0 | J42: =MATERIALS_ALL!$H$93 -> 60 | K42: 0
C43: Gas stove | D43: pc | E43: =+MATERIALS_ALL!$M$21 -> 0 | F43: 1 | G43: 0 | H43: 1 | I43: 0 | J43: 1 | K43: 0
C44: Gas light | D44: pc | E44: =+MATERIALS_ALL!$M$22 -> 0 | F44: 1 | G44: 0 | H44: 1 | I44: 0 | J44: 1 | K44: 0
C45: Main valve | D45: pc | E45: =+MATERIALS_ALL!$M$23 -> 0 | F45: 1 | G45: 0 | H45: 1 | I45: 0 | J45: 1 | K45: 0
C46: H2S filter | D46: set | E46: =+MATERIALS_ALL!$M$24 -> 0 | F46: 1 | G46: 0 | H46: 1 | I46: 0 | J46: 1 | K46: 0
C47: Pressure manometer | D47: pc | E47: =+MATERIALS_ALL!$M$25 -> 0 | F47: 1 | G47: 0 | H47: 1 | I47: 0 | J47: 1 | K47: 0
C48: Mixing device | D48: pc | E48: =+MATERIALS_ALL!$M$26 -> 0 | F48: 1 | G48: =F48*E48 -> 0 | H48: 1 | I48: =H48*E48 -> 0 | J48: 1 | K48: 0
C49: =title129 -> Total construction material | E49: USD | F49: =IF('Data entry needs'!$AB$103=1,SUM(G30:G48),SUM(G30:G34,G36:G48)) -> 0 | H49: =IF('Data entry needs'!$AB$103=1,SUM(I30:I48),SUM(I30:I34,I36:I48)) -> 0 | J49: =IF('Data entry needs'!$AB$103=1,SUM(K30:K48),SUM(K30:K34,K36:K48)) -> 
C50: Total investment cost | E50: USD | F50: =+(F49+F27) -> 0 | H50: =+(H49+H27) -> 0 | J50: =+(J49+J27) -> 
F51: =title157 -> Total Depreciation | G51: =+F50/MATERIALS_ALL!$D$4 -> 0 | H51: =title157 -> Total Depreciation | I51: =+H50/MATERIALS_ALL!$D$5 -> 0 | J51: =title157 -> Total Depreciation | K51: =+J50/MATERIALS_ALL!$D$6 -> 
C52: =title155 -> Total maintenance cost | E52: =+'Data entry needs'!$D$63 -> 0 | G52: =+G51*$E$52 -> 0 | I52: =+I51*$E$52 -> 0 | K52: =+K51*$E$52 -> 
C53: =title156 -> Subtotal fixed costs | E53: =title42 -> USD/year | G53: =SUM(G51:G52) -> 0 | I53: =SUM(I51:I52) -> 0 | K53: =SUM(K51:K52) -> 
C55: =title82 -> Other costs | G55: Total | I55: =title158 -> Depreciation | K55: =title158 -> Depreciation
G56: ="("&title42&")" -> (USD/year) | I56: ="("&title42&")" -> (USD/year) | K56: ="("&title42&")" -> (USD/year)
C57: =title141 -> Loan interest | G57: =-FA_FIXED_SIZE3!$K$30 -> 0 | I57: =-FA_FLOATING_SIZE3!$K$30 -> 0 | K57: =-FA_TUBULAR_SIZE3!$K$30 -> 
C58: =title156 -> Subtotal fixed costs | E58: =title42 -> USD/year | G58: =SUM(G55:G57) -> 0 | I58: =SUM(I55:I57) -> 0 | K58: =SUM(K55:K57) -> 
C60: =title159 -> Total costs | F60: =title59 -> Fixed dome | H60: =title60 -> Floating drum | J60: =title146 -> Tubular
C61: Investment | F61: ="("&title42&")" -> (USD/year) | H61: ="("&title42&")" -> (USD/year) | J61: ="("&title42&")" -> (USD/year)
C62: =title160 -> Total operating costs | F62: =+G21 -> 0 | G62: =+F62/$G$65 ->  | H62: =+I21 -> 0 | I62: =+H62/$I$65 ->  | J62: =+K21 -> 0 | K62: =+J62/$K$65 -> 
C63: =title161 -> Total fixed costs | F63: =+G53 -> 0 | G63: =+F63/$G$65 ->  | H63: =+I53 -> 0 | I63: =+H63/$I$65 ->  | J63: =+K53 ->  | K63: =+J63/$K$65 -> 
C64: =title162 -> Total other costs | F64: =+G58 -> 0 | G64: =+F64/$G$65 ->  | H64: =+I58 -> 0 | I64: =+H64/$I$65 ->  | J64: =+K58 ->  | K64: =+J64/$K$65 -> 
C65: =title163 -> Total production costs | G65: =+F62+F63+F64 -> 0 | I65: =I21+I53+I57 -> 0 | K65: =K21+K53+K57 -> 
C67: =title132 -> Total Production Cost
F69: =title145 -> Biodigester Options
F70: =title59 -> Fixed dome | H70: =title60 -> Floating drum | J70: =title146 -> Tubular
C71: =title133 -> Unit cost of biogas (USD/m3) | G71: =G65/G8 ->  | I71: =I65/G8 ->  | K71: =K65/G8 -> 
C73: =title134 -> Average loan interest without policy | D73: =title69 -> Unit | E73: =title116 -> Loan ratio (%) | F73: =title147 -> Total investment | G73: =title135 -> Loan amount | H73: =title147 -> Total investment | I73: =title135 -> Loan amount | J73: =title147 -> Total investment | K73: =title135 -> Loan amount
F74: (USD) | G74: (USD) | H74: (USD) | I74: (USD) | J74: (USD) | K74: (USD)
C75: =title135 -> Loan amount | D75: USD | E75: =+'Data entry needs'!$H$86 -> 0 | F75: =+$F$50 -> 0 | G75: =$E$75*F75 -> 0 | H75: =+$H$50 -> 0 | I75: =$E$75*H75 -> 0 | J75: =+$J$50 ->  | K75: =$E$75*J75 -> 
C76: =title136 -> Loan interest rate | D76: % | G76: =+'Data entry needs'!$H$83 -> 0 | I76: =+G76 -> 0 | K76: =+I76 -> 0
C77: =title137 -> Loan payment | D77: =title143 -> USD/month | G77: =PMT(G76/12,G79*12,G75,0) ->  | I77: =PMT(I76/12,I79*12,I75,0) ->  | K77: =PMT(K76/12,K79*12,K75,0) -> 
C78: =title138 -> Annual loan payment | D78: =title42 -> USD/year | G78: =G77*12 ->  | I78: =I77*12 ->  | K78: =K77*12 -> 
C79: =title139 -> Loan terms | D79: =title144 -> year | G79: =+'Data entry needs'!$H$84 -> 0 | I79: =+G79 -> 0 | K79: =+G79 -> 0
C80: =title140 -> Total loan payment | D80: USD | G80: =G78*G79 ->  | I80: =I78*I79 ->  | K80: =K78*K79 -> 
C81: =title141 -> Loan interest | D81: USD | G81: =G80+G75 ->  | I81: =I80+I75 ->  | K81: =K80+K75 -> 
C82: =title142 -> Average loan interest | D82: =title42 -> USD/year | G82: =+G81/20 ->  | I82: =+I81/20 ->  | K82: =+K81/10 -> 

Sheet FA_FIXED_SIZE3 (hidden)
B2: =title167 -> FINANCIAL ANALYSIS OF BIOGAS PRODUCTION IN A FIXED DOME BIODIGESTOR
B5: =title168 -> Operating Year | C5: 0 | D5: 1 | E5: 2 | F5: 3 | G5: 4 | H5: 5 | I5: 6 | J5: 7 | K5: 8 | L5: 9 | M5: 10 | N5: 11 | O5: 12 | P5: 13 | Q5: 14 | R5: 15 | S5: 16 | T5: 17 | U5: 18 | V5: 19 | W5: 20
B6: =title169 -> Lifetime of the reactor | C6: 20
C8: =title174 -> Appraisal | D8: =title175 -> Project lifetime | E8: =title176 -> per year
B9: =title170 -> Direct capital cost (USD)
B10: =title171 -> Reactor construction | C10: =+COST_SIZE3!$F$50 -> 0 | D10: =+MATERIALS_ALL!$D$4 -> 20 | E10: =C10/D10 -> 0
B11: =title172 -> Total capital cost (USD) | C11: =SUM(C10:C10) -> 0
B12: =title173 -> Total savings on energy "revenue" | D12: =SUM(D33:W33) ->  | E12: =D12/C6 -> 
B14: =title168 -> Operating Year | C14: =title174 -> Appraisal | D14: 1 | E14: 2 | F14: 3 | G14: 4 | H14: 5 | I14: 6 | J14: 7 | K14: 8 | L14: 9 | M14: 10 | N14: 11 | O14: 12 | P14: 13 | Q14: 14 | R14: 15 | S14: 16 | T14: 17 | U14: 18 | V14: 19 | W14: 20
B15: =title177 -> Annual operating and maintenance cost
B16: =title178 -> Sub-total operating cost (USD) | C16: =C17+C18 -> 0 | D16: =D17+D18 -> 0 | E16: 0 | F16: 0 | G16: 0 | H16: 0 | I16: 0 | J16: 0 | K16: 0 | L16: 0 | M16: 0 | N16: 0 | O16: 0 | P16: 0 | Q16: 0 | R16: 0 | S16: 0 | T16: 0 | U16: 0 | V16: 0 | W16: 0
B17: =title179 -> Biomass cost (USD/year) | C17: =COST_SIZE3!$G$19 -> 0 | D17: =COST_SIZE3!$G$19 -> 0 | E17: =COST_SIZE3!$G$19 -> 0 | F17: =COST_SIZE3!$G$19 -> 0 | G17: =COST_SIZE3!$G$19 -> 0 | H17: =COST_SIZE3!$G$19 -> 0 | I17: =COST_SIZE3!$G$19 -> 0 | J17: =COST_SIZE3!$G$19 -> 0 | K17: =COST_SIZE3!$G$19 -> 0 | L17: =COST_SIZE3!$G$19 -> 0 | M17: =COST_SIZE3!$G$19 -> 0 | N17: =COST_SIZE3!$G$19 -> 0 | O17: =COST_SIZE3!$G$19 -> 0 | P17: =COST_SIZE3!$G$19 -> 0 | Q17: =COST_SIZE3!$G$19 -> 0 | R17: =COST_SIZE3!$G$19 -> 0 | S17: =COST_SIZE3!$G$19 -> 0 | T17: =COST_SIZE3!$G$19 -> 0 | U17: =COST_SIZE3!$G$19 -> 0 | V17: =COST_SIZE3!$G$19 -> 0 | W17: =COST_SIZE3!$G$19 -> 0
B18: =title180 -> Water cost (USD/year) | C18: =COST_SIZE3!$G$20 -> 0 | D18: =COST_SIZE3!$G$20 -> 0 | E18: =COST_SIZE3!$G$20 -> 0 | F18: =COST_SIZE3!$G$20 -> 0 | G18: =COST_SIZE3!$G$20 -> 0 | H18: =COST_SIZE3!$G$20 -> 0 | I18: =COST_SIZE3!$G$20 -> 0 | J18: =COST_SIZE3!$G$20 -> 0 | K18: =COST_SIZE3!$G$20 -> 0 | L18: =COST_SIZE3!$G$20 -> 0 | M18: =COST_SIZE3!$G$20 -> 0 | N18: =COST_SIZE3!$G$20 -> 0 | O18: =COST_SIZE3!$G$20 -> 0 | P18: =COST_SIZE3!$G$20 -> 0 | Q18: =COST_SIZE3!$G$20 -> 0 | R18: =COST_SIZE3!$G$20 -> 0 | S18: =COST_SIZE3!$G$20 -> 0 | T18: =COST_SIZE3!$G$20 -> 0 | U18: =COST_SIZE3!$G$20 -> 0 | V18: =COST_SIZE3!$G$20 -> 0 | W18: =COST_SIZE3!$G$20 -> 0
B19: =title181 -> Sub-total maintenance cost | C19: =COST_SIZE3!$G$52 -> 0 | D19: =COST_SIZE3!$G$52 -> 0 | E19: =COST_SIZE3!$G$52 -> 0 | F19: =COST_SIZE3!$G$52 -> 0 | G19: =COST_SIZE3!$G$52 -> 0 | H19: =COST_SIZE3!$G$52 -> 0 | I19: =COST_SIZE3!$G$52 -> 0 | J19: =COST_SIZE3!$G$52 -> 0 | K19: =COST_SIZE3!$G$52 -> 0 | L19: =COST_SIZE3!$G$52 -> 0 | M19: =COST_SIZE3!$G$52 -> 0 | N19: =COST_SIZE3!$G$52 -> 0 | O19: =COST_SIZE3!$G$52 -> 0 | P19: =COST_SIZE3!$G$52 -> 0 | Q19: =COST_SIZE3!$G$52 -> 0 | R19: =COST_SIZE3!$G$52 -> 0 | S19: =COST_SIZE3!$G$52 -> 0 | T19: =COST_SIZE3!$G$52 -> 0 | U19: =COST_SIZE3!$G$52 -> 0 | V19: =COST_SIZE3!$G$52 -> 0 | W19: =COST_SIZE3!$G$52 -> 0
B20: =title182 -> Sub-total of annual investment cost | C20: =E10 -> 0 | D20: =C20 -> 0 | E20: =D20 -> 0 | F20: 0 | G20: 0 | H20: 0 | I20: 0 | J20: 0 | K20: 0 | L20: 0 | M20: 0 | N20: 0 | O20: 0 | P20: 0 | Q20: 0 | R20: 0 | S20: 0 | T20: 0 | U20: 0 | V20: 0 | W20: 0
B21: =title183 -> Total annual production cost (USD) | C21: =C20+C16+C19 -> 0 | D21: =D20+D16+D19 -> 0 | E21: 0 | F21: 0 | G21: 0 | H21: 0 | I21: 0 | J21: 0 | K21: 0 | L21: 0 | M21: 0 | N21: 0 | O21: 0 | P21: 0 | Q21: 0 | R21: 0 | S21: 0 | T21: 0 | U21: 0 | V21: 0 | W21: 0
B23: =title184 -> Financial without policy | C23: =title174 -> Appraisal
B24: =title135 -> Loan amount | C24: =C11*'Data entry needs'!$H$86 -> 0
B25: =title113 -> Loan interest rate (%) | C25: ='Data entry needs'!H83 -> 0
B26: =title114 -> Loan term (years) | C26: ='Data entry needs'!H84 -> 0
B27: =title185 -> Loan payment (USD/month) | C27: =PMT(C25/12,C26*12,C24) -> 
B28: =title186 -> Loan payment (USD/year) | D28: =IF(D14<=$C$26,$C$27*12,0) -> 0 | E28: =IF(E14<=$C$26,$C$27*12,0) -> 0 | F28: 0 | G28: 0 | H28: 0 | I28: 0 | J28: 0 | K28: 0 | L28: 0 | M28: 0 | N28: 0 | O28: 0 | P28: 0 | Q28: 0 | R28: 0 | S28: 0 | T28: 0 | U28: 0 | V28: 0 | W28: 0
B29: =title187 -> Total loan payment (USD) | C29: =+SUM(D28:W28) -> 0
B30: =title188 -> Loan interest payment (USD) | D30: =+C29+C24 -> 0 | E30: =title189 -> Average loan interest payment for project lifetime | K30: =+D30/C6 -> 0 | L30: =title42 -> USD/year
B32: =title168 -> Operating Year | C32: =title174 -> Appraisal | D32: 1 | E32: 2 | F32: 3 | G32: 4 | H32: 5 | I32: 6 | J32: 7 | K32: 8 | L32: 9 | M32: 10 | N32: 11 | O32: 12 | P32: 13 | Q32: 14 | R32: 15 | S32: 16 | T32: 17 | U32: 18 | V32: 19 | W32: 20
B33: =title190 -> Total revenue (USD) | C33: 0 | D33: =+'Summary of Results-By Size'!$AT$189 ->  | E33: =+'Summary of Results-By Size'!$AT$189 ->  | F33: =+'Summary of Results-By Size'!$AT$189 ->  | G33: =+'Summary of Results-By Size'!$AT$189 ->  | H33: =+'Summary of Results-By Size'!$AT$189 ->  | I33: =+'Summary of Results-By Size'!$AT$189 ->  | J33: =+'Summary of Results-By Size'!$AT$189 ->  | K33: =+'Summary of Results-By Size'!$AT$189 ->  | L33: =+'Summary of Results-By Size'!$AT$189 ->  | M33: =+'Summary of Results-By Size'!$AT$189 ->  | N33: =+'Summary of Results-By Size'!$AT$189 ->  | O33: =+'Summary of Results-By Size'!$AT$189 ->  | P33: =+'Summary of Results-By Size'!$AT$189 ->  | Q33: =+'Summary of Results-By Size'!$AT$189 ->  | R33: =+'Summary of Results-By Size'!$AT$189 ->  | S33: =+'Summary of Results-By Size'!$AT$189 ->  | T33: =+'Summary of Results-By Size'!$AT$189 ->  | U33: =+'Summary of Results-By Size'!$AT$189 ->  | V33: =+'Summary of Results-By Size'!$AT$189 ->  | W33: =+'Summary of Results-By Size'!$AT$189 -> 
B34: =title172 -> Total capital cost (USD) | C34: =-ABS(C11-C24) -> 0 | D34: 0 | E34: 0 | F34: 0 | G34: 0 | H34: 0 | I34: 0 | J34: 0 | K34: 0 | L34: 0 | M34: 0 | N34: 0 | O34: 0 | P34: 0 | Q34: 0 | R34: 0 | S34: 0 | T34: 0 | U34: 0 | V34: 0 | W34: 0 | Y34: =title198 -> From the digester user point of view, in the first two years there should be some sort of guarantee so that any maintenance costs will be paid by the biogas business.
B35: =title191 -> Total operating and maintenance cost (USD) | D35: =-D16-D19 -> 0 | E35: =-E16-E19 -> 0 | F35: 0 | G35: 0 | H35: 0 | I35: 0 | J35: 0 | K35: 0 | L35: 0 | M35: 0 | N35: 0 | O35: 0 | P35: 0 | Q35: 0 | R35: 0 | S35: 0 | T35: 0 | U35: 0 | V35: 0 | W35: 0
B36: =title192 -> Loan payment (USD) | C36: 0 | D36: =+D28 -> 0 | E36: =+E28 -> 0 | F36: 0 | G36: 0 | H36: 0 | I36: 0 | J36: 0 | K36: 0 | L36: 0 | M36: 0 | N36: 0 | O36: 0 | P36: 0 | Q36: 0 | R36: 0 | S36: 0 | T36: 0 | U36: 0 | V36: 0 | W36: 0
B37: =title193 -> Cash flow (USD per year) | C37: =SUM(C33:C36) -> 0
B38: =title194 -> Financial analysis without policy
B39: =title195 -> Net present value | C39: =NPV('Data entry needs'!H85,D37:W37)+C37 -> 
B40: =title196 -> Internal rate of return (IRR) | C40: =IF(C39<0, title197, IRR(C37:W37,'Data entry needs'!H85)) -> 

Sheet FA_FLOATING_SIZE3 (hidden)
B2: =title199 -> FINANCIAL ANALYSIS OF BIOGAS PRODUCTION IN A FLOATING DRUM BIODIGESTOR
B5: =title168 -> Operating Year | C5: 0 | D5: 1 | E5: 2 | F5: 3 | G5: 4 | H5: 5 | I5: 6 | J5: 7 | K5: 8 | L5: 9 | M5: 10 | N5: 11 | O5: 12 | P5: 13 | Q5: 14 | R5: 15 | S5: 16 | T5: 17 | U5: 18 | V5: 19 | W5: 20
B6: =title169 -> Lifetime of the reactor | C6: 20
C8: =title174 -> Appraisal | D8: =title175 -> Project lifetime | E8: =title176 -> per year
B9: =title170 -> Direct capital cost (USD)
B10: =title171 -> Reactor construction | C10: =+COST_SIZE3!$H$50 -> 0 | D10: =+MATERIALS_ALL!$D$5 -> 20 | E10: =C10/D10 -> 0
B11: =title172 -> Total capital cost (USD) | C11: =SUM(C10:C10) -> 0
B12: =title173 -> Total savings on energy "revenue" | D12: =SUM(D33:W33) ->  | E12: =D12/C6 -> 
B14: =title168 -> Operating Year | C14: =title174 -> Appraisal | D14: 1 | E14: 2 | F14: 3 | G14: 4 | H14: 5 | I14: 6 | J14: 7 | K14: 8 | L14: 9 | M14: 10 | N14: 11 | O14: 12 | P14: 13 | Q14: 14 | R14: 15 | S14: 16 | T14: 17 | U14: 18 | V14: 19 | W14: 20
B15: =title177 -> Annual operating and maintenance cost
B16: =title178 -> Sub-total operating cost (USD) | C16: =C17+C18 -> 0 | D16: =D17+D18 -> 0 | E16: 0 | F16: 0 | G16: 0 | H16: 0 | I16: 0 | J16: 0 | K16: 0 | L16: 0 | M16: 0 | N16: 0 | O16: 0 | P16: 0 | Q16: 0 | R16: 0 | S16: 0 | T16: 0 | U16: 0 | V16: 0 | W16: 0
B17: =title179 -> Biomass cost (USD/year) | C17: =COST_SIZE3!$I$19 -> 0 | D17: =COST_SIZE3!$I$19 -> 0 | E17: =COST_SIZE3!$I$19 -> 0 | F17: =COST_SIZE3!$I$19 -> 0 | G17: =COST_SIZE3!$I$19 -> 0 | H17: =COST_SIZE3!$I$19 -> 0 | I17: =COST_SIZE3!$I$19 -> 0 | J17: =COST_SIZE3!$I$19 -> 0 | K17: =COST_SIZE3!$I$19 -> 0 | L17: =COST_SIZE3!$I$19 -> 0 | M17: =COST_SIZE3!$I$19 -> 0 | N17: =COST_SIZE3!$I$19 -> 0 | O17: =COST_SIZE3!$I$19 -> 0 | P17: =COST_SIZE3!$I$19 -> 0 | Q17: =COST_SIZE3!$I$19 -> 0 | R17: =COST_SIZE3!$I$19 -> 0 | S17: =COST_SIZE3!$I$19 -> 0 | T17: =COST_SIZE3!$I$19 -> 0 | U17: =COST_SIZE3!$I$19 -> 0 | V17: =COST_SIZE3!$I$19 -> 0 | W17: =COST_SIZE3!$I$19 -> 0
B18: =title180 -> Water cost (USD/year) | C18: =COST_SIZE3!$I$20 -> 0 | D18: =COST_SIZE3!$I$20 -> 0 | E18: =COST_SIZE3!$I$20 -> 0 | F18: =COST_SIZE3!$I$20 -> 0 | G18: =COST_SIZE3!$I$20 -> 0 | H18: =COST_SIZE3!$I$20 -> 0 | I18: =COST_SIZE3!$I$20 -> 0 | J18: =COST_SIZE3!$I$20 -> 0 | K18: =COST_SIZE3!$I$20 -> 0 | L18: =COST_SIZE3!$I$20 -> 0 | M18: =COST_SIZE3!$I$20 -> 0 | N18: =COST_SIZE3!$I$20 -> 0 | O18: =COST_SIZE3!$I$20 -> 0 | P18: =COST_SIZE3!$I$20 -> 0 | Q18: =COST_SIZE3!$I$20 -> 0 | R18: =COST_SIZE3!$I$20 -> 0 | S18: =COST_SIZE3!$I$20 -> 0 | T18: =COST_SIZE3!$I$20 -> 0 | U18: =COST_SIZE3!$I$20 -> 0 | V18: =COST_SIZE3!$I$20 -> 0 | W18: =COST_SIZE3!$I$20 -> 0
B19: =title181 -> Sub-total maintenance cost | C19: =COST_SIZE3!$I$52 -> 0 | D19: =COST_SIZE3!$I$52 -> 0 | E19: =COST_SIZE3!$I$52 -> 0 | F19: =COST_SIZE3!$I$52 -> 0 | G19: =COST_SIZE3!$I$52 -> 0 | H19: =COST_SIZE3!$I$52 -> 0 | I19: =COST_SIZE3!$I$52 -> 0 | J19: =COST_SIZE3!$I$52 -> 0 | K19: =COST_SIZE3!$I$52 -> 0 | L19: =COST_SIZE3!$I$52 -> 0 | M19: =COST_SIZE3!$I$52 -> 0 | N19: =COST_SIZE3!$I$52 -> 0 | O19: =COST_SIZE3!$I$52 -> 0 | P19: =COST_SIZE3!$I$52 -> 0 | Q19: =COST_SIZE3!$I$52 -> 0 | R19: =COST_SIZE3!$I$52 -> 0 | S19: =COST_SIZE3!$I$52 -> 0 | T19: =COST_SIZE3!$I$52 -> 0 | U19: =COST_SIZE3!$I$52 -> 0 | V19: =COST_SIZE3!$I$52 -> 0 | W19: =COST_SIZE3!$I$52 -> 0
B20: =title182 -> Sub-total of annual investment cost | C20: =E10 -> 0 | D20: =C20 -> 0 | E20: =D20 -> 0 | F20: 0 | G20: 0 | H20: 0 | I20: 0 | J20: 0 | K20: 0 | L20: 0 | M20: 0 | N20: 0 | O20: 0 | P20: 0 | Q20: 0 | R20: 0 | S20: 0 | T20: 0 | U20: 0 | V20: 0 | W20: 0
B21: =title183 -> Total annual production cost (USD) | C21: =C20+C16+C19 -> 0 | D21: =D20+D16+D19 -> 0 | E21: 0 | F21: 0 | G21: 0 | H21: 0 | I21: 0 | J21: 0 | K21: 0 | L21: 0 | M21: 0 | N21: 0 | O21: 0 | P21: 0 | Q21: 0 | R21: 0 | S21: 0 | T21: 0 | U21: 0 | V21: 0 | W21: 0
B23: =title184 -> Financial without policy | C23: =title174 -> Appraisal
B24: =title135 -> Loan amount | C24: =C11*'Data entry needs'!$H$86 -> 0
B25: =title113 -> Loan interest rate (%) | C25: ='Data entry needs'!H83 -> 0
B26: =title114 -> Loan term (years) | C26: ='Data entry needs'!H84 -> 0
B27: =title185 -> Loan payment (USD/month) | C27: =PMT(C25/12,C26*12,C24) -> 
B28: =title186 -> Loan payment (USD/year) | D28: =IF(D14<=$C$26,$C$27*12,0) -> 0 | E28: =IF(E14<=$C$26,$C$27*12,0) -> 0 | F28: 0 | G28: 0 | H28: 0 | I28: 0 | J28: 0 | K28: 0 | L28: 0 | M28: 0 | N28: 0 | O28: 0 | P28: 0 | Q28: 0 | R28: 0 | S28: 0 | T28: 0 | U28: 0 | V28: 0 | W28: 0
B29: =title187 -> Total loan payment (USD) | C29: =+SUM(D28:W28) -> 0
B30: =title188 -> Loan interest payment (USD) | D30: =+C29+C24 -> 0 | E30: =title189 -> Average loan interest payment for project lifetime | K30: =+D30/C6 -> 0 | L30: =title42 -> USD/year
B32: =title168 -> Operating Year | C32: =title174 -> Appraisal | D32: 1 | E32: 2 | F32: 3 | G32: 4 | H32: 5 | I32: 6 | J32: 7 | K32: 8 | L32: 9 | M32: 10 | N32: 11 | O32: 12 | P32: 13 | Q32: 14 | R32: 15 | S32: 16 | T32: 17 | U32: 18 | V32: 19 | W32: 20
B33: =title190 -> Total revenue (USD) | C33: 0 | D33: =+'Summary of Results-By Size'!$AT$189 ->  | E33: =+'Summary of Results-By Size'!$AT$189 ->  | F33: =+'Summary of Results-By Size'!$AT$189 ->  | G33: =+'Summary of Results-By Size'!$AT$189 ->  | H33: =+'Summary of Results-By Size'!$AT$189 ->  | I33: =+'Summary of Results-By Size'!$AT$189 ->  | J33: =+'Summary of Results-By Size'!$AT$189 ->  | K33: =+'Summary of Results-By Size'!$AT$189 ->  | L33: =+'Summary of Results-By Size'!$AT$189 ->  | M33: =+'Summary of Results-By Size'!$AT$189 ->  | N33: =+'Summary of Results-By Size'!$AT$189 ->  | O33: =+'Summary of Results-By Size'!$AT$189 ->  | P33: =+'Summary of Results-By Size'!$AT$189 ->  | Q33: =+'Summary of Results-By Size'!$AT$189 ->  | R33: =+'Summary of Results-By Size'!$AT$189 ->  | S33: =+'Summary of Results-By Size'!$AT$189 ->  | T33: =+'Summary of Results-By Size'!$AT$189 ->  | U33: =+'Summary of Results-By Size'!$AT$189 ->  | V33: =+'Summary of Results-By Size'!$AT$189 ->  | W33: =+'Summary of Results-By Size'!$AT$189 -> 
B34: =title172 -> Total capital cost (USD) | C34: =-ABS(C11-C24) -> 0 | D34: 0 | E34: 0 | F34: 0 | G34: 0 | H34: 0 | I34: 0 | J34: 0 | K34: 0 | L34: 0 | M34: 0 | N34: 0 | O34: 0 | P34: 0 | Q34: 0 | R34: 0 | S34: 0 | T34: 0 | U34: 0 | V34: 0 | W34: 0 | Y34: =title198 -> From the digester user point of view, in the first two years there should be some sort of guarantee so that any maintenance costs will be paid by the biogas business.
B35: =title191 -> Total operating and maintenance cost (USD) | D35: =-D16-D19 -> 0 | E35: =-E16-E19 -> 0 | F35: 0 | G35: 0 | H35: 0 | I35: 0 | J35: 0 | K35: 0 | L35: 0 | M35: 0 | N35: 0 | O35: 0 | P35: 0 | Q35: 0 | R35: 0 | S35: 0 | T35: 0 | U35: 0 | V35: 0 | W35: 0
B36: =title192 -> Loan payment (USD) | C36: 0 | D36: =+D28 -> 0 | E36: =+E28 -> 0 | F36: 0 | G36: 0 | H36: 0 | I36: 0 | J36: 0 | K36: 0 | L36: 0 | M36: 0 | N36: 0 | O36: 0 | P36: 0 | Q36: 0 | R36: 0 | S36: 0 | T36: 0 | U36: 0 | V36: 0 | W36: 0
B37: =title193 -> Cash flow (USD per year) | C37: =SUM(C33:C36) -> 0 | D37: =SUM(D33:D36) ->  | E37: =SUM(E33:E36) ->  | F37: =SUM(F33:F36) -> 
B38: =title194 -> Financial analysis without policy
B39: =title195 -> Net present value | C39: =NPV('Data entry needs'!H85,D37:W37)+C37 -> 
B40: =title196 -> Internal rate of return (IRR) | C40: =IF(C39<0, title197, IRR(C37:W37,'Data entry needs'!H85)) -> 

Sheet FA_TUBULAR_SIZE3 (hidden)
B2: =title200 -> FINANCIAL ANALYSIS OF BIOGAS PRODUCTION IN A TUBULAR BIODIGESTOR
B5: =title168 -> Operating Year | C5: 0 | D5: 1 | E5: 2 | F5: 3 | G5: 4 | H5: 5 | I5: 6 | J5: 7 | K5: 8 | L5: 9 | M5: 10 | N5: 11 | O5: 12 | P5: 13 | Q5: 14 | R5: 15 | S5: 16 | T5: 17 | U5: 18 | V5: 19 | W5: 20
B6: =title169 -> Lifetime of the reactor | C6: 10
C8: =title174 -> Appraisal | D8: =title175 -> Project lifetime | E8: =title176 -> per year
B9: =title170 -> Direct capital cost (USD)
B10: =title171 -> Reactor construction | C10: =+COST_SIZE3!$J$50 ->  | D10: =+MATERIALS_ALL!$D$6 -> 10 | E10: =C10/D10 -> 
B11: =title172 -> Total capital cost (USD) | C11: =SUM(C10:C10) -> 
B12: =title173 -> Total savings on energy "revenue" | D12: =SUM(D33:W33) ->  | E12: =D12/C6 -> 
B14: =title168 -> Operating Year | C14: =title174 -> Appraisal | D14: 1 | E14: 2 | F14: 3 | G14: 4 | H14: 5 | I14: 6 | J14: 7 | K14: 8 | L14: 9 | M14: 10 | N14: 11 | O14: 12 | P14: 13 | Q14: 14 | R14: 15 | S14: 16 | T14: 17 | U14: 18 | V14: 19 | W14: 20
B15: =title177 -> Annual operating and maintenance cost
B16: =title178 -> Sub-total operating cost (USD) | C16: =C17+C18 -> 0 | D16: =D17+D18 -> 0 | E16: 0 | F16: 0 | G16: 0 | H16: 0 | I16: 0 | J16: 0 | K16: 0 | L16: 0 | M16: 0 | N16: 0 | O16: 0 | P16: 0 | Q16: 0 | R16: 0 | S16: 0 | T16: 0 | U16: 0 | V16: 0 | W16: 0
B17: =title179 -> Biomass cost (USD/year) | C17: =COST_SIZE3!$K$19 -> 0 | D17: =COST_SIZE3!$K$19 -> 0 | E17: =COST_SIZE3!$K$19 -> 0 | F17: =COST_SIZE3!$K$19 -> 0 | G17: =COST_SIZE3!$K$19 -> 0 | H17: =COST_SIZE3!$K$19 -> 0 | I17: =COST_SIZE3!$K$19 -> 0 | J17: =COST_SIZE3!$K$19 -> 0 | K17: =COST_SIZE3!$K$19 -> 0 | L17: =COST_SIZE3!$K$19 -> 0 | M17: =COST_SIZE3!$K$19 -> 0 | N17: =COST_SIZE3!$K$19 -> 0 | O17: =COST_SIZE3!$K$19 -> 0 | P17: =COST_SIZE3!$K$19 -> 0 | Q17: =COST_SIZE3!$K$19 -> 0 | R17: =COST_SIZE3!$K$19 -> 0 | S17: =COST_SIZE3!$K$19 -> 0 | T17: =COST_SIZE3!$K$19 -> 0 | U17: =COST_SIZE3!$K$19 -> 0 | V17: =COST_SIZE3!$K$19 -> 0 | W17: =COST_SIZE3!$K$19 -> 0
B18: =title180 -> Water cost (USD/year) | C18: =COST_SIZE3!$K$20 -> 0 | D18: =COST_SIZE3!$K$20 -> 0 | E18: =COST_SIZE3!$K$20 -> 0 | F18: =COST_SIZE3!$K$20 -> 0 | G18: =COST_SIZE3!$K$20 -> 0 | H18: =COST_SIZE3!$K$20 -> 0 | I18: =COST_SIZE3!$K$20 -> 0 | J18: =COST_SIZE3!$K$20 -> 0 | K18: =COST_SIZE3!$K$20 -> 0 | L18: =COST_SIZE3!$K$20 -> 0 | M18: =COST_SIZE3!$K$20 -> 0 | N18: =COST_SIZE3!$K$20 -> 0 | O18: =COST_SIZE3!$K$20 -> 0 | P18: =COST_SIZE3!$K$20 -> 0 | Q18: =COST_SIZE3!$K$20 -> 0 | R18: =COST_SIZE3!$K$20 -> 0 | S18: =COST_SIZE3!$K$20 -> 0 | T18: =COST_SIZE3!$K$20 -> 0 | U18: =COST_SIZE3!$K$20 -> 0 | V18: =COST_SIZE3!$K$20 -> 0 | W18: =COST_SIZE3!$K$20 -> 0
